Workbook

Sheet Existing Technology Conversion
A1: 1 | B1: 2 | C1: 3 | D1: 4 | E1: 5 | F1: 6 | G1: 7 | H1: 8 | I1: 9 | J1: 10 | K1: 11 | L1: 12 | M1: 13 | N1: 14 | O1: 15 | P1: 16 | Q1: 17 | R1: 18 | S1: 19 | T1: 20 | U1: 21 | V1: 22 | W1: 23 | X1: 24 | Y1: 25 | Z1: 26 | AA1: 27 | AB1: 28 | AC1: 29 | AD1: 30 | AE1: 31 | AF1: 32 | AG1: 33 | AH1: 34 | AI1: 35 | AJ1: 36 | AK1: 37 | AL1: 38 | AM1: 39 | AN1: 40 | AO1: 41 | AP1: 42 | AQ1: 43 | AR1: 44
C2: kWh / Therm | R2: Natural Gas Efficiency | AU2: Electric Efficiency
C3: Water Heat | E3: Space Heat | G3: Other | I3: Water Heat | K3: Space Heat | M3: Other | R3: Residential | U3: Residential | X3: Commerical | AA3: Commerical | AD3: Industrial | AG3: Industrial | AU3: Residential | AX3: Residential | BA3: Commerical | BD3: Commerical | BG3: Industrial | BJ3: Industrial
C4: Res | D4: Com | E4: Res | F4: Com | G4: Res | H4: Com | I4: Res | J4: Com | K4: Res | L4: Com | M4: Res | N4: Com | O4: Res | P4: Com | Q4: Ind | R4: Efficiency | U4: Percent Use | X4: Efficiency | AA4: Percent Use | AD4: Efficiency | AG4: Percent Use | AJ4: Water Heat Efficiency | AL4: Space Heat Efficiency | AN4: Other | AP4: Blended Efficiency | AU4: Efficiency | AX4: Percent Use | BA4: Efficiency | BD4: Percent Use | BG4: Efficiency | BJ4: Percent Use | BM4: Water Heat Efficiency | BO4: Space Heat Efficiency | BQ4: Other | BS4: Efficiency
A5: Temp | B5: Polynomial | C5: Ratio | D5: Ratio | E5: Ratio | F5: Ratio | G5: Ratio | H5: Ratio | I5: Ratio | J5: Ratio | K5: Ratio | L5: Ratio | M5: Ratio | N5: Ratio | O5: Ratio | P5: Ratio | Q5: Ratio | R5: Water Heat | S5: Space Heat | T5: Other | U5: Water Heat | V5: Space Heat | W5: Other | X5: Water Heat | Y5: Space Heat | Z5: Other | AA5: Water Heat | AB5: Space Heat | AC5: Other | AD5: Water Heat | AE5: Space Heat | AF5: Process | AG5: Water Heat | AH5: Space Heat | AI5: Process | AJ5: Res | AK5: Com | AL5: Res | AM5: Com | AN5: Res | AO5: Com | AP5: Res | AQ5: Comm | AR5: Industrial | AU5: Water Heat | AV5: Space Heat | AW5: Other | AX5: Water Heat | AY5: Space Heat | AZ5: Other | BA5: Water Heat | BB5: Space Heat | BC5: Other | BD5: Water Heat | BE5: Space Heat | BF5: Other | BG5: Water Heat | BH5: Space Heat | BI5: Process | BJ5: Water Heat | BK5: Space Heat | BL5: Process | BM5: Res | BN5: Com | BO5: Res | BP5: Com | BQ5: Res | BR5: Com | BS5: Res | BT5: Comm | BU5: Industrial
A6: -15 | B6: =(-0.0000004*A6^4)+(0.0011*A6^3)-(0.062*A6^2)-(1.0046*A6)+262.25 -> 259.63625 | C6: =29.3*I6 -> 9.083 | D6: 18.166 | E6: 29.00621179 | F6: 23.44 | G6: 0 | H6: 0 | I6: =AJ6/BM6 -> 0.31 | J6: =AK6/BN6 -> 0.62 | K6: =AL6/BO6 -> 0.9899730986 | L6: =AM6/BP6 -> 0.8 | M6: =IFERROR(AN6/BQ6,0) -> 0 | N6: =IFERROR(AO6/BR6,0) -> 0 | O6: =AP6/BS6 -> 0.9485726738 | P6: =AQ6/BT6 -> 0.7834862385 | Q6: =AR6/BU6 -> 0.9152046784 | R6: 0.62 | S6: 0.88 | T6: 1 | U6: 0.05 | V6: 0.92 | W6: 0.03 | X6: 0.62 | Y6: 0.88 | Z6: 1 | AA6: 0.1 | AB6: 0.9 | AC6: 0 | AD6: 0.62 | AE6: 0.88 | AF6: 1 | AG6: 0.05 | AH6: 0.35 | AI6: 0.6 | AJ6: =R6*U6 -> 0.031 | AK6: =X6*AA6 -> 0.062 | AL6: =S6*V6 -> 0.8096 | AM6: =Y6*AB6 -> 0.792 | AN6: =T6*W6 -> 0.03 | AO6: =Z6*AC6 -> 0 | AP6: =SUMPRODUCT(R6:T6,U6:W6) -> 0.8706 | AQ6: =SUMPRODUCT(X6:Z6,AA6:AC6) -> 0.854 | AR6: =SUMPRODUCT(AD6:AF6,AG6:AI6) -> 0.939 | AU6: 1 | AV6: 0.94 | AW6: 1 | AX6: 0.1 | AY6: 0.87 | AZ6: 0 | BA6: 1 | BB6: 1.1 | BC6: 1 | BD6: 0.1 | BE6: 0.9 | BF6: 0 | BG6: 0.82 | BH6: 1.1 | BI6: 1 | BJ6: 0.05 | BK6: 0.35 | BL6: 0.6 | BM6: =AU6*AX6 -> 0.1 | BN6: =BA6*BD6 -> 0.1 | BO6: =AV6*AY6 -> 0.8178 | BP6: =BB6*BE6 -> 0.99 | BQ6: =AW6*AZ6 -> 0 | BR6: -0.999 | BS6: =SUMPRODUCT(AU6:AW6,AX6:AZ6) -> 0.9178 | BT6: =SUMPRODUCT(BA6:BC6,BD6:BF6) -> 1.09 | BU6: =SUMPRODUCT(BG6:BI6,BJ6:BL6) -> 1.026
A7: -14 | B7: 261.1286336 | C7: =29.3*I7 -> 9.083 | D7: =29.3*J7 -> 18.166 | E7: =29.3*K7 -> 29.00621179 | F7: =29.3*L7 -> 23.44 | G7: =29.3*M7 -> 87.9 | H7: =29.3*N7 -> 0 | I7: 0.31 | J7: 0.62 | K7: 0.9899730986 | L7: 0.8 | M7: =AN7/BQ7 -> 3 | N7: =IFERROR(AO7/BR7,0) -> 0 | O7: 0.9383487821 | P7: 0.7834862385 | Q7: 0.9152046784 | R7: 0.62 | S7: 0.88 | T7: 1 | U7: 0.05 | V7: 0.92 | W7: 0.03 | X7: 0.62 | Y7: 0.88 | Z7: 1 | AA7: 0.1 | AB7: 0.9 | AC7: 0 | AD7: 0.62 | AE7: 0.88 | AF7: 1 | AG7: 0.05 | AH7: 0.35 | AI7: 0.6 | AJ7: =R7*U7 -> 0.031 | AK7: =X7*AA7 -> 0.062 | AL7: =S7*V7 -> 0.8096 | AM7: =Y7*AB7 -> 0.792 | AN7: =T7*W7 -> 0.03 | AO7: =Z7*AC7 -> 0 | AP7: =SUMPRODUCT(R7:T7,U7:W7) -> 0.8706 | AQ7: =SUMPRODUCT(X7:Z7,AA7:AC7) -> 0.854 | AR7: =SUMPRODUCT(AD7:AF7,AG7:AI7) -> 0.939 | AU7: 1 | AV7: 0.94 | AW7: 1 | AX7: 0.1 | AY7: 0.87 | AZ7: 0.01 | BA7: 1 | BB7: 1.1 | BC7: 1 | BD7: 0.1 | BE7: 0.9 | BF7: 0 | BG7: 0.82 | BH7: 1.1 | BI7: 1 | BJ7: 0.05 | BK7: 0.35 | BL7: 0.6 | BM7: =AU7*AX7 -> 0.1 | BN7: =BA7*BD7 -> 0.1 | BO7: =AV7*AY7 -> 0.8178 | BP7: =BB7*BE7 -> 0.99 | BQ7: =AW7*AZ7 -> 0.01 | BR7: =BC7*BF7 -> 0 | BS7: 0.9278 | BT7: 1.09 | BU7: =SUMPRODUCT(BG7:BI7,BJ7:BL7) -> 1.026
A8: -13 | B8: 262.4036756 | C8: 9.083 | D8: 18.166 | E8: 29.00621179 | F8: 23.44 | G8: 87.9 | H8: 0 | I8: 0.31 | J8: 0.62 | K8: 0.9899730986 | L8: 0.8 | M8: 3 | N8: 0 | O8: 0.9383487821 | P8: 0.7834862385 | Q8: 0.9152046784 | R8: 0.62 | S8: 0.88 | T8: 1 | U8: 0.05 | V8: 0.92 | W8: 0.03 | X8: 0.62 | Y8: 0.88 | Z8: 1 | AA8: 0.1 | AB8: 0.9 | AC8: 0 | AD8: 0.62 | AE8: 0.88 | AF8: 1 | AG8: 0.05 | AH8: 0.35 | AI8: 0.6 | AJ8: =R8*U8 -> 0.031 | AK8: =X8*AA8 -> 0.062 | AL8: =S8*V8 -> 0.8096 | AM8: =Y8*AB8 -> 0.792 | AN8: =T8*W8 -> 0.03 | AO8: =Z8*AC8 -> 0 | AP8: =SUMPRODUCT(R8:T8,U8:W8) -> 0.8706 | AQ8: =SUMPRODUCT(X8:Z8,AA8:AC8) -> 0.854 | AR8: =SUMPRODUCT(AD8:AF8,AG8:AI8) -> 0.939 | AU8: 1 | AV8: 0.94 | AW8: =AW7 -> 1 | AX8: 0.1 | AY8: 0.87 | AZ8: 0.01 | BA8: 1 | BB8: =BB7 -> 1.1 | BC8: 1 | BD8: 0.1 | BE8: 0.9 | BF8: 0 | BG8: 0.82 | BH8: 1.1 | BI8: 1 | BJ8: 0.05 | BK8: 0.35 | BL8: 0.6 | BM8: =AU8*AX8 -> 0.1 | BN8: =BA8*BD8 -> 0.1 | BO8: =AV8*AY8 -> 0.8178 | BP8: =BB8*BE8 -> 0.99 | BQ8: =AW8*AZ8 -> 0.01 | BR8: =BC8*BF8 -> 0 | BS8: 0.9278 | BT8: 1.09 | BU8: =SUMPRODUCT(BG8:BI8,BJ8:BL8) -> 1.026
A9: -12 | B9: 263.4681056 | C9: 9.083 | D9: 18.166 | E9: 29.00621179 | F9: 23.44 | G9: 87.9 | H9: 0 | I9: 0.31 | J9: 0.62 | K9: 0.9899730986 | L9: 0.8 | M9: 3 | N9: 0 | O9: 0.9383487821 | P9: 0.7834862385 | Q9: 0.9152046784 | R9: 0.62 | S9: 0.88 | T9: 1 | U9: 0.05 | V9: 0.92 | W9: 0.03 | X9: 0.62 | Y9: 0.88 | Z9: 1 | AA9: 0.1 | AB9: 0.9 | AC9: 0 | AD9: 0.62 | AE9: 0.88 | AF9: 1 | AG9: 0.05 | AH9: 0.35 | AI9: 0.6 | AJ9: =R9*U9 -> 0.031 | AK9: =X9*AA9 -> 0.062 | AL9: =S9*V9 -> 0.8096 | AM9: =Y9*AB9 -> 0.792 | AN9: =T9*W9 -> 0.03 | AO9: =Z9*AC9 -> 0 | AP9: =SUMPRODUCT(R9:T9,U9:W9) -> 0.8706 | AQ9: =SUMPRODUCT(X9:Z9,AA9:AC9) -> 0.854 | AR9: =SUMPRODUCT(AD9:AF9,AG9:AI9) -> 0.939 | AU9: 1 | AV9: 0.94 | AW9: 1 | AX9: 0.1 | AY9: 0.87 | AZ9: 0.01 | BA9: 1 | BB9: =BB8 -> 1.1 | BC9: 1 | BD9: 0.1 | BE9: 0.9 | BF9: 0 | BG9: 0.82 | BH9: 1.1 | BI9: 1 | BJ9: 0.05 | BK9: 0.35 | BL9: 0.6 | BM9: =AU9*AX9 -> 0.1 | BN9: =BA9*BD9 -> 0.1 | BO9: =AV9*AY9 -> 0.8178 | BP9: =BB9*BE9 -> 0.99 | BQ9: =AW9*AZ9 -> 0.01 | BR9: =BC9*BF9 -> 0 | BS9: 0.9278 | BT9: 1.09 | BU9: =SUMPRODUCT(BG9:BI9,BJ9:BL9) -> 1.026
A10: -11 | B10: 264.3286436 | C10: 9.083 | D10: 18.166 | E10: 29.00621179 | F10: 23.44 | G10: 43.95 | H10: 0 | I10: 0.31 | J10: 0.62 | K10: 0.9899730986 | L10: 0.8 | M10: 1.5 | N10: 0 | O10: 0.9283429303 | P10: 0.7834862385 | Q10: 0.9152046784 | R10: 0.62 | S10: 0.88 | T10: 1 | U10: 0.05 | V10: 0.92 | W10: 0.03 | X10: 0.62 | Y10: 0.88 | Z10: 1 | AA10: 0.1 | AB10: 0.9 | AC10: 0 | AD10: 0.62 | AE10: 0.88 | AF10: 1 | AG10: 0.05 | AH10: 0.35 | AI10: 0.6 | AJ10: =R10*U10 -> 0.031 | AK10: =X10*AA10 -> 0.062 | AL10: =S10*V10 -> 0.8096 | AM10: =Y10*AB10 -> 0.792 | AN10: =T10*W10 -> 0.03 | AO10: =Z10*AC10 -> 0 | AP10: =SUMPRODUCT(R10:T10,U10:W10) -> 0.8706 | AQ10: =SUMPRODUCT(X10:Z10,AA10:AC10) -> 0.854 | AR10: =SUMPRODUCT(AD10:AF10,AG10:AI10) -> 0.939 | AU10: 1 | AV10: 0.94 | AW10: 1 | AX10: 0.1 | AY10: 0.87 | AZ10: 0.02 | BA10: 1 | BB10: 1.1 | BC10: 1 | BD10: 0.1 | BE10: 0.9 | BF10: 0 | BG10: 0.82 | BH10: 1.1 | BI10: 1 | BJ10: 0.05 | BK10: 0.35 | BL10: 0.6 | BM10: =AU10*AX10 -> 0.1 | BN10: =BA10*BD10 -> 0.1 | BO10: =AV10*AY10 -> 0.8178 | BP10: =BB10*BE10 -> 0.99 | BQ10: =AW10*AZ10 -> 0.02 | BR10: 0.001 | BS10: 0.9378 | BT10: 1.09 | BU10: =SUMPRODUCT(BG10:BI10,BJ10:BL10) -> 1.026
A11: -10 | B11: 264.992 | C11: 9.083 | D11: 18.166 | E11: 29.00621179 | F11: 23.44 | G11: 29.3 | H11: 0 | I11: 0.31 | J11: 0.62 | K11: 0.9899730986 | L11: 0.8 | M11: 1 | N11: 0 | O11: 0.9185482169 | P11: 0.7834862385 | Q11: 0.9152046784 | R11: =R10 -> 0.62 | S11: =S10 -> 0.88 | T11: 1 | U11: 0.05 | V11: 0.92 | W11: 0.03 | X11: 0.62 | Y11: 0.88 | Z11: 1 | AA11: 0.1 | AB11: 0.9 | AC11: 0 | AD11: 0.62 | AE11: 0.88 | AF11: 1 | AG11: 0.05 | AH11: 0.35 | AI11: =AI10 -> 0.6 | AJ11: =R11*U11 -> 0.031 | AK11: =X11*AA11 -> 0.062 | AL11: =S11*V11 -> 0.8096 | AM11: =Y11*AB11 -> 0.792 | AN11: =T11*W11 -> 0.03 | AO11: =Z11*AC11 -> 0 | AP11: =SUMPRODUCT(R11:T11,U11:W11) -> 0.8706 | AQ11: 0.854 | AR11: 0.939 | AU11: 1 | AV11: 0.94 | AW11: 1 | AX11: 0.1 | AY11: 0.87 | AZ11: 0.03 | BA11: 1 | BB11: 1.1 | BC11: 1 | BD11: 0.1 | BE11: 0.9 | BF11: 0 | BG11: 0.82 | BH11: 1.1 | BI11: 1 | BJ11: 0.05 | BK11: 0.35 | BL11: 0.6 | BM11: =AU11*AX11 -> 0.1 | BN11: =BA11*BD11 -> 0.1 | BO11: =AV11*AY11 -> 0.8178 | BP11: =BB11*BE11 -> 0.99 | BQ11: =AW11*AZ11 -> 0.03 | BR11: =BC11*BF11 -> 0 | BS11: 0.9478 | BT11: 1.09 | BU11: =SUMPRODUCT(BG11:BI11,BJ11:BL11) -> 1.026
A12: -9 | B12: =(-0.0000004*A12^4)+(0.0011*A12^3)-(0.062*A12^2)-(1.0046*A12)+262.25 -> 265.4648756 | C12: 9.083 | D12: 18.166 | E12: 29.00621179 | F12: 23.44 | G12: 29.3 | H12: 0 | I12: 0.31 | J12: 0.62 | K12: 0.9899730986 | L12: 0.8 | M12: 1 | N12: 0 | O12: 0.9185482169 | P12: 0.7834862385 | Q12: 0.9152046784 | R12: =R11 -> 0.62 | S12: 0.88 | T12: 1 | U12: 0.05 | V12: 0.92 | W12: 0.03 | X12: 0.62 | Y12: 0.88 | Z12: 1 | AA12: 0.1 | AB12: 0.9 | AC12: 0 | AD12: 0.62 | AE12: 0.88 | AF12: 1 | AG12: 0.05 | AH12: 0.35 | AI12: 0.6 | AJ12: 0.031 | AK12: 0.062 | AL12: 0.8096 | AM12: 0.792 | AN12: 0.03 | AO12: 0 | AP12: 0.8706 | AQ12: 0.854 | AR12: 0.939 | AU12: 1 | AV12: 0.94 | AW12: =AW11 -> 1 | AX12: 0.1 | AY12: 0.87 | AZ12: 0.03 | BA12: 1 | BB12: 1.1 | BC12: 1 | BD12: 0.1 | BE12: 0.9 | BF12: 0 | BG12: 0.82 | BH12: 1.1 | BI12: 1 | BJ12: 0.05 | BK12: 0.35 | BL12: 0.6 | BM12: 0.1 | BN12: 0.1 | BO12: 0.8178 | BP12: 0.99 | BQ12: 0.03 | BR12: 0 | BS12: =SUMPRODUCT(AU12:AW12,AX12:AZ12) -> 0.9478 | BT12: =SUMPRODUCT(BA12:BC12,BD12:BF12) -> 1.09 | BU12: 1.026
A13: -8 | B13: 265.7539616 | C13: 9.083 | D13: 18.166 | E13: 29.00621179 | F13: 23.44 | G13: 29.3 | H13: 0 | I13: 0.31 | J13: 0.62 | K13: 0.9899730986 | L13: 0.8 | M13: 1 | N13: 0 | O13: 0.9185482169 | P13: 0.7834862385 | Q13: 0.9152046784 | R13: 0.62 | S13: 0.88 | T13: 1 | U13: 0.05 | V13: 0.92 | W13: 0.03 | X13: 0.62 | Y13: 0.88 | Z13: 1 | AA13: 0.1 | AB13: 0.9 | AC13: 0 | AD13: 0.62 | AE13: 0.88 | AF13: 1 | AG13: 0.05 | AH13: 0.35 | AI13: 0.6 | AJ13: 0.031 | AK13: 0.062 | AL13: 0.8096 | AM13: 0.792 | AN13: 0.03 | AO13: 0 | AP13: 0.8706 | AQ13: 0.854 | AR13: 0.939 | AU13: 1 | AV13: 0.94 | AW13: 1 | AX13: 0.1 | AY13: 0.87 | AZ13: 0.03 | BA13: 1 | BB13: 1.1 | BC13: 1 | BD13: 0.1 | BE13: 0.9 | BF13: 0 | BG13: 0.82 | BH13: 1.1 | BI13: 1 | BJ13: 0.05 | BK13: 0.35 | BL13: 0.6 | BM13: 0.1 | BN13: 0.1 | BO13: 0.8178 | BP13: 0.99 | BQ13: 0.03 | BR13: 0 | BS13: 0.9478 | BT13: 1.09 | BU13: 1.026
A14: -7 | B14: 265.8659396 | C14: 9.083 | D14: 18.166 | E14: 29.00621179 | F14: 23.44 | G14: 29.3 | H14: 0 | I14: 0.31 | J14: 0.62 | K14: 0.9899730986 | L14: 0.8 | M14: 1 | N14: 0 | O14: 0.9185482169 | P14: 0.7834862385 | Q14: 0.9152046784 | R14: 0.62 | S14: 0.88 | T14: 1 | U14: 0.05 | V14: 0.92 | W14: 0.03 | X14: 0.62 | Y14: 0.88 | Z14: 1 | AA14: 0.1 | AB14: 0.9 | AC14: 0 | AD14: 0.62 | AE14: 0.88 | AF14: 1 | AG14: 0.05 | AH14: 0.35 | AI14: 0.6 | AJ14: 0.031 | AK14: 0.062 | AL14: 0.8096 | AM14: 0.792 | AN14: 0.03 | AO14: 0 | AP14: 0.8706 | AQ14: 0.854 | AR14: 0.939 | AU14: 1 | AV14: 0.94 | AW14: 1 | AX14: 0.1 | AY14: 0.87 | AZ14: 0.03 | BA14: 1 | BB14: 1.1 | BC14: 1 | BD14: 0.1 | BE14: 0.9 | BF14: 0 | BG14: 0.82 | BH14: 1.1 | BI14: 1 | BJ14: 0.05 | BK14: 0.35 | BL14: 0.6 | BM14: 0.1 | BN14: 0.1 | BO14: 0.8178 | BP14: 0.99 | BQ14: 0.03 | BR14: 0 | BS14: 0.9478 | BT14: 1.09 | BU14: 1.026
A15: -6 | B15: 265.8074816 | C15: 9.083 | D15: 18.166 | E15: 29.00621179 | F15: 23.44 | G15: 29.3 | H15: 0 | I15: 0.31 | J15: 0.62 | K15: 0.9899730986 | L15: 0.8 | M15: 1 | N15: 0 | O15: 0.9185482169 | P15: 0.7834862385 | Q15: 0.9152046784 | R15: 0.62 | S15: 0.88 | T15: 1 | U15: 0.05 | V15: 0.92 | W15: 0.03 | X15: 0.62 | Y15: 0.88 | Z15: 1 | AA15: 0.1 | AB15: 0.9 | AC15: 0 | AD15: 0.62 | AE15: 0.88 | AF15: 1 | AG15: 0.05 | AH15: 0.35 | AI15: 0.6 | AJ15: 0.031 | AK15: 0.062 | AL15: 0.8096 | AM15: 0.792 | AN15: 0.03 | AO15: 0 | AP15: 0.8706 | AQ15: 0.854 | AR15: 0.939 | AU15: 1 | AV15: 0.94 | AW15: 1 | AX15: 0.1 | AY15: 0.87 | AZ15: 0.03 | BA15: 1 | BB15: 1.1 | BC15: 1 | BD15: 0.1 | BE15: 0.9 | BF15: 0 | BG15: 0.82 | BH15: 1.1 | BI15: 1 | BJ15: 0.05 | BK15: 0.35 | BL15: 0.6 | BM15: 0.1 | BN15: 0.1 | BO15: 0.8178 | BP15: 0.99 | BQ15: 0.03 | BR15: 0 | BS15: 0.9478 | BT15: 1.09 | BU15: 1.026
A16: -5 | B16: 265.58525 | C16: 9.083 | D16: 18.166 | E16: 29.00621179 | F16: 23.44 | G16: 29.3 | H16: 0 | I16: 0.31 | J16: 0.62 | K16: 0.9899730986 | L16: 0.8 | M16: 1 | N16: 0 | O16: 0.9185482169 | P16: 0.7834862385 | Q16: 0.9152046784 | R16: 0.62 | S16: 0.88 | T16: 1 | U16: 0.05 | V16: 0.92 | W16: 0.03 | X16: 0.62 | Y16: 0.88 | Z16: 1 | AA16: 0.1 | AB16: 0.9 | AC16: 0 | AD16: 0.62 | AE16: 0.88 | AF16: 1 | AG16: 0.05 | AH16: 0.35 | AI16: 0.6 | AJ16: 0.031 | AK16: 0.062 | AL16: 0.8096 | AM16: 0.792 | AN16: 0.03 | AO16: 0 | AP16: 0.8706 | AQ16: 0.854 | AR16: 0.939 | AU16: 1 | AV16: 0.94 | AW16: 1 | AX16: 0.1 | AY16: 0.87 | AZ16: 0.03 | BA16: 1 | BB16: 1.1 | BC16: 1 | BD16: 0.1 | BE16: 0.9 | BF16: 0 | BG16: 0.82 | BH16: 1.1 | BI16: 1 | BJ16: 0.05 | BK16: 0.35 | BL16: 0.6 | BM16: 0.1 | BN16: 0.1 | BO16: 0.8178 | BP16: 0.99 | BQ16: 0.03 | BR16: 0 | BS16: 0.9478 | BT16: 1.09 | BU16: 1.026
A17: -4 | B17: 265.2058976 | C17: 9.083 | D17: 18.166 | E17: 29.00621179 | F17: 23.44 | G17: 29.3 | H17: 0 | I17: 0.31 | J17: 0.62 | K17: 0.9899730986 | L17: 0.8 | M17: 1 | N17: 0 | O17: 0.9185482169 | P17: 0.7834862385 | Q17: 0.9152046784 | R17: 0.62 | S17: 0.88 | T17: 1 | U17: 0.05 | V17: 0.92 | W17: 0.03 | X17: 0.62 | Y17: 0.88 | Z17: 1 | AA17: 0.1 | AB17: 0.9 | AC17: 0 | AD17: 0.62 | AE17: 0.88 | AF17: 1 | AG17: 0.05 | AH17: 0.35 | AI17: 0.6 | AJ17: 0.031 | AK17: 0.062 | AL17: 0.8096 | AM17: 0.792 | AN17: 0.03 | AO17: 0 | AP17: 0.8706 | AQ17: 0.854 | AR17: 0.939 | AU17: 1 | AV17: 0.94 | AW17: 1 | AX17: 0.1 | AY17: 0.87 | AZ17: 0.03 | BA17: 1 | BB17: 1.1 | BC17: 1 | BD17: 0.1 | BE17: 0.9 | BF17: 0 | BG17: 0.82 | BH17: 1.1 | BI17: 1 | BJ17: 0.05 | BK17: 0.35 | BL17: 0.6 | BM17: 0.1 | BN17: 0.1 | BO17: 0.8178 | BP17: 0.99 | BQ17: 0.03 | BR17: 0 | BS17: 0.9478 | BT17: 1.09 | BU17: 1.026
A18: -3 | B18: 264.6760676 | C18: 9.083 | D18: 18.166 | E18: 29.00621179 | F18: 23.44 | G18: 29.3 | H18: 0 | I18: 0.31 | J18: 0.62 | K18: 0.9899730986 | L18: 0.8 | M18: 1 | N18: 0 | O18: 0.9185482169 | P18: 0.7834862385 | Q18: 0.9152046784 | R18: 0.62 | S18: 0.88 | T18: 1 | U18: 0.05 | V18: 0.92 | W18: 0.03 | X18: 0.62 | Y18: 0.88 | Z18: 1 | AA18: 0.1 | AB18: 0.9 | AC18: 0 | AD18: 0.62 | AE18: 0.88 | AF18: 1 | AG18: 0.05 | AH18: 0.35 | AI18: 0.6 | AJ18: 0.031 | AK18: 0.062 | AL18: 0.8096 | AM18: 0.792 | AN18: 0.03 | AO18: 0 | AP18: 0.8706 | AQ18: 0.854 | AR18: 0.939 | AU18: 1 | AV18: 0.94 | AW18: 1 | AX18: 0.1 | AY18: 0.87 | AZ18: 0.03 | BA18: 1 | BB18: 1.1 | BC18: 1 | BD18: 0.1 | BE18: 0.9 | BF18: 0 | BG18: 0.82 | BH18: 1.1 | BI18: 1 | BJ18: 0.05 | BK18: 0.35 | BL18: 0.6 | BM18: 0.1 | BN18: 0.1 | BO18: 0.8178 | BP18: 0.99 | BQ18: 0.03 | BR18: 0 | BS18: 0.9478 | BT18: 1.09 | BU18: 1.026
A19: -2 | B19: 264.0023936 | C19: 9.083 | D19: 18.166 | E19: 29.00621179 | F19: 23.44 | G19: 29.3 | H19: 0 | I19: 0.31 | J19: 0.62 | K19: 0.9899730986 | L19: 0.8 | M19: 1 | N19: 0 | O19: 0.9185482169 | P19: 0.7834862385 | Q19: 0.9152046784 | R19: 0.62 | S19: 0.88 | T19: 1 | U19: 0.05 | V19: 0.92 | W19: 0.03 | X19: 0.62 | Y19: 0.88 | Z19: 1 | AA19: 0.1 | AB19: 0.9 | AC19: 0 | AD19: 0.62 | AE19: 0.88 | AF19: 1 | AG19: 0.05 | AH19: 0.35 | AI19: 0.6 | AJ19: 0.031 | AK19: 0.062 | AL19: 0.8096 | AM19: 0.792 | AN19: 0.03 | AO19: 0 | AP19: 0.8706 | AQ19: 0.854 | AR19: 0.939 | AU19: 1 | AV19: 0.94 | AW19: 1 | AX19: 0.1 | AY19: 0.87 | AZ19: 0.03 | BA19: 1 | BB19: 1.1 | BC19: 1 | BD19: 0.1 | BE19: 0.9 | BF19: 0 | BG19: 0.82 | BH19: 1.1 | BI19: 1 | BJ19: 0.05 | BK19: 0.35 | BL19: 0.6 | BM19: 0.1 | BN19: 0.1 | BO19: 0.8178 | BP19: 0.99 | BQ19: 0.03 | BR19: 0 | BS19: 0.9478 | BT19: 1.09 | BU19: 1.026
A20: -1 | B20: 263.1914996 | C20: 9.083 | D20: 18.166 | E20: 29.00621179 | F20: 23.44 | G20: 29.3 | H20: 0 | I20: 0.31 | J20: 0.62 | K20: 0.9899730986 | L20: 0.8 | M20: 1 | N20: 0 | O20: 0.9185482169 | P20: 0.7834862385 | Q20: 0.9152046784 | R20: 0.62 | S20: 0.88 | T20: 1 | U20: 0.05 | V20: 0.92 | W20: 0.03 | X20: 0.62 | Y20: 0.88 | Z20: 1 | AA20: 0.1 | AB20: 0.9 | AC20: 0 | AD20: 0.62 | AE20: 0.88 | AF20: 1 | AG20: 0.05 | AH20: 0.35 | AI20: 0.6 | AJ20: 0.031 | AK20: 0.062 | AL20: 0.8096 | AM20: 0.792 | AN20: 0.03 | AO20: 0 | AP20: 0.8706 | AQ20: 0.854 | AR20: 0.939 | AU20: 1 | AV20: 0.94 | AW20: 1 | AX20: 0.1 | AY20: 0.87 | AZ20: 0.03 | BA20: 1 | BB20: 1.1 | BC20: 1 | BD20: 0.1 | BE20: 0.9 | BF20: 0 | BG20: 0.82 | BH20: 1.1 | BI20: 1 | BJ20: 0.05 | BK20: 0.35 | BL20: 0.6 | BM20: 0.1 | BN20: 0.1 | BO20: 0.8178 | BP20: 0.99 | BQ20: 0.03 | BR20: 0 | BS20: 0.9478 | BT20: 1.09 | BU20: 1.026
A21: 0 | B21: 262.25 | C21: 9.083 | D21: 18.166 | E21: 29.00621179 | F21: 23.44 | G21: 29.3 | H21: 0 | I21: 0.31 | J21: 0.62 | K21: 0.9899730986 | L21: 0.8 | M21: 1 | N21: 0 | O21: 0.9185482169 | P21: 0.7834862385 | Q21: 0.9152046784 | R21: 0.62 | S21: 0.88 | T21: 1 | U21: 0.05 | V21: 0.92 | W21: 0.03 | X21: 0.62 | Y21: 0.88 | Z21: 1 | AA21: 0.1 | AB21: 0.9 | AC21: 0 | AD21: 0.62 | AE21: 0.88 | AF21: 1 | AG21: 0.05 | AH21: 0.35 | AI21: 0.6 | AJ21: 0.031 | AK21: 0.062 | AL21: 0.8096 | AM21: 0.792 | AN21: 0.03 | AO21: 0 | AP21: 0.8706 | AQ21: 0.854 | AR21: 0.939 | AU21: 1 | AV21: 0.94 | AW21: 1 | AX21: 0.1 | AY21: 0.87 | AZ21: 0.03 | BA21: 1 | BB21: 1.1 | BC21: 1 | BD21: 0.1 | BE21: 0.9 | BF21: 0 | BG21: 0.82 | BH21: 1.1 | BI21: 1 | BJ21: 0.05 | BK21: 0.35 | BL21: 0.6 | BM21: 0.1 | BN21: 0.1 | BO21: 0.8178 | BP21: 0.99 | BQ21: 0.03 | BR21: 0 | BS21: 0.9478 | BT21: 1.09 | BU21: 1.026
A22: 1 | B22: 261.1844996 | C22: 9.083 | D22: 18.166 | E22: 29.00621179 | F22: 23.44 | G22: 29.3 | H22: 0 | I22: 0.31 | J22: 0.62 | K22: 0.9899730986 | L22: 0.8 | M22: 1 | N22: 0 | O22: 0.9185482169 | P22: 0.7834862385 | Q22: 0.9152046784 | R22: 0.62 | S22: 0.88 | T22: 1 | U22: 0.05 | V22: 0.92 | W22: 0.03 | X22: 0.62 | Y22: 0.88 | Z22: 1 | AA22: 0.1 | AB22: 0.9 | AC22: 0 | AD22: 0.62 | AE22: 0.88 | AF22: 1 | AG22: 0.05 | AH22: 0.35 | AI22: 0.6 | AJ22: 0.031 | AK22: 0.062 | AL22: 0.8096 | AM22: 0.792 | AN22: 0.03 | AO22: 0 | AP22: 0.8706 | AQ22: 0.854 | AR22: 0.939 | AU22: 1 | AV22: 0.94 | AW22: 1 | AX22: 0.1 | AY22: 0.87 | AZ22: 0.03 | BA22: 1 | BB22: 1.1 | BC22: 1 | BD22: 0.1 | BE22: 0.9 | BF22: 0 | BG22: 0.82 | BH22: 1.1 | BI22: 1 | BJ22: 0.05 | BK22: 0.35 | BL22: 0.6 | BM22: 0.1 | BN22: 0.1 | BO22: 0.8178 | BP22: 0.99 | BQ22: 0.03 | BR22: 0 | BS22: 0.9478 | BT22: 1.09 | BU22: 1.026
A23: 2 | B23: 260.0015936 | C23: 9.083 | D23: 18.166 | E23: 29.00621179 | F23: 23.44 | G23: 29.3 | H23: 0 | I23: 0.31 | J23: 0.62 | K23: 0.9899730986 | L23: 0.8 | M23: 1 | N23: 0 | O23: 0.9185482169 | P23: 0.7834862385 | Q23: 0.9152046784 | R23: 0.62 | S23: 0.88 | T23: 1 | U23: 0.05 | V23: 0.92 | W23: 0.03 | X23: 0.62 | Y23: 0.88 | Z23: 1 | AA23: 0.1 | AB23: 0.9 | AC23: 0 | AD23: 0.62 | AE23: 0.88 | AF23: 1 | AG23: 0.05 | AH23: 0.35 | AI23: 0.6 | AJ23: 0.031 | AK23: 0.062 | AL23: 0.8096 | AM23: 0.792 | AN23: 0.03 | AO23: 0 | AP23: 0.8706 | AQ23: 0.854 | AR23: 0.939 | AU23: 1 | AV23: 0.94 | AW23: 1 | AX23: 0.1 | AY23: 0.87 | AZ23: 0.03 | BA23: 1 | BB23: 1.1 | BC23: 1 | BD23: 0.1 | BE23: 0.9 | BF23: 0 | BG23: 0.82 | BH23: 1.1 | BI23: 1 | BJ23: 0.05 | BK23: 0.35 | BL23: 0.6 | BM23: 0.1 | BN23: 0.1 | BO23: 0.8178 | BP23: 0.99 | BQ23: 0.03 | BR23: 0 | BS23: 0.9478 | BT23: 1.09 | BU23: 1.026
A24: 3 | B24: 258.7078676 | C24: 9.083 | D24: 18.166 | E24: 29.00621179 | F24: 23.44 | G24: 29.3 | H24: 0 | I24: 0.31 | J24: 0.62 | K24: 0.9899730986 | L24: 0.8 | M24: 1 | N24: 0 | O24: 0.9185482169 | P24: 0.7834862385 | Q24: 0.9152046784 | R24: 0.62 | S24: 0.88 | T24: 1 | U24: 0.05 | V24: 0.92 | W24: 0.03 | X24: 0.62 | Y24: 0.88 | Z24: 1 | AA24: 0.1 | AB24: 0.9 | AC24: 0 | AD24: 0.62 | AE24: 0.88 | AF24: 1 | AG24: 0.05 | AH24: 0.35 | AI24: 0.6 | AJ24: 0.031 | AK24: 0.062 | AL24: 0.8096 | AM24: 0.792 | AN24: 0.03 | AO24: 0 | AP24: 0.8706 | AQ24: 0.854 | AR24: 0.939 | AU24: 1 | AV24: 0.94 | AW24: 1 | AX24: 0.1 | AY24: 0.87 | AZ24: 0.03 | BA24: 1 | BB24: 1.1 | BC24: 1 | BD24: 0.1 | BE24: 0.9 | BF24: 0 | BG24: 0.82 | BH24: 1.1 | BI24: 1 | BJ24: 0.05 | BK24: 0.35 | BL24: 0.6 | BM24: 0.1 | BN24: 0.1 | BO24: 0.8178 | BP24: 0.99 | BQ24: 0.03 | BR24: 0 | BS24: 0.9478 | BT24: 1.09 | BU24: 1.026
A25: 4 | B25: 257.3098976 | C25: 9.083 | D25: 18.166 | E25: 29.00621179 | F25: 23.44 | G25: =29.3*M25 -> 48.83333333 | H25: 0 | I25: 0.31 | J25: 0.62 | K25: 0.9899730986 | L25: 0.8 | M25: =AN25/BQ25 -> 1.666666667 | N25: 0 | O25: 0.9396497151 | P25: 0.7834862385 | Q25: 0.9210526316 | R25: 0.62 | S25: 0.88 | T25: 1 | U25: 0.05 | V25: 0.92 | W25: 0.05 | X25: 0.62 | Y25: 0.88 | Z25: 1 | AA25: 0.1 | AB25: 0.9 | AC25: 0 | AD25: 0.62 | AE25: 0.88 | AF25: 1 | AG25: 0.05 | AH25: 0.3 | AI25: 0.65 | AJ25: 0.031 | AK25: 0.062 | AL25: 0.8096 | AM25: 0.792 | AN25: 0.05 | AO25: 0 | AP25: 0.8906 | AQ25: 0.854 | AR25: 0.945 | AU25: 1 | AV25: 0.94 | AW25: 1 | AX25: 0.1 | AY25: 0.87 | AZ25: 0.03 | BA25: 1 | BB25: 1.1 | BC25: 1 | BD25: 0.1 | BE25: 0.9 | BF25: 0 | BG25: 0.82 | BH25: 1.1 | BI25: 1 | BJ25: 0.05 | BK25: 0.35 | BL25: 0.6 | BM25: 0.1 | BN25: 0.1 | BO25: 0.8178 | BP25: =BB25*BE25 -> 0.99 | BQ25: 0.03 | BR25: =BC25*BF25 -> 0 | BS25: =SUMPRODUCT(AU25:AW25,AX25:AZ25) -> 0.9478 | BT25: 1.09 | BU25: 1.026
A26: 5 | B26: 255.81425 | C26: 9.083 | D26: 18.166 | E26: 26.83402715 | F26: 23.44 | G26: 29.3 | H26: 0 | I26: 0.31 | J26: 0.62 | K26: 0.9158371041 | L26: 0.8 | M26: 1 | N26: 0 | O26: 0.8613152805 | P26: 0.7834862385 | Q26: 0.9255631734 | R26: =R25 -> 0.62 | S26: =S25 -> 0.88 | T26: 1 | U26: 0.05 | V26: 0.92 | W26: 0.05 | X26: 0.62 | Y26: 0.88 | Z26: 1 | AA26: 0.1 | AB26: 0.9 | AC26: 0 | AD26: 0.62 | AE26: 0.88 | AF26: 1 | AG26: 0.05 | AH26: 0.3 | AI26: =AI25 -> 0.65 | AJ26: 0.031 | AK26: 0.062 | AL26: 0.8096 | AM26: 0.792 | AN26: 0.05 | AO26: 0 | AP26: 0.8906 | AQ26: 0.854 | AR26: 0.945 | AU26: 1 | AV26: 1.04 | AW26: 1 | AX26: 0.1 | AY26: 0.85 | AZ26: 0.05 | BA26: 1 | BB26: 1.1 | BC26: 1 | BD26: 0.1 | BE26: 0.9 | BF26: 0 | BG26: 0.82 | BH26: 1.1 | BI26: 1 | BJ26: 0.05 | BK26: 0.3 | BL26: 0.65 | BM26: 0.1 | BN26: 0.1 | BO26: 0.884 | BP26: 0.99 | BQ26: 0.05 | BR26: 0 | BS26: 1.034 | BT26: 1.09 | BU26: 1.021
A27: 6 | B27: 254.2274816 | C27: 9.083 | D27: 18.166 | E27: 26.83402715 | F27: 23.44 | G27: 29.3 | H27: 0 | I27: 0.31 | J27: 0.62 | K27: 0.9158371041 | L27: 0.8 | M27: 1 | N27: 0 | O27: 0.8613152805 | P27: 0.7834862385 | Q27: 0.9255631734 | R27: =R26 -> 0.62 | S27: 0.88 | T27: 1 | U27: 0.05 | V27: 0.92 | W27: 0.05 | X27: 0.62 | Y27: 0.88 | Z27: 1 | AA27: 0.1 | AB27: 0.9 | AC27: 0 | AD27: 0.62 | AE27: 0.88 | AF27: 1 | AG27: 0.05 | AH27: 0.3 | AI27: 0.65 | AJ27: 0.031 | AK27: 0.062 | AL27: 0.8096 | AM27: 0.792 | AN27: 0.05 | AO27: 0 | AP27: 0.8906 | AQ27: 0.854 | AR27: 0.945 | AU27: 1 | AV27: 1.04 | AW27: =AW26 -> 1 | AX27: 0.1 | AY27: 0.85 | AZ27: 0.05 | BA27: 1 | BB27: 1.1 | BC27: 1 | BD27: 0.1 | BE27: 0.9 | BF27: 0 | BG27: 0.82 | BH27: 1.1 | BI27: 1 | BJ27: 0.05 | BK27: 0.3 | BL27: 0.65 | BM27: 0.1 | BN27: 0.1 | BO27: 0.884 | BP27: 0.99 | BQ27: 0.05 | BR27: 0 | BS27: 1.034 | BT27: 1.09 | BU27: 1.021
A28: 7 | B28: 252.5561396 | C28: 9.083 | D28: 18.166 | E28: 26.83402715 | F28: 23.44 | G28: 29.3 | H28: 0 | I28: 0.31 | J28: 0.62 | K28: 0.9158371041 | L28: 0.8 | M28: 1 | N28: 0 | O28: 0.8613152805 | P28: 0.7834862385 | Q28: 0.9255631734 | R28: 0.62 | S28: 0.88 | T28: 1 | U28: 0.05 | V28: 0.92 | W28: 0.05 | X28: 0.62 | Y28: 0.88 | Z28: 1 | AA28: 0.1 | AB28: 0.9 | AC28: 0 | AD28: 0.62 | AE28: 0.88 | AF28: 1 | AG28: 0.05 | AH28: 0.3 | AI28: 0.65 | AJ28: 0.031 | AK28: 0.062 | AL28: 0.8096 | AM28: 0.792 | AN28: 0.05 | AO28: 0 | AP28: 0.8906 | AQ28: 0.854 | AR28: 0.945 | AU28: 1 | AV28: 1.04 | AW28: 1 | AX28: 0.1 | AY28: 0.85 | AZ28: 0.05 | BA28: 1 | BB28: 1.1 | BC28: 1 | BD28: 0.1 | BE28: 0.9 | BF28: 0 | BG28: 0.82 | BH28: 1.1 | BI28: 1 | BJ28: 0.05 | BK28: 0.3 | BL28: 0.65 | BM28: 0.1 | BN28: 0.1 | BO28: 0.884 | BP28: 0.99 | BQ28: 0.05 | BR28: 0 | BS28: 1.034 | BT28: 1.09 | BU28: 1.021
A29: 8 | B29: 250.8067616 | C29: 9.083 | D29: 18.166 | E29: 26.83402715 | F29: 23.44 | G29: 29.3 | H29: 0 | I29: 0.31 | J29: 0.62 | K29: 0.9158371041 | L29: 0.8 | M29: 1 | N29: 0 | O29: 0.8613152805 | P29: 0.7834862385 | Q29: 0.9255631734 | R29: 0.62 | S29: 0.88 | T29: 1 | U29: 0.05 | V29: 0.92 | W29: 0.05 | X29: 0.62 | Y29: 0.88 | Z29: 1 | AA29: 0.1 | AB29: 0.9 | AC29: 0 | AD29: 0.62 | AE29: 0.88 | AF29: 1 | AG29: 0.05 | AH29: 0.3 | AI29: 0.65 | AJ29: 0.031 | AK29: 0.062 | AL29: 0.8096 | AM29: 0.792 | AN29: 0.05 | AO29: 0 | AP29: 0.8906 | AQ29: 0.854 | AR29: 0.945 | AU29: 1 | AV29: 1.04 | AW29: 1 | AX29: 0.1 | AY29: 0.85 | AZ29: 0.05 | BA29: 1 | BB29: 1.1 | BC29: 1 | BD29: 0.1 | BE29: 0.9 | BF29: 0 | BG29: 0.82 | BH29: 1.1 | BI29: 1 | BJ29: 0.05 | BK29: 0.3 | BL29: 0.65 | BM29: 0.1 | BN29: 0.1 | BO29: 0.884 | BP29: 0.99 | BQ29: 0.05 | BR29: 0 | BS29: 1.034 | BT29: 1.09 | BU29: 1.021
A30: 9 | B30: 248.9858756 | C30: 9.083 | D30: 18.166 | E30: 26.83402715 | F30: 23.44 | G30: 29.3 | H30: 0 | I30: 0.31 | J30: 0.62 | K30: 0.9158371041 | L30: 0.8 | M30: 1 | N30: 0 | O30: 0.8613152805 | P30: 0.7834862385 | Q30: 0.9255631734 | R30: 0.62 | S30: 0.88 | T30: 1 | U30: 0.05 | V30: 0.92 | W30: 0.05 | X30: 0.62 | Y30: 0.88 | Z30: 1 | AA30: 0.1 | AB30: 0.9 | AC30: 0 | AD30: 0.62 | AE30: 0.88 | AF30: 1 | AG30: 0.05 | AH30: 0.3 | AI30: 0.65 | AJ30: 0.031 | AK30: 0.062 | AL30: 0.8096 | AM30: 0.792 | AN30: 0.05 | AO30: 0 | AP30: 0.8906 | AQ30: 0.854 | AR30: 0.945 | AU30: 1 | AV30: 1.04 | AW30: 1 | AX30: 0.1 | AY30: 0.85 | AZ30: 0.05 | BA30: 1 | BB30: 1.1 | BC30: 1 | BD30: 0.1 | BE30: 0.9 | BF30: 0 | BG30: 0.82 | BH30: 1.1 | BI30: 1 | BJ30: 0.05 | BK30: 0.3 | BL30: 0.65 | BM30: 0.1 | BN30: 0.1 | BO30: 0.884 | BP30: 0.99 | BQ30: 0.05 | BR30: 0 | BS30: 1.034 | BT30: 1.09 | BU30: 1.021
A31: 10 | B31: 247.1 | C31: 9.083 | D31: 18.166 | E31: 26.83402715 | F31: 23.44 | G31: 29.3 | H31: 0 | I31: 0.31 | J31: 0.62 | K31: 0.9158371041 | L31: 0.8 | M31: 1 | N31: 0 | O31: 0.8613152805 | P31: 0.7834862385 | Q31: 0.9255631734 | R31: 0.62 | S31: 0.88 | T31: 1 | U31: 0.05 | V31: 0.92 | W31: 0.05 | X31: 0.62 | Y31: 0.88 | Z31: 1 | AA31: 0.1 | AB31: 0.9 | AC31: 0 | AD31: 0.62 | AE31: 0.88 | AF31: 1 | AG31: 0.05 | AH31: 0.3 | AI31: 0.65 | AJ31: 0.031 | AK31: 0.062 | AL31: 0.8096 | AM31: 0.792 | AN31: 0.05 | AO31: 0 | AP31: 0.8906 | AQ31: 0.854 | AR31: 0.945 | AU31: 1 | AV31: 1.04 | AW31: 1 | AX31: 0.1 | AY31: 0.85 | AZ31: 0.05 | BA31: 1 | BB31: 1.1 | BC31: 1 | BD31: 0.1 | BE31: 0.9 | BF31: 0 | BG31: 0.82 | BH31: 1.1 | BI31: 1 | BJ31: 0.05 | BK31: 0.3 | BL31: 0.65 | BM31: 0.1 | BN31: 0.1 | BO31: 0.884 | BP31: 0.99 | BQ31: 0.05 | BR31: 0 | BS31: 1.034 | BT31: 1.09 | BU31: 1.021
A32: 11 | B32: 245.1556436 | C32: 9.083 | D32: 18.166 | E32: 26.83402715 | F32: 23.44 | G32: 29.3 | H32: 0 | I32: 0.31 | J32: 0.62 | K32: 0.9158371041 | L32: 0.8 | M32: 1 | N32: 0 | O32: 0.8613152805 | P32: 0.7834862385 | Q32: 0.9255631734 | R32: 0.62 | S32: 0.88 | T32: 1 | U32: 0.05 | V32: 0.92 | W32: 0.05 | X32: 0.62 | Y32: 0.88 | Z32: 1 | AA32: 0.1 | AB32: 0.9 | AC32: 0 | AD32: 0.62 | AE32: 0.88 | AF32: 1 | AG32: 0.05 | AH32: 0.3 | AI32: 0.65 | AJ32: 0.031 | AK32: 0.062 | AL32: 0.8096 | AM32: 0.792 | AN32: 0.05 | AO32: 0 | AP32: 0.8906 | AQ32: 0.854 | AR32: 0.945 | AU32: 1 | AV32: 1.04 | AW32: 1 | AX32: 0.1 | AY32: 0.85 | AZ32: 0.05 | BA32: 1 | BB32: 1.1 | BC32: 1 | BD32: 0.1 | BE32: 0.9 | BF32: 0 | BG32: 0.82 | BH32: 1.1 | BI32: 1 | BJ32: 0.05 | BK32: 0.3 | BL32: 0.65 | BM32: 0.1 | BN32: 0.1 | BO32: 0.884 | BP32: 0.99 | BQ32: 0.05 | BR32: 0 | BS32: 1.034 | BT32: 1.09 | BU32: 1.021
A33: 12 | B33: 243.1593056 | C33: 9.083 | D33: 18.166 | E33: 26.83402715 | F33: 23.44 | G33: 29.3 | H33: 0 | I33: 0.31 | J33: 0.62 | K33: 0.9158371041 | L33: 0.8 | M33: 1 | N33: 0 | O33: 0.8613152805 | P33: 0.7834862385 | Q33: 0.9255631734 | R33: 0.62 | S33: 0.88 | T33: 1 | U33: 0.05 | V33: 0.92 | W33: 0.05 | X33: 0.62 | Y33: 0.88 | Z33: 1 | AA33: 0.1 | AB33: 0.9 | AC33: 0 | AD33: 0.62 | AE33: 0.88 | AF33: 1 | AG33: 0.05 | AH33: 0.3 | AI33: 0.65 | AJ33: 0.031 | AK33: 0.062 | AL33: 0.8096 | AM33: 0.792 | AN33: 0.05 | AO33: 0 | AP33: 0.8906 | AQ33: 0.854 | AR33: 0.945 | AU33: 1 | AV33: 1.04 | AW33: 1 | AX33: 0.1 | AY33: 0.85 | AZ33: 0.05 | BA33: 1 | BB33: 1.1 | BC33: 1 | BD33: 0.1 | BE33: 0.9 | BF33: 0 | BG33: 0.82 | BH33: 1.1 | BI33: 1 | BJ33: 0.05 | BK33: 0.3 | BL33: 0.65 | BM33: 0.1 | BN33: 0.1 | BO33: 0.884 | BP33: 0.99 | BQ33: 0.05 | BR33: 0 | BS33: 1.034 | BT33: 1.09 | BU33: 1.021
A34: 13 | B34: 241.1174756 | C34: 9.083 | D34: 18.166 | E34: 26.83402715 | F34: 23.44 | G34: 29.3 | H34: 0 | I34: 0.31 | J34: 0.62 | K34: 0.9158371041 | L34: 0.8 | M34: 1 | N34: 0 | O34: 0.8613152805 | P34: 0.7834862385 | Q34: 0.9255631734 | R34: 0.62 | S34: 0.88 | T34: 1 | U34: 0.05 | V34: 0.92 | W34: 0.05 | X34: 0.62 | Y34: 0.88 | Z34: 1 | AA34: 0.1 | AB34: 0.9 | AC34: 0 | AD34: 0.62 | AE34: 0.88 | AF34: 1 | AG34: 0.05 | AH34: 0.3 | AI34: 0.65 | AJ34: 0.031 | AK34: 0.062 | AL34: 0.8096 | AM34: 0.792 | AN34: 0.05 | AO34: 0 | AP34: 0.8906 | AQ34: 0.854 | AR34: 0.945 | AU34: 1 | AV34: 1.04 | AW34: 1 | AX34: 0.1 | AY34: 0.85 | AZ34: 0.05 | BA34: 1 | BB34: 1.1 | BC34: 1 | BD34: 0.1 | BE34: 0.9 | BF34: 0 | BG34: 0.82 | BH34: 1.1 | BI34: 1 | BJ34: 0.05 | BK34: 0.3 | BL34: 0.65 | BM34: 0.1 | BN34: 0.1 | BO34: 0.884 | BP34: 0.99 | BQ34: 0.05 | BR34: 0 | BS34: 1.034 | BT34: 1.09 | BU34: 1.021
A35: 14 | B35: 239.0366336 | C35: 9.083 | D35: 18.166 | E35: 26.83402715 | F35: 23.44 | G35: 29.3 | H35: 0 | I35: 0.31 | J35: 0.62 | K35: 0.9158371041 | L35: 0.8 | M35: 1 | N35: 0 | O35: 0.8613152805 | P35: 0.7834862385 | Q35: 0.9255631734 | R35: 0.62 | S35: 0.88 | T35: 1 | U35: 0.05 | V35: 0.92 | W35: 0.05 | X35: 0.62 | Y35: 0.88 | Z35: 1 | AA35: 0.1 | AB35: 0.9 | AC35: 0 | AD35: 0.62 | AE35: 0.88 | AF35: 1 | AG35: 0.05 | AH35: 0.3 | AI35: 0.65 | AJ35: 0.031 | AK35: 0.062 | AL35: 0.8096 | AM35: 0.792 | AN35: 0.05 | AO35: 0 | AP35: 0.8906 | AQ35: 0.854 | AR35: 0.945 | AU35: 1 | AV35: 1.04 | AW35: 1 | AX35: 0.1 | AY35: 0.85 | AZ35: 0.05 | BA35: 1 | BB35: 1.1 | BC35: 1 | BD35: 0.1 | BE35: 0.9 | BF35: 0 | BG35: 0.82 | BH35: 1.1 | BI35: 1 | BJ35: 0.05 | BK35: 0.3 | BL35: 0.65 | BM35: 0.1 | BN35: 0.1 | BO35: 0.884 | BP35: 0.99 | BQ35: 0.05 | BR35: 0 | BS35: 1.034 | BT35: 1.09 | BU35: 1.021
A36: 15 | B36: 236.92325 | C36: 9.083 | D36: 18.166 | E36: 26.83402715 | F36: 23.44 | G36: 29.3 | H36: 0 | I36: 0.31 | J36: 0.62 | K36: 0.9158371041 | L36: 0.8 | M36: 1 | N36: 0 | O36: 0.8613152805 | P36: 0.7834862385 | Q36: 0.9255631734 | R36: 0.62 | S36: 0.88 | T36: 1 | U36: 0.05 | V36: 0.92 | W36: 0.05 | X36: 0.62 | Y36: 0.88 | Z36: 1 | AA36: 0.1 | AB36: 0.9 | AC36: 0 | AD36: 0.62 | AE36: 0.88 | AF36: 1 | AG36: 0.05 | AH36: 0.3 | AI36: 0.65 | AJ36: 0.031 | AK36: 0.062 | AL36: 0.8096 | AM36: 0.792 | AN36: 0.05 | AO36: 0 | AP36: 0.8906 | AQ36: 0.854 | AR36: 0.945 | AU36: 1 | AV36: 1.04 | AW36: 1 | AX36: 0.1 | AY36: 0.85 | AZ36: 0.05 | BA36: 1 | BB36: 1.1 | BC36: 1 | BD36: 0.1 | BE36: 0.9 | BF36: 0 | BG36: 0.82 | BH36: 1.1 | BI36: 1 | BJ36: 0.05 | BK36: 0.3 | BL36: 0.65 | BM36: 0.1 | BN36: 0.1 | BO36: 0.884 | BP36: 0.99 | BQ36: 0.05 | BR36: 0 | BS36: 1.034 | BT36: 1.09 | BU36: 1.021
A37: 16 | B37: 234.7837856 | C37: 9.083 | D37: 18.166 | E37: 26.83402715 | F37: 23.44 | G37: 29.3 | H37: 0 | I37: 0.31 | J37: 0.62 | K37: 0.9158371041 | L37: 0.8 | M37: 1 | N37: 0 | O37: 0.8613152805 | P37: 0.7834862385 | Q37: 0.9255631734 | R37: 0.62 | S37: 0.88 | T37: 1 | U37: 0.05 | V37: 0.92 | W37: 0.05 | X37: 0.62 | Y37: 0.88 | Z37: 1 | AA37: 0.1 | AB37: 0.9 | AC37: 0 | AD37: 0.62 | AE37: 0.88 | AF37: 1 | AG37: 0.05 | AH37: 0.3 | AI37: 0.65 | AJ37: 0.031 | AK37: 0.062 | AL37: 0.8096 | AM37: 0.792 | AN37: 0.05 | AO37: 0 | AP37: 0.8906 | AQ37: 0.854 | AR37: 0.945 | AU37: 1 | AV37: 1.04 | AW37: 1 | AX37: 0.1 | AY37: 0.85 | AZ37: 0.05 | BA37: 1 | BB37: 1.1 | BC37: 1 | BD37: 0.1 | BE37: 0.9 | BF37: 0 | BG37: 0.82 | BH37: 1.1 | BI37: 1 | BJ37: 0.05 | BK37: 0.3 | BL37: 0.65 | BM37: 0.1 | BN37: 0.1 | BO37: 0.884 | BP37: 0.99 | BQ37: 0.05 | BR37: 0 | BS37: 1.034 | BT37: 1.09 | BU37: 1.021
A38: 17 | B38: 232.6246916 | C38: 9.083 | D38: 18.166 | E38: =29.3*K38 -> 26.83402715 | F38: 23.44 | G38: 29.3 | H38: 0 | I38: =AJ38/BM38 -> 0.31 | J38: =AK38/BN38 -> 0.62 | K38: =AL38/BO38 -> 0.9158371041 | L38: =AM38/BP38 -> 0.8 | M38: 1 | N38: 0 | O38: =AP38/BS38 -> 0.8613152805 | P38: =AQ38/BT38 -> 0.7834862385 | Q38: =AR38/BU38 -> 0.9255631734 | R38: 0.62 | S38: 0.88 | T38: 1 | U38: 0.05 | V38: 0.92 | W38: 0.05 | X38: 0.62 | Y38: 0.88 | Z38: 1 | AA38: 0.1 | AB38: 0.9 | AC38: 0 | AD38: 0.62 | AE38: 0.88 | AF38: 1 | AG38: 0.05 | AH38: 0.3 | AI38: 0.65 | AJ38: 0.031 | AK38: 0.062 | AL38: 0.8096 | AM38: 0.792 | AN38: 0.05 | AO38: 0 | AP38: 0.8906 | AQ38: 0.854 | AR38: 0.945 | AU38: 1 | AV38: 1.04 | AW38: 1 | AX38: 0.1 | AY38: 0.85 | AZ38: 0.05 | BA38: 1 | BB38: 1.1 | BC38: 1 | BD38: 0.1 | BE38: 0.9 | BF38: 0 | BG38: 0.82 | BH38: 1.1 | BI38: 1 | BJ38: 0.05 | BK38: 0.3 | BL38: 0.65 | BM38: 0.1 | BN38: 0.1 | BO38: 0.884 | BP38: 0.99 | BQ38: 0.05 | BR38: 0 | BS38: 1.034 | BT38: 1.09 | BU38: 1.021
A39: 18 | B39: 230.4524096 | C39: 9.083 | D39: 18.166 | E39: 26.83402715 | F39: 23.44 | G39: 29.3 | H39: 0 | I39: 0.31 | J39: 0.62 | K39: =AL39/BO39 -> 0.9158371041 | L39: 0.8 | M39: =AN39/BQ39 -> 1 | N39: =IFERROR(AO39/BR39,0) -> 0 | O39: 0.8613152805 | P39: 0.7834862385 | Q39: 0.9255631734 | R39: 0.62 | S39: 0.88 | T39: 1 | U39: 0.05 | V39: 0.92 | W39: 0.05 | X39: 0.62 | Y39: 0.88 | Z39: 1 | AA39: 0.1 | AB39: 0.9 | AC39: 0 | AD39: 0.62 | AE39: 0.88 | AF39: 1 | AG39: 0.05 | AH39: 0.3 | AI39: 0.65 | AJ39: 0.031 | AK39: 0.062 | AL39: 0.8096 | AM39: 0.792 | AN39: 0.05 | AO39: 0 | AP39: 0.8906 | AQ39: 0.854 | AR39: 0.945 | AU39: 1 | AV39: 1.04 | AW39: 1 | AX39: 0.1 | AY39: 0.85 | AZ39: 0.05 | BA39: 1 | BB39: 1.1 | BC39: 1 | BD39: 0.1 | BE39: 0.9 | BF39: 0 | BG39: 0.82 | BH39: 1.1 | BI39: 1 | BJ39: 0.05 | BK39: 0.3 | BL39: 0.65 | BM39: 0.1 | BN39: 0.1 | BO39: 0.884 | BP39: 0.99 | BQ39: 0.05 | BR39: 0 | BS39: 1.034 | BT39: 1.09 | BU39: 1.021
A40: 19 | B40: 228.2733716 | C40: =29.3*I40 -> 18.166 | D40: 18.166 | E40: 28.60650888 | F40: 23.44 | G40: 29.3 | H40: 0 | I40: =AJ40/BM40 -> 0.62 | J40: 0.62 | K40: 0.9763313609 | L40: 0.8 | M40: 1 | N40: 0 | O40: =AP40/BS40 -> 0.9006479482 | P40: 0.7666666667 | Q40: 0.9373163565 | R40: 0.62 | S40: 0.88 | T40: 1 | U40: 0.2 | V40: 0.75 | W40: 0.05 | X40: 0.62 | Y40: 0.88 | Z40: 1 | AA40: 0.2 | AB40: 0.8 | AC40: 0 | AD40: 0.62 | AE40: 0.88 | AF40: 1 | AG40: 0.05 | AH40: 0.2 | AI40: 0.75 | AJ40: 0.124 | AK40: 0.124 | AL40: 0.66 | AM40: 0.704 | AN40: 0.05 | AO40: 0 | AP40: 0.834 | AQ40: 0.828 | AR40: 0.957 | AU40: 1 | AV40: 1.04 | AW40: 1 | AX40: =AX41 -> 0.2 | AY40: =AY41 -> 0.65 | AZ40: 0.05 | BA40: 1 | BB40: 1.1 | BC40: 1 | BD40: =BD41 -> 0.2 | BE40: =BE41 -> 0.8 | BF40: 0 | BG40: 0.82 | BH40: 1.1 | BI40: 1 | BJ40: 0.05 | BK40: 0.3 | BL40: 0.65 | BM40: =AU40*AX40 -> 0.2 | BN40: =BA40*BD40 -> 0.2 | BO40: =AV40*AY40 -> 0.676 | BP40: =BB40*BE40 -> 0.88 | BQ40: =AW40*AZ40 -> 0.05 | BR40: =BC40*BF40 -> 0 | BS40: =SUMPRODUCT(AU40:AW40,AX40:AZ40) -> 0.926 | BT40: =SUMPRODUCT(BA40:BC40,BD40:BF40) -> 1.08 | BU40: 1.021
A41: 20 | B41: 226.094 | C41: 17.30095238 | D41: 17.98613861 | E41: 24.38587642 | F41: 23.44 | G41: 29.3 | H41: 0 | I41: 0.5904761905 | J41: 0.6138613861 | K41: 0.8322824716 | L41: 0.8 | M41: 1 | N41: 0 | O41: 0.792022792 | P41: 0.7652495379 | Q41: 0.9465875371 | R41: =R40 -> 0.62 | S41: =S40 -> 0.88 | T41: 1 | U41: 0.2 | V41: 0.75 | W41: 0.05 | X41: 0.62 | Y41: 0.88 | Z41: 1 | AA41: 0.2 | AB41: 0.8 | AC41: 0 | AD41: 0.62 | AE41: 0.88 | AF41: 1 | AG41: 0.05 | AH41: 0.2 | AI41: =AI40 -> 0.75 | AJ41: 0.124 | AK41: 0.124 | AL41: 0.66 | AM41: 0.704 | AN41: 0.05 | AO41: 0 | AP41: 0.834 | AQ41: 0.828 | AR41: 0.957 | AU41: 1.05 | AV41: 1.22 | AW41: 1 | AX41: 0.2 | AY41: 0.65 | AZ41: 0.05 | BA41: 1.01 | BB41: 1.1 | BC41: 1 | BD41: 0.2 | BE41: 0.8 | BF41: 0 | BG41: 0.82 | BH41: 1.1 | BI41: 1 | BJ41: 0.05 | BK41: 0.2 | BL41: 0.75 | BM41: =AU41*AX41 -> 0.21 | BN41: 0.202 | BO41: 0.793 | BP41: 0.88 | BQ41: 0.05 | BR41: 0 | BS41: 1.053 | BT41: 1.082 | BU41: 1.011
A42: 21 | B42: 223.9207076 | C42: 17.30095238 | D42: 17.98613861 | E42: 24.38587642 | F42: 23.44 | G42: 29.3 | H42: 0 | I42: 0.5904761905 | J42: 0.6138613861 | K42: 0.8322824716 | L42: 0.8 | M42: 1 | N42: 0 | O42: 0.792022792 | P42: 0.7652495379 | Q42: 0.9465875371 | R42: =R41 -> 0.62 | S42: 0.88 | T42: 1 | U42: 0.2 | V42: 0.75 | W42: 0.05 | X42: 0.62 | Y42: 0.88 | Z42: 1 | AA42: 0.2 | AB42: 0.8 | AC42: 0 | AD42: 0.62 | AE42: 0.88 | AF42: 1 | AG42: 0.05 | AH42: 0.2 | AI42: 0.75 | AJ42: 0.124 | AK42: 0.124 | AL42: 0.66 | AM42: 0.704 | AN42: 0.05 | AO42: 0 | AP42: =SUMPRODUCT(R42:T42,U42:W42) -> 0.834 | AQ42: =SUMPRODUCT(X42:Z42,AA42:AC42) -> 0.828 | AR42: =SUMPRODUCT(AD42:AF42,AG42:AI42) -> 0.957 | AU42: =AU41 -> 1.05 | AV42: 1.22 | AW42: =AW41 -> 1 | AX42: 0.2 | AY42: 0.65 | AZ42: 0.05 | BA42: 1.01 | BB42: 1.1 | BC42: 1 | BD42: 0.2 | BE42: 0.8 | BF42: 0 | BG42: 0.82 | BH42: 1.1 | BI42: 1 | BJ42: 0.05 | BK42: 0.2 | BL42: 0.75 | BM42: 0.21 | BN42: 0.202 | BO42: 0.793 | BP42: 0.88 | BQ42: 0.05 | BR42: 0 | BS42: 1.053 | BT42: 1.082 | BU42: 1.011
A43: 22 | B43: 221.7598976 | C43: 17.30095238 | D43: 17.98613861 | E43: 24.38587642 | F43: 23.44 | G43: 29.3 | H43: 0 | I43: 0.5904761905 | J43: 0.6138613861 | K43: 0.8322824716 | L43: 0.8 | M43: 1 | N43: 0 | O43: 0.792022792 | P43: 0.7652495379 | Q43: 0.9465875371 | R43: 0.62 | S43: 0.88 | T43: 1 | U43: 0.2 | V43: 0.75 | W43: 0.05 | X43: 0.62 | Y43: 0.88 | Z43: 1 | AA43: 0.2 | AB43: 0.8 | AC43: 0 | AD43: 0.62 | AE43: 0.88 | AF43: 1 | AG43: 0.05 | AH43: 0.2 | AI43: 0.75 | AJ43: 0.124 | AK43: 0.124 | AL43: 0.66 | AM43: 0.704 | AN43: 0.05 | AO43: 0 | AP43: 0.834 | AQ43: 0.828 | AR43: 0.957 | AU43: =AU42 -> 1.05 | AV43: 1.22 | AW43: 1 | AX43: 0.2 | AY43: 0.65 | AZ43: 0.05 | BA43: 1.01 | BB43: 1.1 | BC43: 1 | BD43: 0.2 | BE43: 0.8 | BF43: 0 | BG43: 0.82 | BH43: 1.1 | BI43: 1 | BJ43: 0.05 | BK43: 0.2 | BL43: 0.75 | BM43: 0.21 | BN43: 0.202 | BO43: 0.793 | BP43: 0.88 | BQ43: 0.05 | BR43: 0 | BS43: 1.053 | BT43: 1.082 | BU43: 1.011
A44: 23 | B44: 219.6179636 | C44: 17.30095238 | D44: 17.98613861 | E44: 24.38587642 | F44: 23.44 | G44: 29.3 | H44: 0 | I44: 0.5904761905 | J44: 0.6138613861 | K44: 0.8322824716 | L44: 0.8 | M44: 1 | N44: 0 | O44: 0.792022792 | P44: 0.7652495379 | Q44: 0.9465875371 | R44: 0.62 | S44: 0.88 | T44: 1 | U44: 0.2 | V44: 0.75 | W44: 0.05 | X44: 0.62 | Y44: 0.88 | Z44: 1 | AA44: 0.2 | AB44: 0.8 | AC44: 0 | AD44: 0.62 | AE44: 0.88 | AF44: 1 | AG44: 0.05 | AH44: 0.2 | AI44: 0.75 | AJ44: 0.124 | AK44: 0.124 | AL44: 0.66 | AM44: 0.704 | AN44: 0.05 | AO44: 0 | AP44: 0.834 | AQ44: 0.828 | AR44: 0.957 | AU44: 1.05 | AV44: 1.22 | AW44: 1 | AX44: 0.2 | AY44: 0.65 | AZ44: 0.05 | BA44: 1.01 | BB44: 1.1 | BC44: 1 | BD44: 0.2 | BE44: 0.8 | BF44: 0 | BG44: 0.82 | BH44: 1.1 | BI44: 1 | BJ44: 0.05 | BK44: 0.2 | BL44: 0.75 | BM44: 0.21 | BN44: 0.202 | BO44: 0.793 | BP44: 0.88 | BQ44: 0.05 | BR44: 0 | BS44: 1.053 | BT44: 1.082 | BU44: 1.011
A45: 24 | B45: 217.5012896 | C45: 17.30095238 | D45: 17.98613861 | E45: 24.38587642 | F45: 23.44 | G45: 29.3 | H45: 0 | I45: 0.5904761905 | J45: 0.6138613861 | K45: 0.8322824716 | L45: 0.8 | M45: 1 | N45: 0 | O45: 0.792022792 | P45: 0.7652495379 | Q45: 0.9465875371 | R45: 0.62 | S45: 0.88 | T45: 1 | U45: 0.2 | V45: 0.75 | W45: 0.05 | X45: 0.62 | Y45: 0.88 | Z45: 1 | AA45: 0.2 | AB45: 0.8 | AC45: 0 | AD45: 0.62 | AE45: 0.88 | AF45: 1 | AG45: 0.05 | AH45: 0.2 | AI45: 0.75 | AJ45: 0.124 | AK45: 0.124 | AL45: 0.66 | AM45: 0.704 | AN45: 0.05 | AO45: 0 | AP45: 0.834 | AQ45: 0.828 | AR45: 0.957 | AU45: 1.05 | AV45: 1.22 | AW45: 1 | AX45: 0.2 | AY45: 0.65 | AZ45: 0.05 | BA45: 1.01 | BB45: 1.1 | BC45: 1 | BD45: 0.2 | BE45: 0.8 | BF45: 0 | BG45: 0.82 | BH45: 1.1 | BI45: 1 | BJ45: 0.05 | BK45: 0.2 | BL45: 0.75 | BM45: 0.21 | BN45: 0.202 | BO45: 0.793 | BP45: 0.88 | BQ45: 0.05 | BR45: 0 | BS45: 1.053 | BT45: 1.082 | BU45: 1.011
A46: 25 | B46: 215.41625 | C46: 17.30095238 | D46: 17.98613861 | E46: 24.38587642 | F46: 23.44 | G46: 29.3 | H46: 0 | I46: 0.5904761905 | J46: 0.6138613861 | K46: 0.8322824716 | L46: 0.8 | M46: 1 | N46: 0 | O46: 0.792022792 | P46: 0.7652495379 | Q46: 0.9465875371 | R46: 0.62 | S46: 0.88 | T46: 1 | U46: 0.2 | V46: 0.75 | W46: 0.05 | X46: 0.62 | Y46: 0.88 | Z46: 1 | AA46: 0.2 | AB46: 0.8 | AC46: 0 | AD46: 0.62 | AE46: 0.88 | AF46: 1 | AG46: 0.05 | AH46: 0.2 | AI46: 0.75 | AJ46: 0.124 | AK46: 0.124 | AL46: 0.66 | AM46: 0.704 | AN46: 0.05 | AO46: 0 | AP46: 0.834 | AQ46: 0.828 | AR46: 0.957 | AU46: 1.05 | AV46: 1.22 | AW46: 1 | AX46: 0.2 | AY46: 0.65 | AZ46: 0.05 | BA46: 1.01 | BB46: 1.1 | BC46: 1 | BD46: 0.2 | BE46: 0.8 | BF46: 0 | BG46: 0.82 | BH46: 1.1 | BI46: 1 | BJ46: 0.05 | BK46: 0.2 | BL46: 0.75 | BM46: 0.21 | BN46: 0.202 | BO46: 0.793 | BP46: 0.88 | BQ46: 0.05 | BR46: 0 | BS46: 1.053 | BT46: 1.082 | BU46: 1.011
A47: 26 | B47: 213.3692096 | C47: 17.30095238 | D47: 17.98613861 | E47: 24.38587642 | F47: 23.44 | G47: 29.3 | H47: 0 | I47: 0.5904761905 | J47: 0.6138613861 | K47: 0.8322824716 | L47: 0.8 | M47: 1 | N47: 0 | O47: 0.792022792 | P47: 0.7652495379 | Q47: 0.9465875371 | R47: 0.62 | S47: 0.88 | T47: 1 | U47: 0.2 | V47: 0.75 | W47: 0.05 | X47: 0.62 | Y47: 0.88 | Z47: 1 | AA47: 0.2 | AB47: 0.8 | AC47: 0 | AD47: 0.62 | AE47: 0.88 | AF47: 1 | AG47: 0.05 | AH47: 0.2 | AI47: 0.75 | AJ47: 0.124 | AK47: 0.124 | AL47: 0.66 | AM47: 0.704 | AN47: 0.05 | AO47: 0 | AP47: 0.834 | AQ47: 0.828 | AR47: 0.957 | AU47: 1.05 | AV47: 1.22 | AW47: 1 | AX47: 0.2 | AY47: 0.65 | AZ47: 0.05 | BA47: 1.01 | BB47: 1.1 | BC47: 1 | BD47: 0.2 | BE47: 0.8 | BF47: 0 | BG47: 0.82 | BH47: 1.1 | BI47: 1 | BJ47: 0.05 | BK47: 0.2 | BL47: 0.75 | BM47: 0.21 | BN47: 0.202 | BO47: 0.793 | BP47: 0.88 | BQ47: 0.05 | BR47: 0 | BS47: 1.053 | BT47: 1.082 | BU47: 1.011
A48: 27 | B48: 211.3665236 | C48: 17.30095238 | D48: 17.98613861 | E48: 24.38587642 | F48: 23.44 | G48: 29.3 | H48: 0 | I48: 0.5904761905 | J48: 0.6138613861 | K48: 0.8322824716 | L48: 0.8 | M48: 1 | N48: 0 | O48: 0.792022792 | P48: 0.7652495379 | Q48: 0.9465875371 | R48: 0.62 | S48: 0.88 | T48: 1 | U48: 0.2 | V48: 0.75 | W48: 0.05 | X48: 0.62 | Y48: 0.88 | Z48: 1 | AA48: 0.2 | AB48: 0.8 | AC48: 0 | AD48: 0.62 | AE48: 0.88 | AF48: 1 | AG48: 0.05 | AH48: 0.2 | AI48: 0.75 | AJ48: 0.124 | AK48: 0.124 | AL48: 0.66 | AM48: 0.704 | AN48: 0.05 | AO48: 0 | AP48: 0.834 | AQ48: 0.828 | AR48: 0.957 | AU48: 1.05 | AV48: 1.22 | AW48: 1 | AX48: 0.2 | AY48: 0.65 | AZ48: 0.05 | BA48: 1.01 | BB48: 1.1 | BC48: 1 | BD48: 0.2 | BE48: 0.8 | BF48: 0 | BG48: 0.82 | BH48: 1.1 | BI48: 1 | BJ48: 0.05 | BK48: 0.2 | BL48: 0.75 | BM48: 0.21 | BN48: 0.202 | BO48: 0.793 | BP48: 0.88 | BQ48: 0.05 | BR48: 0 | BS48: 1.053 | BT48: 1.082 | BU48: 1.011
A49: 28 | B49: 209.4145376 | C49: 17.30095238 | D49: 17.98613861 | E49: 24.38587642 | F49: 23.44 | G49: 29.3 | H49: 0 | I49: 0.5904761905 | J49: 0.6138613861 | K49: 0.8322824716 | L49: 0.8 | M49: 1 | N49: 0 | O49: 0.792022792 | P49: 0.7652495379 | Q49: 0.9465875371 | R49: 0.62 | S49: 0.88 | T49: 1 | U49: 0.2 | V49: 0.75 | W49: 0.05 | X49: 0.62 | Y49: 0.88 | Z49: 1 | AA49: 0.2 | AB49: 0.8 | AC49: 0 | AD49: 0.62 | AE49: 0.88 | AF49: 1 | AG49: 0.05 | AH49: 0.2 | AI49: 0.75 | AJ49: =R49*U49 -> 0.124 | AK49: 0.124 | AL49: 0.66 | AM49: 0.704 | AN49: 0.05 | AO49: 0 | AP49: 0.834 | AQ49: 0.828 | AR49: 0.957 | AU49: 1.05 | AV49: 1.22 | AW49: 1 | AX49: 0.2 | AY49: 0.65 | AZ49: 0.05 | BA49: 1.01 | BB49: 1.1 | BC49: 1 | BD49: 0.2 | BE49: 0.8 | BF49: 0 | BG49: 0.82 | BH49: 1.1 | BI49: 1 | BJ49: 0.05 | BK49: 0.2 | BL49: 0.75 | BM49: 0.21 | BN49: 0.202 | BO49: 0.793 | BP49: 0.88 | BQ49: 0.05 | BR49: 0 | BS49: 1.053 | BT49: 1.082 | BU49: 1.011
A50: 29 | B50: 207.5195876 | C50: 17.30095238 | D50: 17.98613861 | E50: 24.38587642 | F50: 23.44 | G50: 29.3 | H50: 0 | I50: 0.5904761905 | J50: 0.6138613861 | K50: 0.8322824716 | L50: 0.8 | M50: 1 | N50: 0 | O50: 0.792022792 | P50: 0.7652495379 | Q50: 0.9465875371 | R50: 0.62 | S50: 0.88 | T50: 1 | U50: 0.2 | V50: 0.75 | W50: 0.05 | X50: 0.62 | Y50: 0.88 | Z50: 1 | AA50: 0.2 | AB50: 0.8 | AC50: 0 | AD50: 0.62 | AE50: 0.88 | AF50: 1 | AG50: 0.05 | AH50: 0.2 | AI50: 0.75 | AJ50: =R50*U50 -> 0.124 | AK50: 0.124 | AL50: 0.66 | AM50: 0.704 | AN50: 0.05 | AO50: 0 | AP50: 0.834 | AQ50: 0.828 | AR50: 0.957 | AU50: 1.05 | AV50: 1.22 | AW50: 1 | AX50: 0.2 | AY50: 0.65 | AZ50: 0.05 | BA50: 1.01 | BB50: 1.1 | BC50: 1 | BD50: 0.2 | BE50: 0.8 | BF50: 0 | BG50: 0.82 | BH50: 1.1 | BI50: 1 | BJ50: 0.05 | BK50: 0.2 | BL50: 0.75 | BM50: 0.21 | BN50: 0.202 | BO50: 0.793 | BP50: 0.88 | BQ50: 0.05 | BR50: 0 | BS50: 1.053 | BT50: 1.082 | BU50: 1.011
A51: 30 | B51: 205.688 | C51: 17.30095238 | D51: 17.98613861 | E51: 24.38587642 | F51: 23.44 | G51: 29.3 | H51: 0 | I51: 0.5904761905 | J51: 0.6138613861 | K51: 0.8322824716 | L51: 0.8 | M51: 1 | N51: 0 | O51: 0.792022792 | P51: 0.7652495379 | Q51: 0.9465875371 | R51: 0.62 | S51: 0.88 | T51: 1 | U51: 0.2 | V51: 0.75 | W51: 0.05 | X51: 0.62 | Y51: 0.88 | Z51: 1 | AA51: 0.2 | AB51: 0.8 | AC51: 0 | AD51: 0.62 | AE51: 0.88 | AF51: 1 | AG51: 0.05 | AH51: 0.2 | AI51: 0.75 | AJ51: 0.124 | AK51: 0.124 | AL51: 0.66 | AM51: 0.704 | AN51: 0.05 | AO51: 0 | AP51: 0.834 | AQ51: 0.828 | AR51: 0.957 | AU51: 1.05 | AV51: 1.22 | AW51: 1 | AX51: 0.2 | AY51: 0.65 | AZ51: 0.05 | BA51: 1.01 | BB51: 1.1 | BC51: 1 | BD51: 0.2 | BE51: 0.8 | BF51: 0 | BG51: 0.82 | BH51: 1.1 | BI51: 1 | BJ51: 0.05 | BK51: 0.2 | BL51: 0.75 | BM51: 0.21 | BN51: 0.202 | BO51: 0.793 | BP51: 0.88 | BQ51: 0.05 | BR51: 0 | BS51: 1.053 | BT51: 1.082 | BU51: 1.011
A52: 31 | B52: 203.9260916 | C52: 17.30095238 | D52: 17.98613861 | E52: 24.38587642 | F52: 23.44 | G52: 29.3 | H52: 0 | I52: 0.5904761905 | J52: 0.6138613861 | K52: 0.8322824716 | L52: 0.8 | M52: 1 | N52: 0 | O52: 0.792022792 | P52: 0.7652495379 | Q52: 0.9465875371 | R52: 0.62 | S52: 0.88 | T52: 1 | U52: 0.2 | V52: 0.75 | W52: 0.05 | X52: 0.62 | Y52: 0.88 | Z52: 1 | AA52: 0.2 | AB52: 0.8 | AC52: 0 | AD52: 0.62 | AE52: 0.88 | AF52: 1 | AG52: 0.05 | AH52: 0.2 | AI52: 0.75 | AJ52: 0.124 | AK52: 0.124 | AL52: 0.66 | AM52: 0.704 | AN52: 0.05 | AO52: 0 | AP52: 0.834 | AQ52: 0.828 | AR52: 0.957 | AU52: 1.05 | AV52: 1.22 | AW52: 1 | AX52: 0.2 | AY52: 0.65 | AZ52: 0.05 | BA52: 1.01 | BB52: 1.1 | BC52: 1 | BD52: 0.2 | BE52: 0.8 | BF52: 0 | BG52: 0.82 | BH52: 1.1 | BI52: 1 | BJ52: 0.05 | BK52: 0.2 | BL52: 0.75 | BM52: 0.21 | BN52: 0.202 | BO52: 0.793 | BP52: 0.88 | BQ52: 0.05 | BR52: 0 | BS52: 1.053 | BT52: 1.082 | BU52: 1.011
A53: 32 | B53: 202.2401696 | C53: 17.30095238 | D53: 17.98613861 | E53: 24.38587642 | F53: 23.44 | G53: 29.3 | H53: 0 | I53: 0.5904761905 | J53: 0.6138613861 | K53: 0.8322824716 | L53: 0.8 | M53: 1 | N53: 0 | O53: 0.792022792 | P53: 0.7652495379 | Q53: 0.9465875371 | R53: 0.62 | S53: 0.88 | T53: 1 | U53: 0.2 | V53: 0.75 | W53: 0.05 | X53: 0.62 | Y53: 0.88 | Z53: 1 | AA53: 0.2 | AB53: 0.8 | AC53: 0 | AD53: 0.62 | AE53: 0.88 | AF53: 1 | AG53: 0.05 | AH53: 0.2 | AI53: 0.75 | AJ53: 0.124 | AK53: 0.124 | AL53: 0.66 | AM53: 0.704 | AN53: 0.05 | AO53: 0 | AP53: 0.834 | AQ53: 0.828 | AR53: 0.957 | AU53: 1.05 | AV53: 1.22 | AW53: 1 | AX53: 0.2 | AY53: 0.65 | AZ53: 0.05 | BA53: 1.01 | BB53: 1.1 | BC53: 1 | BD53: 0.2 | BE53: 0.8 | BF53: 0 | BG53: 0.82 | BH53: 1.1 | BI53: 1 | BJ53: 0.05 | BK53: 0.2 | BL53: 0.75 | BM53: 0.21 | BN53: 0.202 | BO53: 0.793 | BP53: 0.88 | BQ53: 0.05 | BR53: 0 | BS53: 1.053 | BT53: 1.082 | BU53: 1.011
A54: 33 | B54: 200.6365316 | C54: 17.30095238 | D54: 17.98613861 | E54: 24.38587642 | F54: 23.44 | G54: 29.3 | H54: 0 | I54: 0.5904761905 | J54: 0.6138613861 | K54: 0.8322824716 | L54: 0.8 | M54: 1 | N54: 0 | O54: 0.792022792 | P54: 0.7652495379 | Q54: 0.9465875371 | R54: 0.62 | S54: 0.88 | T54: 1 | U54: 0.2 | V54: 0.75 | W54: 0.05 | X54: 0.62 | Y54: 0.88 | Z54: 1 | AA54: 0.2 | AB54: 0.8 | AC54: 0 | AD54: 0.62 | AE54: 0.88 | AF54: 1 | AG54: 0.05 | AH54: 0.2 | AI54: 0.75 | AJ54: 0.124 | AK54: 0.124 | AL54: 0.66 | AM54: 0.704 | AN54: 0.05 | AO54: 0 | AP54: 0.834 | AQ54: 0.828 | AR54: 0.957 | AU54: 1.05 | AV54: 1.22 | AW54: 1 | AX54: 0.2 | AY54: 0.65 | AZ54: 0.05 | BA54: 1.01 | BB54: 1.1 | BC54: 1 | BD54: 0.2 | BE54: 0.8 | BF54: 0 | BG54: 0.82 | BH54: 1.1 | BI54: 1 | BJ54: 0.05 | BK54: 0.2 | BL54: 0.75 | BM54: 0.21 | BN54: 0.202 | BO54: 0.793 | BP54: 0.88 | BQ54: 0.05 | BR54: 0 | BS54: 1.053 | BT54: 1.082 | BU54: 1.011
A55: 34 | B55: 199.1214656 | C55: 25.95142857 | D55: 26.97920792 | E55: 19.50870113 | F55: 20.51 | G55: 58.6 | H55: 0 | I55: 0.8857142857 | J55: 0.9207920792 | K55: 0.6658259773 | L55: 0.7 | M55: 2 | N55: 0 | O55: 0.7730294397 | P55: 0.741219963 | Q55: 0.9525222552 | R55: 0.62 | S55: 0.88 | T55: 1 | U55: 0.3 | V55: 0.6 | W55: 0.1 | X55: 0.62 | Y55: 0.88 | Z55: 1 | AA55: 0.3 | AB55: 0.7 | AC55: 0 | AD55: 0.62 | AE55: 0.88 | AF55: 1 | AG55: 0.05 | AH55: 0.15 | AI55: 0.8 | AJ55: 0.186 | AK55: 0.186 | AL55: 0.528 | AM55: 0.616 | AN55: 0.1 | AO55: 0 | AP55: 0.814 | AQ55: 0.802 | AR55: 0.963 | AU55: 1.05 | AV55: 1.22 | AW55: 1 | AX55: 0.2 | AY55: 0.65 | AZ55: 0.05 | BA55: 1.01 | BB55: 1.1 | BC55: 1 | BD55: 0.2 | BE55: 0.8 | BF55: 0 | BG55: 0.82 | BH55: 1.1 | BI55: 1 | BJ55: 0.05 | BK55: 0.2 | BL55: 0.75 | BM55: 0.21 | BN55: 0.202 | BO55: 0.793 | BP55: 0.88 | BQ55: 0.05 | BR55: 0 | BS55: 1.053 | BT55: 1.082 | BU55: 1.011
A56: 35 | B56: 197.70125 | C56: 16.51454545 | D56: 17.80980392 | E56: 16.74285714 | F56: 23.44 | G56: 29.3 | H56: 0 | I56: 0.5636363636 | J56: 0.6078431373 | K56: 0.5714285714 | L56: 0.8 | M56: 1 | N56: 0 | O56: 0.6011816839 | P56: 0.7453531599 | Q56: 0.9572564612 | R56: =R55 -> 0.62 | S56: =S55 -> 0.88 | T56: 1 | U56: 0.3 | V56: 0.6 | W56: 0.1 | X56: 0.62 | Y56: 0.88 | Z56: 1 | AA56: 0.3 | AB56: 0.7 | AC56: 0 | AD56: 0.62 | AE56: 0.88 | AF56: 1 | AG56: 0.05 | AH56: 0.15 | AI56: =AI55 -> 0.8 | AJ56: 0.186 | AK56: 0.186 | AL56: 0.528 | AM56: 0.616 | AN56: 0.1 | AO56: 0 | AP56: 0.814 | AQ56: 0.802 | AR56: 0.963 | AU56: 1.1 | AV56: 1.54 | AW56: 1 | AX56: 0.3 | AY56: 0.6 | AZ56: 0.1 | BA56: 1.02 | BB56: 1.1 | BC56: 1 | BD56: 0.3 | BE56: 0.7 | BF56: 0 | BG56: 0.82 | BH56: 1.1 | BI56: 1 | BJ56: 0.05 | BK56: 0.15 | BL56: 0.8 | BM56: 0.33 | BN56: 0.306 | BO56: 0.924 | BP56: 0.77 | BQ56: 0.1 | BR56: 0 | BS56: 1.354 | BT56: 1.076 | BU56: 1.006
A57: 36 | B57: 196.3821536 | C57: 16.51454545 | D57: 17.80980392 | E57: 16.74285714 | F57: 23.44 | G57: 29.3 | H57: 0 | I57: 0.5636363636 | J57: 0.6078431373 | K57: 0.5714285714 | L57: 0.8 | M57: 1 | N57: 0 | O57: 0.6011816839 | P57: 0.7453531599 | Q57: 0.9572564612 | R57: =R56 -> 0.62 | S57: 0.88 | T57: 1 | U57: 0.3 | V57: 0.6 | W57: 0.1 | X57: 0.62 | Y57: 0.88 | Z57: 1 | AA57: 0.3 | AB57: 0.7 | AC57: 0 | AD57: 0.62 | AE57: 0.88 | AF57: 1 | AG57: 0.05 | AH57: 0.15 | AI57: 0.8 | AJ57: 0.186 | AK57: 0.186 | AL57: 0.528 | AM57: 0.616 | AN57: 0.1 | AO57: 0 | AP57: 0.814 | AQ57: 0.802 | AR57: 0.963 | AU57: =AU56 -> 1.1 | AV57: 1.54 | AW57: =AW56 -> 1 | AX57: 0.3 | AY57: 0.6 | AZ57: 0.1 | BA57: 1.02 | BB57: 1.1 | BC57: 1 | BD57: 0.3 | BE57: 0.7 | BF57: 0 | BG57: 0.82 | BH57: 1.1 | BI57: 1 | BJ57: 0.05 | BK57: 0.15 | BL57: 0.8 | BM57: 0.33 | BN57: 0.306 | BO57: 0.924 | BP57: 0.77 | BQ57: 0.1 | BR57: 0 | BS57: 1.354 | BT57: 1.076 | BU57: 1.006
A58: 37 | B58: 195.1704356 | C58: 16.51454545 | D58: 17.80980392 | E58: 16.74285714 | F58: 23.44 | G58: 29.3 | H58: 0 | I58: 0.5636363636 | J58: 0.6078431373 | K58: 0.5714285714 | L58: 0.8 | M58: 1 | N58: 0 | O58: 0.6011816839 | P58: 0.7453531599 | Q58: 0.9572564612 | R58: 0.62 | S58: 0.88 | T58: 1 | U58: 0.3 | V58: 0.6 | W58: 0.1 | X58: 0.62 | Y58: 0.88 | Z58: 1 | AA58: 0.3 | AB58: 0.7 | AC58: 0 | AD58: 0.62 | AE58: 0.88 | AF58: 1 | AG58: 0.05 | AH58: 0.15 | AI58: 0.8 | AJ58: 0.186 | AK58: 0.186 | AL58: 0.528 | AM58: 0.616 | AN58: 0.1 | AO58: 0 | AP58: 0.814 | AQ58: 0.802 | AR58: 0.963 | AU58: =AU57 -> 1.1 | AV58: 1.54 | AW58: 1 | AX58: 0.3 | AY58: 0.6 | AZ58: 0.1 | BA58: 1.02 | BB58: 1.1 | BC58: 1 | BD58: 0.3 | BE58: 0.7 | BF58: 0 | BG58: 0.82 | BH58: 1.1 | BI58: 1 | BJ58: 0.05 | BK58: 0.15 | BL58: 0.8 | BM58: 0.33 | BN58: 0.306 | BO58: 0.924 | BP58: 0.77 | BQ58: 0.1 | BR58: 0 | BS58: 1.354 | BT58: 1.076 | BU58: 1.006
A59: 38 | B59: 194.0723456 | C59: 16.51454545 | D59: 17.80980392 | E59: 16.74285714 | F59: 23.44 | G59: 29.3 | H59: 0 | I59: 0.5636363636 | J59: 0.6078431373 | K59: 0.5714285714 | L59: 0.8 | M59: 1 | N59: 0 | O59: 0.6011816839 | P59: 0.7453531599 | Q59: 0.9572564612 | R59: 0.62 | S59: 0.88 | T59: 1 | U59: 0.3 | V59: 0.6 | W59: 0.1 | X59: 0.62 | Y59: 0.88 | Z59: 1 | AA59: 0.3 | AB59: 0.7 | AC59: 0 | AD59: 0.62 | AE59: 0.88 | AF59: 1 | AG59: 0.05 | AH59: 0.15 | AI59: 0.8 | AJ59: 0.186 | AK59: 0.186 | AL59: 0.528 | AM59: 0.616 | AN59: 0.1 | AO59: 0 | AP59: 0.814 | AQ59: 0.802 | AR59: 0.963 | AU59: 1.1 | AV59: 1.54 | AW59: 1 | AX59: 0.3 | AY59: 0.6 | AZ59: 0.1 | BA59: 1.02 | BB59: 1.1 | BC59: 1 | BD59: 0.3 | BE59: 0.7 | BF59: 0 | BG59: 0.82 | BH59: 1.1 | BI59: 1 | BJ59: 0.05 | BK59: 0.15 | BL59: 0.8 | BM59: 0.33 | BN59: 0.306 | BO59: 0.924 | BP59: 0.77 | BQ59: 0.1 | BR59: 0 | BS59: 1.354 | BT59: 1.076 | BU59: 1.006
A60: 39 | B60: 193.0941236 | C60: 16.51454545 | D60: 17.80980392 | E60: 16.74285714 | F60: 23.44 | G60: 29.3 | H60: 0 | I60: 0.5636363636 | J60: 0.6078431373 | K60: 0.5714285714 | L60: 0.8 | M60: 1 | N60: 0 | O60: 0.6011816839 | P60: 0.7453531599 | Q60: 0.9572564612 | R60: 0.62 | S60: 0.88 | T60: 1 | U60: 0.3 | V60: 0.6 | W60: 0.1 | X60: 0.62 | Y60: 0.88 | Z60: 1 | AA60: 0.3 | AB60: 0.7 | AC60: 0 | AD60: 0.62 | AE60: 0.88 | AF60: 1 | AG60: 0.05 | AH60: 0.15 | AI60: 0.8 | AJ60: 0.186 | AK60: 0.186 | AL60: 0.528 | AM60: 0.616 | AN60: 0.1 | AO60: 0 | AP60: 0.814 | AQ60: 0.802 | AR60: 0.963 | AU60: 1.1 | AV60: 1.54 | AW60: 1 | AX60: 0.3 | AY60: 0.6 | AZ60: 0.1 | BA60: 1.02 | BB60: 1.1 | BC60: 1 | BD60: 0.3 | BE60: 0.7 | BF60: 0 | BG60: 0.82 | BH60: 1.1 | BI60: 1 | BJ60: 0.05 | BK60: 0.15 | BL60: 0.8 | BM60: 0.33 | BN60: 0.306 | BO60: 0.924 | BP60: 0.77 | BQ60: 0.1 | BR60: 0 | BS60: 1.354 | BT60: 1.076 | BU60: 1.006
A61: 40 | B61: 192.242 | C61: 16.51454545 | D61: 17.80980392 | E61: 16.74285714 | F61: 23.44 | G61: 29.3 | H61: 0 | I61: 0.5636363636 | J61: 0.6078431373 | K61: 0.5714285714 | L61: 0.8 | M61: 1 | N61: 0 | O61: 0.6011816839 | P61: 0.7453531599 | Q61: 0.9572564612 | R61: 0.62 | S61: 0.88 | T61: 1 | U61: 0.3 | V61: 0.6 | W61: 0.1 | X61: 0.62 | Y61: 0.88 | Z61: 1 | AA61: 0.3 | AB61: 0.7 | AC61: 0 | AD61: 0.62 | AE61: 0.88 | AF61: 1 | AG61: 0.05 | AH61: 0.15 | AI61: 0.8 | AJ61: 0.186 | AK61: 0.186 | AL61: 0.528 | AM61: 0.616 | AN61: 0.1 | AO61: 0 | AP61: 0.814 | AQ61: 0.802 | AR61: 0.963 | AU61: 1.1 | AV61: 1.54 | AW61: 1 | AX61: 0.3 | AY61: 0.6 | AZ61: 0.1 | BA61: 1.02 | BB61: 1.1 | BC61: 1 | BD61: 0.3 | BE61: 0.7 | BF61: 0 | BG61: 0.82 | BH61: 1.1 | BI61: 1 | BJ61: 0.05 | BK61: 0.15 | BL61: 0.8 | BM61: 0.33 | BN61: 0.306 | BO61: 0.924 | BP61: 0.77 | BQ61: 0.1 | BR61: 0 | BS61: 1.354 | BT61: 1.076 | BU61: 1.006
A62: 41 | B62: 191.5221956 | C62: 16.51454545 | D62: 17.80980392 | E62: 16.74285714 | F62: 23.44 | G62: 29.3 | H62: 0 | I62: 0.5636363636 | J62: 0.6078431373 | K62: 0.5714285714 | L62: 0.8 | M62: 1 | N62: 0 | O62: 0.6011816839 | P62: 0.7453531599 | Q62: 0.9572564612 | R62: 0.62 | S62: 0.88 | T62: 1 | U62: 0.3 | V62: 0.6 | W62: 0.1 | X62: 0.62 | Y62: 0.88 | Z62: 1 | AA62: 0.3 | AB62: 0.7 | AC62: 0 | AD62: 0.62 | AE62: 0.88 | AF62: 1 | AG62: 0.05 | AH62: 0.15 | AI62: 0.8 | AJ62: 0.186 | AK62: 0.186 | AL62: 0.528 | AM62: 0.616 | AN62: 0.1 | AO62: 0 | AP62: 0.814 | AQ62: 0.802 | AR62: 0.963 | AU62: 1.1 | AV62: 1.54 | AW62: 1 | AX62: 0.3 | AY62: 0.6 | AZ62: 0.1 | BA62: 1.02 | BB62: 1.1 | BC62: 1 | BD62: 0.3 | BE62: 0.7 | BF62: 0 | BG62: 0.82 | BH62: 1.1 | BI62: 1 | BJ62: 0.05 | BK62: 0.15 | BL62: 0.8 | BM62: 0.33 | BN62: 0.306 | BO62: 0.924 | BP62: 0.77 | BQ62: 0.1 | BR62: 0 | BS62: 1.354 | BT62: 1.076 | BU62: 1.006
A63: 42 | B63: 190.9409216 | C63: 16.51454545 | D63: 17.80980392 | E63: 16.74285714 | F63: 23.44 | G63: 29.3 | H63: 0 | I63: 0.5636363636 | J63: 0.6078431373 | K63: 0.5714285714 | L63: 0.8 | M63: 1 | N63: 0 | O63: 0.6011816839 | P63: 0.7453531599 | Q63: 0.9572564612 | R63: 0.62 | S63: 0.88 | T63: 1 | U63: 0.3 | V63: 0.6 | W63: 0.1 | X63: 0.62 | Y63: 0.88 | Z63: 1 | AA63: 0.3 | AB63: 0.7 | AC63: 0 | AD63: 0.62 | AE63: 0.88 | AF63: 1 | AG63: 0.05 | AH63: 0.15 | AI63: 0.8 | AJ63: 0.186 | AK63: 0.186 | AL63: 0.528 | AM63: 0.616 | AN63: 0.1 | AO63: 0 | AP63: 0.814 | AQ63: 0.802 | AR63: 0.963 | AU63: 1.1 | AV63: 1.54 | AW63: 1 | AX63: 0.3 | AY63: 0.6 | AZ63: 0.1 | BA63: 1.02 | BB63: 1.1 | BC63: 1 | BD63: 0.3 | BE63: 0.7 | BF63: 0 | BG63: 0.82 | BH63: 1.1 | BI63: 1 | BJ63: 0.05 | BK63: 0.15 | BL63: 0.8 | BM63: 0.33 | BN63: 0.306 | BO63: 0.924 | BP63: 0.77 | BQ63: 0.1 | BR63: 0 | BS63: 1.354 | BT63: 1.076 | BU63: 1.006
A64: 43 | B64: 190.5043796 | C64: 16.51454545 | D64: 17.80980392 | E64: 16.74285714 | F64: 23.44 | G64: 29.3 | H64: 0 | I64: 0.5636363636 | J64: 0.6078431373 | K64: 0.5714285714 | L64: 0.8 | M64: 1 | N64: 0 | O64: 0.6011816839 | P64: 0.7453531599 | Q64: 0.9572564612 | R64: 0.62 | S64: 0.88 | T64: 1 | U64: 0.3 | V64: 0.6 | W64: 0.1 | X64: 0.62 | Y64: 0.88 | Z64: 1 | AA64: 0.3 | AB64: 0.7 | AC64: 0 | AD64: 0.62 | AE64: 0.88 | AF64: 1 | AG64: 0.05 | AH64: 0.15 | AI64: 0.8 | AJ64: 0.186 | AK64: 0.186 | AL64: 0.528 | AM64: 0.616 | AN64: 0.1 | AO64: 0 | AP64: 0.814 | AQ64: 0.802 | AR64: 0.963 | AU64: 1.1 | AV64: 1.54 | AW64: 1 | AX64: 0.3 | AY64: 0.6 | AZ64: 0.1 | BA64: 1.02 | BB64: 1.1 | BC64: 1 | BD64: 0.3 | BE64: 0.7 | BF64: 0 | BG64: 0.82 | BH64: 1.1 | BI64: 1 | BJ64: 0.05 | BK64: 0.15 | BL64: 0.8 | BM64: 0.33 | BN64: 0.306 | BO64: 0.924 | BP64: 0.77 | BQ64: 0.1 | BR64: 0 | BS64: 1.354 | BT64: 1.076 | BU64: 1.006
A65: 44 | B65: 190.2187616 | C65: 16.51454545 | D65: 17.80980392 | E65: 16.74285714 | F65: 23.44 | G65: 29.3 | H65: 0 | I65: 0.5636363636 | J65: 0.6078431373 | K65: 0.5714285714 | L65: 0.8 | M65: 1 | N65: 0 | O65: 0.6011816839 | P65: 0.7453531599 | Q65: 0.9572564612 | R65: 0.62 | S65: 0.88 | T65: 1 | U65: 0.3 | V65: 0.6 | W65: 0.1 | X65: 0.62 | Y65: 0.88 | Z65: 1 | AA65: 0.3 | AB65: 0.7 | AC65: 0 | AD65: 0.62 | AE65: 0.88 | AF65: 1 | AG65: 0.05 | AH65: 0.15 | AI65: 0.8 | AJ65: 0.186 | AK65: 0.186 | AL65: 0.528 | AM65: 0.616 | AN65: 0.1 | AO65: 0 | AP65: 0.814 | AQ65: 0.802 | AR65: 0.963 | AU65: 1.1 | AV65: 1.54 | AW65: 1 | AX65: 0.3 | AY65: 0.6 | AZ65: 0.1 | BA65: 1.02 | BB65: 1.1 | BC65: 1 | BD65: 0.3 | BE65: 0.7 | BF65: 0 | BG65: 0.82 | BH65: 1.1 | BI65: 1 | BJ65: 0.05 | BK65: 0.15 | BL65: 0.8 | BM65: 0.33 | BN65: 0.306 | BO65: 0.924 | BP65: 0.77 | BQ65: 0.1 | BR65: 0 | BS65: 1.354 | BT65: 1.076 | BU65: 1.006
A66: 45 | B66: 190.09025 | C66: 16.51454545 | D66: 17.80980392 | E66: 16.74285714 | F66: 23.44 | G66: 29.3 | H66: 0 | I66: 0.5636363636 | J66: 0.6078431373 | K66: 0.5714285714 | L66: 0.8 | M66: 1 | N66: 0 | O66: 0.6011816839 | P66: 0.7453531599 | Q66: 0.9572564612 | R66: 0.62 | S66: 0.88 | T66: 1 | U66: 0.3 | V66: 0.6 | W66: 0.1 | X66: 0.62 | Y66: 0.88 | Z66: 1 | AA66: 0.3 | AB66: 0.7 | AC66: 0 | AD66: 0.62 | AE66: 0.88 | AF66: 1 | AG66: 0.05 | AH66: 0.15 | AI66: 0.8 | AJ66: 0.186 | AK66: 0.186 | AL66: 0.528 | AM66: 0.616 | AN66: 0.1 | AO66: 0 | AP66: 0.814 | AQ66: 0.802 | AR66: 0.963 | AU66: 1.1 | AV66: 1.54 | AW66: 1 | AX66: 0.3 | AY66: 0.6 | AZ66: 0.1 | BA66: 1.02 | BB66: 1.1 | BC66: 1 | BD66: 0.3 | BE66: 0.7 | BF66: 0 | BG66: 0.82 | BH66: 1.1 | BI66: 1 | BJ66: 0.05 | BK66: 0.15 | BL66: 0.8 | BM66: 0.33 | BN66: 0.306 | BO66: 0.924 | BP66: 0.77 | BQ66: 0.1 | BR66: 0 | BS66: 1.354 | BT66: 1.076 | BU66: 1.006
A67: 46 | B67: 190.1250176 | C67: 16.51454545 | D67: 17.80980392 | E67: 16.74285714 | F67: 23.44 | G67: 29.3 | H67: 0 | I67: 0.5636363636 | J67: 0.6078431373 | K67: 0.5714285714 | L67: 0.8 | M67: 1 | N67: 0 | O67: 0.6011816839 | P67: 0.7453531599 | Q67: 0.9572564612 | R67: 0.62 | S67: 0.88 | T67: 1 | U67: 0.3 | V67: 0.6 | W67: 0.1 | X67: 0.62 | Y67: 0.88 | Z67: 1 | AA67: 0.3 | AB67: 0.7 | AC67: 0 | AD67: 0.62 | AE67: 0.88 | AF67: 1 | AG67: 0.05 | AH67: 0.15 | AI67: 0.8 | AJ67: 0.186 | AK67: 0.186 | AL67: 0.528 | AM67: 0.616 | AN67: 0.1 | AO67: 0 | AP67: 0.814 | AQ67: 0.802 | AR67: 0.963 | AU67: 1.1 | AV67: 1.54 | AW67: 1 | AX67: 0.3 | AY67: 0.6 | AZ67: 0.1 | BA67: 1.02 | BB67: 1.1 | BC67: 1 | BD67: 0.3 | BE67: 0.7 | BF67: 0 | BG67: 0.82 | BH67: 1.1 | BI67: 1 | BJ67: 0.05 | BK67: 0.15 | BL67: 0.8 | BM67: 0.33 | BN67: 0.306 | BO67: 0.924 | BP67: 0.77 | BQ67: 0.1 | BR67: 0 | BS67: 1.354 | BT67: 1.076 | BU67: 1.006
A68: 47 | B68: 190.3292276 | C68: 16.51454545 | D68: 17.80980392 | E68: 16.74285714 | F68: 23.44 | G68: 29.3 | H68: 0 | I68: 0.5636363636 | J68: 0.6078431373 | K68: 0.5714285714 | L68: 0.8 | M68: 1 | N68: 0 | O68: 0.6011816839 | P68: 0.7453531599 | Q68: 0.9572564612 | R68: 0.62 | S68: 0.88 | T68: 1 | U68: 0.3 | V68: 0.6 | W68: 0.1 | X68: 0.62 | Y68: 0.88 | Z68: 1 | AA68: 0.3 | AB68: 0.7 | AC68: 0 | AD68: 0.62 | AE68: 0.88 | AF68: 1 | AG68: 0.05 | AH68: 0.15 | AI68: 0.8 | AJ68: 0.186 | AK68: 0.186 | AL68: 0.528 | AM68: 0.616 | AN68: 0.1 | AO68: 0 | AP68: 0.814 | AQ68: 0.802 | AR68: 0.963 | AU68: 1.1 | AV68: 1.54 | AW68: 1 | AX68: 0.3 | AY68: 0.6 | AZ68: 0.1 | BA68: 1.02 | BB68: 1.1 | BC68: 1 | BD68: 0.3 | BE68: 0.7 | BF68: 0 | BG68: 0.82 | BH68: 1.1 | BI68: 1 | BJ68: 0.05 | BK68: 0.15 | BL68: 0.8 | BM68: 0.33 | BN68: 0.306 | BO68: 0.924 | BP68: 0.77 | BQ68: 0.1 | BR68: 0 | BS68: 1.354 | BT68: 1.076 | BU68: 1.006
A69: 48 | B69: 190.7090336 | C69: 16.51454545 | D69: 17.80980392 | E69: 16.74285714 | F69: 23.44 | G69: 29.3 | H69: 0 | I69: 0.5636363636 | J69: 0.6078431373 | K69: 0.5714285714 | L69: 0.8 | M69: 1 | N69: 0 | O69: 0.6011816839 | P69: 0.7453531599 | Q69: 0.9572564612 | R69: 0.62 | S69: 0.88 | T69: 1 | U69: 0.3 | V69: 0.6 | W69: 0.1 | X69: 0.62 | Y69: 0.88 | Z69: 1 | AA69: 0.3 | AB69: 0.7 | AC69: 0 | AD69: 0.62 | AE69: 0.88 | AF69: 1 | AG69: 0.05 | AH69: 0.15 | AI69: 0.8 | AJ69: 0.186 | AK69: 0.186 | AL69: 0.528 | AM69: 0.616 | AN69: 0.1 | AO69: 0 | AP69: 0.814 | AQ69: 0.802 | AR69: 0.963 | AU69: 1.1 | AV69: 1.54 | AW69: 1 | AX69: 0.3 | AY69: 0.6 | AZ69: 0.1 | BA69: 1.02 | BB69: 1.1 | BC69: 1 | BD69: 0.3 | BE69: 0.7 | BF69: 0 | BG69: 0.82 | BH69: 1.1 | BI69: 1 | BJ69: 0.05 | BK69: 0.15 | BL69: 0.8 | BM69: 0.33 | BN69: 0.306 | BO69: 0.924 | BP69: 0.77 | BQ69: 0.1 | BR69: 0 | BS69: 1.354 | BT69: 1.076 | BU69: 1.006
A70: 49 | B70: 191.2705796 | C70: 13.97384615 | D70: 17.80980392 | E70: 16.701 | F70: 23.44 | G70: 29.3 | H70: 0 | I70: =AJ70/BM70 -> 0.4769230769 | J70: =AK70/BN70 -> 0.6078431373 | K70: 0.57 | L70: 0.8 | M70: 1 | N70: 0 | O70: =AP70/BS70 -> 0.5066666667 | P70: =AQ70/BT70 -> 0.6284046693 | Q70: =AR70/BU70 -> 0.968591692 | R70: 0.62 | S70: 0.88 | T70: 1 | U70: 0.8 | V70: 0.1 | W70: 0.1 | X70: 0.62 | Y70: 0.88 | Z70: 1 | AA70: 0.9 | AB70: 0.1 | AC70: 0 | AD70: 0.62 | AE70: 0.88 | AF70: 1 | AG70: 0.1 | AH70: 0.05 | AI70: 0.85 | AJ70: 0.496 | AK70: 0.558 | AL70: 0.088 | AM70: 0.088 | AN70: 0.1 | AO70: 0 | AP70: 0.684 | AQ70: 0.646 | AR70: 0.956 | AU70: =AU71 -> 1.3 | AV70: =AV71 -> 2.1 | AW70: 1 | AX70: =AX71 -> 0.8 | AY70: =AY71 -> 0.1 | AZ70: 0.1 | BA70: 1.02 | BB70: 1.1 | BC70: 1 | BD70: =BD71 -> 0.9 | BE70: =BE71 -> 0.1 | BF70: 0 | BG70: 0.82 | BH70: 1.1 | BI70: 1 | BJ70: =BJ71 -> 0.1 | BK70: =BK71 -> 0.05 | BL70: =BL71 -> 0.85 | BM70: =AU70*AX70 -> 1.04 | BN70: =BA70*BD70 -> 0.918 | BO70: 0.21 | BP70: 0.11 | BQ70: 0.1 | BR70: 0 | BS70: 1.35 | BT70: 1.028 | BU70: 0.987
A71: 50 | B71: 192.02 | C71: =29.3*I71 -> 13.97384615 | D71: =29.3*J71 -> 17.13773585 | E71: =29.3*K71 -> 12.27809524 | F71: =29.3*L71 -> 23.44 | G71: =29.3*M71 -> 29.3 | H71: =29.3*N71 -> 0 | I71: 0.4769230769 | J71: 0.5849056604 | K71: =AL71/BO71 -> 0.419047619 | L71: =AM71/BP71 -> 0.8 | M71: =AN71/BQ71 -> 1 | N71: =IFERROR(AO71/BR71,0) -> 0 | O71: 0.5066666667 | P71: 0.6071428571 | Q71: 0.968591692 | R71: =R70 -> 0.62 | S71: =S70 -> 0.88 | T71: 1 | U71: 0.8 | V71: 0.1 | W71: 0.1 | X71: 0.62 | Y71: 0.88 | Z71: 1 | AA71: 0.9 | AB71: 0.1 | AC71: 0 | AD71: 0.62 | AE71: 0.88 | AF71: 1 | AG71: 0.1 | AH71: 0.05 | AI71: =AI70 -> 0.85 | AJ71: 0.496 | AK71: 0.558 | AL71: 0.088 | AM71: 0.088 | AN71: 0.1 | AO71: 0 | AP71: 0.684 | AQ71: 0.646 | AR71: 0.956 | AU71: 1.3 | AV71: 2.1 | AW71: 1 | AX71: 0.8 | AY71: 0.1 | AZ71: 0.1 | BA71: 1.06 | BB71: 1.1 | BC71: 1 | BD71: 0.9 | BE71: 0.1 | BF71: 0 | BG71: 0.82 | BH71: 1.1 | BI71: 1 | BJ71: 0.1 | BK71: 0.05 | BL71: 0.85 | BM71: 1.04 | BN71: =BA71*BD71 -> 0.954 | BO71: 0.21 | BP71: 0.11 | BQ71: 0.1 | BR71: 0 | BS71: 1.35 | BT71: 1.064 | BU71: 0.987
A72: 51 | B72: 192.9634196 | C72: 13.97384615 | D72: 17.13773585 | E72: 12.27809524 | F72: 23.44 | G72: 29.3 | H72: 0 | I72: 0.4769230769 | J72: 0.5849056604 | K72: 0.419047619 | L72: 0.8 | M72: 1 | N72: 0 | O72: 0.5066666667 | P72: 0.6071428571 | Q72: 0.968591692 | R72: =R71 -> 0.62 | S72: 0.88 | T72: 1 | U72: 0.8 | V72: 0.1 | W72: 0.1 | X72: 0.62 | Y72: 0.88 | Z72: 1 | AA72: 0.9 | AB72: 0.1 | AC72: 0 | AD72: 0.62 | AE72: 0.88 | AF72: 1 | AG72: 0.1 | AH72: 0.05 | AI72: 0.85 | AJ72: 0.496 | AK72: 0.558 | AL72: 0.088 | AM72: 0.088 | AN72: 0.1 | AO72: 0 | AP72: 0.684 | AQ72: 0.646 | AR72: 0.956 | AU72: =AU71 -> 1.3 | AV72: 2.1 | AW72: =AW71 -> 1 | AX72: 0.8 | AY72: 0.1 | AZ72: 0.1 | BA72: 1.06 | BB72: 1.1 | BC72: 1 | BD72: 0.9 | BE72: 0.1 | BF72: 0 | BG72: 0.82 | BH72: 1.1 | BI72: 1 | BJ72: 0.1 | BK72: 0.05 | BL72: 0.85 | BM72: 1.04 | BN72: 0.954 | BO72: 0.21 | BP72: 0.11 | BQ72: 0.1 | BR72: 0 | BS72: 1.35 | BT72: 1.064 | BU72: 0.987
A73: 52 | B73: 194.1069536 | C73: 13.97384615 | D73: 17.13773585 | E73: 12.27809524 | F73: 23.44 | G73: 29.3 | H73: 0 | I73: 0.4769230769 | J73: 0.5849056604 | K73: 0.419047619 | L73: 0.8 | M73: 1 | N73: 0 | O73: 0.5066666667 | P73: 0.6071428571 | Q73: 0.968591692 | R73: 0.62 | S73: 0.88 | T73: 1 | U73: 0.8 | V73: 0.1 | W73: 0.1 | X73: 0.62 | Y73: 0.88 | Z73: 1 | AA73: 0.9 | AB73: 0.1 | AC73: 0 | AD73: 0.62 | AE73: 0.88 | AF73: 1 | AG73: 0.1 | AH73: 0.05 | AI73: 0.85 | AJ73: 0.496 | AK73: 0.558 | AL73: 0.088 | AM73: 0.088 | AN73: 0.1 | AO73: 0 | AP73: 0.684 | AQ73: 0.646 | AR73: 0.956 | AU73: =AU72 -> 1.3 | AV73: 2.1 | AW73: 1 | AX73: 0.8 | AY73: 0.1 | AZ73: 0.1 | BA73: 1.06 | BB73: 1.1 | BC73: 1 | BD73: 0.9 | BE73: 0.1 | BF73: 0 | BG73: 0.82 | BH73: 1.1 | BI73: 1 | BJ73: 0.1 | BK73: 0.05 | BL73: 0.85 | BM73: 1.04 | BN73: 0.954 | BO73: 0.21 | BP73: 0.11 | BQ73: 0.1 | BR73: 0 | BS73: 1.35 | BT73: 1.064 | BU73: 0.987
A74: 53 | B74: 195.4567076 | C74: 13.97384615 | D74: 17.13773585 | E74: 12.27809524 | F74: 23.44 | G74: 29.3 | H74: 0 | I74: 0.4769230769 | J74: 0.5849056604 | K74: 0.419047619 | L74: 0.8 | M74: 1 | N74: 0 | O74: 0.5066666667 | P74: 0.6071428571 | Q74: 0.968591692 | R74: 0.62 | S74: 0.88 | T74: 1 | U74: 0.8 | V74: 0.1 | W74: 0.1 | X74: 0.62 | Y74: 0.88 | Z74: 1 | AA74: 0.9 | AB74: 0.1 | AC74: 0 | AD74: 0.62 | AE74: 0.88 | AF74: 1 | AG74: 0.1 | AH74: 0.05 | AI74: 0.85 | AJ74: 0.496 | AK74: 0.558 | AL74: 0.088 | AM74: 0.088 | AN74: 0.1 | AO74: 0 | AP74: =SUMPRODUCT(R74:T74,U74:W74) -> 0.684 | AQ74: =SUMPRODUCT(X74:Z74,AA74:AC74) -> 0.646 | AR74: =SUMPRODUCT(AD74:AF74,AG74:AI74) -> 0.956 | AU74: 1.3 | AV74: 2.1 | AW74: 1 | AX74: 0.8 | AY74: 0.1 | AZ74: 0.1 | BA74: 1.06 | BB74: 1.1 | BC74: 1 | BD74: 0.9 | BE74: 0.1 | BF74: 0 | BG74: 0.82 | BH74: 1.1 | BI74: 1 | BJ74: 0.1 | BK74: 0.05 | BL74: 0.85 | BM74: 1.04 | BN74: 0.954 | BO74: 0.21 | BP74: 0.11 | BQ74: 0.1 | BR74: 0 | BS74: 1.35 | BT74: 1.064 | BU74: 0.987
A75: 54 | B75: =(-0.0000004*A75^4)+(0.0011*A75^3)-(0.062*A75^2)-(1.0046*A75)+262.25 -> 197.0187776 | C75: 13.97384615 | D75: 17.13773585 | E75: 12.27809524 | F75: 23.44 | G75: 29.3 | H75: 0 | I75: 0.4769230769 | J75: 0.5849056604 | K75: 0.419047619 | L75: 0.8 | M75: 1 | N75: 0 | O75: 0.5066666667 | P75: 0.6071428571 | Q75: 0.968591692 | R75: 0.62 | S75: 0.88 | T75: 1 | U75: 0.8 | V75: 0.1 | W75: 0.1 | X75: 0.62 | Y75: 0.88 | Z75: 1 | AA75: 0.9 | AB75: 0.1 | AC75: 0 | AD75: 0.62 | AE75: 0.88 | AF75: 1 | AG75: 0.1 | AH75: 0.05 | AI75: 0.85 | AJ75: =R75*U75 -> 0.496 | AK75: =X75*AA75 -> 0.558 | AL75: =S75*V75 -> 0.088 | AM75: =Y75*AB75 -> 0.088 | AN75: =T75*W75 -> 0.1 | AO75: =Z75*AC75 -> 0 | AP75: 0.684 | AQ75: 0.646 | AR75: 0.956 | AU75: 1.3 | AV75: 2.1 | AW75: 1 | AX75: 0.8 | AY75: 0.1 | AZ75: 0.1 | BA75: 1.06 | BB75: 1.1 | BC75: 1 | BD75: 0.9 | BE75: 0.1 | BF75: 0 | BG75: 0.82 | BH75: 1.1 | BI75: 1 | BJ75: 0.1 | BK75: 0.05 | BL75: 0.85 | BM75: =AU75*AX75 -> 1.04 | BN75: =BA75*BD75 -> 0.954 | BO75: =AV75*AY75 -> 0.21 | BP75: =BB75*BE75 -> 0.11 | BQ75: =AW75*AZ75 -> 0.1 | BR75: =BC75*BF75 -> 0 | BS75: 1.35 | BT75: 1.064 | BU75: =SUMPRODUCT(BG75:BI75,BJ75:BL75) -> 0.987
A76: 55 | B76: 198.79925 | C76: 13.97384615 | D76: 17.13773585 | E76: 12.27809524 | F76: 23.44 | G76: 29.3 | H76: 0 | I76: 0.4769230769 | J76: 0.5849056604 | K76: 0.419047619 | L76: 0.8 | M76: 1 | N76: 0 | O76: 0.5066666667 | P76: 0.6071428571 | Q76: 0.968591692 | R76: 0.62 | S76: 0.88 | T76: 1 | U76: 0.8 | V76: 0.1 | W76: 0.1 | X76: 0.62 | Y76: 0.88 | Z76: 1 | AA76: 0.9 | AB76: 0.1 | AC76: 0 | AD76: 0.62 | AE76: 0.88 | AF76: 1 | AG76: 0.1 | AH76: 0.05 | AI76: 0.85 | AJ76: 0.496 | AK76: 0.558 | AL76: 0.088 | AM76: 0.088 | AN76: 0.1 | AO76: 0 | AP76: 0.684 | AQ76: 0.646 | AR76: 0.956 | AU76: 1.3 | AV76: 2.1 | AW76: 1 | AX76: 0.8 | AY76: 0.1 | AZ76: 0.1 | BA76: 1.06 | BB76: 1.1 | BC76: 1 | BD76: 0.9 | BE76: 0.1 | BF76: 0 | BG76: 0.82 | BH76: 1.1 | BI76: 1 | BJ76: 0.1 | BK76: 0.05 | BL76: 0.85 | BM76: 1.04 | BN76: 0.954 | BO76: 0.21 | BP76: 0.11 | BQ76: 0.1 | BR76: 0 | BS76: =SUMPRODUCT(AU76:AW76,AX76:AZ76) -> 1.35 | BT76: =SUMPRODUCT(BA76:BC76,BD76:BF76) -> 1.064 | BU76: 0.987
A77: 56 | B77: 200.8042016 | C77: 13.97384615 | D77: 17.13773585 | E77: 12.27809524 | F77: 23.44 | G77: 29.3 | H77: 0 | I77: 0.4769230769 | J77: 0.5849056604 | K77: 0.419047619 | L77: 0.8 | M77: 1 | N77: 0 | O77: 0.5066666667 | P77: 0.6071428571 | Q77: 0.968591692 | R77: 0.62 | S77: 0.88 | T77: 1 | U77: 0.8 | V77: 0.1 | W77: 0.1 | X77: 0.62 | Y77: 0.88 | Z77: 1 | AA77: 0.9 | AB77: 0.1 | AC77: 0 | AD77: 0.62 | AE77: 0.88 | AF77: 1 | AG77: 0.1 | AH77: 0.05 | AI77: 0.85 | AJ77: 0.496 | AK77: 0.558 | AL77: 0.088 | AM77: 0.088 | AN77: 0.1 | AO77: 0 | AP77: 0.684 | AQ77: 0.646 | AR77: 0.956 | AU77: 1.3 | AV77: 2.1 | AW77: 1 | AX77: 0.8 | AY77: 0.1 | AZ77: 0.1 | BA77: 1.06 | BB77: 1.1 | BC77: 1 | BD77: 0.9 | BE77: 0.1 | BF77: 0 | BG77: 0.82 | BH77: 1.1 | BI77: 1 | BJ77: 0.1 | BK77: 0.05 | BL77: 0.85 | BM77: 1.04 | BN77: 0.954 | BO77: 0.21 | BP77: 0.11 | BQ77: 0.1 | BR77: 0 | BS77: 1.35 | BT77: 1.064 | BU77: 0.987
A78: 57 | B78: 203.0396996 | C78: 13.97384615 | D78: 17.13773585 | E78: 12.27809524 | F78: 23.44 | G78: 29.3 | H78: 0 | I78: 0.4769230769 | J78: 0.5849056604 | K78: 0.419047619 | L78: 0.8 | M78: 1 | N78: 0 | O78: 0.5066666667 | P78: 0.6071428571 | Q78: 0.968591692 | R78: 0.62 | S78: 0.88 | T78: 1 | U78: 0.8 | V78: 0.1 | W78: 0.1 | X78: 0.62 | Y78: 0.88 | Z78: 1 | AA78: 0.9 | AB78: 0.1 | AC78: 0 | AD78: 0.62 | AE78: 0.88 | AF78: 1 | AG78: 0.1 | AH78: 0.05 | AI78: 0.85 | AJ78: 0.496 | AK78: 0.558 | AL78: 0.088 | AM78: 0.088 | AN78: 0.1 | AO78: 0 | AP78: 0.684 | AQ78: 0.646 | AR78: 0.956 | AU78: 1.3 | AV78: 2.1 | AW78: 1 | AX78: 0.8 | AY78: 0.1 | AZ78: 0.1 | BA78: 1.06 | BB78: 1.1 | BC78: 1 | BD78: 0.9 | BE78: 0.1 | BF78: 0 | BG78: 0.82 | BH78: 1.1 | BI78: 1 | BJ78: 0.1 | BK78: 0.05 | BL78: 0.85 | BM78: 1.04 | BN78: 0.954 | BO78: 0.21 | BP78: 0.11 | BQ78: 0.1 | BR78: 0 | BS78: 1.35 | BT78: 1.064 | BU78: 0.987
A79: 58 | B79: 205.5118016 | C79: 13.97384615 | D79: 17.13773585 | E79: 12.27809524 | F79: 23.44 | G79: 29.3 | H79: 0 | I79: 0.4769230769 | J79: 0.5849056604 | K79: 0.419047619 | L79: 0.8 | M79: 1 | N79: 0 | O79: 0.5066666667 | P79: 0.6071428571 | Q79: 0.968591692 | R79: 0.62 | S79: 0.88 | T79: 1 | U79: 0.8 | V79: 0.1 | W79: 0.1 | X79: 0.62 | Y79: 0.88 | Z79: 1 | AA79: 0.9 | AB79: 0.1 | AC79: 0 | AD79: 0.62 | AE79: 0.88 | AF79: 1 | AG79: 0.1 | AH79: 0.05 | AI79: 0.85 | AJ79: 0.496 | AK79: 0.558 | AL79: 0.088 | AM79: 0.088 | AN79: 0.1 | AO79: 0 | AP79: 0.684 | AQ79: 0.646 | AR79: 0.956 | AU79: 1.3 | AV79: 2.1 | AW79: 1 | AX79: 0.8 | AY79: 0.1 | AZ79: 0.1 | BA79: 1.06 | BB79: 1.1 | BC79: 1 | BD79: 0.9 | BE79: 0.1 | BF79: 0 | BG79: 0.82 | BH79: 1.1 | BI79: 1 | BJ79: 0.1 | BK79: 0.05 | BL79: 0.85 | BM79: 1.04 | BN79: 0.954 | BO79: 0.21 | BP79: 0.11 | BQ79: 0.1 | BR79: 0 | BS79: 1.35 | BT79: 1.064 | BU79: 0.987
A80: 59 | B80: 208.2265556 | C80: 13.97384615 | D80: 17.13773585 | E80: 12.27809524 | F80: 23.44 | G80: 29.3 | H80: 0 | I80: 0.4769230769 | J80: 0.5849056604 | K80: 0.419047619 | L80: 0.8 | M80: 1 | N80: 0 | O80: 0.5066666667 | P80: 0.6071428571 | Q80: 0.968591692 | R80: 0.62 | S80: 0.88 | T80: 1 | U80: 0.8 | V80: 0.1 | W80: 0.1 | X80: 0.62 | Y80: 0.88 | Z80: 1 | AA80: 0.9 | AB80: 0.1 | AC80: 0 | AD80: 0.62 | AE80: 0.88 | AF80: 1 | AG80: 0.1 | AH80: 0.05 | AI80: 0.85 | AJ80: 0.496 | AK80: 0.558 | AL80: 0.088 | AM80: 0.088 | AN80: 0.1 | AO80: 0 | AP80: 0.684 | AQ80: 0.646 | AR80: 0.956 | AU80: 1.3 | AV80: 2.1 | AW80: 1 | AX80: 0.8 | AY80: 0.1 | AZ80: 0.1 | BA80: 1.06 | BB80: 1.1 | BC80: 1 | BD80: 0.9 | BE80: 0.1 | BF80: 0 | BG80: 0.82 | BH80: 1.1 | BI80: 1 | BJ80: 0.1 | BK80: 0.05 | BL80: 0.85 | BM80: 1.04 | BN80: 0.954 | BO80: 0.21 | BP80: 0.11 | BQ80: 0.1 | BR80: 0 | BS80: 1.35 | BT80: 1.064 | BU80: 0.987
A81: 60 | B81: 211.19 | C81: 13.97384615 | D81: 17.13773585 | E81: 12.27809524 | F81: 23.44 | G81: 29.3 | H81: 0 | I81: 0.4769230769 | J81: 0.5849056604 | K81: 0.419047619 | L81: 0.8 | M81: 1 | N81: 0 | O81: 0.5066666667 | P81: 0.6071428571 | Q81: 0.968591692 | R81: 0.62 | S81: 0.88 | T81: 1 | U81: 0.8 | V81: 0.1 | W81: 0.1 | X81: 0.62 | Y81: 0.88 | Z81: 1 | AA81: 0.9 | AB81: 0.1 | AC81: 0 | AD81: 0.62 | AE81: 0.88 | AF81: 1 | AG81: 0.1 | AH81: 0.05 | AI81: 0.85 | AJ81: 0.496 | AK81: 0.558 | AL81: 0.088 | AM81: 0.088 | AN81: 0.1 | AO81: 0 | AP81: 0.684 | AQ81: 0.646 | AR81: 0.956 | AU81: 1.3 | AV81: 2.1 | AW81: 1 | AX81: 0.8 | AY81: 0.1 | AZ81: 0.1 | BA81: 1.06 | BB81: 1.1 | BC81: 1 | BD81: 0.9 | BE81: 0.1 | BF81: 0 | BG81: 0.82 | BH81: 1.1 | BI81: 1 | BJ81: 0.1 | BK81: 0.05 | BL81: 0.85 | BM81: 1.04 | BN81: 0.954 | BO81: 0.21 | BP81: 0.11 | BQ81: 0.1 | BR81: 0 | BS81: 1.35 | BT81: 1.064 | BU81: 0.987
A82: 61 | B82: 214.4081636 | C82: 13.97384615 | D82: 17.13773585 | E82: 12.27809524 | F82: 23.44 | G82: 29.3 | H82: 0 | I82: 0.4769230769 | J82: 0.5849056604 | K82: 0.419047619 | L82: 0.8 | M82: 1 | N82: 0 | O82: 0.5066666667 | P82: 0.6071428571 | Q82: 0.968591692 | R82: 0.62 | S82: 0.88 | T82: 1 | U82: 0.8 | V82: 0.1 | W82: 0.1 | X82: 0.62 | Y82: 0.88 | Z82: 1 | AA82: 0.9 | AB82: 0.1 | AC82: 0 | AD82: 0.62 | AE82: 0.88 | AF82: 1 | AG82: 0.1 | AH82: 0.05 | AI82: 0.85 | AJ82: 0.496 | AK82: 0.558 | AL82: 0.088 | AM82: 0.088 | AN82: 0.1 | AO82: 0 | AP82: 0.684 | AQ82: 0.646 | AR82: 0.956 | AU82: 1.3 | AV82: 2.1 | AW82: 1 | AX82: 0.8 | AY82: 0.1 | AZ82: 0.1 | BA82: 1.06 | BB82: 1.1 | BC82: 1 | BD82: 0.9 | BE82: 0.1 | BF82: 0 | BG82: 0.82 | BH82: 1.1 | BI82: 1 | BJ82: 0.1 | BK82: 0.05 | BL82: 0.85 | BM82: 1.04 | BN82: 0.954 | BO82: 0.21 | BP82: 0.11 | BQ82: 0.1 | BR82: 0 | BS82: 1.35 | BT82: 1.064 | BU82: 0.987
A83: 62 | B83: 217.8870656 | C83: 13.97384615 | D83: 17.13773585 | E83: 12.27809524 | F83: 23.44 | G83: 29.3 | H83: 0 | I83: 0.4769230769 | J83: 0.5849056604 | K83: 0.419047619 | L83: 0.8 | M83: 1 | N83: 0 | O83: 0.5066666667 | P83: 0.6071428571 | Q83: 0.968591692 | R83: 0.62 | S83: 0.88 | T83: 1 | U83: 0.8 | V83: 0.1 | W83: 0.1 | X83: 0.62 | Y83: 0.88 | Z83: 1 | AA83: 0.9 | AB83: 0.1 | AC83: 0 | AD83: 0.62 | AE83: 0.88 | AF83: 1 | AG83: 0.1 | AH83: 0.05 | AI83: 0.85 | AJ83: 0.496 | AK83: 0.558 | AL83: 0.088 | AM83: 0.088 | AN83: 0.1 | AO83: 0 | AP83: 0.684 | AQ83: 0.646 | AR83: 0.956 | AU83: 1.3 | AV83: 2.1 | AW83: 1 | AX83: 0.8 | AY83: 0.1 | AZ83: 0.1 | BA83: 1.06 | BB83: 1.1 | BC83: 1 | BD83: 0.9 | BE83: 0.1 | BF83: 0 | BG83: 0.82 | BH83: 1.1 | BI83: 1 | BJ83: 0.1 | BK83: 0.05 | BL83: 0.85 | BM83: 1.04 | BN83: 0.954 | BO83: 0.21 | BP83: 0.11 | BQ83: 0.1 | BR83: 0 | BS83: 1.35 | BT83: 1.064 | BU83: 0.987
A84: 63 | B84: 221.6327156 | C84: 13.97384615 | D84: 17.13773585 | E84: 12.27809524 | F84: 23.44 | G84: 29.3 | H84: 0 | I84: 0.4769230769 | J84: 0.5849056604 | K84: 0.419047619 | L84: 0.8 | M84: 1 | N84: 0 | O84: 0.5066666667 | P84: 0.6071428571 | Q84: 0.968591692 | R84: 0.62 | S84: 0.88 | T84: 1 | U84: 0.8 | V84: 0.1 | W84: 0.1 | X84: 0.62 | Y84: 0.88 | Z84: 1 | AA84: 0.9 | AB84: 0.1 | AC84: 0 | AD84: 0.62 | AE84: 0.88 | AF84: 1 | AG84: 0.1 | AH84: 0.05 | AI84: 0.85 | AJ84: 0.496 | AK84: 0.558 | AL84: 0.088 | AM84: 0.088 | AN84: 0.1 | AO84: 0 | AP84: 0.684 | AQ84: 0.646 | AR84: 0.956 | AU84: 1.3 | AV84: 2.1 | AW84: 1 | AX84: 0.8 | AY84: 0.1 | AZ84: 0.1 | BA84: 1.06 | BB84: 1.1 | BC84: 1 | BD84: 0.9 | BE84: 0.1 | BF84: 0 | BG84: 0.82 | BH84: 1.1 | BI84: 1 | BJ84: 0.1 | BK84: 0.05 | BL84: 0.85 | BM84: 1.04 | BN84: 0.954 | BO84: 0.21 | BP84: 0.11 | BQ84: 0.1 | BR84: 0 | BS84: 1.35 | BT84: 1.064 | BU84: 0.987
A85: 64 | B85: 225.6511136 | C85: 16.59394231 | D85: 19.04192872 | E85: 0 | F85: 0 | G85: 14.65 | H85: 0 | I85: 0.5663461538 | J85: 0.6498951782 | K85: 0 | L85: 0 | M85: 0.5 | N85: 0 | O85: 0.4733333333 | P85: 0.5827067669 | Q85: 0.9746707194 | R85: 0.62 | S85: 0.88 | T85: 1 | U85: 0.95 | V85: 0 | W85: 0.05 | X85: 0.62 | Y85: 0.88 | Z85: 1 | AA85: 1 | AB85: 0 | AC85: 0 | AD85: 0.62 | AE85: 0.88 | AF85: 1 | AG85: 0.1 | AH85: 0 | AI85: 0.9 | AJ85: 0.589 | AK85: 0.62 | AL85: 0 | AM85: 0 | AN85: 0.05 | AO85: 0 | AP85: 0.639 | AQ85: 0.62 | AR85: 0.962 | AU85: 1.3 | AV85: 2.1 | AW85: 1 | AX85: 0.8 | AY85: 0.1 | AZ85: 0.1 | BA85: 1.06 | BB85: 1.1 | BC85: 1 | BD85: 0.9 | BE85: 0.1 | BF85: 0 | BG85: 0.82 | BH85: 1.1 | BI85: 1 | BJ85: 0.1 | BK85: 0.05 | BL85: 0.85 | BM85: 1.04 | BN85: 0.954 | BO85: 0.21 | BP85: 0.11 | BQ85: 0.1 | BR85: 0 | BS85: 1.35 | BT85: 1.064 | BU85: 0.987
A86: 65 | B86: 229.94825 | C86: 13.6965873 | D86: 16.51454545 | E86: 0 | F86: 0 | G86: 14.65 | H86: 0 | I86: 0.4674603175 | J86: 0.5636363636 | K86: 0 | L86: 0 | M86: 0.5 | N86: 0 | O86: 0.4698529412 | P86: 0.5636363636 | Q86: 0.9796334012 | R86: =R85 -> 0.62 | S86: =S85 -> 0.88 | T86: 1 | U86: 0.95 | V86: 0 | W86: 0.05 | X86: 0.62 | Y86: 0.88 | Z86: 1 | AA86: 1 | AB86: 0 | AC86: 0 | AD86: 0.62 | AE86: 0.88 | AF86: 1 | AG86: 0.1 | AH86: 0 | AI86: =AI85 -> 0.9 | AJ86: 0.589 | AK86: 0.62 | AL86: =S86*V86 -> 0 | AM86: 0 | AN86: 0.05 | AO86: 0 | AP86: 0.639 | AQ86: 0.62 | AR86: 0.962 | AU86: 1.4 | AV86: 2.1 | AW86: 1 | AX86: 0.9 | AY86: 0 | AZ86: 0.1 | BA86: 1.1 | BB86: 1.1 | BC86: 1 | BD86: 1 | BE86: 0 | BF86: 0 | BG86: 0.82 | BH86: 1.1 | BI86: 1 | BJ86: 0.1 | BK86: 0 | BL86: 0.9 | BM86: 1.26 | BN86: 1.1 | BO86: 0 | BP86: 0 | BQ86: 0.1 | BR86: 0 | BS86: =SUMPRODUCT(AU86:AW86,AX86:AZ86) -> 1.36 | BT86: =SUMPRODUCT(BA86:BC86,BD86:BF86) -> 1.1 | BU86: =SUMPRODUCT(BG86:BI86,BJ86:BL86) -> 0.982
A87: 66 | B87: 234.5301056 | C87: 13.6965873 | D87: 16.51454545 | E87: 0 | F87: 0 | G87: 14.65 | H87: 0 | I87: 0.4674603175 | J87: 0.5636363636 | K87: 0 | L87: 0 | M87: 0.5 | N87: 0 | O87: 0.4698529412 | P87: 0.5636363636 | Q87: 0.9796334012 | R87: 0.62 | S87: 0.88 | T87: 1 | U87: 0.95 | V87: 0 | W87: 0.05 | X87: 0.62 | Y87: 0.88 | Z87: 1 | AA87: 1 | AB87: 0 | AC87: 0 | AD87: 0.62 | AE87: 0.88 | AF87: 1 | AG87: 0.1 | AH87: 0 | AI87: 0.9 | AJ87: 0.589 | AK87: 0.62 | AL87: 0 | AM87: 0 | AN87: 0.05 | AO87: 0 | AP87: 0.639 | AQ87: 0.62 | AR87: 0.962 | AU87: =AU86 -> 1.4 | AV87: 2.1 | AW87: =AW86 -> 1 | AX87: 0.9 | AY87: 0 | AZ87: 0.1 | BA87: 1.1 | BB87: 1.1 | BC87: 1 | BD87: 1 | BE87: 0 | BF87: 0 | BG87: 0.82 | BH87: 1.1 | BI87: 1 | BJ87: 0.1 | BK87: 0 | BL87: 0.9 | BM87: 1.26 | BN87: 1.1 | BO87: 0 | BP87: 0 | BQ87: 0.1 | BR87: 0 | BS87: =SUMPRODUCT(AU87:AW87,AX87:AZ87) -> 1.36 | BT87: =SUMPRODUCT(BA87:BC87,BD87:BF87) -> 1.1 | BU87: =SUMPRODUCT(BG87:BI87,BJ87:BL87) -> 0.982
A88: 67 | B88: 239.4026516 | C88: 13.6965873 | D88: 16.51454545 | E88: 0 | F88: 0 | G88: 14.65 | H88: 0 | I88: 0.4674603175 | J88: 0.5636363636 | K88: 0 | L88: 0 | M88: 0.5 | N88: 0 | O88: 0.4698529412 | P88: 0.5636363636 | Q88: 0.9796334012 | R88: 0.62 | S88: 0.88 | T88: 1 | U88: 0.95 | V88: 0 | W88: 0.05 | X88: 0.62 | Y88: 0.88 | Z88: 1 | AA88: 1 | AB88: 0 | AC88: 0 | AD88: 0.62 | AE88: 0.88 | AF88: 1 | AG88: 0.1 | AH88: 0 | AI88: 0.9 | AJ88: 0.589 | AK88: 0.62 | AL88: 0 | AM88: 0 | AN88: 0.05 | AO88: 0 | AP88: 0.639 | AQ88: 0.62 | AR88: 0.962 | AU88: 1.4 | AV88: 2.1 | AW88: 1 | AX88: 0.9 | AY88: 0 | AZ88: 0.1 | BA88: 1.1 | BB88: 1.1 | BC88: 1 | BD88: 1 | BE88: 0 | BF88: 0 | BG88: 0.82 | BH88: 1.1 | BI88: 1 | BJ88: 0.1 | BK88: 0 | BL88: 0.9 | BM88: 1.26 | BN88: 1.1 | BO88: 0 | BP88: 0 | BQ88: 0.1 | BR88: 0 | BS88: 1.36 | BT88: 1.1 | BU88: 0.982
A89: 68 | B89: 244.5718496 | C89: 13.6965873 | D89: 16.51454545 | E89: 0 | F89: 0 | G89: 14.65 | H89: 0 | I89: 0.4674603175 | J89: 0.5636363636 | K89: 0 | L89: 0 | M89: 0.5 | N89: 0 | O89: 0.4698529412 | P89: 0.5636363636 | Q89: 0.9796334012 | R89: 0.62 | S89: 0.88 | T89: 1 | U89: 0.95 | V89: 0 | W89: 0.05 | X89: 0.62 | Y89: 0.88 | Z89: 1 | AA89: 1 | AB89: 0 | AC89: 0 | AD89: 0.62 | AE89: 0.88 | AF89: 1 | AG89: 0.1 | AH89: 0 | AI89: 0.9 | AJ89: 0.589 | AK89: 0.62 | AL89: 0 | AM89: 0 | AN89: 0.05 | AO89: 0 | AP89: 0.639 | AQ89: 0.62 | AR89: 0.962 | AU89: 1.4 | AV89: 2.1 | AW89: 1 | AX89: 0.9 | AY89: 0 | AZ89: 0.1 | BA89: 1.1 | BB89: 1.1 | BC89: 1 | BD89: 1 | BE89: 0 | BF89: 0 | BG89: 0.82 | BH89: 1.1 | BI89: 1 | BJ89: 0.1 | BK89: 0 | BL89: 0.9 | BM89: 1.26 | BN89: 1.1 | BO89: 0 | BP89: 0 | BQ89: 0.1 | BR89: 0 | BS89: 1.36 | BT89: 1.1 | BU89: 0.982
A90: 69 | B90: 250.0436516 | C90: 13.6965873 | D90: 16.51454545 | E90: 0 | F90: 0 | G90: 14.65 | H90: 0 | I90: 0.4674603175 | J90: 0.5636363636 | K90: 0 | L90: 0 | M90: 0.5 | N90: 0 | O90: 0.4698529412 | P90: 0.5636363636 | Q90: 0.9796334012 | R90: 0.62 | S90: 0.88 | T90: 1 | U90: 0.95 | V90: 0 | W90: 0.05 | X90: 0.62 | Y90: 0.88 | Z90: 1 | AA90: 1 | AB90: 0 | AC90: 0 | AD90: 0.62 | AE90: 0.88 | AF90: 1 | AG90: 0.1 | AH90: 0 | AI90: 0.9 | AJ90: 0.589 | AK90: 0.62 | AL90: 0 | AM90: 0 | AN90: 0.05 | AO90: 0 | AP90: 0.639 | AQ90: 0.62 | AR90: 0.962 | AU90: 1.4 | AV90: 2.1 | AW90: 1 | AX90: 0.9 | AY90: 0 | AZ90: 0.1 | BA90: 1.1 | BB90: 1.1 | BC90: 1 | BD90: 1 | BE90: 0 | BF90: 0 | BG90: 0.82 | BH90: 1.1 | BI90: 1 | BJ90: 0.1 | BK90: 0 | BL90: 0.9 | BM90: 1.26 | BN90: 1.1 | BO90: 0 | BP90: 0 | BQ90: 0.1 | BR90: 0 | BS90: 1.36 | BT90: 1.1 | BU90: 0.982
A91: 70 | B91: 255.824 | C91: 13.6965873 | D91: 16.51454545 | E91: 0 | F91: 0 | G91: 14.65 | H91: 0 | I91: 0.4674603175 | J91: 0.5636363636 | K91: 0 | L91: 0 | M91: 0.5 | N91: 0 | O91: 0.4698529412 | P91: 0.5636363636 | Q91: 0.9796334012 | R91: 0.62 | S91: 0.88 | T91: 1 | U91: 0.95 | V91: 0 | W91: 0.05 | X91: 0.62 | Y91: 0.88 | Z91: 1 | AA91: 1 | AB91: 0 | AC91: 0 | AD91: 0.62 | AE91: 0.88 | AF91: 1 | AG91: 0.1 | AH91: 0 | AI91: 0.9 | AJ91: 0.589 | AK91: 0.62 | AL91: 0 | AM91: 0 | AN91: 0.05 | AO91: 0 | AP91: 0.639 | AQ91: 0.62 | AR91: 0.962 | AU91: 1.4 | AV91: 2.1 | AW91: 1 | AX91: 0.9 | AY91: 0 | AZ91: 0.1 | BA91: 1.1 | BB91: 1.1 | BC91: 1 | BD91: 1 | BE91: 0 | BF91: 0 | BG91: 0.82 | BH91: 1.1 | BI91: 1 | BJ91: 0.1 | BK91: 0 | BL91: 0.9 | BM91: 1.26 | BN91: 1.1 | BO91: 0 | BP91: 0 | BQ91: 0.1 | BR91: 0 | BS91: 1.36 | BT91: 1.1 | BU91: 0.982
A92: 71 | B92: 261.9188276 | C92: 13.6965873 | D92: 16.51454545 | E92: 0 | F92: 0 | G92: 14.65 | H92: 0 | I92: 0.4674603175 | J92: 0.5636363636 | K92: 0 | L92: 0 | M92: 0.5 | N92: 0 | O92: 0.4698529412 | P92: 0.5636363636 | Q92: 0.9796334012 | R92: 0.62 | S92: 0.88 | T92: 1 | U92: 0.95 | V92: 0 | W92: 0.05 | X92: 0.62 | Y92: 0.88 | Z92: 1 | AA92: 1 | AB92: 0 | AC92: 0 | AD92: 0.62 | AE92: 0.88 | AF92: 1 | AG92: 0.1 | AH92: 0 | AI92: 0.9 | AJ92: 0.589 | AK92: 0.62 | AL92: 0 | AM92: 0 | AN92: 0.05 | AO92: 0 | AP92: 0.639 | AQ92: 0.62 | AR92: 0.962 | AU92: 1.4 | AV92: 2.1 | AW92: 1 | AX92: 0.9 | AY92: 0 | AZ92: 0.1 | BA92: 1.1 | BB92: 1.1 | BC92: 1 | BD92: 1 | BE92: 0 | BF92: 0 | BG92: 0.82 | BH92: 1.1 | BI92: 1 | BJ92: 0.1 | BK92: 0 | BL92: 0.9 | BM92: 1.26 | BN92: 1.1 | BO92: 0 | BP92: 0 | BQ92: 0.1 | BR92: 0 | BS92: 1.36 | BT92: 1.1 | BU92: 0.982
A93: 72 | B93: 268.3340576 | C93: 13.6965873 | D93: 16.51454545 | E93: 0 | F93: 0 | G93: 14.65 | H93: 0 | I93: 0.4674603175 | J93: 0.5636363636 | K93: 0 | L93: 0 | M93: 0.5 | N93: 0 | O93: 0.4698529412 | P93: 0.5636363636 | Q93: 0.9796334012 | R93: 0.62 | S93: 0.88 | T93: 1 | U93: 0.95 | V93: 0 | W93: 0.05 | X93: 0.62 | Y93: 0.88 | Z93: 1 | AA93: 1 | AB93: 0 | AC93: 0 | AD93: 0.62 | AE93: 0.88 | AF93: 1 | AG93: 0.1 | AH93: 0 | AI93: 0.9 | AJ93: 0.589 | AK93: 0.62 | AL93: 0 | AM93: 0 | AN93: 0.05 | AO93: 0 | AP93: 0.639 | AQ93: 0.62 | AR93: 0.962 | AU93: 1.4 | AV93: 2.1 | AW93: 1 | AX93: 0.9 | AY93: 0 | AZ93: 0.1 | BA93: 1.1 | BB93: 1.1 | BC93: 1 | BD93: 1 | BE93: 0 | BF93: 0 | BG93: 0.82 | BH93: 1.1 | BI93: 1 | BJ93: 0.1 | BK93: 0 | BL93: 0.9 | BM93: 1.26 | BN93: 1.1 | BO93: 0 | BP93: 0 | BQ93: 0.1 | BR93: 0 | BS93: 1.36 | BT93: 1.1 | BU93: 0.982
A94: 73 | B94: 275.0756036 | C94: 13.6965873 | D94: 16.51454545 | E94: 0 | F94: 0 | G94: 14.65 | H94: 0 | I94: 0.4674603175 | J94: 0.5636363636 | K94: 0 | L94: 0 | M94: 0.5 | N94: 0 | O94: 0.4698529412 | P94: 0.5636363636 | Q94: 0.9796334012 | R94: 0.62 | S94: 0.88 | T94: 1 | U94: 0.95 | V94: 0 | W94: 0.05 | X94: 0.62 | Y94: 0.88 | Z94: 1 | AA94: 1 | AB94: 0 | AC94: 0 | AD94: 0.62 | AE94: 0.88 | AF94: 1 | AG94: 0.1 | AH94: 0 | AI94: 0.9 | AJ94: 0.589 | AK94: 0.62 | AL94: 0 | AM94: 0 | AN94: 0.05 | AO94: 0 | AP94: 0.639 | AQ94: 0.62 | AR94: 0.962 | AU94: 1.4 | AV94: 2.1 | AW94: 1 | AX94: 0.9 | AY94: 0 | AZ94: 0.1 | BA94: 1.1 | BB94: 1.1 | BC94: 1 | BD94: 1 | BE94: 0 | BF94: 0 | BG94: 0.82 | BH94: 1.1 | BI94: 1 | BJ94: 0.1 | BK94: 0 | BL94: 0.9 | BM94: 1.26 | BN94: 1.1 | BO94: 0 | BP94: 0 | BQ94: 0.1 | BR94: 0 | BS94: 1.36 | BT94: 1.1 | BU94: 0.982
A95: 74 | B95: 282.1493696 | C95: 13.6965873 | D95: 16.51454545 | E95: 0 | F95: 0 | G95: 14.65 | H95: 0 | I95: 0.4674603175 | J95: 0.5636363636 | K95: 0 | L95: 0 | M95: 0.5 | N95: 0 | O95: 0.4698529412 | P95: 0.5636363636 | Q95: 0.9796334012 | R95: 0.62 | S95: 0.88 | T95: 1 | U95: 0.95 | V95: 0 | W95: 0.05 | X95: 0.62 | Y95: 0.88 | Z95: 1 | AA95: 1 | AB95: 0 | AC95: 0 | AD95: 0.62 | AE95: 0.88 | AF95: 1 | AG95: 0.1 | AH95: 0 | AI95: 0.9 | AJ95: 0.589 | AK95: 0.62 | AL95: 0 | AM95: 0 | AN95: 0.05 | AO95: 0 | AP95: 0.639 | AQ95: 0.62 | AR95: 0.962 | AU95: 1.4 | AV95: 2.1 | AW95: 1 | AX95: 0.9 | AY95: 0 | AZ95: 0.1 | BA95: 1.1 | BB95: 1.1 | BC95: 1 | BD95: 1 | BE95: 0 | BF95: 0 | BG95: 0.82 | BH95: 1.1 | BI95: 1 | BJ95: 0.1 | BK95: 0 | BL95: 0.9 | BM95: 1.26 | BN95: 1.1 | BO95: 0 | BP95: 0 | BQ95: 0.1 | BR95: 0 | BS95: 1.36 | BT95: 1.1 | BU95: 0.982
A96: 75 | B96: 289.56125 | C96: 13.6965873 | D96: 16.51454545 | E96: 0 | F96: 0 | G96: 14.65 | H96: 0 | I96: 0.4674603175 | J96: 0.5636363636 | K96: 0 | L96: 0 | M96: 0.5 | N96: 0 | O96: 0.4698529412 | P96: 0.5636363636 | Q96: 0.9796334012 | R96: 0.62 | S96: 0.88 | T96: 1 | U96: 0.95 | V96: 0 | W96: 0.05 | X96: 0.62 | Y96: 0.88 | Z96: 1 | AA96: 1 | AB96: 0 | AC96: 0 | AD96: 0.62 | AE96: 0.88 | AF96: 1 | AG96: 0.1 | AH96: 0 | AI96: 0.9 | AJ96: 0.589 | AK96: 0.62 | AL96: 0 | AM96: 0 | AN96: 0.05 | AO96: 0 | AP96: 0.639 | AQ96: 0.62 | AR96: 0.962 | AU96: 1.4 | AV96: 2.1 | AW96: 1 | AX96: 0.9 | AY96: 0 | AZ96: 0.1 | BA96: 1.1 | BB96: 1.1 | BC96: 1 | BD96: 1 | BE96: 0 | BF96: 0 | BG96: 0.82 | BH96: 1.1 | BI96: 1 | BJ96: 0.1 | BK96: 0 | BL96: 0.9 | BM96: 1.26 | BN96: 1.1 | BO96: 0 | BP96: 0 | BQ96: 0.1 | BR96: 0 | BS96: 1.36 | BT96: 1.1 | BU96: 0.982
A97: 76 | B97: 297.3171296 | C97: 13.6965873 | D97: 16.51454545 | E97: 0 | F97: 0 | G97: 14.65 | H97: 0 | I97: 0.4674603175 | J97: 0.5636363636 | K97: 0 | L97: 0 | M97: 0.5 | N97: 0 | O97: 0.4698529412 | P97: 0.5636363636 | Q97: 0.9796334012 | R97: 0.62 | S97: 0.88 | T97: 1 | U97: 0.95 | V97: 0 | W97: 0.05 | X97: 0.62 | Y97: 0.88 | Z97: 1 | AA97: 1 | AB97: 0 | AC97: 0 | AD97: 0.62 | AE97: 0.88 | AF97: 1 | AG97: 0.1 | AH97: 0 | AI97: 0.9 | AJ97: 0.589 | AK97: 0.62 | AL97: 0 | AM97: 0 | AN97: 0.05 | AO97: 0 | AP97: 0.639 | AQ97: 0.62 | AR97: 0.962 | AU97: 1.4 | AV97: 2.1 | AW97: 1 | AX97: 0.9 | AY97: 0 | AZ97: 0.1 | BA97: 1.1 | BB97: 1.1 | BC97: 1 | BD97: 1 | BE97: 0 | BF97: 0 | BG97: 0.82 | BH97: 1.1 | BI97: 1 | BJ97: 0.1 | BK97: 0 | BL97: 0.9 | BM97: 1.26 | BN97: 1.1 | BO97: 0 | BP97: 0 | BQ97: 0.1 | BR97: 0 | BS97: 1.36 | BT97: 1.1 | BU97: 0.982
A98: 77 | B98: 305.4228836 | C98: 13.6965873 | D98: 16.51454545 | E98: 0 | F98: 0 | G98: 14.65 | H98: 0 | I98: 0.4674603175 | J98: 0.5636363636 | K98: 0 | L98: 0 | M98: 0.5 | N98: 0 | O98: 0.4698529412 | P98: 0.5636363636 | Q98: 0.9796334012 | R98: 0.62 | S98: 0.88 | T98: 1 | U98: 0.95 | V98: 0 | W98: 0.05 | X98: 0.62 | Y98: 0.88 | Z98: 1 | AA98: 1 | AB98: 0 | AC98: 0 | AD98: 0.62 | AE98: 0.88 | AF98: 1 | AG98: 0.1 | AH98: 0 | AI98: 0.9 | AJ98: 0.589 | AK98: 0.62 | AL98: 0 | AM98: 0 | AN98: 0.05 | AO98: 0 | AP98: 0.639 | AQ98: 0.62 | AR98: 0.962 | AU98: 1.4 | AV98: 2.1 | AW98: 1 | AX98: 0.9 | AY98: 0 | AZ98: 0.1 | BA98: 1.1 | BB98: 1.1 | BC98: 1 | BD98: 1 | BE98: 0 | BF98: 0 | BG98: 0.82 | BH98: 1.1 | BI98: 1 | BJ98: 0.1 | BK98: 0 | BL98: 0.9 | BM98: 1.26 | BN98: 1.1 | BO98: 0 | BP98: 0 | BQ98: 0.1 | BR98: 0 | BS98: 1.36 | BT98: 1.1 | BU98: 0.982
A99: 78 | B99: 313.8843776 | C99: 13.6965873 | D99: 16.51454545 | E99: 0 | F99: 0 | G99: 14.65 | H99: 0 | I99: 0.4674603175 | J99: 0.5636363636 | K99: 0 | L99: 0 | M99: 0.5 | N99: 0 | O99: 0.4698529412 | P99: 0.5636363636 | Q99: 0.9796334012 | R99: 0.62 | S99: 0.88 | T99: 1 | U99: 0.95 | V99: 0 | W99: 0.05 | X99: 0.62 | Y99: 0.88 | Z99: 1 | AA99: 1 | AB99: 0 | AC99: 0 | AD99: 0.62 | AE99: 0.88 | AF99: 1 | AG99: 0.1 | AH99: 0 | AI99: 0.9 | AJ99: 0.589 | AK99: 0.62 | AL99: 0 | AM99: 0 | AN99: 0.05 | AO99: 0 | AP99: 0.639 | AQ99: 0.62 | AR99: 0.962 | AU99: 1.4 | AV99: 2.1 | AW99: 1 | AX99: 0.9 | AY99: 0 | AZ99: 0.1 | BA99: 1.1 | BB99: 1.1 | BC99: 1 | BD99: 1 | BE99: 0 | BF99: 0 | BG99: 0.82 | BH99: 1.1 | BI99: 1 | BJ99: 0.1 | BK99: 0 | BL99: 0.9 | BM99: 1.26 | BN99: 1.1 | BO99: 0 | BP99: 0 | BQ99: 0.1 | BR99: 0 | BS99: 1.36 | BT99: 1.1 | BU99: 0.982
A100: 79 | B100: 322.7074676 | C100: 13.6965873 | D100: 16.51454545 | E100: 0 | F100: 0 | G100: 14.65 | H100: 0 | I100: 0.4674603175 | J100: 0.5636363636 | K100: 0 | L100: 0 | M100: 0.5 | N100: 0 | O100: 0.4698529412 | P100: 0.5636363636 | Q100: 0.9796334012 | R100: 0.62 | S100: 0.88 | T100: 1 | U100: 0.95 | V100: 0 | W100: 0.05 | X100: 0.62 | Y100: 0.88 | Z100: 1 | AA100: 1 | AB100: 0 | AC100: 0 | AD100: 0.62 | AE100: 0.88 | AF100: 1 | AG100: 0.1 | AH100: 0 | AI100: 0.9 | AJ100: 0.589 | AK100: 0.62 | AL100: 0 | AM100: 0 | AN100: 0.05 | AO100: 0 | AP100: 0.639 | AQ100: 0.62 | AR100: 0.962 | AU100: 1.4 | AV100: 2.1 | AW100: 1 | AX100: 0.9 | AY100: 0 | AZ100: 0.1 | BA100: 1.1 | BB100: 1.1 | BC100: 1 | BD100: 1 | BE100: 0 | BF100: 0 | BG100: 0.82 | BH100: 1.1 | BI100: 1 | BJ100: 0.1 | BK100: 0 | BL100: 0.9 | BM100: 1.26 | BN100: 1.1 | BO100: 0 | BP100: 0 | BQ100: 0.1 | BR100: 0 | BS100: 1.36 | BT100: 1.1 | BU100: 0.982
A101: 80 | B101: 331.898 | C101: 13.6965873 | D101: 16.51454545 | E101: 0 | F101: 0 | G101: 14.65 | H101: 0 | I101: 0.4674603175 | J101: 0.5636363636 | K101: 0 | L101: 0 | M101: 0.5 | N101: 0 | O101: 0.4698529412 | P101: 0.5636363636 | Q101: 0.9796334012 | R101: 0.62 | S101: =S100 -> 0.88 | T101: 1 | U101: 0.95 | V101: 0 | W101: 0.05 | X101: 0.62 | Y101: 0.88 | Z101: 1 | AA101: 1 | AB101: 0 | AC101: 0 | AD101: 0.62 | AE101: 0.88 | AF101: 1 | AG101: 0.1 | AH101: 0 | AI101: 0.9 | AJ101: 0.589 | AK101: 0.62 | AL101: 0 | AM101: 0 | AN101: 0.05 | AO101: 0 | AP101: 0.639 | AQ101: 0.62 | AR101: 0.962 | AU101: 1.4 | AV101: 2.1 | AW101: 1 | AX101: 0.9 | AY101: 0 | AZ101: 0.1 | BA101: 1.1 | BB101: 1.1 | BC101: 1 | BD101: 1 | BE101: 0 | BF101: 0 | BG101: 0.82 | BH101: 1.1 | BI101: 1 | BJ101: 0.1 | BK101: 0 | BL101: 0.9 | BM101: 1.26 | BN101: 1.1 | BO101: 0 | BP101: 0 | BQ101: 0.1 | BR101: 0 | BS101: 1.36 | BT101: 1.1 | BU101: 0.982
A102: 81 | B102: 341.4618116 | C102: 13.6965873 | D102: 16.51454545 | E102: 0 | F102: 0 | G102: 14.65 | H102: 0 | I102: 0.4674603175 | J102: 0.5636363636 | K102: 0 | L102: 0 | M102: 0.5 | N102: 0 | O102: =AP102/BS102 -> 0.4698529412 | P102: =AQ102/BT102 -> 0.5636363636 | Q102: =AR102/BU102 -> 0.9796334012 | R102: 0.62 | S102: 0.88 | T102: 1 | U102: 0.95 | V102: 0 | W102: 0.05 | X102: 0.62 | Y102: 0.88 | Z102: 1 | AA102: 1 | AB102: 0 | AC102: 0 | AD102: 0.62 | AE102: 0.88 | AF102: 1 | AG102: 0.1 | AH102: =AH101 -> 0 | AI102: 0.9 | AJ102: 0.589 | AK102: 0.62 | AL102: 0 | AM102: 0 | AN102: 0.05 | AO102: 0 | AP102: 0.639 | AQ102: 0.62 | AR102: 0.962 | AU102: 1.4 | AV102: 2.1 | AW102: =AW101 -> 1 | AX102: 0.9 | AY102: 0 | AZ102: 0.1 | BA102: 1.1 | BB102: =BB101 -> 1.1 | BC102: 1 | BD102: 1 | BE102: 0 | BF102: 0 | BG102: 0.82 | BH102: 1.1 | BI102: 1 | BJ102: 0.1 | BK102: 0 | BL102: 0.9 | BM102: 1.26 | BN102: 1.1 | BO102: 0 | BP102: 0 | BQ102: 0.1 | BR102: 0 | BS102: 1.36 | BT102: 1.1 | BU102: 0.982
A103: 82 | B103: 351.4047296 | C103: 13.6965873 | D103: 16.51454545 | E103: 0 | F103: 0 | G103: 14.65 | H103: 0 | I103: 0.4674603175 | J103: 0.5636363636 | K103: 0 | L103: 0 | M103: =AN103/BQ103 -> 0.5 | N103: =IFERROR(AO103/BR103,0) -> 0 | O103: 0.4698529412 | P103: 0.5636363636 | Q103: 0.9796334012 | R103: =R102 -> 0.62 | S103: 0.88 | T103: 1 | U103: 0.95 | V103: 0 | W103: 0.05 | X103: 0.62 | Y103: 0.88 | Z103: 1 | AA103: 1 | AB103: 0 | AC103: 0 | AD103: 0.62 | AE103: 0.88 | AF103: 1 | AG103: 0.1 | AH103: 0 | AI103: 0.9 | AJ103: 0.589 | AK103: 0.62 | AL103: 0 | AM103: 0 | AN103: 0.05 | AO103: 0 | AP103: 0.639 | AQ103: 0.62 | AR103: 0.962 | AU103: 1.4 | AV103: 2.1 | AW103: 1 | AX103: 0.9 | AY103: 0 | AZ103: 0.1 | BA103: 1.1 | BB103: 1.1 | BC103: 1 | BD103: 1 | BE103: 0 | BF103: 0 | BG103: 0.82 | BH103: 1.1 | BI103: 1 | BJ103: 0.1 | BK103: =BK102 -> 0 | BL103: 0.9 | BM103: 1.26 | BN103: 1.1 | BO103: 0 | BP103: 0 | BQ103: 0.1 | BR103: 0 | BS103: 1.36 | BT103: 1.1 | BU103: 0.982
A104: 83 | B104: 361.7325716 | C104: 13.6965873 | D104: 16.51454545 | E104: 0 | F104: 0 | G104: 14.65 | H104: 0 | I104: 0.4674603175 | J104: 0.5636363636 | K104: 0 | L104: 0 | M104: 0.5 | N104: 0 | O104: 0.4698529412 | P104: 0.5636363636 | Q104: 0.9796334012 | R104: 0.62 | S104: 0.88 | T104: 1 | U104: 0.95 | V104: 0 | W104: 0.05 | X104: 0.62 | Y104: 0.88 | Z104: 1 | AA104: 1 | AB104: 0 | AC104: 0 | AD104: 0.62 | AE104: 0.88 | AF104: 1 | AG104: 0.1 | AH104: 0 | AI104: 0.9 | AJ104: 0.589 | AK104: 0.62 | AL104: 0 | AM104: 0 | AN104: 0.05 | AO104: 0 | AP104: 0.639 | AQ104: 0.62 | AR104: 0.962 | AU104: =AU103 -> 1.4 | AV104: 2.1 | AW104: 1 | AX104: 0.9 | AY104: 0 | AZ104: 0.1 | BA104: 1.1 | BB104: 1.1 | BC104: 1 | BD104: 1 | BE104: 0 | BF104: 0 | BG104: 0.82 | BH104: 1.1 | BI104: 1 | BJ104: 0.1 | BK104: 0 | BL104: 0.9 | BM104: 1.26 | BN104: 1.1 | BO104: 0 | BP104: 0 | BQ104: 0.1 | BR104: 0 | BS104: 1.36 | BT104: 1.1 | BU104: 0.982
A105: 84 | B105: 372.4511456 | C105: 13.6965873 | D105: 16.51454545 | E105: 0 | F105: 0 | G105: 14.65 | H105: 0 | I105: 0.4674603175 | J105: 0.5636363636 | K105: 0 | L105: 0 | M105: 0.5 | N105: 0 | O105: 0.4698529412 | P105: 0.5636363636 | Q105: 0.9796334012 | R105: 0.62 | S105: 0.88 | T105: 1 | U105: 0.95 | V105: 0 | W105: 0.05 | X105: 0.62 | Y105: 0.88 | Z105: 1 | AA105: 1 | AB105: 0 | AC105: 0 | AD105: 0.62 | AE105: 0.88 | AF105: 1 | AG105: 0.1 | AH105: 0 | AI105: 0.9 | AJ105: 0.589 | AK105: 0.62 | AL105: 0 | AM105: 0 | AN105: 0.05 | AO105: 0 | AP105: 0.639 | AQ105: 0.62 | AR105: 0.962 | AU105: 1.4 | AV105: 2.1 | AW105: 1 | AX105: 0.9 | AY105: 0 | AZ105: 0.1 | BA105: 1.1 | BB105: 1.1 | BC105: 1 | BD105: 1 | BE105: 0 | BF105: 0 | BG105: 0.82 | BH105: 1.1 | BI105: 1 | BJ105: 0.1 | BK105: 0 | BL105: 0.9 | BM105: 1.26 | BN105: 1.1 | BO105: 0 | BP105: 0 | BQ105: 0.1 | BR105: 0 | BS105: 1.36 | BT105: 1.1 | BU105: 0.982
A106: 85 | B106: 383.56625 | C106: 13.6965873 | D106: 16.51454545 | E106: 0 | F106: 0 | G106: 14.65 | H106: 0 | I106: 0.4674603175 | J106: 0.5636363636 | K106: 0 | L106: 0 | M106: 0.5 | N106: 0 | O106: 0.4698529412 | P106: 0.5636363636 | Q106: 0.9796334012 | R106: 0.62 | S106: 0.88 | T106: 1 | U106: 0.95 | V106: 0 | W106: 0.05 | X106: 0.62 | Y106: 0.88 | Z106: 1 | AA106: 1 | AB106: 0 | AC106: 0 | AD106: 0.62 | AE106: 0.88 | AF106: 1 | AG106: 0.1 | AH106: 0 | AI106: 0.9 | AJ106: 0.589 | AK106: 0.62 | AL106: 0 | AM106: 0 | AN106: 0.05 | AO106: 0 | AP106: =SUMPRODUCT(R106:T106,U106:W106) -> 0.639 | AQ106: =SUMPRODUCT(X106:Z106,AA106:AC106) -> 0.62 | AR106: =SUMPRODUCT(AD106:AF106,AG106:AI106) -> 0.962 | AU106: 1.4 | AV106: 2.1 | AW106: 1 | AX106: 0.9 | AY106: 0 | AZ106: 0.1 | BA106: 1.1 | BB106: 1.1 | BC106: 1 | BD106: 1 | BE106: 0 | BF106: 0 | BG106: 0.82 | BH106: 1.1 | BI106: 1 | BJ106: 0.1 | BK106: 0 | BL106: 0.9 | BM106: 1.26 | BN106: 1.1 | BO106: 0 | BP106: 0 | BQ106: 0.1 | BR106: 0 | BS106: 1.36 | BT106: 1.1 | BU106: 0.982
A107: 86 | B107: 395.0836736 | C107: 13.6965873 | D107: 16.51454545 | E107: 0 | F107: 0 | G107: 14.65 | H107: 0 | I107: 0.4674603175 | J107: 0.5636363636 | K107: 0 | L107: 0 | M107: 0.5 | N107: 0 | O107: 0.4698529412 | P107: 0.5636363636 | Q107: 0.9796334012 | R107: 0.62 | S107: 0.88 | T107: 1 | U107: 0.95 | V107: 0 | W107: 0.05 | X107: 0.62 | Y107: 0.88 | Z107: 1 | AA107: 1 | AB107: 0 | AC107: 0 | AD107: 0.62 | AE107: 0.88 | AF107: 1 | AG107: 0.1 | AH107: 0 | AI107: 0.9 | AJ107: 0.589 | AK107: 0.62 | AL107: 0 | AM107: 0 | AN107: 0.05 | AO107: 0 | AP107: 0.639 | AQ107: 0.62 | AR107: 0.962 | AU107: 1.4 | AV107: 2.1 | AW107: 1 | AX107: 0.9 | AY107: 0 | AZ107: 0.1 | BA107: 1.1 | BB107: 1.1 | BC107: 1 | BD107: 1 | BE107: 0 | BF107: 0 | BG107: 0.82 | BH107: 1.1 | BI107: 1 | BJ107: 0.1 | BK107: 0 | BL107: 0.9 | BM107: 1.26 | BN107: 1.1 | BO107: 0 | BP107: 0 | BQ107: 0.1 | BR107: 0 | BS107: 1.36 | BT107: 1.1 | BU107: 0.982
A108: 87 | B108: 407.0091956 | C108: 13.6965873 | D108: 16.51454545 | E108: 0 | F108: 0 | G108: 14.65 | H108: 0 | I108: 0.4674603175 | J108: 0.5636363636 | K108: 0 | L108: 0 | M108: 0.5 | N108: 0 | O108: 0.4698529412 | P108: 0.5636363636 | Q108: 0.9796334012 | R108: 0.62 | S108: 0.88 | T108: 1 | U108: 0.95 | V108: 0 | W108: 0.05 | X108: 0.62 | Y108: 0.88 | Z108: 1 | AA108: 1 | AB108: 0 | AC108: 0 | AD108: 0.62 | AE108: 0.88 | AF108: 1 | AG108: 0.1 | AH108: 0 | AI108: 0.9 | AJ108: 0.589 | AK108: 0.62 | AL108: 0 | AM108: 0 | AN108: 0.05 | AO108: 0 | AP108: 0.639 | AQ108: 0.62 | AR108: 0.962 | AU108: 1.4 | AV108: 2.1 | AW108: 1 | AX108: 0.9 | AY108: 0 | AZ108: 0.1 | BA108: 1.1 | BB108: 1.1 | BC108: 1 | BD108: 1 | BE108: 0 | BF108: 0 | BG108: 0.82 | BH108: 1.1 | BI108: 1 | BJ108: 0.1 | BK108: 0 | BL108: 0.9 | BM108: 1.26 | BN108: 1.1 | BO108: 0 | BP108: 0 | BQ108: 0.1 | BR108: 0 | BS108: 1.36 | BT108: 1.1 | BU108: 0.982
A109: 88 | B109: 419.3485856 | C109: 13.6965873 | D109: 16.51454545 | E109: 0 | F109: 0 | G109: 14.65 | H109: 0 | I109: 0.4674603175 | J109: 0.5636363636 | K109: 0 | L109: 0 | M109: 0.5 | N109: 0 | O109: 0.4698529412 | P109: 0.5636363636 | Q109: 0.9796334012 | R109: 0.62 | S109: 0.88 | T109: 1 | U109: 0.95 | V109: 0 | W109: 0.05 | X109: 0.62 | Y109: 0.88 | Z109: 1 | AA109: 1 | AB109: 0 | AC109: 0 | AD109: 0.62 | AE109: 0.88 | AF109: 1 | AG109: 0.1 | AH109: 0 | AI109: 0.9 | AJ109: 0.589 | AK109: 0.62 | AL109: 0 | AM109: 0 | AN109: 0.05 | AO109: 0 | AP109: 0.639 | AQ109: 0.62 | AR109: 0.962 | AU109: 1.4 | AV109: 2.1 | AW109: 1 | AX109: 0.9 | AY109: 0 | AZ109: 0.1 | BA109: 1.1 | BB109: 1.1 | BC109: 1 | BD109: 1 | BE109: 0 | BF109: 0 | BG109: 0.82 | BH109: 1.1 | BI109: 1 | BJ109: 0.1 | BK109: 0 | BL109: 0.9 | BM109: 1.26 | BN109: 1.1 | BO109: 0 | BP109: 0 | BQ109: 0.1 | BR109: 0 | BS109: 1.36 | BT109: 1.1 | BU109: 0.982
A110: 89 | B110: 432.1076036 | C110: 13.6965873 | D110: 16.51454545 | E110: 0 | F110: 0 | G110: 14.65 | H110: 0 | I110: 0.4674603175 | J110: 0.5636363636 | K110: 0 | L110: 0 | M110: 0.5 | N110: 0 | O110: 0.4698529412 | P110: 0.5636363636 | Q110: 0.9796334012 | R110: 0.62 | S110: 0.88 | T110: 1 | U110: 0.95 | V110: 0 | W110: 0.05 | X110: 0.62 | Y110: 0.88 | Z110: 1 | AA110: 1 | AB110: 0 | AC110: 0 | AD110: 0.62 | AE110: 0.88 | AF110: 1 | AG110: 0.1 | AH110: 0 | AI110: 0.9 | AJ110: 0.589 | AK110: 0.62 | AL110: 0 | AM110: 0 | AN110: 0.05 | AO110: 0 | AP110: 0.639 | AQ110: 0.62 | AR110: 0.962 | AU110: 1.4 | AV110: 2.1 | AW110: 1 | AX110: 0.9 | AY110: 0 | AZ110: 0.1 | BA110: 1.1 | BB110: 1.1 | BC110: 1 | BD110: 1 | BE110: 0 | BF110: 0 | BG110: 0.82 | BH110: 1.1 | BI110: 1 | BJ110: 0.1 | BK110: 0 | BL110: 0.9 | BM110: 1.26 | BN110: 1.1 | BO110: 0 | BP110: 0 | BQ110: 0.1 | BR110: 0 | BS110: 1.36 | BT110: 1.1 | BU110: 0.982
A111: 90 | B111: 445.292 | C111: 13.6965873 | D111: 16.51454545 | E111: 0 | F111: 0 | G111: 14.65 | H111: 0 | I111: 0.4674603175 | J111: 0.5636363636 | K111: 0 | L111: 0 | M111: 0.5 | N111: 0 | O111: 0.4698529412 | P111: 0.5636363636 | Q111: 0.9796334012 | R111: =R110 -> 0.62 | S111: 0.88 | T111: 1 | U111: 0.95 | V111: 0 | W111: 0.05 | X111: 0.62 | Y111: 0.88 | Z111: 1 | AA111: 1 | AB111: 0 | AC111: 0 | AD111: 0.62 | AE111: 0.88 | AF111: 1 | AG111: 0.1 | AH111: =AH110 -> 0 | AI111: =AI110 -> 0.9 | AJ111: 0.589 | AK111: 0.62 | AL111: 0 | AM111: 0 | AN111: 0.05 | AO111: 0 | AP111: 0.639 | AQ111: 0.62 | AR111: 0.962 | AU111: 1.4 | AV111: 2.1 | AW111: 1 | AX111: 0.9 | AY111: 0 | AZ111: 0.1 | BA111: 1.1 | BB111: 1.1 | BC111: 1 | BD111: 1 | BE111: 0 | BF111: 0 | BG111: 0.82 | BH111: 1.1 | BI111: 1 | BJ111: 0.1 | BK111: 0 | BL111: 0.9 | BM111: 1.26 | BN111: 1.1 | BO111: 0 | BP111: 0 | BQ111: 0.1 | BR111: 0 | BS111: 1.36 | BT111: 1.1 | BU111: 0.982

Sheet Workbook Description
A1: About the workbook:
A2: Uses technology efficiencies and estimated use by electric measures and natural gas measures to determine an overall efficiency
A3: estimates efficiency on a daily efficiency and rolls this estimate up to an average monthly value to account for a range of weather and usage
A4: weather is specific to each planning zone
A5: electric rates for 2022 are the current rates in each territory by class
A6: assumptions around residential or commercial customer conversion are included where upgrades or professional costs are likely needed
A7: Rates include T&D in future year estimates
A15: how many on average is used by month
A16: electric efficiency conversion

Sheet LaGrande
F1: Water Heat - Energy Factor | H1: Space Heat - Energy Conversion | J1: Other - Energy Conversion | L1: Water Heat - Energy Conversion (kWh) | N1: Space Heat - Energy Conversion (kWh) | P1: Other - Energy Conversion (kWh) | V1: Conversion Costs | AB1: Water Heat - Energy Costs per DTh | AD1: Space Heat - Energy Costs per DTh | AF1: Other - Energy Costs per DTh | AH1: Water Heat - Total | AJ1: Space Heat | AL1: Other - Total | AO1: Per DTh
A2: ='Gas Use Per Customer'!B1 -> Year | B2: ='Gas Use Per Customer'!C1 -> Month | C2: Avg Temp | D2: ='Gas Use Per Customer'!J1 -> Demand La Grande (com) | E2: ='Gas Use Per Customer'!L1 -> Demand La Grande (res) | F2: Res | G2: Com | H2: Res | I2: Com | J2: Res | K2: Com | L2: Res | M2: Com | N2: Res | O2: Com | P2: Res | Q2: Com | R2: Com - Delivery Charge | S2: Res - Delivery Charge | T2: Com - Energy Charge | U2: Res - Energy Charge | V2: Res - Water Heat | W2: Com - Water Heat | X2: Res - Space Heat | Y2: Com - Space Heat | Z2: Res - Other | AA2: Com - Other | AB2: Res - Water Heat | AC2: Com - Water Heat | AD2: Res - Space Heat | AE2: Com - Space Heat | AF2: Res - Other | AG2: Com - Other | AH2: Res - Water Heat | AI2: Com - Water Heat | AJ2: Res - Space Heat | AK2: Com - Space Heat | AL2: Res - Other | AM2: Com - Other | AO2: Res - Water Heat | AP2: Com - Water Heat | AQ2: Res - Space Heat | AR2: Com - Space Heat | AS2: Res - Other | AT2: Com - Other
A3: ='Gas Use Per Customer'!B2 -> 2022 | B3: ='Gas Use Per Customer'!C2 -> 1 | C3: ='Daily efficiency'!CQ4 -> 32 | D3: ='Gas Use Per Customer'!J2 -> 541.6755037 | E3: ='Gas Use Per Customer'!L2 -> 113.5736085 | F3: =E3*VLOOKUP($C3,'Existing Technology Conversion'!$A:$AR,21,FALSE) -> 22.7147217 | G3: =D3*VLOOKUP($C3,'Existing Technology Conversion'!$A:$AR,27,FALSE) -> 108.3351007 | H3: =E3*VLOOKUP($C3,'Existing Technology Conversion'!$A:$AR,22,FALSE) -> 85.18020637 | I3: =D3*VLOOKUP($C3,'Existing Technology Conversion'!$A:$AR,28,FALSE) -> 433.340403 | J3: =E3*VLOOKUP($C3,'Existing Technology Conversion'!$A:$AR,23,FALSE) -> 5.678680424 | K3: =D3*VLOOKUP($C3,'Existing Technology Conversion'!$A:$AR,29,FALSE) -> 0 | L3: =F3*'Daily efficiency'!BD4 -> 408.5444278 | M3: =G3*'Daily efficiency'!BE4 -> 2039.116454 | N3: =H3*'Daily efficiency'!BF4 -> 1910.983658 | O3: =I3*'Daily efficiency'!BG4 -> 10034.62607 | P3: =J3*'Daily efficiency'!BH4 -> 182.4871432 | Q3: =K3*'Daily efficiency'!BI4 -> 0 | R3: 47 | S3: 33.5 | T3: 0.07012 | U3: 0.07 | V3: =IFERROR(VLOOKUP($A3,Assumptions!$B$11:$H$35,2,FALSE),0) -> 0 | W3: =IFERROR(VLOOKUP($A3,Assumptions!$B$11:$H$35,3,FALSE),0) -> 0 | X3: =IFERROR(VLOOKUP($A3,Assumptions!$B$11:$H$35,4,FALSE),0) -> 0 | Y3: =IFERROR(VLOOKUP($A3,Assumptions!$B$11:$H$35,5,FALSE),0) -> 0 | Z3: =IFERROR(VLOOKUP($A3,Assumptions!$B$11:$H$35,6,FALSE),0) -> 0 | AA3: =IFERROR(VLOOKUP($A3,Assumptions!$B$11:$H$35,7,FALSE),0) -> 0 | AB3: =IFERROR((U3*L3),0) -> 28.59810995 | AC3: =IFERROR((T3*M3),0) -> 142.9828458 | AD3: =IFERROR((U3*N3),0) -> 133.7688561 | AE3: =IFERROR((T3*O3),0) -> 703.6279803 | AF3: =IFERROR((U3*P3),0) -> 12.77410002 | AG3: =IFERROR((T3*Q3),0) -> 0 | AH3: =(V3+AB3)-(VLOOKUP($A3,Assumptions!$A$43:$M$98,11,FALSE)*F3) ->  | AI3: =W3+AC3 -> 142.9828458 | AJ3: =(X3+AD3)-VLOOKUP($A3,Assumptions!$A$44:$M$98,12,FALSE)-(VLOOKUP($A3,Assumptions!$A$44:$M$98,11,FALSE)*LaGrande!$H3) ->  | AK3: =Y3+AE3 -> 703.6279803 | AL3: =Z3+AF3 -> 12.77410002 | AM3: =AA3+AG3 -> 0 | AO3: =IF(F3<10,AB3+AH3,IFERROR((AH3)/(F3/10),0)) -> 0 | AP3: 13.19820121 | AQ3: 0 | AR3: 16.23730387 | AS3: 25.54820005 | AT3: 0
A4: ='Gas Use Per Customer'!B3 -> 2022 | B4: ='Gas Use Per Customer'!C3 -> 2 | C4: ='Daily efficiency'!CQ5 -> 32 | D4: ='Gas Use Per Customer'!J3 -> 483.3862434 | E4: ='Gas Use Per Customer'!L3 -> 101.2372635 | F4: =E4*VLOOKUP($C4,'Existing Technology Conversion'!$A:$AR,21,FALSE) -> 20.24745269 | G4: =D4*VLOOKUP($C4,'Existing Technology Conversion'!$A:$AR,27,FALSE) -> 96.67724868 | H4: =E4*VLOOKUP($C4,'Existing Technology Conversion'!$A:$AR,22,FALSE) -> 75.9279476 | I4: =D4*VLOOKUP($C4,'Existing Technology Conversion'!$A:$AR,28,FALSE) -> 386.7089947 | J4: =E4*VLOOKUP($C4,'Existing Technology Conversion'!$A:$AR,23,FALSE) -> 5.061863173 | K4: =D4*VLOOKUP($C4,'Existing Technology Conversion'!$A:$AR,29,FALSE) -> 0 | L4: =F4*'Daily efficiency'!BD5 -> 352.6317585 | M4: =G4*'Daily efficiency'!BE5 -> 1852.728049 | N4: =H4*'Daily efficiency'!BF5 -> 1424.047527 | O4: =I4*'Daily efficiency'!BG5 -> 8902.5935 | P4: =J4*'Daily efficiency'!BH5 -> 169.500104 | Q4: =K4*'Daily efficiency'!BI5 -> 0 | R4: 47 | S4: 33.5 | T4: 0.07012 | U4: 0.07 | V4: =IFERROR(VLOOKUP($A4,Assumptions!$B$11:$H$35,2,FALSE),0) -> 0 | W4: =IFERROR(VLOOKUP($A4,Assumptions!$B$11:$H$35,3,FALSE),0) -> 0 | X4: =IFERROR(VLOOKUP($A4,Assumptions!$B$11:$H$35,4,FALSE),0) -> 0 | Y4: =IFERROR(VLOOKUP($A4,Assumptions!$B$11:$H$35,5,FALSE),0) -> 0 | Z4: =IFERROR(VLOOKUP($A4,Assumptions!$B$11:$H$35,6,FALSE),0) -> 0 | AA4: =IFERROR(VLOOKUP($A4,Assumptions!$B$11:$H$35,7,FALSE),0) -> 0 | AB4: =IFERROR((U4*L4),0) -> 24.6842231 | AC4: =IFERROR((T4*M4),0) -> 129.9132908 | AD4: =IFERROR((U4*N4),0) -> 99.68332686 | AE4: =IFERROR((T4*O4),0) -> 624.2498562 | AF4: =IFERROR((U4*P4),0) -> 11.86500728 | AG4: =IFERROR((T4*Q4),0) -> 0 | AH4: =(V4+AB4)-(VLOOKUP($A4,Assumptions!$A$43:$M$98,11,FALSE)*F4) ->  | AI4: =W4+AC4 -> 129.9132908 | AJ4: =(X4+AD4)-VLOOKUP($A4,Assumptions!$A$44:$M$98,12,FALSE)-(VLOOKUP($A4,Assumptions!$A$44:$M$98,11,FALSE)*LaGrande!$H4) ->  | AK4: =Y4+AE4 -> 624.2498562 | AL4: =Z4+AF4 -> 11.86500728 | AM4: =AA4+AG4 -> 0 | AO4: =IF(F4<10,AB4+AH4,IFERROR((AH4)/(F4/10),0)) -> 0 | AP4: =IF(G4<10,AC4+AI4,IFERROR((AI4)/(G4/10),0)) -> 13.43783492 | AQ4: =IF(H4<10,AD4+AJ4,IFERROR((AJ4)/(H4/10),0)) -> 0 | AR4: =IF(I4<10,AE4+AK4,IFERROR((AK4)/(I4/10),0)) -> 16.14262571 | AS4: =IF(J4<10,AF4+AL4,IFERROR((AL4)/(J4/10),0)) -> 23.73001456 | AT4: =IF(K4<10,AG4+AM4,IFERROR((AM4)/(K4/10),0)) -> 0
A5: ='Gas Use Per Customer'!B4 -> 2022 | B5: ='Gas Use Per Customer'!C4 -> 3 | C5: ='Daily efficiency'!CQ6 -> 40 | D5: ='Gas Use Per Customer'!J4 -> 388.3839827 | E5: ='Gas Use Per Customer'!L4 -> 81.04100029 | F5: =E5*VLOOKUP($C5,'Existing Technology Conversion'!$A:$AR,21,FALSE) -> 24.31230009 | G5: =D5*VLOOKUP($C5,'Existing Technology Conversion'!$A:$AR,27,FALSE) -> 116.5151948 | H5: =E5*VLOOKUP($C5,'Existing Technology Conversion'!$A:$AR,22,FALSE) -> 48.62460017 | I5: =D5*VLOOKUP($C5,'Existing Technology Conversion'!$A:$AR,28,FALSE) -> 271.8687879 | J5: =E5*VLOOKUP($C5,'Existing Technology Conversion'!$A:$AR,23,FALSE) -> 8.104100029 | K5: =D5*VLOOKUP($C5,'Existing Technology Conversion'!$A:$AR,29,FALSE) -> 0 | L5: =F5*'Daily efficiency'!BD6 -> 396.2950171 | M5: =G5*'Daily efficiency'!BE6 -> 2077.114319 | N5: =H5*'Daily efficiency'!BF6 -> 841.9314396 | O5: =I5*'Daily efficiency'!BG6 -> 6372.604387 | P5: =J5*'Daily efficiency'!BH6 -> 237.4501309 | Q5: =K5*'Daily efficiency'!BI6 -> 0 | R5: 47 | S5: 33.5 | T5: 0.07012 | U5: 0.07 | V5: =IFERROR(VLOOKUP($A5,Assumptions!$B$11:$H$35,2,FALSE),0) -> 0 | W5: =IFERROR(VLOOKUP($A5,Assumptions!$B$11:$H$35,3,FALSE),0) -> 0 | X5: =IFERROR(VLOOKUP($A5,Assumptions!$B$11:$H$35,4,FALSE),0) -> 0 | Y5: =IFERROR(VLOOKUP($A5,Assumptions!$B$11:$H$35,5,FALSE),0) -> 0 | Z5: =IFERROR(VLOOKUP($A5,Assumptions!$B$11:$H$35,6,FALSE),0) -> 0 | AA5: =IFERROR(VLOOKUP($A5,Assumptions!$B$11:$H$35,7,FALSE),0) -> 0 | AB5: 27.7406512 | AC5: 145.6472561 | AD5: 58.93520077 | AE5: 446.8470196 | AF5: 16.62150916 | AG5: 0 | AH5: =(V5+AB5)-(VLOOKUP($A5,Assumptions!$A$43:$M$98,11,FALSE)*F5) ->  | AI5: 145.6472561 | AJ5: =(X5+AD5)-VLOOKUP($A5,Assumptions!$A$44:$M$98,12,FALSE)-(VLOOKUP($A5,Assumptions!$A$44:$M$98,11,FALSE)*LaGrande!$H5) ->  | AK5: 446.8470196 | AL5: 16.62150916 | AM5: 0 | AO5: 0 | AP5: 12.50028001 | AQ5: 0 | AR5: 16.436128 | AS5: 33.24301832 | AT5: 0
A6: ='Gas Use Per Customer'!B5 -> 2022 | B6: ='Gas Use Per Customer'!C5 -> 4 | C6: ='Daily efficiency'!CQ7 -> 47 | D6: ='Gas Use Per Customer'!J5 -> 260.1202126 | E6: ='Gas Use Per Customer'!L5 -> 55.94771242 | F6: =E6*VLOOKUP($C6,'Existing Technology Conversion'!$A:$AR,21,FALSE) -> 16.78431373 | G6: =D6*VLOOKUP($C6,'Existing Technology Conversion'!$A:$AR,27,FALSE) -> 78.03606379 | H6: =E6*VLOOKUP($C6,'Existing Technology Conversion'!$A:$AR,22,FALSE) -> 33.56862745 | I6: =D6*VLOOKUP($C6,'Existing Technology Conversion'!$A:$AR,28,FALSE) -> 182.0841488 | J6: =E6*VLOOKUP($C6,'Existing Technology Conversion'!$A:$AR,23,FALSE) -> 5.594771242 | K6: =D6*VLOOKUP($C6,'Existing Technology Conversion'!$A:$AR,29,FALSE) -> 0 | L6: =F6*'Daily efficiency'!BD7 -> 265.8136068 | M6: =G6*'Daily efficiency'!BE7 -> 1384.56244 | N6: =H6*'Daily efficiency'!BF7 -> 546.8129599 | O6: =I6*'Daily efficiency'!BG7 -> 4268.052449 | P6: =J6*'Daily efficiency'!BH7 -> 163.9267974 | Q6: =K6*'Daily efficiency'!BI7 -> 0 | R6: 47 | S6: 33.5 | T6: 0.07012 | U6: 0.07 | V6: =IFERROR(VLOOKUP($A6,Assumptions!$B$11:$H$35,2,FALSE),0) -> 0 | W6: =IFERROR(VLOOKUP($A6,Assumptions!$B$11:$H$35,3,FALSE),0) -> 0 | X6: =IFERROR(VLOOKUP($A6,Assumptions!$B$11:$H$35,4,FALSE),0) -> 0 | Y6: =IFERROR(VLOOKUP($A6,Assumptions!$B$11:$H$35,5,FALSE),0) -> 0 | Z6: =IFERROR(VLOOKUP($A6,Assumptions!$B$11:$H$35,6,FALSE),0) -> 0 | AA6: =IFERROR(VLOOKUP($A6,Assumptions!$B$11:$H$35,7,FALSE),0) -> 0 | AB6: 18.60695248 | AC6: 97.0855183 | AD6: 38.27690719 | AE6: 299.2758377 | AF6: 11.47487582 | AG6: 0 | AH6: =(V6+AB6)-(VLOOKUP($A6,Assumptions!$A$43:$M$98,11,FALSE)*F6) ->  | AI6: 97.0855183 | AJ6: =(X6+AD6)-VLOOKUP($A6,Assumptions!$A$44:$M$98,12,FALSE)-(VLOOKUP($A6,Assumptions!$A$44:$M$98,11,FALSE)*LaGrande!$H6) ->  | AK6: 299.2758377 | AL6: 11.47487582 | AM6: 0 | AO6: 0 | AP6: 12.4411091 | AQ6: 0 | AR6: 16.436128 | AS6: 22.94975163 | AT6: 0
A7: ='Gas Use Per Customer'!B6 -> 2022 | B7: ='Gas Use Per Customer'!C6 -> 5 | C7: ='Daily efficiency'!CQ8 -> 54 | D7: ='Gas Use Per Customer'!J6 -> 151.7739658 | E7: ='Gas Use Per Customer'!L6 -> 37.98809697 | F7: =E7*VLOOKUP($C7,'Existing Technology Conversion'!$A:$AR,21,FALSE) -> 30.39047757 | G7: =D7*VLOOKUP($C7,'Existing Technology Conversion'!$A:$AR,27,FALSE) -> 136.5965692 | H7: =E7*VLOOKUP($C7,'Existing Technology Conversion'!$A:$AR,22,FALSE) -> 3.798809697 | I7: =D7*VLOOKUP($C7,'Existing Technology Conversion'!$A:$AR,28,FALSE) -> 15.17739658 | J7: =E7*VLOOKUP($C7,'Existing Technology Conversion'!$A:$AR,23,FALSE) -> 3.798809697 | K7: =D7*VLOOKUP($C7,'Existing Technology Conversion'!$A:$AR,29,FALSE) -> 0 | L7: =F7*'Daily efficiency'!BD8 -> 424.6718581 | M7: =G7*'Daily efficiency'!BE8 -> 2343.917282 | N7: =H7*'Daily efficiency'!BF8 -> 47.18413994 | O7: =I7*'Daily efficiency'!BG8 -> 355.7581757 | P7: =J7*'Daily efficiency'!BH8 -> 111.3051241 | Q7: =K7*'Daily efficiency'!BI8 -> 0 | R7: 47 | S7: 33.5 | T7: 0.07012 | U7: 0.07 | V7: =IFERROR(VLOOKUP($A7,Assumptions!$B$11:$H$35,2,FALSE),0) -> 0 | W7: =IFERROR(VLOOKUP($A7,Assumptions!$B$11:$H$35,3,FALSE),0) -> 0 | X7: =IFERROR(VLOOKUP($A7,Assumptions!$B$11:$H$35,4,FALSE),0) -> 0 | Y7: =IFERROR(VLOOKUP($A7,Assumptions!$B$11:$H$35,5,FALSE),0) -> 0 | Z7: =IFERROR(VLOOKUP($A7,Assumptions!$B$11:$H$35,6,FALSE),0) -> 0 | AA7: =IFERROR(VLOOKUP($A7,Assumptions!$B$11:$H$35,7,FALSE),0) -> 0 | AB7: 29.72703007 | AC7: 164.3554798 | AD7: 3.302889796 | AE7: 24.94576328 | AF7: 7.791358688 | AG7: 0 | AH7: =(V7+AB7)-(VLOOKUP($A7,Assumptions!$A$43:$M$98,11,FALSE)*F7) ->  | AI7: 164.3554798 | AJ7: =(X7+AD7)-VLOOKUP($A7,Assumptions!$A$44:$M$98,12,FALSE)-(VLOOKUP($A7,Assumptions!$A$44:$M$98,11,FALSE)*LaGrande!$H7) ->  | AK7: 24.94576328 | AL7: 7.791358688 | AM7: 0 | AO7: 0 | AP7: 12.03218212 | AR7: 16.436128 | AS7: 15.58271738 | AT7: 0
A8: ='Gas Use Per Customer'!B7 -> 2022 | B8: ='Gas Use Per Customer'!C7 -> 6 | C8: ='Daily efficiency'!CQ9 -> 60 | D8: ='Gas Use Per Customer'!J7 -> 114.3088011 | E8: ='Gas Use Per Customer'!L7 -> 23.61816335 | F8: =E8*VLOOKUP($C8,'Existing Technology Conversion'!$A:$AR,21,FALSE) -> 18.89453068 | G8: =D8*VLOOKUP($C8,'Existing Technology Conversion'!$A:$AR,27,FALSE) -> 102.877921 | H8: =E8*VLOOKUP($C8,'Existing Technology Conversion'!$A:$AR,22,FALSE) -> 2.361816335 | I8: =D8*VLOOKUP($C8,'Existing Technology Conversion'!$A:$AR,28,FALSE) -> 11.43088011 | J8: =E8*VLOOKUP($C8,'Existing Technology Conversion'!$A:$AR,23,FALSE) -> 2.361816335 | K8: =D8*VLOOKUP($C8,'Existing Technology Conversion'!$A:$AR,29,FALSE) -> 0 | L8: =F8*'Daily efficiency'!BD9 -> 267.3296307 | M8: =G8*'Daily efficiency'!BE9 -> 1776.154594 | N8: =H8*'Daily efficiency'!BF9 -> 27.06536551 | O8: =I8*'Daily efficiency'!BG9 -> 250.0771744 | P8: =J8*'Daily efficiency'!BH9 -> 66.89451134 | Q8: =K8*'Daily efficiency'!BI9 -> 0 | R8: 47 | S8: 33.5 | T8: 0.07012 | U8: 0.07 | V8: =IFERROR(VLOOKUP($A8,Assumptions!$B$11:$H$35,2,FALSE),0) -> 0 | W8: =IFERROR(VLOOKUP($A8,Assumptions!$B$11:$H$35,3,FALSE),0) -> 0 | X8: =IFERROR(VLOOKUP($A8,Assumptions!$B$11:$H$35,4,FALSE),0) -> 0 | Y8: =IFERROR(VLOOKUP($A8,Assumptions!$B$11:$H$35,5,FALSE),0) -> 0 | Z8: =IFERROR(VLOOKUP($A8,Assumptions!$B$11:$H$35,6,FALSE),0) -> 0 | AA8: =IFERROR(VLOOKUP($A8,Assumptions!$B$11:$H$35,7,FALSE),0) -> 0 | AB8: 18.71307415 | AC8: 124.5439602 | AD8: 1.894575586 | AE8: 17.53541147 | AF8: 4.682615794 | AG8: 0 | AH8: =(V8+AB8)-(VLOOKUP($A8,Assumptions!$A$43:$M$98,11,FALSE)*F8) ->  | AI8: 124.5439602 | AJ8: =(X8+AD8)-VLOOKUP($A8,Assumptions!$A$44:$M$98,12,FALSE)-(VLOOKUP($A8,Assumptions!$A$44:$M$98,11,FALSE)*LaGrande!$H8) ->  | AK8: 17.53541147 | AL8: 4.682615794 | AM8: 0 | AO8: 0 | AP8: 12.10599505 | AR8: 15.34038613 | AS8: 9.365231588 | AT8: 0
A9: ='Gas Use Per Customer'!B8 -> 2022 | B9: ='Gas Use Per Customer'!C8 -> 7 | C9: ='Daily efficiency'!CQ10 -> 64 | D9: ='Gas Use Per Customer'!J8 -> 107.6981068 | E9: ='Gas Use Per Customer'!L8 -> 20.42274052 | F9: =E9*VLOOKUP($C9,'Existing Technology Conversion'!$A:$AR,21,FALSE) -> 19.4016035 | G9: =D9*VLOOKUP($C9,'Existing Technology Conversion'!$A:$AR,27,FALSE) -> 107.6981068 | H9: =E9*VLOOKUP($C9,'Existing Technology Conversion'!$A:$AR,22,FALSE) -> 0 | I9: =D9*VLOOKUP($C9,'Existing Technology Conversion'!$A:$AR,28,FALSE) -> 0 | J9: =E9*VLOOKUP($C9,'Existing Technology Conversion'!$A:$AR,23,FALSE) -> 1.021137026 | K9: =D9*VLOOKUP($C9,'Existing Technology Conversion'!$A:$AR,29,FALSE) -> 0 | L9: =F9*'Daily efficiency'!BD10 -> 286.2029968 | M9: =G9*'Daily efficiency'!BE10 -> 1881.665526 | N9: =H9*'Daily efficiency'!BF10 -> 0 | O9: =I9*'Daily efficiency'!BG10 -> 0 | P9: =J9*'Daily efficiency'!BH10 -> 16.40736622 | Q9: =K9*'Daily efficiency'!BI10 -> 0 | R9: 47 | S9: 33.5 | T9: 0.07012 | U9: 0.07 | V9: =IFERROR(VLOOKUP($A9,Assumptions!$B$11:$H$35,2,FALSE),0) -> 0 | W9: =IFERROR(VLOOKUP($A9,Assumptions!$B$11:$H$35,3,FALSE),0) -> 0 | X9: =IFERROR(VLOOKUP($A9,Assumptions!$B$11:$H$35,4,FALSE),0) -> 0 | Y9: =IFERROR(VLOOKUP($A9,Assumptions!$B$11:$H$35,5,FALSE),0) -> 0 | Z9: =IFERROR(VLOOKUP($A9,Assumptions!$B$11:$H$35,6,FALSE),0) -> 0 | AA9: =IFERROR(VLOOKUP($A9,Assumptions!$B$11:$H$35,7,FALSE),0) -> 0 | AB9: 20.03420978 | AC9: 131.9423867 | AD9: 0 | AE9: 0 | AF9: 1.148515635 | AG9: 0 | AH9: =(V9+AB9)-(VLOOKUP($A9,Assumptions!$A$43:$M$98,11,FALSE)*F9) ->  | AI9: 131.9423867 | AJ9: =(X9+AD9)-VLOOKUP($A9,Assumptions!$A$44:$M$98,12,FALSE)-(VLOOKUP($A9,Assumptions!$A$44:$M$98,11,FALSE)*LaGrande!$H9) ->  | AK9: 0 | AL9: 1.148515635 | AM9: 0 | AO9: 0 | AP9: 12.25113333 | AR9: 0 | AS9: 2.297031271 | AT9: 0
A10: ='Gas Use Per Customer'!B9 -> 2022 | B10: ='Gas Use Per Customer'!C9 -> 8 | C10: ='Daily efficiency'!CQ11 -> 64 | D10: ='Gas Use Per Customer'!J9 -> 127.8567697 | E10: ='Gas Use Per Customer'!L9 -> 23.56892523 | F10: =E10*VLOOKUP($C10,'Existing Technology Conversion'!$A:$AR,21,FALSE) -> 22.39047897 | G10: =D10*VLOOKUP($C10,'Existing Technology Conversion'!$A:$AR,27,FALSE) -> 127.8567697 | H10: =E10*VLOOKUP($C10,'Existing Technology Conversion'!$A:$AR,22,FALSE) -> 0 | I10: =D10*VLOOKUP($C10,'Existing Technology Conversion'!$A:$AR,28,FALSE) -> 0 | J10: =E10*VLOOKUP($C10,'Existing Technology Conversion'!$A:$AR,23,FALSE) -> 1.178446262 | K10: =D10*VLOOKUP($C10,'Existing Technology Conversion'!$A:$AR,29,FALSE) -> 0 | L10: =F10*'Daily efficiency'!BD11 -> 345.9434939 | M10: =G10*'Daily efficiency'!BE11 -> 2319.690241 | N10: =H10*'Daily efficiency'!BF11 -> 0 | O10: =I10*'Daily efficiency'!BG11 -> 0 | P10: =J10*'Daily efficiency'!BH11 -> 21.71952489 | Q10: =K10*'Daily efficiency'!BI11 -> 0 | R10: 47 | S10: 33.5 | T10: 0.07012 | U10: 0.07 | V10: =IFERROR(VLOOKUP($A10,Assumptions!$B$11:$H$35,2,FALSE),0) -> 0 | W10: =IFERROR(VLOOKUP($A10,Assumptions!$B$11:$H$35,3,FALSE),0) -> 0 | X10: =IFERROR(VLOOKUP($A10,Assumptions!$B$11:$H$35,4,FALSE),0) -> 0 | Y10: =IFERROR(VLOOKUP($A10,Assumptions!$B$11:$H$35,5,FALSE),0) -> 0 | Z10: =IFERROR(VLOOKUP($A10,Assumptions!$B$11:$H$35,6,FALSE),0) -> 0 | AA10: =IFERROR(VLOOKUP($A10,Assumptions!$B$11:$H$35,7,FALSE),0) -> 0 | AB10: 24.21604457 | AC10: 162.6566797 | AD10: 0 | AE10: 0 | AF10: 1.520366742 | AG10: 0 | AH10: =(V10+AB10)-(VLOOKUP($A10,Assumptions!$A$43:$M$98,11,FALSE)*F10) ->  | AI10: 162.6566797 | AJ10: =(X10+AD10)-VLOOKUP($A10,Assumptions!$A$44:$M$98,12,FALSE)-(VLOOKUP($A10,Assumptions!$A$44:$M$98,11,FALSE)*LaGrande!$H10) ->  | AK10: 0 | AL10: 1.520366742 | AM10: 0 | AO10: 0 | AP10: 12.72178861 | AR10: 0 | AS10: 3.040733485 | AT10: 0
A11: ='Gas Use Per Customer'!B10 -> 2022 | B11: ='Gas Use Per Customer'!C10 -> 9 | C11: ='Daily efficiency'!CQ12 -> 58 | D11: ='Gas Use Per Customer'!J10 -> 112.9294103 | E11: ='Gas Use Per Customer'!L10 -> 20.41953939 | F11: =E11*VLOOKUP($C11,'Existing Technology Conversion'!$A:$AR,21,FALSE) -> 16.33563151 | G11: =D11*VLOOKUP($C11,'Existing Technology Conversion'!$A:$AR,27,FALSE) -> 101.6364693 | H11: =E11*VLOOKUP($C11,'Existing Technology Conversion'!$A:$AR,22,FALSE) -> 2.041953939 | I11: =D11*VLOOKUP($C11,'Existing Technology Conversion'!$A:$AR,28,FALSE) -> 11.29294103 | J11: =E11*VLOOKUP($C11,'Existing Technology Conversion'!$A:$AR,23,FALSE) -> 2.041953939 | K11: =D11*VLOOKUP($C11,'Existing Technology Conversion'!$A:$AR,29,FALSE) -> 0 | L11: =F11*'Daily efficiency'!BD12 -> 228.2716015 | M11: =G11*'Daily efficiency'!BE12 -> 1741.818963 | N11: =H11*'Daily efficiency'!BF12 -> 25.07130493 | O11: =I11*'Daily efficiency'!BG12 -> 264.7065378 | P11: =J11*'Daily efficiency'!BH12 -> 59.8292504 | Q11: =K11*'Daily efficiency'!BI12 -> 0 | R11: 47 | S11: 33.5 | T11: 0.07012 | U11: 0.07 | V11: =IFERROR(VLOOKUP($A11,Assumptions!$B$11:$H$35,2,FALSE),0) -> 0 | W11: =IFERROR(VLOOKUP($A11,Assumptions!$B$11:$H$35,3,FALSE),0) -> 0 | X11: =IFERROR(VLOOKUP($A11,Assumptions!$B$11:$H$35,4,FALSE),0) -> 0 | Y11: =IFERROR(VLOOKUP($A11,Assumptions!$B$11:$H$35,5,FALSE),0) -> 0 | Z11: =IFERROR(VLOOKUP($A11,Assumptions!$B$11:$H$35,6,FALSE),0) -> 0 | AA11: =IFERROR(VLOOKUP($A11,Assumptions!$B$11:$H$35,7,FALSE),0) -> 0 | AB11: 15.97901211 | AC11: 122.1363457 | AD11: 1.754991345 | AE11: 18.56122243 | AF11: 4.188047528 | AG11: 0 | AH11: =(V11+AB11)-(VLOOKUP($A11,Assumptions!$A$43:$M$98,11,FALSE)*F11) ->  | AI11: 122.1363457 | AJ11: =(X11+AD11)-VLOOKUP($A11,Assumptions!$A$44:$M$98,12,FALSE)-(VLOOKUP($A11,Assumptions!$A$44:$M$98,11,FALSE)*LaGrande!$H11) ->  | AK11: 18.56122243 | AL11: 4.188047528 | AM11: 0 | AO11: 0 | AP11: 12.01698038 | AR11: 16.436128 | AS11: 8.376095056 | AT11: 0
A12: ='Gas Use Per Customer'!B11 -> 2022 | B12: ='Gas Use Per Customer'!C11 -> 10 | C12: ='Daily efficiency'!CQ13 -> 48 | D12: ='Gas Use Per Customer'!J11 -> 225.9542251 | E12: ='Gas Use Per Customer'!L11 -> 46.63840982 | F12: =E12*VLOOKUP($C12,'Existing Technology Conversion'!$A:$AR,21,FALSE) -> 13.99152295 | G12: =D12*VLOOKUP($C12,'Existing Technology Conversion'!$A:$AR,27,FALSE) -> 67.78626754 | H12: =E12*VLOOKUP($C12,'Existing Technology Conversion'!$A:$AR,22,FALSE) -> 27.98304589 | I12: =D12*VLOOKUP($C12,'Existing Technology Conversion'!$A:$AR,28,FALSE) -> 158.1679576 | J12: =E12*VLOOKUP($C12,'Existing Technology Conversion'!$A:$AR,23,FALSE) -> 4.663840982 | K12: =D12*VLOOKUP($C12,'Existing Technology Conversion'!$A:$AR,29,FALSE) -> 0 | L12: =F12*'Daily efficiency'!BD13 -> 211.5694387 | M12: =G12*'Daily efficiency'!BE13 -> 1186.686011 | N12: =H12*'Daily efficiency'!BF13 -> 411.97934 | O12: =I12*'Daily efficiency'!BG13 -> 3707.456926 | P12: =J12*'Daily efficiency'!BH13 -> 136.6505408 | Q12: =K12*'Daily efficiency'!BI13 -> 0 | R12: 47 | S12: 33.5 | T12: 0.07012 | U12: 0.07 | V12: =IFERROR(VLOOKUP($A12,Assumptions!$B$11:$H$35,2,FALSE),0) -> 0 | W12: =IFERROR(VLOOKUP($A12,Assumptions!$B$11:$H$35,3,FALSE),0) -> 0 | X12: =IFERROR(VLOOKUP($A12,Assumptions!$B$11:$H$35,4,FALSE),0) -> 0 | Y12: =IFERROR(VLOOKUP($A12,Assumptions!$B$11:$H$35,5,FALSE),0) -> 0 | Z12: =IFERROR(VLOOKUP($A12,Assumptions!$B$11:$H$35,6,FALSE),0) -> 0 | AA12: =IFERROR(VLOOKUP($A12,Assumptions!$B$11:$H$35,7,FALSE),0) -> 0 | AB12: 14.80986071 | AC12: 83.21042307 | AD12: 28.8385538 | AE12: 259.9668797 | AF12: 9.565537854 | AG12: 0 | AH12: =(V12+AB12)-(VLOOKUP($A12,Assumptions!$A$43:$M$98,11,FALSE)*F12) ->  | AI12: 83.21042307 | AJ12: =(X12+AD12)-VLOOKUP($A12,Assumptions!$A$44:$M$98,12,FALSE)-(VLOOKUP($A12,Assumptions!$A$44:$M$98,11,FALSE)*LaGrande!$H12) ->  | AK12: 259.9668797 | AL12: 9.565537854 | AM12: 0 | AO12: 0 | AP12: 12.27541006 | AQ12: 0 | AR12: 16.436128 | AS12: 19.13107571 | AT12: 0
A13: ='Gas Use Per Customer'!B12 -> 2022 | B13: ='Gas Use Per Customer'!C12 -> 11 | C13: ='Daily efficiency'!CQ14 -> 39 | D13: ='Gas Use Per Customer'!J12 -> 360.1018668 | E13: ='Gas Use Per Customer'!L12 -> 82.74509804 | F13: =E13*VLOOKUP($C13,'Existing Technology Conversion'!$A:$AR,21,FALSE) -> 24.82352941 | G13: =D13*VLOOKUP($C13,'Existing Technology Conversion'!$A:$AR,27,FALSE) -> 108.0305601 | H13: =E13*VLOOKUP($C13,'Existing Technology Conversion'!$A:$AR,22,FALSE) -> 49.64705882 | I13: =D13*VLOOKUP($C13,'Existing Technology Conversion'!$A:$AR,28,FALSE) -> 252.0713068 | J13: =E13*VLOOKUP($C13,'Existing Technology Conversion'!$A:$AR,23,FALSE) -> 8.274509804 | K13: =D13*VLOOKUP($C13,'Existing Technology Conversion'!$A:$AR,29,FALSE) -> 0 | L13: =F13*'Daily efficiency'!BD14 -> 426.2171344 | M13: =G13*'Daily efficiency'!BE14 -> 1990.676467 | N13: =H13*'Daily efficiency'!BF14 -> 853.0364623 | O13: =I13*'Daily efficiency'!BG14 -> 5859.313503 | P13: =J13*'Daily efficiency'!BH14 -> 258.6060131 | Q13: =K13*'Daily efficiency'!BI14 -> 0 | R13: 47 | S13: 33.5 | T13: 0.07012 | U13: 0.07 | V13: =IFERROR(VLOOKUP($A13,Assumptions!$B$11:$H$35,2,FALSE),0) -> 0 | W13: =IFERROR(VLOOKUP($A13,Assumptions!$B$11:$H$35,3,FALSE),0) -> 0 | X13: =IFERROR(VLOOKUP($A13,Assumptions!$B$11:$H$35,4,FALSE),0) -> 0 | Y13: =IFERROR(VLOOKUP($A13,Assumptions!$B$11:$H$35,5,FALSE),0) -> 0 | Z13: =IFERROR(VLOOKUP($A13,Assumptions!$B$11:$H$35,6,FALSE),0) -> 0 | AA13: =IFERROR(VLOOKUP($A13,Assumptions!$B$11:$H$35,7,FALSE),0) -> 0 | AB13: 29.83519941 | AC13: 139.5862338 | AD13: 59.71255236 | AE13: 410.8550628 | AF13: 18.10242092 | AG13: 0 | AH13: =(V13+AB13)-(VLOOKUP($A13,Assumptions!$A$43:$M$98,11,FALSE)*F13) ->  | AI13: 139.5862338 | AJ13: =(X13+AD13)-VLOOKUP($A13,Assumptions!$A$44:$M$98,12,FALSE)-(VLOOKUP($A13,Assumptions!$A$44:$M$98,11,FALSE)*LaGrande!$H13) ->  | AK13: 410.8550628 | AL13: 18.10242092 | AM13: 0 | AO13: 0 | AP13: 12.92099511 | AQ13: 0 | AR13: 16.29916027 | AS13: 36.20484183 | AT13: 0
A14: ='Gas Use Per Customer'!B13 -> 2022 | B14: ='Gas Use Per Customer'!C13 -> 12 | C14: ='Daily efficiency'!CQ15 -> 32 | D14: ='Gas Use Per Customer'!J13 -> 513.9901121 | E14: ='Gas Use Per Customer'!L13 -> 113.2020845 | F14: =E14*VLOOKUP($C14,'Existing Technology Conversion'!$A:$AR,21,FALSE) -> 22.64041691 | G14: =D14*VLOOKUP($C14,'Existing Technology Conversion'!$A:$AR,27,FALSE) -> 102.7980224 | H14: =E14*VLOOKUP($C14,'Existing Technology Conversion'!$A:$AR,22,FALSE) -> 84.9015634 | I14: =D14*VLOOKUP($C14,'Existing Technology Conversion'!$A:$AR,28,FALSE) -> 411.1920897 | J14: =E14*VLOOKUP($C14,'Existing Technology Conversion'!$A:$AR,23,FALSE) -> 5.660104227 | K14: =D14*VLOOKUP($C14,'Existing Technology Conversion'!$A:$AR,29,FALSE) -> 0 | L14: =F14*'Daily efficiency'!BD15 -> 408.9310142 | M14: =G14*'Daily efficiency'!BE15 -> 1936.650082 | N14: =H14*'Daily efficiency'!BF15 -> 1967.529605 | O14: =I14*'Daily efficiency'!BG15 -> 9521.749729 | P14: =J14*'Daily efficiency'!BH15 -> 181.8901881 | Q14: =K14*'Daily efficiency'!BI15 -> 0 | R14: =R3*1.01 -> 47.47 | S14: 33.835 | T14: =T3*1.03 -> 0.0722236 | U14: 0.0721 | V14: =IFERROR(VLOOKUP($A14,Assumptions!$B$11:$H$35,2,FALSE),0) -> 0 | W14: =IFERROR(VLOOKUP($A14,Assumptions!$B$11:$H$35,3,FALSE),0) -> 0 | X14: =IFERROR(VLOOKUP($A14,Assumptions!$B$11:$H$35,4,FALSE),0) -> 0 | Y14: =IFERROR(VLOOKUP($A14,Assumptions!$B$11:$H$35,5,FALSE),0) -> 0 | Z14: =IFERROR(VLOOKUP($A14,Assumptions!$B$11:$H$35,6,FALSE),0) -> 0 | AA14: =IFERROR(VLOOKUP($A14,Assumptions!$B$11:$H$35,7,FALSE),0) -> 0 | AB14: 29.48392612 | AC14: 139.8718409 | AD14: 141.8588845 | AE14: 687.6950437 | AF14: 13.11428256 | AG14: 0 | AH14: =(V14+AB14)-(VLOOKUP($A14,Assumptions!$A$43:$M$98,11,FALSE)*F14) ->  | AI14: 139.8718409 | AJ14: =(X14+AD14)-VLOOKUP($A14,Assumptions!$A$44:$M$98,12,FALSE)-(VLOOKUP($A14,Assumptions!$A$44:$M$98,11,FALSE)*LaGrande!$H14) ->  | AK14: 687.6950437 | AL14: 13.11428256 | AM14: 0 | AO14: 0 | AP14: 13.60647195 | AQ14: 0 | AR14: 16.72442299 | AS14: 26.22856512 | AT14: 0
A15: ='Gas Use Per Customer'!B14 -> 2023 | B15: ='Gas Use Per Customer'!C14 -> 1 | C15: ='Daily efficiency'!CQ16 -> 32 | D15: ='Gas Use Per Customer'!J14 -> 541.4097724 | E15: ='Gas Use Per Customer'!L14 -> 113.5201502 | F15: =E15*VLOOKUP($C15,'Existing Technology Conversion'!$A:$AR,21,FALSE) -> 22.70403004 | G15: =D15*VLOOKUP($C15,'Existing Technology Conversion'!$A:$AR,27,FALSE) -> 108.2819545 | H15: =E15*VLOOKUP($C15,'Existing Technology Conversion'!$A:$AR,22,FALSE) -> 85.14011267 | I15: =D15*VLOOKUP($C15,'Existing Technology Conversion'!$A:$AR,28,FALSE) -> 433.1278179 | J15: =E15*VLOOKUP($C15,'Existing Technology Conversion'!$A:$AR,23,FALSE) -> 5.676007511 | K15: =D15*VLOOKUP($C15,'Existing Technology Conversion'!$A:$AR,29,FALSE) -> 0 | L15: =F15*'Daily efficiency'!BD16 -> 421.5990951 | M15: =G15*'Daily efficiency'!BE16 -> 2101.557026 | N15: =H15*'Daily efficiency'!BF16 -> 1904.285496 | O15: =I15*'Daily efficiency'!BG16 -> 9947.828228 | P15: =J15*'Daily efficiency'!BH16 -> 193.130733 | Q15: =K15*'Daily efficiency'!BI16 -> 0 | R15: 47.47 | S15: 33.835 | T15: 0.0722236 | U15: 0.0721 | V15: =IFERROR(VLOOKUP($A15,Assumptions!$B$11:$H$35,2,FALSE),0) -> 31.33290435 | W15: =IFERROR(VLOOKUP($A15,Assumptions!$B$11:$H$35,3,FALSE),0) -> 125.3316174 | X15: =IFERROR(VLOOKUP($A15,Assumptions!$B$11:$H$35,4,FALSE),0) -> 79.39016753 | Y15: =IFERROR(VLOOKUP($A15,Assumptions!$B$11:$H$35,5,FALSE),0) -> 317.5606701 | Z15: =IFERROR(VLOOKUP($A15,Assumptions!$B$11:$H$35,6,FALSE),0) -> 8.032004727 | AA15: =IFERROR(VLOOKUP($A15,Assumptions!$B$11:$H$35,7,FALSE),0) -> 0 | AB15: =IFERROR((U15*L15),0)+(S15*F15/(F15+H15+J15)) -> 37.16429475 | AC15: =IFERROR((T15*M15),0)+(R15*(G15/(G15+I15+K15))) -> 161.276014 | AD15: =IFERROR((U15*N15),0)+(S15*H15/(F15+H15+J15)) -> 162.6752342 | AE15: =IFERROR((T15*O15),0)+(R15*(G15/(G15+I15+K15))) -> 727.9619668 | AF15: 13.92472585 | AG15: 0 | AH15: =(V15+AB15)-(VLOOKUP($A15,Assumptions!$A$43:$M$98,11,FALSE)*F15) -> 52.70677324 | AI15: =(W15+AC15)-(VLOOKUP($A15,Assumptions!$A$43:$R$98,16,FALSE)*G15) -> 216.2092015 | AJ15: =(X15+AD15)-VLOOKUP($A15,Assumptions!$A$44:$M$98,13,FALSE)-(VLOOKUP($A15,Assumptions!$A$44:$M$98,11,FALSE)*$H15) -> 172.3513048 | AK15: =(Y15+AE15)-VLOOKUP($A15,Assumptions!$A$44:$R$98,18,FALSE)-(VLOOKUP($A15,Assumptions!$A$43:$R$98,16,FALSE)*I15) -> 746.9289174 | AL15: =(Z15+AF15)-(VLOOKUP($A15,Assumptions!$A$43:$M$98,11,FALSE)*J15) -> 18.00912411 | AM15: 0 | AO15: 23.21472141 | AP15: 19.96724224 | AQ15: 20.24325543 | AR15: 17.24499989 | AS15: =IF(J15<10,AF15+AL15,IFERROR((AL15)/(J15/10),0)) -> 31.93384996 | AT15: 0
A16: ='Gas Use Per Customer'!B15 -> 2023 | B16: ='Gas Use Per Customer'!C15 -> 2 | C16: ='Daily efficiency'!CQ17 -> 32 | D16: ='Gas Use Per Customer'!J15 -> 482.4443566 | E16: ='Gas Use Per Customer'!L15 -> 101.0406128 | F16: =E16*VLOOKUP($C16,'Existing Technology Conversion'!$A:$AR,21,FALSE) -> 20.20812256 | G16: =D16*VLOOKUP($C16,'Existing Technology Conversion'!$A:$AR,27,FALSE) -> 96.48887133 | H16: =E16*VLOOKUP($C16,'Existing Technology Conversion'!$A:$AR,22,FALSE) -> 75.7804596 | I16: =D16*VLOOKUP($C16,'Existing Technology Conversion'!$A:$AR,28,FALSE) -> 385.9554853 | J16: =E16*VLOOKUP($C16,'Existing Technology Conversion'!$A:$AR,23,FALSE) -> 5.05203064 | K16: =D16*VLOOKUP($C16,'Existing Technology Conversion'!$A:$AR,29,FALSE) -> 0 | L16: =F16*'Daily efficiency'!BD17 -> 365.0007656 | M16: =G16*'Daily efficiency'!BE17 -> 1911.706423 | N16: =H16*'Daily efficiency'!BF17 -> 1415.567151 | O16: =I16*'Daily efficiency'!BG17 -> 8804.471668 | P16: =J16*'Daily efficiency'!BH17 -> 179.744033 | Q16: =K16*'Daily efficiency'!BI17 -> 0 | R16: 47.47 | S16: 33.835 | T16: 0.0722236 | U16: 0.0721 | V16: =IFERROR(VLOOKUP($A16,Assumptions!$B$11:$H$35,2,FALSE),0) -> 31.33290435 | W16: =IFERROR(VLOOKUP($A16,Assumptions!$B$11:$H$35,3,FALSE),0) -> 125.3316174 | X16: =IFERROR(VLOOKUP($A16,Assumptions!$B$11:$H$35,4,FALSE),0) -> 79.39016753 | Y16: =IFERROR(VLOOKUP($A16,Assumptions!$B$11:$H$35,5,FALSE),0) -> 317.5606701 | Z16: =IFERROR(VLOOKUP($A16,Assumptions!$B$11:$H$35,6,FALSE),0) -> 8.032004727 | AA16: =IFERROR(VLOOKUP($A16,Assumptions!$B$11:$H$35,7,FALSE),0) -> 0 | AB16: =IFERROR((U16*L16),0)+(S16*F16/(F16+H16+J16)) -> 33.0835552 | AC16: =IFERROR((T16*M16),0)+(R16*(G16/(G16+I16+K16))) -> 147.56432 | AD16: =IFERROR((U16*N16),0)+(S16*H16/(F16+H16+J16)) -> 127.4386416 | AE16: =IFERROR((T16*O16),0)+(R16*(G16/(G16+I16+K16))) -> 645.3846399 | AF16: 12.95954478 | AG16: 0 | AH16: =(V16+AB16)-(VLOOKUP($A16,Assumptions!$A$43:$M$98,11,FALSE)*F16) -> 50.36191238 | AI16: =(W16+AC16)-(VLOOKUP($A16,Assumptions!$A$43:$R$98,16,FALSE)*G16) -> 210.1646626 | AJ16: =(X16+AD16)-VLOOKUP($A16,Assumptions!$A$44:$M$98,13,FALSE)-(VLOOKUP($A16,Assumptions!$A$44:$M$98,11,FALSE)*$H16) -> 143.6242572 | AK16: =(Y16+AE16)-VLOOKUP($A16,Assumptions!$A$44:$R$98,18,FALSE)-(VLOOKUP($A16,Assumptions!$A$43:$R$98,16,FALSE)*I16) -> 695.0202108 | AL16: =(Z16+AF16)-(VLOOKUP($A16,Assumptions!$A$43:$M$98,11,FALSE)*J16) -> 17.47791272 | AM16: 0 | AO16: 24.92161864 | AP16: 21.78123339 | AQ16: 18.95267698 | AR16: 18.00778165 | AS16: 30.43745749 | AT16: 0
A17: ='Gas Use Per Customer'!B16 -> 2023 | B17: ='Gas Use Per Customer'!C16 -> 3 | C17: ='Daily efficiency'!CQ18 -> 40 | D17: ='Gas Use Per Customer'!J16 -> 386.2369021 | E17: ='Gas Use Per Customer'!L16 -> 80.59248555 | F17: =E17*VLOOKUP($C17,'Existing Technology Conversion'!$A:$AR,21,FALSE) -> 24.17774566 | G17: =D17*VLOOKUP($C17,'Existing Technology Conversion'!$A:$AR,27,FALSE) -> 115.8710706 | H17: =E17*VLOOKUP($C17,'Existing Technology Conversion'!$A:$AR,22,FALSE) -> 48.35549133 | I17: =D17*VLOOKUP($C17,'Existing Technology Conversion'!$A:$AR,28,FALSE) -> 270.3658315 | J17: =E17*VLOOKUP($C17,'Existing Technology Conversion'!$A:$AR,23,FALSE) -> 8.059248555 | K17: =D17*VLOOKUP($C17,'Existing Technology Conversion'!$A:$AR,29,FALSE) -> 0 | L17: =F17*'Daily efficiency'!BD18 -> 394.101755 | M17: =G17*'Daily efficiency'!BE18 -> 2065.631529 | N17: =H17*'Daily efficiency'!BF18 -> 837.2718394 | O17: =I17*'Daily efficiency'!BG18 -> 6337.375089 | P17: =J17*'Daily efficiency'!BH18 -> 236.1359827 | Q17: =K17*'Daily efficiency'!BI18 -> 0 | R17: 47.47 | S17: 33.835 | T17: 0.0722236 | U17: 0.0721 | V17: =IFERROR(VLOOKUP($A17,Assumptions!$B$11:$H$35,2,FALSE),0) -> 31.33290435 | W17: =IFERROR(VLOOKUP($A17,Assumptions!$B$11:$H$35,3,FALSE),0) -> 125.3316174 | X17: =IFERROR(VLOOKUP($A17,Assumptions!$B$11:$H$35,4,FALSE),0) -> 79.39016753 | Y17: =IFERROR(VLOOKUP($A17,Assumptions!$B$11:$H$35,5,FALSE),0) -> 317.5606701 | Z17: =IFERROR(VLOOKUP($A17,Assumptions!$B$11:$H$35,6,FALSE),0) -> 8.032004727 | AA17: =IFERROR(VLOOKUP($A17,Assumptions!$B$11:$H$35,7,FALSE),0) -> 0 | AB17: 38.56523653 | AC17: 163.4283453 | AD17: 80.66829962 | AE17: 471.9490435 | AF17: 17.02540435 | AG17: 0 | AH17: =(V17+AB17)-(VLOOKUP($A17,Assumptions!$A$43:$M$98,11,FALSE)*F17) -> 53.08276055 | AI17: =(W17+AC17)-(VLOOKUP($A17,Assumptions!$A$43:$R$98,16,FALSE)*G17) -> 213.4275448 | AJ17: =(X17+AD17)-VLOOKUP($A17,Assumptions!$A$44:$M$98,13,FALSE)-(VLOOKUP($A17,Assumptions!$A$44:$M$98,11,FALSE)*$H17) -> 115.9277065 | AK17: =(Y17+AE17)-VLOOKUP($A17,Assumptions!$A$44:$R$98,18,FALSE)-(VLOOKUP($A17,Assumptions!$A$43:$R$98,16,FALSE)*I17) -> 596.7340719 | AL17: =(Z17+AF17)-(VLOOKUP($A17,Assumptions!$A$43:$M$98,11,FALSE)*J17) -> 19.4522823 | AM17: 0 | AO17: 21.95521505 | AP17: 18.41939871 | AQ17: 23.97405203 | AR17: 22.07135675 | AS17: 36.47768665 | AT17: 0
A18: ='Gas Use Per Customer'!B17 -> 2023 | B18: ='Gas Use Per Customer'!C17 -> 4 | C18: ='Daily efficiency'!CQ19 -> 47 | D18: ='Gas Use Per Customer'!J17 -> 259.3055127 | E18: ='Gas Use Per Customer'!L17 -> 55.77228724 | F18: =E18*VLOOKUP($C18,'Existing Technology Conversion'!$A:$AR,21,FALSE) -> 16.73168617 | G18: =D18*VLOOKUP($C18,'Existing Technology Conversion'!$A:$AR,27,FALSE) -> 77.79165382 | H18: =E18*VLOOKUP($C18,'Existing Technology Conversion'!$A:$AR,22,FALSE) -> 33.46337235 | I18: =D18*VLOOKUP($C18,'Existing Technology Conversion'!$A:$AR,28,FALSE) -> 181.5138589 | J18: =E18*VLOOKUP($C18,'Existing Technology Conversion'!$A:$AR,23,FALSE) -> 5.577228724 | K18: =D18*VLOOKUP($C18,'Existing Technology Conversion'!$A:$AR,29,FALSE) -> 0 | L18: =F18*'Daily efficiency'!BD19 -> 264.9801429 | M18: =G18*'Daily efficiency'!BE19 -> 1378.483263 | N18: =H18*'Daily efficiency'!BF19 -> 540.1649065 | O18: =I18*'Daily efficiency'!BG19 -> 4254.684853 | P18: =J18*'Daily efficiency'!BH19 -> 163.4128016 | Q18: =K18*'Daily efficiency'!BI19 -> 0 | R18: 47.47 | S18: 33.835 | T18: 0.0722236 | U18: 0.0721 | V18: =IFERROR(VLOOKUP($A18,Assumptions!$B$11:$H$35,2,FALSE),0) -> 31.33290435 | W18: =IFERROR(VLOOKUP($A18,Assumptions!$B$11:$H$35,3,FALSE),0) -> 125.3316174 | X18: =IFERROR(VLOOKUP($A18,Assumptions!$B$11:$H$35,4,FALSE),0) -> 79.39016753 | Y18: =IFERROR(VLOOKUP($A18,Assumptions!$B$11:$H$35,5,FALSE),0) -> 317.5606701 | Z18: =IFERROR(VLOOKUP($A18,Assumptions!$B$11:$H$35,6,FALSE),0) -> 8.032004727 | AA18: =IFERROR(VLOOKUP($A18,Assumptions!$B$11:$H$35,7,FALSE),0) -> 0 | AB18: 29.25556831 | AC18: 113.8000238 | AD18: 59.24688976 | AE18: 321.529657 | AF18: 11.782063 | AG18: 0 | AH18: =(V18+AB18)-(VLOOKUP($A18,Assumptions!$A$43:$M$98,11,FALSE)*F18) -> 48.95175223 | AI18: =(W18+AC18)-(VLOOKUP($A18,Assumptions!$A$43:$R$98,16,FALSE)*G18) -> 188.5561754 | AJ18: =(X18+AD18)-VLOOKUP($A18,Assumptions!$A$44:$M$98,13,FALSE)-(VLOOKUP($A18,Assumptions!$A$44:$M$98,11,FALSE)*$H18) -> 104.8636165 | AK18: =(Y18+AE18)-VLOOKUP($A18,Assumptions!$A$44:$R$98,18,FALSE)-(VLOOKUP($A18,Assumptions!$A$43:$R$98,16,FALSE)*I18) -> 504.0809068 | AL18: =(Z18+AF18)-(VLOOKUP($A18,Assumptions!$A$43:$M$98,11,FALSE)*J18) -> 15.93516092 | AM18: 0 | AO18: 29.25691513 | AP18: 24.23861251 | AQ18: 31.33683461 | AR18: 27.77093219 | AS18: 27.71722391 | AT18: 0
A19: ='Gas Use Per Customer'!B18 -> 2023 | B19: ='Gas Use Per Customer'!C18 -> 5 | C19: ='Daily efficiency'!CQ20 -> 54 | D19: ='Gas Use Per Customer'!J18 -> 151.68099 | E19: ='Gas Use Per Customer'!L18 -> 37.94597718 | F19: =E19*VLOOKUP($C19,'Existing Technology Conversion'!$A:$AR,21,FALSE) -> 30.35678174 | G19: =D19*VLOOKUP($C19,'Existing Technology Conversion'!$A:$AR,27,FALSE) -> 136.512891 | H19: =E19*VLOOKUP($C19,'Existing Technology Conversion'!$A:$AR,22,FALSE) -> 3.794597718 | I19: =D19*VLOOKUP($C19,'Existing Technology Conversion'!$A:$AR,28,FALSE) -> 15.168099 | J19: =E19*VLOOKUP($C19,'Existing Technology Conversion'!$A:$AR,23,FALSE) -> 3.794597718 | K19: =D19*VLOOKUP($C19,'Existing Technology Conversion'!$A:$AR,29,FALSE) -> 0 | L19: =F19*'Daily efficiency'!BD20 -> 424.2009978 | M19: =G19*'Daily efficiency'!BE20 -> 2342.481413 | N19: =H19*'Daily efficiency'!BF20 -> 47.13182392 | O19: =I19*'Daily efficiency'!BG20 -> 355.5402406 | P19: =J19*'Daily efficiency'!BH20 -> 111.1817131 | Q19: =K19*'Daily efficiency'!BI20 -> 0 | R19: 47.47 | S19: 33.835 | T19: 0.0722236 | U19: 0.0721 | V19: =IFERROR(VLOOKUP($A19,Assumptions!$B$11:$H$35,2,FALSE),0) -> 31.33290435 | W19: =IFERROR(VLOOKUP($A19,Assumptions!$B$11:$H$35,3,FALSE),0) -> 125.3316174 | X19: =IFERROR(VLOOKUP($A19,Assumptions!$B$11:$H$35,4,FALSE),0) -> 79.39016753 | Y19: =IFERROR(VLOOKUP($A19,Assumptions!$B$11:$H$35,5,FALSE),0) -> 317.5606701 | Z19: =IFERROR(VLOOKUP($A19,Assumptions!$B$11:$H$35,6,FALSE),0) -> 8.032004727 | AA19: =IFERROR(VLOOKUP($A19,Assumptions!$B$11:$H$35,7,FALSE),0) -> 0 | AB19: 57.65289194 | AC19: 211.9054406 | AD19: 6.781704505 | AE19: 68.40139612 | AF19: 8.016201517 | AG19: 0 | AH19: =(V19+AB19)-(VLOOKUP($A19,Assumptions!$A$43:$M$98,11,FALSE)*F19) -> 67.87295815 | AI19: =(W19+AC19)-(VLOOKUP($A19,Assumptions!$A$43:$R$98,16,FALSE)*G19) -> 248.484567 | AJ19: =(X19+AD19)-VLOOKUP($A19,Assumptions!$A$44:$M$98,13,FALSE)-(VLOOKUP($A19,Assumptions!$A$44:$M$98,11,FALSE)*$H19) -> 73.03276726 | AK19: =(Y19+AE19)-VLOOKUP($A19,Assumptions!$A$44:$R$98,18,FALSE)-(VLOOKUP($A19,Assumptions!$A$43:$R$98,16,FALSE)*I19) -> 359.1006783 | AL19: =(Z19+AF19)-(VLOOKUP($A19,Assumptions!$A$43:$M$98,11,FALSE)*J19) -> 13.40910148 | AM19: 0 | AO19: 22.35841689 | AP19: 18.20227856 | AQ19: 79.81447177 | AR19: 236.7473197 | AS19: 21.42530299 | AT19: 0
A20: ='Gas Use Per Customer'!B19 -> 2023 | B20: ='Gas Use Per Customer'!C19 -> 6 | C20: ='Daily efficiency'!CQ21 -> 60 | D20: ='Gas Use Per Customer'!J19 -> 114.7976258 | E20: ='Gas Use Per Customer'!L19 -> 23.77784206 | F20: =E20*VLOOKUP($C20,'Existing Technology Conversion'!$A:$AR,21,FALSE) -> 19.02227365 | G20: =D20*VLOOKUP($C20,'Existing Technology Conversion'!$A:$AR,27,FALSE) -> 103.3178632 | H20: =E20*VLOOKUP($C20,'Existing Technology Conversion'!$A:$AR,22,FALSE) -> 2.377784206 | I20: =D20*VLOOKUP($C20,'Existing Technology Conversion'!$A:$AR,28,FALSE) -> 11.47976258 | J20: =E20*VLOOKUP($C20,'Existing Technology Conversion'!$A:$AR,23,FALSE) -> 2.377784206 | K20: =D20*VLOOKUP($C20,'Existing Technology Conversion'!$A:$AR,29,FALSE) -> 0 | L20: =F20*'Daily efficiency'!BD21 -> 267.475665 | M20: =G20*'Daily efficiency'!BE21 -> 1777.192152 | N20: =H20*'Daily efficiency'!BF21 -> 28.22150557 | O20: =I20*'Daily efficiency'!BG21 -> 260.1161136 | P20: =J20*'Daily efficiency'!BH21 -> 68.50792595 | Q20: =K20*'Daily efficiency'!BI21 -> 0 | R20: 47.47 | S20: 33.835 | T20: 0.0722236 | U20: 0.0721 | V20: =IFERROR(VLOOKUP($A20,Assumptions!$B$11:$H$35,2,FALSE),0) -> 31.33290435 | W20: =IFERROR(VLOOKUP($A20,Assumptions!$B$11:$H$35,3,FALSE),0) -> 125.3316174 | X20: =IFERROR(VLOOKUP($A20,Assumptions!$B$11:$H$35,4,FALSE),0) -> 79.39016753 | Y20: =IFERROR(VLOOKUP($A20,Assumptions!$B$11:$H$35,5,FALSE),0) -> 317.5606701 | Z20: =IFERROR(VLOOKUP($A20,Assumptions!$B$11:$H$35,6,FALSE),0) -> 8.032004727 | AA20: =IFERROR(VLOOKUP($A20,Assumptions!$B$11:$H$35,7,FALSE),0) -> 0 | AB20: 46.35299545 | AC20: 171.0782151 | AD20: 5.418270552 | AE20: 61.50952214 | AF20: 4.939421461 | AG20: 0 | AH20: =(V20+AB20)-(VLOOKUP($A20,Assumptions!$A$43:$M$98,11,FALSE)*F20) -> 64.45609869 | AI20: =(W20+AC20)-(VLOOKUP($A20,Assumptions!$A$43:$R$98,16,FALSE)*G20) -> 229.2387569 | AJ20: =(X20+AD20)-VLOOKUP($A20,Assumptions!$A$44:$M$98,13,FALSE)-(VLOOKUP($A20,Assumptions!$A$44:$M$98,11,FALSE)*$H20) -> 72.65471294 | AK20: =(Y20+AE20)-VLOOKUP($A20,Assumptions!$A$44:$R$98,18,FALSE)-(VLOOKUP($A20,Assumptions!$A$43:$R$98,16,FALSE)*I20) -> 354.6067394 | AL20: =(Z20+AF20)-(VLOOKUP($A20,Assumptions!$A$43:$M$98,11,FALSE)*J20) -> 11.31770105 | AM20: 0 | AO20: 33.88453972 | AP20: 22.18771758 | AQ20: 78.07298349 | AR20: 308.8972764 | AS20: 16.25712251 | AT20: 0
A21: ='Gas Use Per Customer'!B20 -> 2023 | B21: ='Gas Use Per Customer'!C20 -> 7 | C21: ='Daily efficiency'!CQ22 -> 64 | D21: ='Gas Use Per Customer'!J20 -> 107.7495289 | E21: ='Gas Use Per Customer'!L20 -> 20.45950269 | F21: =E21*VLOOKUP($C21,'Existing Technology Conversion'!$A:$AR,21,FALSE) -> 19.43652756 | G21: =D21*VLOOKUP($C21,'Existing Technology Conversion'!$A:$AR,27,FALSE) -> 107.7495289 | H21: =E21*VLOOKUP($C21,'Existing Technology Conversion'!$A:$AR,22,FALSE) -> 0 | I21: =D21*VLOOKUP($C21,'Existing Technology Conversion'!$A:$AR,28,FALSE) -> 0 | J21: =E21*VLOOKUP($C21,'Existing Technology Conversion'!$A:$AR,23,FALSE) -> 1.022975135 | K21: =D21*VLOOKUP($C21,'Existing Technology Conversion'!$A:$AR,29,FALSE) -> 0 | L21: =F21*'Daily efficiency'!BD22 -> 299.7820357 | M21: =G21*'Daily efficiency'!BE22 -> 1948.388711 | N21: =H21*'Daily efficiency'!BF22 -> 0 | O21: =I21*'Daily efficiency'!BG22 -> 0 | P21: =J21*'Daily efficiency'!BH22 -> 17.40377697 | Q21: =K21*'Daily efficiency'!BI22 -> 0 | R21: 47.47 | S21: 33.835 | T21: 0.0722236 | U21: 0.0721 | V21: =IFERROR(VLOOKUP($A21,Assumptions!$B$11:$H$35,2,FALSE),0) -> 31.33290435 | W21: =IFERROR(VLOOKUP($A21,Assumptions!$B$11:$H$35,3,FALSE),0) -> 125.3316174 | X21: =IFERROR(VLOOKUP($A21,Assumptions!$B$11:$H$35,4,FALSE),0) -> 79.39016753 | Y21: =IFERROR(VLOOKUP($A21,Assumptions!$B$11:$H$35,5,FALSE),0) -> 317.5606701 | Z21: =IFERROR(VLOOKUP($A21,Assumptions!$B$11:$H$35,6,FALSE),0) -> 8.032004727 | AA21: =IFERROR(VLOOKUP($A21,Assumptions!$B$11:$H$35,7,FALSE),0) -> 0 | AB21: 53.75753477 | AC21: 188.1896469 | AD21: 0 | AE21: 47.47 | AF21: 1.254812319 | AG21: 0 | AH21: =(V21+AB21)-(VLOOKUP($A21,Assumptions!$A$43:$M$98,11,FALSE)*F21) -> 71.57252857 | AI21: =(W21+AC21)-(VLOOKUP($A21,Assumptions!$A$43:$R$98,16,FALSE)*G21) -> 243.4689856 | AJ21: =(X21+AD21)-VLOOKUP($A21,Assumptions!$A$44:$M$98,13,FALSE)-(VLOOKUP($A21,Assumptions!$A$44:$M$98,11,FALSE)*$H21) -> 68.89016753 | AK21: =(Y21+AE21)-VLOOKUP($A21,Assumptions!$A$44:$R$98,18,FALSE)-(VLOOKUP($A21,Assumptions!$A$43:$R$98,16,FALSE)*I21) -> 348.0306701 | AL21: =(Z21+AF21)-(VLOOKUP($A21,Assumptions!$A$43:$M$98,11,FALSE)*J21) -> 8.57534807 | AM21: 0 | AO21: 36.82372191 | AP21: 22.59582831 | AQ21: 68.89016753 | AR21: 395.5006701 | AS21: 9.830160389 | AT21: 0
A22: ='Gas Use Per Customer'!B21 -> 2023 | B22: ='Gas Use Per Customer'!C21 -> 8 | C22: ='Daily efficiency'!CQ23 -> 64 | D22: ='Gas Use Per Customer'!J21 -> 130.6793968 | E22: ='Gas Use Per Customer'!L21 -> 24.01632177 | F22: =E22*VLOOKUP($C22,'Existing Technology Conversion'!$A:$AR,21,FALSE) -> 22.81550568 | G22: =D22*VLOOKUP($C22,'Existing Technology Conversion'!$A:$AR,27,FALSE) -> 130.6793968 | H22: =E22*VLOOKUP($C22,'Existing Technology Conversion'!$A:$AR,22,FALSE) -> 0 | I22: =D22*VLOOKUP($C22,'Existing Technology Conversion'!$A:$AR,28,FALSE) -> 0 | J22: =E22*VLOOKUP($C22,'Existing Technology Conversion'!$A:$AR,23,FALSE) -> 1.200816089 | K22: =D22*VLOOKUP($C22,'Existing Technology Conversion'!$A:$AR,29,FALSE) -> 0 | L22: =F22*'Daily efficiency'!BD23 -> 356.7751719 | M22: =G22*'Daily efficiency'!BE23 -> 2392.209018 | N22: =H22*'Daily efficiency'!BF23 -> 0 | O22: =I22*'Daily efficiency'!BG23 -> 0 | P22: =J22*'Daily efficiency'!BH23 -> 22.13181523 | Q22: =K22*'Daily efficiency'!BI23 -> 0 | R22: 47.47 | S22: 33.835 | T22: 0.0722236 | U22: 0.0721 | V22: =IFERROR(VLOOKUP($A22,Assumptions!$B$11:$H$35,2,FALSE),0) -> 31.33290435 | W22: =IFERROR(VLOOKUP($A22,Assumptions!$B$11:$H$35,3,FALSE),0) -> 125.3316174 | X22: =IFERROR(VLOOKUP($A22,Assumptions!$B$11:$H$35,4,FALSE),0) -> 79.39016753 | Y22: =IFERROR(VLOOKUP($A22,Assumptions!$B$11:$H$35,5,FALSE),0) -> 317.5606701 | Z22: =IFERROR(VLOOKUP($A22,Assumptions!$B$11:$H$35,6,FALSE),0) -> 8.032004727 | AA22: =IFERROR(VLOOKUP($A22,Assumptions!$B$11:$H$35,7,FALSE),0) -> 0 | AB22: 57.86673989 | AC22: 220.2439472 | AD22: 0 | AE22: 47.47 | AF22: 1.595703878 | AG22: 0 | AH22: =(V22+AB22)-(VLOOKUP($A22,Assumptions!$A$43:$M$98,11,FALSE)*F22) -> 73.33168819 | AI22: =(W22+AC22)-(VLOOKUP($A22,Assumptions!$A$43:$R$98,16,FALSE)*G22) -> 260.6156616 | AJ22: =(X22+AD22)-VLOOKUP($A22,Assumptions!$A$44:$M$98,13,FALSE)-(VLOOKUP($A22,Assumptions!$A$44:$M$98,11,FALSE)*$H22) -> 68.89016753 | AK22: =(Y22+AE22)-VLOOKUP($A22,Assumptions!$A$44:$R$98,18,FALSE)-(VLOOKUP($A22,Assumptions!$A$43:$R$98,16,FALSE)*I22) -> 348.0306701 | AL22: =(Z22+AF22)-(VLOOKUP($A22,Assumptions!$A$43:$M$98,11,FALSE)*J22) -> 8.792553024 | AM22: 0 | AO22: 32.14116277 | AP22: 19.9431332 | AQ22: 68.89016753 | AR22: 395.5006701 | AS22: 10.3882569 | AT22: 0
A23: ='Gas Use Per Customer'!B22 -> 2023 | B23: ='Gas Use Per Customer'!C22 -> 9 | C23: ='Daily efficiency'!CQ24 -> 58 | D23: ='Gas Use Per Customer'!J22 -> 113.0533988 | E23: ='Gas Use Per Customer'!L22 -> 20.43560883 | F23: =E23*VLOOKUP($C23,'Existing Technology Conversion'!$A:$AR,21,FALSE) -> 16.34848706 | G23: =D23*VLOOKUP($C23,'Existing Technology Conversion'!$A:$AR,27,FALSE) -> 101.7480589 | H23: =E23*VLOOKUP($C23,'Existing Technology Conversion'!$A:$AR,22,FALSE) -> 2.043560883 | I23: =D23*VLOOKUP($C23,'Existing Technology Conversion'!$A:$AR,28,FALSE) -> 11.30533988 | J23: =E23*VLOOKUP($C23,'Existing Technology Conversion'!$A:$AR,23,FALSE) -> 2.043560883 | K23: =D23*VLOOKUP($C23,'Existing Technology Conversion'!$A:$AR,29,FALSE) -> 0 | L23: =F23*'Daily efficiency'!BD24 -> 228.4512431 | M23: =G23*'Daily efficiency'!BE24 -> 1743.731357 | N23: =H23*'Daily efficiency'!BF24 -> 25.09103515 | O23: =I23*'Daily efficiency'!BG24 -> 264.9971667 | P23: =J23*'Daily efficiency'!BH24 -> 59.87633387 | Q23: =K23*'Daily efficiency'!BI24 -> 0 | R23: 47.47 | S23: 33.835 | T23: 0.0722236 | U23: 0.0721 | V23: =IFERROR(VLOOKUP($A23,Assumptions!$B$11:$H$35,2,FALSE),0) -> 31.33290435 | W23: =IFERROR(VLOOKUP($A23,Assumptions!$B$11:$H$35,3,FALSE),0) -> 125.3316174 | X23: =IFERROR(VLOOKUP($A23,Assumptions!$B$11:$H$35,4,FALSE),0) -> 79.39016753 | Y23: =IFERROR(VLOOKUP($A23,Assumptions!$B$11:$H$35,5,FALSE),0) -> 317.5606701 | Z23: =IFERROR(VLOOKUP($A23,Assumptions!$B$11:$H$35,6,FALSE),0) -> 8.032004727 | AA23: =IFERROR(VLOOKUP($A23,Assumptions!$B$11:$H$35,7,FALSE),0) -> 0 | AB23: 43.53933463 | AC23: 168.661556 | AD23: 5.192563634 | AE23: 61.86204937 | AF23: 4.317083672 | AG23: 0 | AH23: =(V23+AB23)-(VLOOKUP($A23,Assumptions!$A$43:$M$98,11,FALSE)*F23) -> 63.5020297 | AI23: =(W23+AC23)-(VLOOKUP($A23,Assumptions!$A$43:$R$98,16,FALSE)*G23) -> 227.8426904 | AJ23: =(X23+AD23)-VLOOKUP($A23,Assumptions!$A$44:$M$98,13,FALSE)-(VLOOKUP($A23,Assumptions!$A$44:$M$98,11,FALSE)*$H23) -> 72.661455 | AK23: =(Y23+AE23)-VLOOKUP($A23,Assumptions!$A$44:$R$98,18,FALSE)-(VLOOKUP($A23,Assumptions!$A$43:$R$98,16,FALSE)*I23) -> 355.0726658 | AL23: =(Z23+AF23)-(VLOOKUP($A23,Assumptions!$A$43:$M$98,11,FALSE)*J23) -> 10.92781224 | AM23: 0 | AO23: 38.84275619 | AP23: 22.39282919 | AQ23: 77.85401864 | AR23: 314.0751801 | AS23: 15.24489591 | AT23: 0
A24: ='Gas Use Per Customer'!B23 -> 2023 | B24: ='Gas Use Per Customer'!C23 -> 10 | C24: ='Daily efficiency'!CQ25 -> 49 | D24: ='Gas Use Per Customer'!J23 -> 224.1061176 | E24: ='Gas Use Per Customer'!L23 -> 46.23217923 | F24: =E24*VLOOKUP($C24,'Existing Technology Conversion'!$A:$AR,21,FALSE) -> 36.98574338 | G24: =D24*VLOOKUP($C24,'Existing Technology Conversion'!$A:$AR,27,FALSE) -> 201.6955058 | H24: =E24*VLOOKUP($C24,'Existing Technology Conversion'!$A:$AR,22,FALSE) -> 4.623217923 | I24: =D24*VLOOKUP($C24,'Existing Technology Conversion'!$A:$AR,28,FALSE) -> 22.41061176 | J24: =E24*VLOOKUP($C24,'Existing Technology Conversion'!$A:$AR,23,FALSE) -> 4.623217923 | K24: =D24*VLOOKUP($C24,'Existing Technology Conversion'!$A:$AR,29,FALSE) -> 0 | L24: =F24*'Daily efficiency'!BD25 -> 556.2397163 | M24: =G24*'Daily efficiency'!BE25 -> 3522.194515 | N24: =H24*'Daily efficiency'!BF25 -> 66.73968027 | O24: =I24*'Daily efficiency'!BG25 -> 525.3047396 | P24: =J24*'Daily efficiency'!BH25 -> 135.4602851 | Q24: =K24*'Daily efficiency'!BI25 -> 0 | R24: 47.47 | S24: 33.835 | T24: 0.0722236 | U24: 0.0721 | V24: =IFERROR(VLOOKUP($A24,Assumptions!$B$11:$H$35,2,FALSE),0) -> 31.33290435 | W24: =IFERROR(VLOOKUP($A24,Assumptions!$B$11:$H$35,3,FALSE),0) -> 125.3316174 | X24: =IFERROR(VLOOKUP($A24,Assumptions!$B$11:$H$35,4,FALSE),0) -> 79.39016753 | Y24: =IFERROR(VLOOKUP($A24,Assumptions!$B$11:$H$35,5,FALSE),0) -> 317.5606701 | Z24: =IFERROR(VLOOKUP($A24,Assumptions!$B$11:$H$35,6,FALSE),0) -> 8.032004727 | AA24: =IFERROR(VLOOKUP($A24,Assumptions!$B$11:$H$35,7,FALSE),0) -> 0 | AB24: 67.17288354 | AC24: 297.1085678 | AD24: 8.195430947 | AE24: 80.66239939 | AF24: 9.766686558 | AG24: 0 | AH24: =(V24+AB24)-(VLOOKUP($A24,Assumptions!$A$43:$M$98,11,FALSE)*F24) -> 72.78257323 | AI24: =(W24+AC24)-(VLOOKUP($A24,Assumptions!$A$43:$R$98,16,FALSE)*G24) -> 291.309869 | AJ24: =(X24+AD24)-VLOOKUP($A24,Assumptions!$A$44:$M$98,13,FALSE)-(VLOOKUP($A24,Assumptions!$A$44:$M$98,11,FALSE)*$H24) -> 73.87019664 | AK24: =(Y24+AE24)-VLOOKUP($A24,Assumptions!$A$44:$R$98,18,FALSE)-(VLOOKUP($A24,Assumptions!$A$43:$R$98,16,FALSE)*I24) -> 366.6530344 | AL24: =(Z24+AF24)-(VLOOKUP($A24,Assumptions!$A$43:$M$98,11,FALSE)*J24) -> 14.58328945 | AM24: 0 | AO24: 19.67854816 | AP24: 14.44305206 | AQ24: 82.06562759 | AR24: 163.6068833 | AS24: 24.34997601 | AT24: 0
A25: ='Gas Use Per Customer'!B24 -> 2023 | B25: ='Gas Use Per Customer'!C24 -> 11 | C25: ='Daily efficiency'!CQ26 -> 39 | D25: ='Gas Use Per Customer'!J24 -> 360.0187795 | E25: ='Gas Use Per Customer'!L24 -> 82.71480144 | F25: =E25*VLOOKUP($C25,'Existing Technology Conversion'!$A:$AR,21,FALSE) -> 24.81444043 | G25: =D25*VLOOKUP($C25,'Existing Technology Conversion'!$A:$AR,27,FALSE) -> 108.0056339 | H25: =E25*VLOOKUP($C25,'Existing Technology Conversion'!$A:$AR,22,FALSE) -> 49.62888087 | I25: =D25*VLOOKUP($C25,'Existing Technology Conversion'!$A:$AR,28,FALSE) -> 252.0131457 | J25: =E25*VLOOKUP($C25,'Existing Technology Conversion'!$A:$AR,23,FALSE) -> 8.271480144 | K25: =D25*VLOOKUP($C25,'Existing Technology Conversion'!$A:$AR,29,FALSE) -> 0 | L25: =F25*'Daily efficiency'!BD26 -> 426.0610777 | M25: =G25*'Daily efficiency'!BE26 -> 1990.217152 | N25: =H25*'Daily efficiency'!BF26 -> 852.7241284 | O25: =I25*'Daily efficiency'!BG26 -> 5857.961567 | P25: =J25*'Daily efficiency'!BH26 -> 258.5113261 | Q25: =K25*'Daily efficiency'!BI26 -> 0 | R25: 47.9447 | S25: 34.17335 | T25: 0.074390308 | U25: 0.074263 | V25: =IFERROR(VLOOKUP($A25,Assumptions!$B$11:$H$35,2,FALSE),0) -> 31.33290435 | W25: =IFERROR(VLOOKUP($A25,Assumptions!$B$11:$H$35,3,FALSE),0) -> 125.3316174 | X25: =IFERROR(VLOOKUP($A25,Assumptions!$B$11:$H$35,4,FALSE),0) -> 79.39016753 | Y25: =IFERROR(VLOOKUP($A25,Assumptions!$B$11:$H$35,5,FALSE),0) -> 317.5606701 | Z25: =IFERROR(VLOOKUP($A25,Assumptions!$B$11:$H$35,6,FALSE),0) -> 8.032004727 | AA25: =IFERROR(VLOOKUP($A25,Assumptions!$B$11:$H$35,7,FALSE),0) -> 0 | AB25: 41.89257881 | AC25: 162.4362769 | AD25: 83.82986195 | AE25: 450.1589752 | AF25: 19.19782661 | AG25: 0 | AH25: =(V25+AB25)-(VLOOKUP($A25,Assumptions!$A$43:$M$98,11,FALSE)*F25) -> 55.96728798 | AI25: =(W25+AC25)-(VLOOKUP($A25,Assumptions!$A$43:$R$98,16,FALSE)*G25) -> 217.5491115 | AJ25: =(X25+AD25)-VLOOKUP($A25,Assumptions!$A$44:$M$98,13,FALSE)-(VLOOKUP($A25,Assumptions!$A$44:$M$98,11,FALSE)*$H25) -> 118.2036391 | AK25: =(Y25+AE25)-VLOOKUP($A25,Assumptions!$A$44:$R$98,18,FALSE)-(VLOOKUP($A25,Assumptions!$A$43:$R$98,16,FALSE)*I25) -> 586.8758188 | AL25: =(Z25+AF25)-(VLOOKUP($A25,Assumptions!$A$43:$M$98,11,FALSE)*J25) -> 21.47709961 | AM25: 0 | AO25: 22.554322 | AP25: 20.14238552 | AQ25: 23.8175105 | AR25: 23.28750817 | AS25: 40.67492622 | AT25: 0
A26: ='Gas Use Per Customer'!B25 -> 2023 | B26: ='Gas Use Per Customer'!C25 -> 12 | C26: ='Daily efficiency'!CQ27 -> 31 | D26: ='Gas Use Per Customer'!J25 -> 517.8154451 | E26: ='Gas Use Per Customer'!L25 -> 114.0802531 | F26: =E26*VLOOKUP($C26,'Existing Technology Conversion'!$A:$AR,21,FALSE) -> 22.81605063 | G26: =D26*VLOOKUP($C26,'Existing Technology Conversion'!$A:$AR,27,FALSE) -> 103.563089 | H26: =E26*VLOOKUP($C26,'Existing Technology Conversion'!$A:$AR,22,FALSE) -> 85.56018985 | I26: =D26*VLOOKUP($C26,'Existing Technology Conversion'!$A:$AR,28,FALSE) -> 414.2523561 | J26: =E26*VLOOKUP($C26,'Existing Technology Conversion'!$A:$AR,23,FALSE) -> 5.704012656 | K26: =D26*VLOOKUP($C26,'Existing Technology Conversion'!$A:$AR,29,FALSE) -> 0 | L26: =F26*'Daily efficiency'!BD27 -> 400.5273732 | M26: =G26*'Daily efficiency'!BE27 -> 1892.154535 | N26: =H26*'Daily efficiency'!BF27 -> 2051.904402 | O26: =I26*'Daily efficiency'!BG27 -> 9670.921698 | P26: =J26*'Daily efficiency'!BH27 -> 172.5187828 | Q26: =K26*'Daily efficiency'!BI27 -> 0 | R26: 47.9447 | S26: 34.17335 | T26: 0.074390308 | U26: 0.074263 | V26: =IFERROR(VLOOKUP($A26,Assumptions!$B$11:$H$35,2,FALSE),0) -> 31.33290435 | W26: =IFERROR(VLOOKUP($A26,Assumptions!$B$11:$H$35,3,FALSE),0) -> 125.3316174 | X26: =IFERROR(VLOOKUP($A26,Assumptions!$B$11:$H$35,4,FALSE),0) -> 79.39016753 | Y26: =IFERROR(VLOOKUP($A26,Assumptions!$B$11:$H$35,5,FALSE),0) -> 317.5606701 | Z26: =IFERROR(VLOOKUP($A26,Assumptions!$B$11:$H$35,6,FALSE),0) -> 8.032004727 | AA26: =IFERROR(VLOOKUP($A26,Assumptions!$B$11:$H$35,7,FALSE),0) -> 0 | AB26: 36.57903432 | AC26: 150.3468986 | AD26: 178.0105891 | AE26: 729.0117838 | AF26: 12.81176237 | AG26: 0 | AH26: =(V26+AB26)-(VLOOKUP($A26,Assumptions!$A$43:$M$98,11,FALSE)*F26) -> 52.04360361 | AI26: =(W26+AC26)-(VLOOKUP($A26,Assumptions!$A$43:$R$98,16,FALSE)*G26) -> 208.3480093 | AJ26: =(X26+AD26)-VLOOKUP($A26,Assumptions!$A$44:$M$98,13,FALSE)-(VLOOKUP($A26,Assumptions!$A$44:$M$98,11,FALSE)*$H26) -> 187.3945002 | AK26: =(Y26+AE26)-VLOOKUP($A26,Assumptions!$A$44:$R$98,18,FALSE)-(VLOOKUP($A26,Assumptions!$A$43:$R$98,16,FALSE)*I26) -> 760.2504271 | AL26: =(Z26+AF26)-(VLOOKUP($A26,Assumptions!$A$43:$M$98,11,FALSE)*J26) -> 16.87668333 | AM26: 0 | AO26: 22.81008421 | AP26: 20.11797941 | AQ26: 21.9020669 | AR26: 18.3523501 | AS26: 29.6884457 | AT26: 0
A27: ='Gas Use Per Customer'!B26 -> 2024 | B27: ='Gas Use Per Customer'!C26 -> 1 | C27: ='Daily efficiency'!CQ28 -> 32 | D27: ='Gas Use Per Customer'!J26 -> 544.1604948 | E27: ='Gas Use Per Customer'!L26 -> 114.1156219 | F27: =E27*VLOOKUP($C27,'Existing Technology Conversion'!$A:$AR,21,FALSE) -> 22.82312437 | G27: =D27*VLOOKUP($C27,'Existing Technology Conversion'!$A:$AR,27,FALSE) -> 108.832099 | H27: =E27*VLOOKUP($C27,'Existing Technology Conversion'!$A:$AR,22,FALSE) -> 85.5867164 | I27: =D27*VLOOKUP($C27,'Existing Technology Conversion'!$A:$AR,28,FALSE) -> 435.3283958 | J27: =E27*VLOOKUP($C27,'Existing Technology Conversion'!$A:$AR,23,FALSE) -> 5.705781093 | K27: =D27*VLOOKUP($C27,'Existing Technology Conversion'!$A:$AR,29,FALSE) -> 0 | L27: =F27*'Daily efficiency'!BD28 -> 423.8105994 | M27: =G27*'Daily efficiency'!BE28 -> 2112.234336 | N27: =H27*'Daily efficiency'!BF28 -> 1914.274453 | O27: =I27*'Daily efficiency'!BG28 -> 9998.369824 | P27: =J27*'Daily efficiency'!BH28 -> 194.1438031 | Q27: =K27*'Daily efficiency'!BI28 -> 0 | R27: 47.9447 | S27: 34.17335 | T27: 0.074390308 | U27: 0.074263 | V27: =IFERROR(VLOOKUP($A27,Assumptions!$B$11:$H$35,2,FALSE),0) -> 31.33290435 | W27: =IFERROR(VLOOKUP($A27,Assumptions!$B$11:$H$35,3,FALSE),0) -> 125.3316174 | X27: =IFERROR(VLOOKUP($A27,Assumptions!$B$11:$H$35,4,FALSE),0) -> 79.39016753 | Y27: =IFERROR(VLOOKUP($A27,Assumptions!$B$11:$H$35,5,FALSE),0) -> 317.5606701 | Z27: =IFERROR(VLOOKUP($A27,Assumptions!$B$11:$H$35,6,FALSE),0) -> 8.032004727 | AA27: =IFERROR(VLOOKUP($A27,Assumptions!$B$11:$H$35,7,FALSE),0) -> 0 | AB27: 38.30811654 | AC27: 166.7187028 | AD27: 167.7897762 | AE27: 753.3707507 | AF27: 14.41770125 | AG27: 0 | AH27: =(V27+AB27)-(VLOOKUP($A27,Assumptions!$A$43:$M$98,11,FALSE)*F27) -> 53.26426648 | AI27: =(W27+AC27)-(VLOOKUP($A27,Assumptions!$A$43:$R$98,16,FALSE)*G27) -> 219.0498359 | AJ27: =(X27+AD27)-VLOOKUP($A27,Assumptions!$A$44:$M$98,13,FALSE)-(VLOOKUP($A27,Assumptions!$A$44:$M$98,11,FALSE)*$H27) -> 174.9340547 | AK27: =(Y27+AE27)-VLOOKUP($A27,Assumptions!$A$44:$R$98,18,FALSE)-(VLOOKUP($A27,Assumptions!$A$43:$R$98,16,FALSE)*I27) -> 768.0964235 | AL27: =(Z27+AF27)-(VLOOKUP($A27,Assumptions!$A$43:$M$98,11,FALSE)*J27) -> 18.35551738 | AM27: 0 | AO27: 23.33785051 | AP27: 20.12731887 | AQ27: 20.43939318 | AR27: 17.64406896 | AS27: 32.77321863 | AT27: 0
A28: ='Gas Use Per Customer'!B27 -> 2024 | B28: ='Gas Use Per Customer'!C27 -> 2 | C28: ='Daily efficiency'!CQ29 -> 31 | D28: ='Gas Use Per Customer'!J27 -> 508.4450862 | E28: ='Gas Use Per Customer'!L27 -> 106.5289138 | F28: =E28*VLOOKUP($C28,'Existing Technology Conversion'!$A:$AR,21,FALSE) -> 21.30578275 | G28: =D28*VLOOKUP($C28,'Existing Technology Conversion'!$A:$AR,27,FALSE) -> 101.6890172 | H28: =E28*VLOOKUP($C28,'Existing Technology Conversion'!$A:$AR,22,FALSE) -> 79.89668532 | I28: =D28*VLOOKUP($C28,'Existing Technology Conversion'!$A:$AR,28,FALSE) -> 406.756069 | J28: =E28*VLOOKUP($C28,'Existing Technology Conversion'!$A:$AR,23,FALSE) -> 5.326445688 | K28: =D28*VLOOKUP($C28,'Existing Technology Conversion'!$A:$AR,29,FALSE) -> 0 | L28: =F28*'Daily efficiency'!BD29 -> 378.2300226 | M28: =G28*'Daily efficiency'!BE29 -> 2008.961195 | N28: =H28*'Daily efficiency'!BF29 -> 1514.922853 | O28: =I28*'Daily efficiency'!BG29 -> 9287.783922 | P28: =J28*'Daily efficiency'!BH29 -> 188.3541398 | Q28: =K28*'Daily efficiency'!BI29 -> 0 | R28: 47.9447 | S28: 34.17335 | T28: 0.074390308 | U28: 0.074263 | V28: =IFERROR(VLOOKUP($A28,Assumptions!$B$11:$H$35,2,FALSE),0) -> 31.33290435 | W28: =IFERROR(VLOOKUP($A28,Assumptions!$B$11:$H$35,3,FALSE),0) -> 125.3316174 | X28: =IFERROR(VLOOKUP($A28,Assumptions!$B$11:$H$35,4,FALSE),0) -> 79.39016753 | Y28: =IFERROR(VLOOKUP($A28,Assumptions!$B$11:$H$35,5,FALSE),0) -> 317.5606701 | Z28: =IFERROR(VLOOKUP($A28,Assumptions!$B$11:$H$35,6,FALSE),0) -> 8.032004727 | AA28: =IFERROR(VLOOKUP($A28,Assumptions!$B$11:$H$35,7,FALSE),0) -> 0 | AB28: 34.92316617 | AC28: 159.0361821 | AD28: 138.1327283 | AE28: 700.5100466 | AF28: 13.98774348 | AG28: 0 | AH28: =(V28+AB28)-(VLOOKUP($A28,Assumptions!$A$43:$M$98,11,FALSE)*F28) -> 50.96808601 | AI28: =(W28+AC28)-(VLOOKUP($A28,Assumptions!$A$43:$R$98,16,FALSE)*G28) -> 216.158626 | AJ28: =(X28+AD28)-VLOOKUP($A28,Assumptions!$A$44:$M$98,13,FALSE)-(VLOOKUP($A28,Assumptions!$A$44:$M$98,11,FALSE)*$H28) -> 149.359894 | AK28: =(Y28+AE28)-VLOOKUP($A28,Assumptions!$A$44:$R$98,18,FALSE)-(VLOOKUP($A28,Assumptions!$A$43:$R$98,16,FALSE)*I28) -> 734.4009631 | AL28: =(Z28+AF28)-(VLOOKUP($A28,Assumptions!$A$43:$M$98,11,FALSE)*J28) -> 18.19775208 | AM28: 0 | AO28: 23.92218423 | AP28: 21.25683106 | AQ28: 18.69412897 | AR28: 18.05507082 | AS28: 32.18549556 | AT28: 0
A29: ='Gas Use Per Customer'!B28 -> 2024 | B29: ='Gas Use Per Customer'!C28 -> 3 | C29: ='Daily efficiency'!CQ30 -> 41 | D29: ='Gas Use Per Customer'!J28 -> 375.0502243 | E29: ='Gas Use Per Customer'!L28 -> 78.15101924 | F29: =E29*VLOOKUP($C29,'Existing Technology Conversion'!$A:$AR,21,FALSE) -> 23.44530577 | G29: =D29*VLOOKUP($C29,'Existing Technology Conversion'!$A:$AR,27,FALSE) -> 112.5150673 | H29: =E29*VLOOKUP($C29,'Existing Technology Conversion'!$A:$AR,22,FALSE) -> 46.89061154 | I29: =D29*VLOOKUP($C29,'Existing Technology Conversion'!$A:$AR,28,FALSE) -> 262.535157 | J29: =E29*VLOOKUP($C29,'Existing Technology Conversion'!$A:$AR,23,FALSE) -> 7.815101924 | K29: =D29*VLOOKUP($C29,'Existing Technology Conversion'!$A:$AR,29,FALSE) -> 0 | L29: =F29*'Daily efficiency'!BD30 -> 387.7833276 | M29: =G29*'Daily efficiency'!BE30 -> 2004.511297 | N29: =H29*'Daily efficiency'!BF30 -> 796.6436442 | O29: =I29*'Daily efficiency'!BG30 -> 6153.824081 | P29: =J29*'Daily efficiency'!BH30 -> 228.9824864 | Q29: =K29*'Daily efficiency'!BI30 -> 0 | R29: 47.9447 | S29: 34.17335 | T29: 0.074390308 | U29: 0.074263 | V29: =IFERROR(VLOOKUP($A29,Assumptions!$B$11:$H$35,2,FALSE),0) -> 31.33290435 | W29: =IFERROR(VLOOKUP($A29,Assumptions!$B$11:$H$35,3,FALSE),0) -> 125.3316174 | X29: =IFERROR(VLOOKUP($A29,Assumptions!$B$11:$H$35,4,FALSE),0) -> 79.39016753 | Y29: =IFERROR(VLOOKUP($A29,Assumptions!$B$11:$H$35,5,FALSE),0) -> 317.5606701 | Z29: =IFERROR(VLOOKUP($A29,Assumptions!$B$11:$H$35,6,FALSE),0) -> 8.032004727 | AA29: =IFERROR(VLOOKUP($A29,Assumptions!$B$11:$H$35,7,FALSE),0) -> 0 | AB29: 39.04995825 | AC29: 163.4996228 | AD29: 79.66515695 | AE29: 472.1682787 | AF29: 17.00492638 | AG29: 0 | AH29: =(V29+AB29)-(VLOOKUP($A29,Assumptions!$A$43:$M$98,11,FALSE)*F29) -> 53.55966134 | AI29: =(W29+AC29)-(VLOOKUP($A29,Assumptions!$A$43:$R$98,16,FALSE)*G29) -> 213.360359 | AJ29: =(X29+AD29)-VLOOKUP($A29,Assumptions!$A$44:$M$98,13,FALSE)-(VLOOKUP($A29,Assumptions!$A$44:$M$98,11,FALSE)*$H29) -> 114.575862 | AK29: =(Y29+AE29)-VLOOKUP($A29,Assumptions!$A$44:$R$98,18,FALSE)-(VLOOKUP($A29,Assumptions!$A$43:$R$98,16,FALSE)*I29) -> 602.7971661 | AL29: =(Z29+AF29)-(VLOOKUP($A29,Assumptions!$A$43:$M$98,11,FALSE)*J29) -> 19.42919736 | AM29: 0 | AO29: 22.84451389 | AP29: 18.96282552 | AQ29: 24.43471266 | AR29: 22.96062641 | AS29: 36.43412374 | AT29: 0
A30: ='Gas Use Per Customer'!B29 -> 2024 | B30: ='Gas Use Per Customer'!C29 -> 4 | C30: ='Daily efficiency'!CQ31 -> 47 | D30: ='Gas Use Per Customer'!J29 -> 258.7720035 | E30: ='Gas Use Per Customer'!L29 -> 55.63855768 | F30: =E30*VLOOKUP($C30,'Existing Technology Conversion'!$A:$AR,21,FALSE) -> 16.6915673 | G30: =D30*VLOOKUP($C30,'Existing Technology Conversion'!$A:$AR,27,FALSE) -> 77.63160105 | H30: =E30*VLOOKUP($C30,'Existing Technology Conversion'!$A:$AR,22,FALSE) -> 33.38313461 | I30: =D30*VLOOKUP($C30,'Existing Technology Conversion'!$A:$AR,28,FALSE) -> 181.1404024 | J30: =E30*VLOOKUP($C30,'Existing Technology Conversion'!$A:$AR,23,FALSE) -> 5.563855768 | K30: =D30*VLOOKUP($C30,'Existing Technology Conversion'!$A:$AR,29,FALSE) -> 0 | L30: =F30*'Daily efficiency'!BD31 -> 264.3447794 | M30: =G30*'Daily efficiency'!BE31 -> 1377.386221 | N30: =H30*'Daily efficiency'!BF31 -> 543.7913918 | O30: =I30*'Daily efficiency'!BG31 -> 4245.931033 | P30: =J30*'Daily efficiency'!BH31 -> 163.020974 | Q30: =K30*'Daily efficiency'!BI31 -> 0 | R30: 47.9447 | S30: 34.17335 | T30: 0.074390308 | U30: 0.074263 | V30: =IFERROR(VLOOKUP($A30,Assumptions!$B$11:$H$35,2,FALSE),0) -> 31.33290435 | W30: =IFERROR(VLOOKUP($A30,Assumptions!$B$11:$H$35,3,FALSE),0) -> 125.3316174 | X30: =IFERROR(VLOOKUP($A30,Assumptions!$B$11:$H$35,4,FALSE),0) -> 79.39016753 | Y30: =IFERROR(VLOOKUP($A30,Assumptions!$B$11:$H$35,5,FALSE),0) -> 317.5606701 | Z30: =IFERROR(VLOOKUP($A30,Assumptions!$B$11:$H$35,6,FALSE),0) -> 8.032004727 | AA30: =IFERROR(VLOOKUP($A30,Assumptions!$B$11:$H$35,7,FALSE),0) -> 0 | AB30: 29.88304135 | AC30: 116.8475952 | AD30: 60.88759013 | AE30: 330.2395273 | AF30: 12.10642659 | AG30: 0 | AH30: =(V30+AB30)-(VLOOKUP($A30,Assumptions!$A$43:$M$98,11,FALSE)*F30) -> 49.23889584 | AI30: =(W30+AC30)-(VLOOKUP($A30,Assumptions!$A$43:$R$98,16,FALSE)*G30) -> 190.1068504 | AJ30: =(X30+AD30)-VLOOKUP($A30,Assumptions!$A$44:$M$98,13,FALSE)-(VLOOKUP($A30,Assumptions!$A$44:$M$98,11,FALSE)*$H30) -> 105.4905979 | AK30: =(Y30+AE30)-VLOOKUP($A30,Assumptions!$A$44:$R$98,18,FALSE)-(VLOOKUP($A30,Assumptions!$A$43:$R$98,16,FALSE)*I30) -> 515.4649589 | AL30: =(Z30+AF30)-(VLOOKUP($A30,Assumptions!$A$43:$M$98,11,FALSE)*J30) -> 16.14608137 | AM30: 0 | AO30: 29.49926448 | AP30: 24.48833308 | AQ30: 31.59996782 | AR30: 28.45665307 | AS30: 28.25250796 | AT30: 0
A31: ='Gas Use Per Customer'!B30 -> 2024 | B31: ='Gas Use Per Customer'!C30 -> 5 | C31: ='Daily efficiency'!CQ32 -> 54 | D31: ='Gas Use Per Customer'!J30 -> 151.7679706 | E31: ='Gas Use Per Customer'!L30 -> 37.99051315 | F31: =E31*VLOOKUP($C31,'Existing Technology Conversion'!$A:$AR,21,FALSE) -> 30.39241052 | G31: =D31*VLOOKUP($C31,'Existing Technology Conversion'!$A:$AR,27,FALSE) -> 136.5911735 | H31: =E31*VLOOKUP($C31,'Existing Technology Conversion'!$A:$AR,22,FALSE) -> 3.799051315 | I31: =D31*VLOOKUP($C31,'Existing Technology Conversion'!$A:$AR,28,FALSE) -> 15.17679706 | J31: =E31*VLOOKUP($C31,'Existing Technology Conversion'!$A:$AR,23,FALSE) -> 3.799051315 | K31: =D31*VLOOKUP($C31,'Existing Technology Conversion'!$A:$AR,29,FALSE) -> 0 | L31: =F31*'Daily efficiency'!BD32 -> 424.6988689 | M31: =G31*'Daily efficiency'!BE32 -> 2343.824695 | N31: =H31*'Daily efficiency'!BF32 -> 47.18714103 | O31: =I31*'Daily efficiency'!BG32 -> 355.744123 | P31: =J31*'Daily efficiency'!BH32 -> 111.3122035 | Q31: =K31*'Daily efficiency'!BI32 -> 0 | R31: 47.9447 | S31: 34.17335 | T31: 0.074390308 | U31: 0.074263 | V31: =IFERROR(VLOOKUP($A31,Assumptions!$B$11:$H$35,2,FALSE),0) -> 31.33290435 | W31: =IFERROR(VLOOKUP($A31,Assumptions!$B$11:$H$35,3,FALSE),0) -> 125.3316174 | X31: =IFERROR(VLOOKUP($A31,Assumptions!$B$11:$H$35,4,FALSE),0) -> 79.39016753 | Y31: =IFERROR(VLOOKUP($A31,Assumptions!$B$11:$H$35,5,FALSE),0) -> 317.5606701 | Z31: =IFERROR(VLOOKUP($A31,Assumptions!$B$11:$H$35,6,FALSE),0) -> 8.032004727 | AA31: =IFERROR(VLOOKUP($A31,Assumptions!$B$11:$H$35,7,FALSE),0) -> 0 | AB31: 58.8780921 | AC31: 217.508071 | AD31: 6.921593654 | AE31: 69.61414488 | AF31: 8.266378171 | AG31: 0 | AH31: =(V31+AB31)-(VLOOKUP($A31,Assumptions!$A$43:$M$98,11,FALSE)*F31) -> 68.40289362 | AI31: =(W31+AC31)-(VLOOKUP($A31,Assumptions!$A$43:$R$98,16,FALSE)*G31) -> 251.2194594 | AJ31: =(X31+AD31)-VLOOKUP($A31,Assumptions!$A$44:$M$98,13,FALSE)-(VLOOKUP($A31,Assumptions!$A$44:$M$98,11,FALSE)*$H31) -> 72.75268833 | AK31: =(Y31+AE31)-VLOOKUP($A31,Assumptions!$A$44:$R$98,18,FALSE)-(VLOOKUP($A31,Assumptions!$A$43:$R$98,16,FALSE)*I31) -> 366.1617295 | AL31: =(Z31+AF31)-(VLOOKUP($A31,Assumptions!$A$43:$M$98,11,FALSE)*J31) -> 13.57237005 | AM31: 0 | AO31: 22.5065707 | AP31: 18.39207124 | AQ31: 79.67428198 | AR31: 241.2641667 | AS31: 21.83874822 | AT31: 0
A32: ='Gas Use Per Customer'!B31 -> 2024 | B32: ='Gas Use Per Customer'!C31 -> 6 | C32: ='Daily efficiency'!CQ33 -> 60 | D32: ='Gas Use Per Customer'!J31 -> 115.3551156 | E32: ='Gas Use Per Customer'!L31 -> 24.01671229 | F32: =E32*VLOOKUP($C32,'Existing Technology Conversion'!$A:$AR,21,FALSE) -> 19.21336983 | G32: =D32*VLOOKUP($C32,'Existing Technology Conversion'!$A:$AR,27,FALSE) -> 103.819604 | H32: =E32*VLOOKUP($C32,'Existing Technology Conversion'!$A:$AR,22,FALSE) -> 2.401671229 | I32: =D32*VLOOKUP($C32,'Existing Technology Conversion'!$A:$AR,28,FALSE) -> 11.53551156 | J32: =E32*VLOOKUP($C32,'Existing Technology Conversion'!$A:$AR,23,FALSE) -> 2.401671229 | K32: =D32*VLOOKUP($C32,'Existing Technology Conversion'!$A:$AR,29,FALSE) -> 0 | L32: =F32*'Daily efficiency'!BD33 -> 268.4846741 | M32: =G32*'Daily efficiency'!BE33 -> 1779.232949 | N32: =H32*'Daily efficiency'!BF33 -> 29.48794808 | O32: =I32*'Daily efficiency'!BG33 -> 270.3923909 | P32: =J32*'Daily efficiency'!BH33 -> 70.36896701 | Q32: =K32*'Daily efficiency'!BI33 -> 0 | R32: 47.9447 | S32: 34.17335 | T32: 0.074390308 | U32: 0.074263 | V32: =IFERROR(VLOOKUP($A32,Assumptions!$B$11:$H$35,2,FALSE),0) -> 31.33290435 | W32: =IFERROR(VLOOKUP($A32,Assumptions!$B$11:$H$35,3,FALSE),0) -> 125.3316174 | X32: =IFERROR(VLOOKUP($A32,Assumptions!$B$11:$H$35,4,FALSE),0) -> 79.39016753 | Y32: =IFERROR(VLOOKUP($A32,Assumptions!$B$11:$H$35,5,FALSE),0) -> 317.5606701 | Z32: =IFERROR(VLOOKUP($A32,Assumptions!$B$11:$H$35,6,FALSE),0) -> 8.032004727 | AA32: =IFERROR(VLOOKUP($A32,Assumptions!$B$11:$H$35,7,FALSE),0) -> 0 | AB32: 47.27715735 | AC32: 175.5079171 | AD32: 5.607198488 | AE32: 63.26480324 | AF32: 5.225810597 | AG32: 0 | AH32: =(V32+AB32)-(VLOOKUP($A32,Assumptions!$A$43:$M$98,11,FALSE)*F32) -> 64.82349006 | AI32: =(W32+AC32)-(VLOOKUP($A32,Assumptions!$A$43:$R$98,16,FALSE)*G32) -> 231.2012435 | AJ32: =(X32+AD32)-VLOOKUP($A32,Assumptions!$A$44:$M$98,13,FALSE)-(VLOOKUP($A32,Assumptions!$A$44:$M$98,11,FALSE)*$H32) -> 72.44098456 | AK32: =(Y32+AE32)-VLOOKUP($A32,Assumptions!$A$44:$R$98,18,FALSE)-(VLOOKUP($A32,Assumptions!$A$43:$R$98,16,FALSE)*I32) -> 362.2548255 | AL32: =(Z32+AF32)-(VLOOKUP($A32,Assumptions!$A$43:$M$98,11,FALSE)*J32) -> 11.53449387 | AM32: 0 | AO32: 33.73874059 | AP32: 22.26951699 | AQ32: 78.04818305 | AR32: 314.0344697 | AS32: 16.76030447 | AT32: 0
A33: ='Gas Use Per Customer'!B32 -> 2024 | B33: ='Gas Use Per Customer'!C32 -> 7 | C33: ='Daily efficiency'!CQ34 -> 64 | D33: ='Gas Use Per Customer'!J32 -> 107.7797177 | E33: ='Gas Use Per Customer'!L32 -> 20.50130397 | F33: =E33*VLOOKUP($C33,'Existing Technology Conversion'!$A:$AR,21,FALSE) -> 19.47623877 | G33: =D33*VLOOKUP($C33,'Existing Technology Conversion'!$A:$AR,27,FALSE) -> 107.7797177 | H33: =E33*VLOOKUP($C33,'Existing Technology Conversion'!$A:$AR,22,FALSE) -> 0 | I33: =D33*VLOOKUP($C33,'Existing Technology Conversion'!$A:$AR,28,FALSE) -> 0 | J33: =E33*VLOOKUP($C33,'Existing Technology Conversion'!$A:$AR,23,FALSE) -> 1.025065198 | K33: =D33*VLOOKUP($C33,'Existing Technology Conversion'!$A:$AR,29,FALSE) -> 0 | L33: =F33*'Daily efficiency'!BD34 -> 306.5522231 | M33: =G33*'Daily efficiency'!BE34 -> 1983.962703 | N33: =H33*'Daily efficiency'!BF34 -> 0 | O33: =I33*'Daily efficiency'!BG34 -> 0 | P33: =J33*'Daily efficiency'!BH34 -> 19.37703891 | Q33: =K33*'Daily efficiency'!BI34 -> 0 | R33: 47.9447 | S33: 34.17335 | T33: 0.074390308 | U33: 0.074263 | V33: =IFERROR(VLOOKUP($A33,Assumptions!$B$11:$H$35,2,FALSE),0) -> 31.33290435 | W33: =IFERROR(VLOOKUP($A33,Assumptions!$B$11:$H$35,3,FALSE),0) -> 125.3316174 | X33: =IFERROR(VLOOKUP($A33,Assumptions!$B$11:$H$35,4,FALSE),0) -> 79.39016753 | Y33: =IFERROR(VLOOKUP($A33,Assumptions!$B$11:$H$35,5,FALSE),0) -> 317.5606701 | Z33: =IFERROR(VLOOKUP($A33,Assumptions!$B$11:$H$35,6,FALSE),0) -> 8.032004727 | AA33: =IFERROR(VLOOKUP($A33,Assumptions!$B$11:$H$35,7,FALSE),0) -> 0 | AB33: 55.23017024 | AC33: 195.5322965 | AD33: 0 | AE33: 47.9447 | AF33: 1.438997041 | AG33: 0 | AH33: =(V33+AB33)-(VLOOKUP($A33,Assumptions!$A$43:$M$98,11,FALSE)*F33) -> 72.5878811 | AI33: =(W33+AC33)-(VLOOKUP($A33,Assumptions!$A$43:$R$98,16,FALSE)*G33) -> 248.5693274 | AJ33: =(X33+AD33)-VLOOKUP($A33,Assumptions!$A$44:$M$98,13,FALSE)-(VLOOKUP($A33,Assumptions!$A$44:$M$98,11,FALSE)*$H33) -> 68.55710753 | AK33: =(Y33+AE33)-VLOOKUP($A33,Assumptions!$A$44:$R$98,18,FALSE)-(VLOOKUP($A33,Assumptions!$A$43:$R$98,16,FALSE)*I33) -> 354.6723101 | AL33: =(Z33+AF33)-(VLOOKUP($A33,Assumptions!$A$43:$M$98,11,FALSE)*J33) -> 8.735465268 | AM33: 0 | AO33: 37.26996878 | AP33: 23.06271835 | AQ33: 68.55710753 | AR33: 402.6170101 | AS33: 10.17446231 | AT33: 0
A34: ='Gas Use Per Customer'!B33 -> 2024 | B34: ='Gas Use Per Customer'!C33 -> 8 | C34: ='Daily efficiency'!CQ35 -> 63 | D34: ='Gas Use Per Customer'!J33 -> 135.8277112 | E34: ='Gas Use Per Customer'!L33 -> 24.83299448 | F34: =E34*VLOOKUP($C34,'Existing Technology Conversion'!$A:$AR,21,FALSE) -> 19.86639559 | G34: =D34*VLOOKUP($C34,'Existing Technology Conversion'!$A:$AR,27,FALSE) -> 122.2449401 | H34: =E34*VLOOKUP($C34,'Existing Technology Conversion'!$A:$AR,22,FALSE) -> 2.483299448 | I34: =D34*VLOOKUP($C34,'Existing Technology Conversion'!$A:$AR,28,FALSE) -> 13.58277112 | J34: =E34*VLOOKUP($C34,'Existing Technology Conversion'!$A:$AR,23,FALSE) -> 2.483299448 | K34: =D34*VLOOKUP($C34,'Existing Technology Conversion'!$A:$AR,29,FALSE) -> 0 | L34: =F34*'Daily efficiency'!BD35 -> 301.1172502 | M34: =G34*'Daily efficiency'!BE35 -> 2200.127015 | N34: =H34*'Daily efficiency'!BF35 -> 16.7204252 | O34: =I34*'Daily efficiency'!BG35 -> 174.5955689 | P34: =J34*'Daily efficiency'!BH35 -> 56.33084426 | Q34: =K34*'Daily efficiency'!BI35 -> 0 | R34: =R23*1.01 -> 47.9447 | S34: 34.17335 | T34: =T23*1.03 -> 0.074390308 | U34: 0.074263 | V34: =IFERROR(VLOOKUP($A34,Assumptions!$B$11:$H$35,2,FALSE),0) -> 31.33290435 | W34: =IFERROR(VLOOKUP($A34,Assumptions!$B$11:$H$35,3,FALSE),0) -> 125.3316174 | X34: =IFERROR(VLOOKUP($A34,Assumptions!$B$11:$H$35,4,FALSE),0) -> 79.39016753 | Y34: =IFERROR(VLOOKUP($A34,Assumptions!$B$11:$H$35,5,FALSE),0) -> 317.5606701 | Z34: =IFERROR(VLOOKUP($A34,Assumptions!$B$11:$H$35,6,FALSE),0) -> 8.032004727 | AA34: =IFERROR(VLOOKUP($A34,Assumptions!$B$11:$H$35,7,FALSE),0) -> 0 | AB34: 49.70055035 | AC34: 206.8183563 | AD34: 4.659043937 | AE34: 56.13844815 | AF34: 4.183297487 | AG34: 0 | AH34: =(V34+AB34)-(VLOOKUP($A34,Assumptions!$A$43:$M$98,11,FALSE)*F34) -> 66.77830381 | AI34: =(W34+AC34)-(VLOOKUP($A34,Assumptions!$A$43:$R$98,16,FALSE)*G34) -> 250.1526593 | AJ34: =(X34+AD34)-VLOOKUP($A34,Assumptions!$A$44:$M$98,13,FALSE)-(VLOOKUP($A34,Assumptions!$A$44:$M$98,11,FALSE)*$H34) -> 71.4342576 | AK34: =(Y34+AE34)-VLOOKUP($A34,Assumptions!$A$44:$R$98,18,FALSE)-(VLOOKUP($A34,Assumptions!$A$43:$R$98,16,FALSE)*I34) -> 353.7552455 | AL34: =(Z34+AF34)-(VLOOKUP($A34,Assumptions!$A$43:$M$98,11,FALSE)*J34) -> 10.43340835 | AM34: 0 | AO34: 33.61369883 | AP34: 20.46323219 | AQ34: 76.09330154 | AR34: 260.4440893 | AS34: 14.61670584 | AT34: 0
A35: ='Gas Use Per Customer'!B34 -> 2024 | B35: ='Gas Use Per Customer'!C34 -> 9 | C35: ='Daily efficiency'!CQ36 -> 58 | D35: ='Gas Use Per Customer'!J34 -> 113.4548912 | E35: ='Gas Use Per Customer'!L34 -> 20.4657933 | F35: =E35*VLOOKUP($C35,'Existing Technology Conversion'!$A:$AR,21,FALSE) -> 16.37263464 | G35: =D35*VLOOKUP($C35,'Existing Technology Conversion'!$A:$AR,27,FALSE) -> 102.1094021 | H35: =E35*VLOOKUP($C35,'Existing Technology Conversion'!$A:$AR,22,FALSE) -> 2.04657933 | I35: =D35*VLOOKUP($C35,'Existing Technology Conversion'!$A:$AR,28,FALSE) -> 11.34548912 | J35: =E35*VLOOKUP($C35,'Existing Technology Conversion'!$A:$AR,23,FALSE) -> 2.04657933 | K35: =D35*VLOOKUP($C35,'Existing Technology Conversion'!$A:$AR,29,FALSE) -> 0 | L35: =F35*'Daily efficiency'!BD36 -> 228.7886776 | M35: =G35*'Daily efficiency'!BE36 -> 1749.923961 | N35: =H35*'Daily efficiency'!BF36 -> 25.12809593 | O35: =I35*'Daily efficiency'!BG36 -> 265.9382651 | P35: =J35*'Daily efficiency'!BH36 -> 59.96477438 | Q35: =K35*'Daily efficiency'!BI36 -> 0 | R35: 47.9447 | S35: 34.17335 | T35: 0.074390308 | U35: 0.074263 | V35: =IFERROR(VLOOKUP($A35,Assumptions!$B$11:$H$35,2,FALSE),0) -> 31.33290435 | W35: =IFERROR(VLOOKUP($A35,Assumptions!$B$11:$H$35,3,FALSE),0) -> 125.3316174 | X35: =IFERROR(VLOOKUP($A35,Assumptions!$B$11:$H$35,4,FALSE),0) -> 79.39016753 | Y35: =IFERROR(VLOOKUP($A35,Assumptions!$B$11:$H$35,5,FALSE),0) -> 317.5606701 | Z35: =IFERROR(VLOOKUP($A35,Assumptions!$B$11:$H$35,6,FALSE),0) -> 8.032004727 | AA35: =IFERROR(VLOOKUP($A35,Assumptions!$B$11:$H$35,7,FALSE),0) -> 0 | AB35: 44.32921357 | AC35: 173.3276124 | AD35: 5.283422788 | AE35: 62.93345945 | AF35: 4.45316404 | AG35: 0 | AH35: =(V35+AB35)-(VLOOKUP($A35,Assumptions!$A$43:$M$98,11,FALSE)*F35) -> 63.91391849 | AI35: =(W35+AC35)-(VLOOKUP($A35,Assumptions!$A$43:$R$98,16,FALSE)*G35) -> 230.168078 | AJ35: =(X35+AD35)-VLOOKUP($A35,Assumptions!$A$44:$M$98,13,FALSE)-(VLOOKUP($A35,Assumptions!$A$44:$M$98,11,FALSE)*$H35) -> 72.37200539 | AK35: =(Y35+AE35)-VLOOKUP($A35,Assumptions!$A$44:$R$98,18,FALSE)-(VLOOKUP($A35,Assumptions!$A$43:$R$98,16,FALSE)*I35) -> 362.0509416 | AL35: =(Z35+AF35)-(VLOOKUP($A35,Assumptions!$A$43:$M$98,11,FALSE)*J35) -> 11.01664384 | AM35: 0 | AO35: 39.03703948 | AP35: 22.54132071 | AQ35: 77.65542817 | AR35: 319.1144407 | AS35: 15.46980788 | AT35: 0
A36: ='Gas Use Per Customer'!B35 -> 2024 | B36: ='Gas Use Per Customer'!C35 -> 10 | C36: ='Daily efficiency'!CQ37 -> 48 | D36: ='Gas Use Per Customer'!J35 -> 225.2042123 | E36: ='Gas Use Per Customer'!L35 -> 46.46786335 | F36: =E36*VLOOKUP($C36,'Existing Technology Conversion'!$A:$AR,21,FALSE) -> 13.940359 | G36: =D36*VLOOKUP($C36,'Existing Technology Conversion'!$A:$AR,27,FALSE) -> 67.56126369 | H36: =E36*VLOOKUP($C36,'Existing Technology Conversion'!$A:$AR,22,FALSE) -> 27.88071801 | I36: =D36*VLOOKUP($C36,'Existing Technology Conversion'!$A:$AR,28,FALSE) -> 157.6429486 | J36: =E36*VLOOKUP($C36,'Existing Technology Conversion'!$A:$AR,23,FALSE) -> 4.646786335 | K36: =D36*VLOOKUP($C36,'Existing Technology Conversion'!$A:$AR,29,FALSE) -> 0 | L36: =F36*'Daily efficiency'!BD37 -> 209.6532509 | M36: =G36*'Daily efficiency'!BE37 -> 1184.21173 | N36: =H36*'Daily efficiency'!BF37 -> 414.4130394 | O36: =I36*'Daily efficiency'!BG37 -> 3695.150715 | P36: =J36*'Daily efficiency'!BH37 -> 136.1508396 | Q36: =K36*'Daily efficiency'!BI37 -> 0 | R36: 48.424147 | S36: 34.5150835 | T36: 0.07662201724 | U36: 0.07649089 | V36: =IFERROR(VLOOKUP($A36,Assumptions!$B$11:$H$35,2,FALSE),0) -> 31.33290435 | W36: =IFERROR(VLOOKUP($A36,Assumptions!$B$11:$H$35,3,FALSE),0) -> 125.3316174 | X36: =IFERROR(VLOOKUP($A36,Assumptions!$B$11:$H$35,4,FALSE),0) -> 79.39016753 | Y36: =IFERROR(VLOOKUP($A36,Assumptions!$B$11:$H$35,5,FALSE),0) -> 317.5606701 | Z36: =IFERROR(VLOOKUP($A36,Assumptions!$B$11:$H$35,6,FALSE),0) -> 8.032004727 | AA36: =IFERROR(VLOOKUP($A36,Assumptions!$B$11:$H$35,7,FALSE),0) -> 0 | AB36: 26.3910888 | AC36: 105.2639357 | AD36: 52.40787231 | AE36: 297.6571459 | AF36: 10.4142989 | AG36: 0 | AH36: =(V36+AB36)-(VLOOKUP($A36,Assumptions!$A$43:$M$98,11,FALSE)*F36) -> 47.7210754 | AI36: =(W36+AC36)-(VLOOKUP($A36,Assumptions!$A$43:$R$98,16,FALSE)*G36) -> 185.277995 | AJ36: =(X36+AD36)-VLOOKUP($A36,Assumptions!$A$44:$M$98,13,FALSE)-(VLOOKUP($A36,Assumptions!$A$44:$M$98,11,FALSE)*$H36) -> 100.9591443 | AK36: =(Y36+AE36)-VLOOKUP($A36,Assumptions!$A$44:$R$98,18,FALSE)-(VLOOKUP($A36,Assumptions!$A$43:$R$98,16,FALSE)*I36) -> 498.643787 | AL36: =(Z36+AF36)-(VLOOKUP($A36,Assumptions!$A$43:$M$98,11,FALSE)*J36) -> 15.11199771 | AM36: 0 | AO36: 34.23231453 | AP36: 27.42370181 | AQ36: 36.21109913 | AR36: 31.63121417 | AS36: 25.5262966 | AT36: 0
A37: ='Gas Use Per Customer'!B36 -> 2024 | B37: ='Gas Use Per Customer'!C36 -> 11 | C37: ='Daily efficiency'!CQ38 -> 39 | D37: ='Gas Use Per Customer'!J36 -> 357.3137742 | E37: ='Gas Use Per Customer'!L36 -> 82.06490523 | F37: =E37*VLOOKUP($C37,'Existing Technology Conversion'!$A:$AR,21,FALSE) -> 24.61947157 | G37: =D37*VLOOKUP($C37,'Existing Technology Conversion'!$A:$AR,27,FALSE) -> 107.1941323 | H37: =E37*VLOOKUP($C37,'Existing Technology Conversion'!$A:$AR,22,FALSE) -> 49.23894314 | I37: =D37*VLOOKUP($C37,'Existing Technology Conversion'!$A:$AR,28,FALSE) -> 250.119642 | J37: =E37*VLOOKUP($C37,'Existing Technology Conversion'!$A:$AR,23,FALSE) -> 8.206490523 | K37: =D37*VLOOKUP($C37,'Existing Technology Conversion'!$A:$AR,29,FALSE) -> 0 | L37: =F37*'Daily efficiency'!BD38 -> 414.9691156 | M37: =G37*'Daily efficiency'!BE38 -> 1942.500089 | N37: =H37*'Daily efficiency'!BF38 -> 841.4846383 | O37: =I37*'Daily efficiency'!BG38 -> 5838.376056 | P37: =J37*'Daily efficiency'!BH38 -> 248.4651781 | Q37: =K37*'Daily efficiency'!BI38 -> 0 | R37: 48.424147 | S37: 34.5150835 | T37: 0.07662201724 | U37: 0.07649089 | V37: =IFERROR(VLOOKUP($A37,Assumptions!$B$11:$H$35,2,FALSE),0) -> 31.33290435 | W37: =IFERROR(VLOOKUP($A37,Assumptions!$B$11:$H$35,3,FALSE),0) -> 125.3316174 | X37: =IFERROR(VLOOKUP($A37,Assumptions!$B$11:$H$35,4,FALSE),0) -> 79.39016753 | Y37: =IFERROR(VLOOKUP($A37,Assumptions!$B$11:$H$35,5,FALSE),0) -> 317.5606701 | Z37: =IFERROR(VLOOKUP($A37,Assumptions!$B$11:$H$35,6,FALSE),0) -> 8.032004727 | AA37: =IFERROR(VLOOKUP($A37,Assumptions!$B$11:$H$35,7,FALSE),0) -> 0 | AB37: 42.09588202 | AC37: 163.3655194 | AD37: 85.07495901 | AE37: 461.8753949 | AF37: 19.0053226 | AG37: 0 | AH37: =(V37+AB37)-(VLOOKUP($A37,Assumptions!$A$43:$M$98,11,FALSE)*F37) -> 55.76306133 | AI37: =(W37+AC37)-(VLOOKUP($A37,Assumptions!$A$43:$R$98,16,FALSE)*G37) -> 216.795339 | AJ37: =(X37+AD37)-VLOOKUP($A37,Assumptions!$A$44:$M$98,13,FALSE)-(VLOOKUP($A37,Assumptions!$A$44:$M$98,11,FALSE)*$H37) -> 118.3006165 | AK37: =(Y37+AE37)-VLOOKUP($A37,Assumptions!$A$44:$R$98,18,FALSE)-(VLOOKUP($A37,Assumptions!$A$43:$R$98,16,FALSE)*I37) -> 600.8321435 | AL37: =(Z37+AF37)-(VLOOKUP($A37,Assumptions!$A$43:$M$98,11,FALSE)*J37) -> 21.14875232 | AM37: 0 | AO37: 22.64998303 | AP37: 20.22455282 | AQ37: 24.02582365 | AR37: 24.02178968 | AS37: 40.15407492 | AT37: 0
A38: ='Gas Use Per Customer'!B37 -> 2024 | B38: ='Gas Use Per Customer'!C37 -> 12 | C38: ='Daily efficiency'!CQ39 -> 31 | D38: ='Gas Use Per Customer'!J37 -> 517.7125975 | E38: ='Gas Use Per Customer'!L37 -> 114.0345863 | F38: =E38*VLOOKUP($C38,'Existing Technology Conversion'!$A:$AR,21,FALSE) -> 22.80691725 | G38: =D38*VLOOKUP($C38,'Existing Technology Conversion'!$A:$AR,27,FALSE) -> 103.5425195 | H38: =E38*VLOOKUP($C38,'Existing Technology Conversion'!$A:$AR,22,FALSE) -> 85.52593969 | I38: =D38*VLOOKUP($C38,'Existing Technology Conversion'!$A:$AR,28,FALSE) -> 414.170078 | J38: =E38*VLOOKUP($C38,'Existing Technology Conversion'!$A:$AR,23,FALSE) -> 5.701729313 | K38: =D38*VLOOKUP($C38,'Existing Technology Conversion'!$A:$AR,29,FALSE) -> 0 | L38: =F38*'Daily efficiency'!BD39 -> 400.3670402 | M38: =G38*'Daily efficiency'!BE39 -> 1891.778718 | N38: =H38*'Daily efficiency'!BF39 -> 2051.083015 | O38: =I38*'Daily efficiency'!BG39 -> 9669.000875 | P38: =J38*'Daily efficiency'!BH39 -> 172.4497227 | Q38: =K38*'Daily efficiency'!BI39 -> 0 | R38: 48.424147 | S38: 34.5150835 | T38: 0.07662201724 | U38: 0.07649089 | V38: =IFERROR(VLOOKUP($A38,Assumptions!$B$11:$H$35,2,FALSE),0) -> 31.33290435 | W38: =IFERROR(VLOOKUP($A38,Assumptions!$B$11:$H$35,3,FALSE),0) -> 125.3316174 | X38: =IFERROR(VLOOKUP($A38,Assumptions!$B$11:$H$35,4,FALSE),0) -> 79.39016753 | Y38: =IFERROR(VLOOKUP($A38,Assumptions!$B$11:$H$35,5,FALSE),0) -> 317.5606701 | Z38: =IFERROR(VLOOKUP($A38,Assumptions!$B$11:$H$35,6,FALSE),0) -> 8.032004727 | AA38: =IFERROR(VLOOKUP($A38,Assumptions!$B$11:$H$35,7,FALSE),0) -> 0 | AB38: 37.52744793 | AC38: 154.636731 | AD38: 182.7754779 | AE38: 750.5431812 | AF38: 13.19083277 | AG38: 0 | AH38: =(V38+AB38)-(VLOOKUP($A38,Assumptions!$A$43:$M$98,11,FALSE)*F38) -> 52.4952273 | AI38: =(W38+AC38)-(VLOOKUP($A38,Assumptions!$A$43:$R$98,16,FALSE)*G38) -> 210.5159152 | AJ38: =(X38+AD38)-VLOOKUP($A38,Assumptions!$A$44:$M$98,13,FALSE)-(VLOOKUP($A38,Assumptions!$A$44:$M$98,11,FALSE)*$H38) -> 189.9633668 | AK38: =(Y38+AE38)-VLOOKUP($A38,Assumptions!$A$44:$R$98,18,FALSE)-(VLOOKUP($A38,Assumptions!$A$43:$R$98,16,FALSE)*I38) -> 779.4610588 | AL38: =(Z38+AF38)-(VLOOKUP($A38,Assumptions!$A$43:$M$98,11,FALSE)*J38) -> 17.13155625 | AM38: 0 | AO38: 23.01723934 | AP38: 20.3313495 | AQ38: 22.21119902 | AR38: 18.81983031 | AS38: 30.32238902 | AT38: 0
A39: ='Gas Use Per Customer'!B38 -> 2025 | B39: ='Gas Use Per Customer'!C38 -> 1 | C39: ='Daily efficiency'!CQ40 -> 32 | D39: ='Gas Use Per Customer'!J38 -> 541.7554593 | E39: ='Gas Use Per Customer'!L38 -> 113.5936164 | F39: =E39*VLOOKUP($C39,'Existing Technology Conversion'!$A:$AR,21,FALSE) -> 22.71872328 | G39: =D39*VLOOKUP($C39,'Existing Technology Conversion'!$A:$AR,27,FALSE) -> 108.3510919 | H39: =E39*VLOOKUP($C39,'Existing Technology Conversion'!$A:$AR,22,FALSE) -> 85.19521231 | I39: =D39*VLOOKUP($C39,'Existing Technology Conversion'!$A:$AR,28,FALSE) -> 433.4043674 | J39: =E39*VLOOKUP($C39,'Existing Technology Conversion'!$A:$AR,23,FALSE) -> 5.679680821 | K39: =D39*VLOOKUP($C39,'Existing Technology Conversion'!$A:$AR,29,FALSE) -> 0 | L39: =F39*'Daily efficiency'!BD40 -> 416.1086611 | M39: =G39*'Daily efficiency'!BE40 -> 2072.082637 | N39: =H39*'Daily efficiency'!BF40 -> 1939.926289 | O39: =I39*'Daily efficiency'!BG40 -> 9995.14356 | P39: =J39*'Daily efficiency'!BH40 -> 187.8875059 | Q39: =K39*'Daily efficiency'!BI40 -> 0 | R39: 48.424147 | S39: 34.5150835 | T39: 0.07662201724 | U39: 0.07649089 | V39: =IFERROR(VLOOKUP($A39,Assumptions!$B$11:$H$35,2,FALSE),0) -> 31.33290435 | W39: =IFERROR(VLOOKUP($A39,Assumptions!$B$11:$H$35,3,FALSE),0) -> 125.3316174 | X39: =IFERROR(VLOOKUP($A39,Assumptions!$B$11:$H$35,4,FALSE),0) -> 79.39016753 | Y39: =IFERROR(VLOOKUP($A39,Assumptions!$B$11:$H$35,5,FALSE),0) -> 317.5606701 | Z39: =IFERROR(VLOOKUP($A39,Assumptions!$B$11:$H$35,6,FALSE),0) -> 8.032004727 | AA39: =IFERROR(VLOOKUP($A39,Assumptions!$B$11:$H$35,7,FALSE),0) -> 0 | AB39: 38.73153852 | AC39: 168.451981 | AD39: 174.273001 | AE39: 775.5328916 | AF39: 14.37168254 | AG39: 0 | AH39: =(V39+AB39)-(VLOOKUP($A39,Assumptions!$A$43:$M$98,11,FALSE)*F39) -> 53.3791347 | AI39: =(W39+AC39)-(VLOOKUP($A39,Assumptions!$A$43:$R$98,16,FALSE)*G39) -> 219.3961607 | AJ39: =(X39+AD39)-VLOOKUP($A39,Assumptions!$A$44:$M$98,13,FALSE)-(VLOOKUP($A39,Assumptions!$A$44:$M$98,11,FALSE)*$H39) -> 180.0053777 | AK39: =(Y39+AE39)-VLOOKUP($A39,Assumptions!$A$44:$R$98,18,FALSE)-(VLOOKUP($A39,Assumptions!$A$43:$R$98,16,FALSE)*I39) -> 784.4559258 | AL39: =(Z39+AF39)-(VLOOKUP($A39,Assumptions!$A$43:$M$98,11,FALSE)*J39) -> 18.23236023 | AM39: 0 | AO39: 23.49565776 | AP39: 20.24863404 | AQ39: 21.12857904 | AR39: 18.09986204 | AS39: 32.60404277 | AT39: 0
A40: ='Gas Use Per Customer'!B39 -> 2025 | B40: ='Gas Use Per Customer'!C39 -> 2 | C40: ='Daily efficiency'!CQ41 -> 32 | D40: ='Gas Use Per Customer'!J39 -> 477.006591 | E40: ='Gas Use Per Customer'!L39 -> 99.88599116 | F40: =E40*VLOOKUP($C40,'Existing Technology Conversion'!$A:$AR,21,FALSE) -> 19.97719823 | G40: =D40*VLOOKUP($C40,'Existing Technology Conversion'!$A:$AR,27,FALSE) -> 95.4013182 | H40: =E40*VLOOKUP($C40,'Existing Technology Conversion'!$A:$AR,22,FALSE) -> 74.91449337 | I40: =D40*VLOOKUP($C40,'Existing Technology Conversion'!$A:$AR,28,FALSE) -> 381.6052728 | J40: =E40*VLOOKUP($C40,'Existing Technology Conversion'!$A:$AR,23,FALSE) -> 4.994299558 | K40: =D40*VLOOKUP($C40,'Existing Technology Conversion'!$A:$AR,29,FALSE) -> 0 | L40: =F40*'Daily efficiency'!BD41 -> 347.3638997 | M40: =G40*'Daily efficiency'!BE41 -> 1827.675242 | N40: =H40*'Daily efficiency'!BF41 -> 1384.590908 | O40: =I40*'Daily efficiency'!BG41 -> 8785.098531 | P40: =J40*'Daily efficiency'!BH41 -> 167.2376881 | Q40: =K40*'Daily efficiency'!BI41 -> 0 | R40: 48.424147 | S40: 34.5150835 | T40: 0.07662201724 | U40: 0.07649089 | V40: =IFERROR(VLOOKUP($A40,Assumptions!$B$11:$H$35,2,FALSE),0) -> 31.33290435 | W40: =IFERROR(VLOOKUP($A40,Assumptions!$B$11:$H$35,3,FALSE),0) -> 125.3316174 | X40: =IFERROR(VLOOKUP($A40,Assumptions!$B$11:$H$35,4,FALSE),0) -> 79.39016753 | Y40: =IFERROR(VLOOKUP($A40,Assumptions!$B$11:$H$35,5,FALSE),0) -> 317.5606701 | Z40: =IFERROR(VLOOKUP($A40,Assumptions!$B$11:$H$35,6,FALSE),0) -> 8.032004727 | AA40: =IFERROR(VLOOKUP($A40,Assumptions!$B$11:$H$35,7,FALSE),0) -> 0 | AB40: 33.47319054 | AC40: 149.7249933 | AD40: 131.7949035 | AE40: 682.8168005 | AF40: 12.7921596 | AG40: 0 | AH40: =(V40+AB40)-(VLOOKUP($A40,Assumptions!$A$43:$M$98,11,FALSE)*F40) -> 50.13424451 | AI40: =(W40+AC40)-(VLOOKUP($A40,Assumptions!$A$43:$R$98,16,FALSE)*G40) -> 209.5597201 | AJ40: =(X40+AD40)-VLOOKUP($A40,Assumptions!$A$44:$M$98,13,FALSE)-(VLOOKUP($A40,Assumptions!$A$44:$M$98,11,FALSE)*$H40) -> 145.0777469 | AK40: =(Y40+AE40)-VLOOKUP($A40,Assumptions!$A$44:$R$98,18,FALSE)-(VLOOKUP($A40,Assumptions!$A$43:$R$98,16,FALSE)*I40) -> 727.3020229 | AL40: =(Z40+AF40)-(VLOOKUP($A40,Assumptions!$A$43:$M$98,11,FALSE)*J40) -> 17.15620173 | AM40: 0 | AO40: 25.09573361 | AP40: 21.96612416 | AQ40: 19.36577828 | AR40: 19.05901398 | AS40: 29.94836134 | AT40: 0
A41: ='Gas Use Per Customer'!B40 -> 2025 | B41: ='Gas Use Per Customer'!C40 -> 3 | C41: ='Daily efficiency'!CQ42 -> 40 | D41: ='Gas Use Per Customer'!J40 -> 389.3556899 | E41: ='Gas Use Per Customer'!L40 -> 81.24375981 | F41: =E41*VLOOKUP($C41,'Existing Technology Conversion'!$A:$AR,21,FALSE) -> 24.37312794 | G41: =D41*VLOOKUP($C41,'Existing Technology Conversion'!$A:$AR,27,FALSE) -> 116.806707 | H41: =E41*VLOOKUP($C41,'Existing Technology Conversion'!$A:$AR,22,FALSE) -> 48.74625588 | I41: =D41*VLOOKUP($C41,'Existing Technology Conversion'!$A:$AR,28,FALSE) -> 272.548983 | J41: =E41*VLOOKUP($C41,'Existing Technology Conversion'!$A:$AR,23,FALSE) -> 8.124375981 | K41: =D41*VLOOKUP($C41,'Existing Technology Conversion'!$A:$AR,29,FALSE) -> 0 | L41: =F41*'Daily efficiency'!BD42 -> 397.2865224 | M41: =G41*'Daily efficiency'!BE42 -> 2082.311102 | N41: =H41*'Daily efficiency'!BF42 -> 844.0378994 | O41: =I41*'Daily efficiency'!BG42 -> 6388.548161 | P41: =J41*'Daily efficiency'!BH42 -> 238.0442162 | Q41: =K41*'Daily efficiency'!BI42 -> 0 | R41: 48.424147 | S41: 34.5150835 | T41: 0.07662201724 | U41: 0.07649089 | V41: =IFERROR(VLOOKUP($A41,Assumptions!$B$11:$H$35,2,FALSE),0) -> 31.33290435 | W41: =IFERROR(VLOOKUP($A41,Assumptions!$B$11:$H$35,3,FALSE),0) -> 125.3316174 | X41: =IFERROR(VLOOKUP($A41,Assumptions!$B$11:$H$35,4,FALSE),0) -> 79.39016753 | Y41: =IFERROR(VLOOKUP($A41,Assumptions!$B$11:$H$35,5,FALSE),0) -> 317.5606701 | Z41: =IFERROR(VLOOKUP($A41,Assumptions!$B$11:$H$35,6,FALSE),0) -> 8.032004727 | AA41: =IFERROR(VLOOKUP($A41,Assumptions!$B$11:$H$35,7,FALSE),0) -> 0 | AB41: 40.74332474 | AC41: 174.0781212 | AD41: 85.27026022 | AE41: 504.0306914 | AF41: 18.20821396 | AG41: 0 | AH41: =(V41+AB41)-(VLOOKUP($A41,Assumptions!$A$43:$M$98,11,FALSE)*F41) -> 54.17587678 | AI41: =(W41+AC41)-(VLOOKUP($A41,Assumptions!$A$43:$R$98,16,FALSE)*G41) -> 219.2171768 | AJ41: =(X41+AD41)-VLOOKUP($A41,Assumptions!$A$44:$M$98,13,FALSE)-(VLOOKUP($A41,Assumptions!$A$44:$M$98,11,FALSE)*$H41) -> 117.771838 | AK41: =(Y41+AE41)-VLOOKUP($A41,Assumptions!$A$44:$R$98,18,FALSE)-(VLOOKUP($A41,Assumptions!$A$43:$R$98,16,FALSE)*I41) -> 623.3874987 | AL41: =(Z41+AF41)-(VLOOKUP($A41,Assumptions!$A$43:$M$98,11,FALSE)*J41) -> 20.27343458 | AM41: 0 | AO41: 22.22770787 | AP41: 18.76751622 | AQ41: 24.1601813 | AR41: 22.87249403 | AS41: 38.48164854 | AT41: 0
A42: ='Gas Use Per Customer'!B41 -> 2025 | B42: ='Gas Use Per Customer'!C41 -> 4 | C42: ='Daily efficiency'!CQ43 -> 47 | D42: ='Gas Use Per Customer'!J41 -> 259.1689101 | E42: ='Gas Use Per Customer'!L41 -> 55.72693516 | F42: =E42*VLOOKUP($C42,'Existing Technology Conversion'!$A:$AR,21,FALSE) -> 16.71808055 | G42: =D42*VLOOKUP($C42,'Existing Technology Conversion'!$A:$AR,27,FALSE) -> 77.75067303 | H42: =E42*VLOOKUP($C42,'Existing Technology Conversion'!$A:$AR,22,FALSE) -> 33.4361611 | I42: =D42*VLOOKUP($C42,'Existing Technology Conversion'!$A:$AR,28,FALSE) -> 181.4182371 | J42: =E42*VLOOKUP($C42,'Existing Technology Conversion'!$A:$AR,23,FALSE) -> 5.572693516 | K42: =D42*VLOOKUP($C42,'Existing Technology Conversion'!$A:$AR,29,FALSE) -> 0 | L42: =F42*'Daily efficiency'!BD43 -> 264.7646703 | M42: =G42*'Daily efficiency'!BE43 -> 1377.757075 | N42: =H42*'Daily efficiency'!BF43 -> 539.7256633 | O42: =I42*'Daily efficiency'!BG43 -> 4252.443477 | P42: =J42*'Daily efficiency'!BH43 -> 163.27992 | Q42: =K42*'Daily efficiency'!BI43 -> 0 | R42: 48.424147 | S42: 34.5150835 | T42: 0.07662201724 | U42: 0.07649089 | V42: =IFERROR(VLOOKUP($A42,Assumptions!$B$11:$H$35,2,FALSE),0) -> 31.33290435 | W42: =IFERROR(VLOOKUP($A42,Assumptions!$B$11:$H$35,3,FALSE),0) -> 125.3316174 | X42: =IFERROR(VLOOKUP($A42,Assumptions!$B$11:$H$35,4,FALSE),0) -> 79.39016753 | Y42: =IFERROR(VLOOKUP($A42,Assumptions!$B$11:$H$35,5,FALSE),0) -> 317.5606701 | Z42: =IFERROR(VLOOKUP($A42,Assumptions!$B$11:$H$35,6,FALSE),0) -> 8.032004727 | AA42: =IFERROR(VLOOKUP($A42,Assumptions!$B$11:$H$35,7,FALSE),0) -> 0 | AB42: 30.60661032 | AC42: 120.0937705 | AD42: 61.99314644 | AE42: 340.3580415 | AF42: 12.4894264 | AG42: 0 | AH42: =(V42+AB42)-(VLOOKUP($A42,Assumptions!$A$43:$M$98,11,FALSE)*F42) -> 49.66125755 | AI42: =(W42+AC42)-(VLOOKUP($A42,Assumptions!$A$43:$R$98,16,FALSE)*G42) -> 192.0463841 | AJ42: =(X42+AD42)-VLOOKUP($A42,Assumptions!$A$44:$M$98,13,FALSE)-(VLOOKUP($A42,Assumptions!$A$44:$M$98,11,FALSE)*$H42) -> 105.7389146 | AK42: =(Y42+AE42)-VLOOKUP($A42,Assumptions!$A$44:$R$98,18,FALSE)-(VLOOKUP($A42,Assumptions!$A$43:$R$98,16,FALSE)*I42) -> 522.2798176 | AL42: =(Z42+AF42)-(VLOOKUP($A42,Assumptions!$A$43:$M$98,11,FALSE)*J42) -> 16.42867876 | AM42: 0 | AO42: 29.7051192 | AP42: 24.70028574 | AQ42: 31.62411924 | AR42: 28.78871639 | AS42: 28.91810516 | AT42: 0
A43: ='Gas Use Per Customer'!B42 -> 2025 | B43: ='Gas Use Per Customer'!C42 -> 5 | C43: ='Daily efficiency'!CQ44 -> 54 | D43: ='Gas Use Per Customer'!J42 -> 151.8856127 | E43: ='Gas Use Per Customer'!L42 -> 38.0183014 | F43: =E43*VLOOKUP($C43,'Existing Technology Conversion'!$A:$AR,21,FALSE) -> 30.41464112 | G43: =D43*VLOOKUP($C43,'Existing Technology Conversion'!$A:$AR,27,FALSE) -> 136.6970515 | H43: =E43*VLOOKUP($C43,'Existing Technology Conversion'!$A:$AR,22,FALSE) -> 3.80183014 | I43: =D43*VLOOKUP($C43,'Existing Technology Conversion'!$A:$AR,28,FALSE) -> 15.18856127 | J43: =E43*VLOOKUP($C43,'Existing Technology Conversion'!$A:$AR,23,FALSE) -> 3.80183014 | K43: =D43*VLOOKUP($C43,'Existing Technology Conversion'!$A:$AR,29,FALSE) -> 0 | L43: =F43*'Daily efficiency'!BD44 -> 427.5022403 | M43: =G43*'Daily efficiency'!BE44 -> 2345.641499 | N43: =H43*'Daily efficiency'!BF44 -> 47.22678952 | O43: =I43*'Daily efficiency'!BG44 -> 356.0198763 | P43: =J43*'Daily efficiency'!BH44 -> 111.3936231 | Q43: =K43*'Daily efficiency'!BI44 -> 0 | R43: 48.424147 | S43: 34.5150835 | T43: 0.07662201724 | U43: 0.07649089 | V43: =IFERROR(VLOOKUP($A43,Assumptions!$B$11:$H$35,2,FALSE),0) -> 31.33290435 | W43: =IFERROR(VLOOKUP($A43,Assumptions!$B$11:$H$35,3,FALSE),0) -> 125.3316174 | X43: =IFERROR(VLOOKUP($A43,Assumptions!$B$11:$H$35,4,FALSE),0) -> 79.39016753 | Y43: =IFERROR(VLOOKUP($A43,Assumptions!$B$11:$H$35,5,FALSE),0) -> 317.5606701 | Z43: =IFERROR(VLOOKUP($A43,Assumptions!$B$11:$H$35,6,FALSE),0) -> 8.032004727 | AA43: =IFERROR(VLOOKUP($A43,Assumptions!$B$11:$H$35,7,FALSE),0) -> 0 | AB43: 60.31209364 | AC43: 223.3095157 | AD43: 7.063927512 | AE43: 70.8606934 | AF43: 8.520597372 | AG43: 0 | AH43: =(V43+AB43)-(VLOOKUP($A43,Assumptions!$A$43:$M$98,11,FALSE)*F43) -> 69.30757816 | AI43: =(W43+AC43)-(VLOOKUP($A43,Assumptions!$A$43:$R$98,16,FALSE)*G43) -> 254.7930396 | AJ43: =(X43+AD43)-VLOOKUP($A43,Assumptions!$A$44:$M$98,13,FALSE)-(VLOOKUP($A43,Assumptions!$A$44:$M$98,11,FALSE)*$H43) -> 72.57403239 | AK43: =(Y43+AE43)-VLOOKUP($A43,Assumptions!$A$44:$R$98,18,FALSE)-(VLOOKUP($A43,Assumptions!$A$43:$R$98,16,FALSE)*I43) -> 366.9059124 | AL43: =(Z43+AF43)-(VLOOKUP($A43,Assumptions!$A$43:$M$98,11,FALSE)*J43) -> 13.76042462 | AM43: 0 | AO43: 22.78757059 | AP43: 18.63924912 | AQ43: 79.63795991 | AR43: 241.5672596 | AS43: 22.28102199 | AT43: 0
A44: ='Gas Use Per Customer'!B43 -> 2025 | B44: ='Gas Use Per Customer'!C43 -> 6 | C44: ='Daily efficiency'!CQ45 -> 59 | D44: ='Gas Use Per Customer'!J43 -> 115.8850722 | E44: ='Gas Use Per Customer'!L43 -> 24.19331708 | F44: =E44*VLOOKUP($C44,'Existing Technology Conversion'!$A:$AR,21,FALSE) -> 19.35465366 | G44: =D44*VLOOKUP($C44,'Existing Technology Conversion'!$A:$AR,27,FALSE) -> 104.296565 | H44: =E44*VLOOKUP($C44,'Existing Technology Conversion'!$A:$AR,22,FALSE) -> 2.419331708 | I44: =D44*VLOOKUP($C44,'Existing Technology Conversion'!$A:$AR,28,FALSE) -> 11.58850722 | J44: =E44*VLOOKUP($C44,'Existing Technology Conversion'!$A:$AR,23,FALSE) -> 2.419331708 | K44: =D44*VLOOKUP($C44,'Existing Technology Conversion'!$A:$AR,29,FALSE) -> 0 | L44: =F44*'Daily efficiency'!BD45 -> 270.4589527 | M44: =G44*'Daily efficiency'!BE45 -> 1787.406981 | N44: =H44*'Daily efficiency'!BF45 -> 29.70478512 | O44: =I44*'Daily efficiency'!BG45 -> 271.6346093 | P44: =J44*'Daily efficiency'!BH45 -> 70.88641904 | Q44: =K44*'Daily efficiency'!BI45 -> 0 | R44: 48.424147 | S44: 34.5150835 | T44: 0.07662201724 | U44: 0.07649089 | V44: =IFERROR(VLOOKUP($A44,Assumptions!$B$11:$H$35,2,FALSE),0) -> 31.33290435 | W44: =IFERROR(VLOOKUP($A44,Assumptions!$B$11:$H$35,3,FALSE),0) -> 125.3316174 | X44: =IFERROR(VLOOKUP($A44,Assumptions!$B$11:$H$35,4,FALSE),0) -> 79.39016753 | Y44: =IFERROR(VLOOKUP($A44,Assumptions!$B$11:$H$35,5,FALSE),0) -> 317.5606701 | Z44: =IFERROR(VLOOKUP($A44,Assumptions!$B$11:$H$35,6,FALSE),0) -> 8.032004727 | AA44: =IFERROR(VLOOKUP($A44,Assumptions!$B$11:$H$35,7,FALSE),0) -> 0 | AB44: 48.2997128 | AC44: 180.5364608 | AD44: 5.723653801 | AE44: 64.39492402 | AF44: 5.422165282 | AG44: 0 | AH44: =(V44+AB44)-(VLOOKUP($A44,Assumptions!$A$43:$M$98,11,FALSE)*F44) -> 65.41798207 | AI44: =(W44+AC44)-(VLOOKUP($A44,Assumptions!$A$43:$R$98,16,FALSE)*G44) -> 234.2642383 | AJ44: =(X44+AD44)-VLOOKUP($A44,Assumptions!$A$44:$M$98,13,FALSE)-(VLOOKUP($A44,Assumptions!$A$44:$M$98,11,FALSE)*$H44) -> 72.24910678 | AK44: =(Y44+AE44)-VLOOKUP($A44,Assumptions!$A$44:$R$98,18,FALSE)-(VLOOKUP($A44,Assumptions!$A$43:$R$98,16,FALSE)*I44) -> 362.9117268 | AL44: =(Z44+AF44)-(VLOOKUP($A44,Assumptions!$A$43:$M$98,11,FALSE)*J44) -> 11.67734062 | AM44: 0 | AO44: 33.79961388 | AP44: 22.46135703 | AQ44: 77.97276058 | AR44: 313.1652073 | AS44: 17.09950591 | AT44: 0
A45: ='Gas Use Per Customer'!B44 -> 2025 | B45: ='Gas Use Per Customer'!C44 -> 7 | C45: ='Daily efficiency'!CQ46 -> 64 | D45: ='Gas Use Per Customer'!J44 -> 107.9320245 | E45: ='Gas Use Per Customer'!L44 -> 20.542412 | F45: =E45*VLOOKUP($C45,'Existing Technology Conversion'!$A:$AR,21,FALSE) -> 19.5152914 | G45: =D45*VLOOKUP($C45,'Existing Technology Conversion'!$A:$AR,27,FALSE) -> 107.9320245 | H45: =E45*VLOOKUP($C45,'Existing Technology Conversion'!$A:$AR,22,FALSE) -> 0 | I45: =D45*VLOOKUP($C45,'Existing Technology Conversion'!$A:$AR,28,FALSE) -> 0 | J45: =E45*VLOOKUP($C45,'Existing Technology Conversion'!$A:$AR,23,FALSE) -> 1.0271206 | K45: =D45*VLOOKUP($C45,'Existing Technology Conversion'!$A:$AR,29,FALSE) -> 0 | L45: =F45*'Daily efficiency'!BD46 -> 307.3414455 | M45: =G45*'Daily efficiency'!BE46 -> 1988.936049 | N45: =H45*'Daily efficiency'!BF46 -> 0 | O45: =I45*'Daily efficiency'!BG46 -> 0 | P45: =J45*'Daily efficiency'!BH46 -> 19.90128995 | Q45: =K45*'Daily efficiency'!BI46 -> 0 | R45: 48.424147 | S45: 34.5150835 | T45: 0.07662201724 | U45: 0.07649089 | V45: =IFERROR(VLOOKUP($A45,Assumptions!$B$11:$H$35,2,FALSE),0) -> 31.33290435 | W45: =IFERROR(VLOOKUP($A45,Assumptions!$B$11:$H$35,3,FALSE),0) -> 125.3316174 | X45: =IFERROR(VLOOKUP($A45,Assumptions!$B$11:$H$35,4,FALSE),0) -> 79.39016753 | Y45: =IFERROR(VLOOKUP($A45,Assumptions!$B$11:$H$35,5,FALSE),0) -> 317.5606701 | Z45: =IFERROR(VLOOKUP($A45,Assumptions!$B$11:$H$35,6,FALSE),0) -> 8.032004727 | AA45: =IFERROR(VLOOKUP($A45,Assumptions!$B$11:$H$35,7,FALSE),0) -> 0 | AB45: 56.29815002 | AC45: 200.8204393 | AD45: 0 | AE45: 48.424147 | AF45: 1.52226738 | AG45: 0 | AH45: =(V45+AB45)-(VLOOKUP($A45,Assumptions!$A$43:$M$98,11,FALSE)*F45) -> 73.29844215 | AI45: =(W45+AC45)-(VLOOKUP($A45,Assumptions!$A$43:$R$98,16,FALSE)*G45) -> 252.0523258 | AJ45: =(X45+AD45)-VLOOKUP($A45,Assumptions!$A$44:$M$98,13,FALSE)-(VLOOKUP($A45,Assumptions!$A$44:$M$98,11,FALSE)*$H45) -> 68.30228236 | AK45: =(Y45+AE45)-VLOOKUP($A45,Assumptions!$A$44:$R$98,18,FALSE)-(VLOOKUP($A45,Assumptions!$A$43:$R$98,16,FALSE)*I45) -> 354.8969319 | AL45: =(Z45+AF45)-(VLOOKUP($A45,Assumptions!$A$43:$M$98,11,FALSE)*J45) -> 8.799924096 | AM45: 0 | AO45: 37.5594915 | AP45: 23.35287667 | AQ45: 68.30228236 | AR45: 403.3210789 | AS45: 10.32219148 | AT45: 0
A46: ='Gas Use Per Customer'!B45 -> 2025 | B46: ='Gas Use Per Customer'!C45 -> 8 | C46: ='Daily efficiency'!CQ47 -> 63 | D46: ='Gas Use Per Customer'!J45 -> 139.5302601 | E46: ='Gas Use Per Customer'!L45 -> 25.41931752 | F46: =E46*VLOOKUP($C46,'Existing Technology Conversion'!$A:$AR,21,FALSE) -> 20.33545402 | G46: =D46*VLOOKUP($C46,'Existing Technology Conversion'!$A:$AR,27,FALSE) -> 125.5772341 | H46: =E46*VLOOKUP($C46,'Existing Technology Conversion'!$A:$AR,22,FALSE) -> 2.541931752 | I46: =D46*VLOOKUP($C46,'Existing Technology Conversion'!$A:$AR,28,FALSE) -> 13.95302601 | J46: =E46*VLOOKUP($C46,'Existing Technology Conversion'!$A:$AR,23,FALSE) -> 2.541931752 | K46: =D46*VLOOKUP($C46,'Existing Technology Conversion'!$A:$AR,29,FALSE) -> 0 | L46: =F46*'Daily efficiency'!BD47 -> 303.0706122 | M46: =G46*'Daily efficiency'!BE47 -> 2236.95966 | N46: =H46*'Daily efficiency'!BF47 -> 20.13553558 | O46: =I46*'Daily efficiency'!BG47 -> 211.005761 | P46: =J46*'Daily efficiency'!BH47 -> 61.26465512 | Q46: =K46*'Daily efficiency'!BI47 -> 0 | R46: 48.424147 | S46: 34.5150835 | T46: 0.07662201724 | U46: 0.07649089 | V46: =IFERROR(VLOOKUP($A46,Assumptions!$B$11:$H$35,2,FALSE),0) -> 31.33290435 | W46: =IFERROR(VLOOKUP($A46,Assumptions!$B$11:$H$35,3,FALSE),0) -> 125.3316174 | X46: =IFERROR(VLOOKUP($A46,Assumptions!$B$11:$H$35,4,FALSE),0) -> 79.39016753 | Y46: =IFERROR(VLOOKUP($A46,Assumptions!$B$11:$H$35,5,FALSE),0) -> 317.5606701 | Z46: =IFERROR(VLOOKUP($A46,Assumptions!$B$11:$H$35,6,FALSE),0) -> 8.032004727 | AA46: =IFERROR(VLOOKUP($A46,Assumptions!$B$11:$H$35,7,FALSE),0) -> 0 | AB46: 50.79420766 | AC46: 214.9820939 | AD46: 4.991693387 | AE46: 59.74941936 | AF46: 4.686187996 | AG46: 0 | AH46: =(V46+AB46)-(VLOOKUP($A46,Assumptions!$A$43:$M$98,11,FALSE)*F46) -> 67.19214789 | AI46: =(W46+AC46)-(VLOOKUP($A46,Assumptions!$A$43:$R$98,16,FALSE)*G46) -> 254.0998254 | AJ46: =(X46+AD46)-VLOOKUP($A46,Assumptions!$A$44:$M$98,13,FALSE)-(VLOOKUP($A46,Assumptions!$A$44:$M$98,11,FALSE)*$H46) -> 71.42710523 | AK46: =(Y46+AE46)-VLOOKUP($A46,Assumptions!$A$44:$R$98,18,FALSE)-(VLOOKUP($A46,Assumptions!$A$43:$R$98,16,FALSE)*I46) -> 356.6428836 | AL46: =(Z46+AF46)-(VLOOKUP($A46,Assumptions!$A$43:$M$98,11,FALSE)*J46) -> 10.85132221 | AM46: 0 | AO46: 33.0418725 | AP46: 20.23454548 | AQ46: 76.41879862 | AR46: 255.6025363 | AS46: 15.5375102 | AT46: 0
A47: ='Gas Use Per Customer'!B46 -> 2025 | B47: ='Gas Use Per Customer'!C46 -> 9 | C47: ='Daily efficiency'!CQ48 -> 58 | D47: ='Gas Use Per Customer'!J46 -> 113.5411305 | E47: ='Gas Use Per Customer'!L46 -> 20.47232686 | F47: =E47*VLOOKUP($C47,'Existing Technology Conversion'!$A:$AR,21,FALSE) -> 16.37786149 | G47: =D47*VLOOKUP($C47,'Existing Technology Conversion'!$A:$AR,27,FALSE) -> 102.1870174 | H47: =E47*VLOOKUP($C47,'Existing Technology Conversion'!$A:$AR,22,FALSE) -> 2.047232686 | I47: =D47*VLOOKUP($C47,'Existing Technology Conversion'!$A:$AR,28,FALSE) -> 11.35411305 | J47: =E47*VLOOKUP($C47,'Existing Technology Conversion'!$A:$AR,23,FALSE) -> 2.047232686 | K47: =D47*VLOOKUP($C47,'Existing Technology Conversion'!$A:$AR,29,FALSE) -> 0 | L47: =F47*'Daily efficiency'!BD48 -> 228.8617168 | M47: =G47*'Daily efficiency'!BE48 -> 1751.254112 | N47: =H47*'Daily efficiency'!BF48 -> 25.1361179 | O47: =I47*'Daily efficiency'!BG48 -> 266.1404099 | P47: =J47*'Daily efficiency'!BH48 -> 59.98391771 | Q47: =K47*'Daily efficiency'!BI48 -> 0 | R47: 48.90838847 | S47: 34.86023434 | T47: 0.07892067776 | U47: 0.0787856167 | V47: =IFERROR(VLOOKUP($A47,Assumptions!$B$11:$H$35,2,FALSE),0) -> 31.33290435 | W47: =IFERROR(VLOOKUP($A47,Assumptions!$B$11:$H$35,3,FALSE),0) -> 125.3316174 | X47: =IFERROR(VLOOKUP($A47,Assumptions!$B$11:$H$35,4,FALSE),0) -> 79.39016753 | Y47: =IFERROR(VLOOKUP($A47,Assumptions!$B$11:$H$35,5,FALSE),0) -> 317.5606701 | Z47: =IFERROR(VLOOKUP($A47,Assumptions!$B$11:$H$35,6,FALSE),0) -> 8.032004727 | AA47: =IFERROR(VLOOKUP($A47,Assumptions!$B$11:$H$35,7,FALSE),0) -> 0 | AB47: 45.91919896 | AC47: 182.2277111 | AD47: 5.466387983 | AE47: 65.02153115 | AF47: 4.725869948 | AG47: 0 | AH47: =(V47+AB47)-(VLOOKUP($A47,Assumptions!$A$43:$M$98,11,FALSE)*F47) -> 65.22371322 | AI47: =(W47+AC47)-(VLOOKUP($A47,Assumptions!$A$43:$R$98,16,FALSE)*G47) -> 237.4037789 | AJ47: =(X47+AD47)-VLOOKUP($A47,Assumptions!$A$44:$M$98,13,FALSE)-(VLOOKUP($A47,Assumptions!$A$44:$M$98,11,FALSE)*$H47) -> 72.26512158 | AK47: =(Y47+AE47)-VLOOKUP($A47,Assumptions!$A$44:$R$98,18,FALSE)-(VLOOKUP($A47,Assumptions!$A$43:$R$98,16,FALSE)*I47) -> 363.699255 | AL47: =(Z47+AF47)-(VLOOKUP($A47,Assumptions!$A$43:$M$98,11,FALSE)*J47) -> 11.25432591 | AM47: 0 | AO47: 39.82431605 | AP47: 23.23228379 | AQ47: 77.73150956 | AR47: 320.3237923 | AS47: 15.98019586 | AT47: 0
A48: ='Gas Use Per Customer'!B47 -> 2025 | B48: ='Gas Use Per Customer'!C47 -> 10 | C48: ='Daily efficiency'!CQ49 -> 48 | D48: ='Gas Use Per Customer'!J47 -> 225.2934265 | E48: ='Gas Use Per Customer'!L47 -> 46.49287052 | F48: =E48*VLOOKUP($C48,'Existing Technology Conversion'!$A:$AR,21,FALSE) -> 13.94786116 | G48: =D48*VLOOKUP($C48,'Existing Technology Conversion'!$A:$AR,27,FALSE) -> 67.58802796 | H48: =E48*VLOOKUP($C48,'Existing Technology Conversion'!$A:$AR,22,FALSE) -> 27.89572231 | I48: =D48*VLOOKUP($C48,'Existing Technology Conversion'!$A:$AR,28,FALSE) -> 157.7053986 | J48: =E48*VLOOKUP($C48,'Existing Technology Conversion'!$A:$AR,23,FALSE) -> 4.649287052 | K48: =D48*VLOOKUP($C48,'Existing Technology Conversion'!$A:$AR,29,FALSE) -> 0 | L48: =F48*'Daily efficiency'!BD49 -> 209.766078 | M48: =G48*'Daily efficiency'!BE49 -> 1186.146136 | N48: =H48*'Daily efficiency'!BF49 -> 418.6160642 | O48: =I48*'Daily efficiency'!BG49 -> 3696.614542 | P48: =J48*'Daily efficiency'!BH49 -> 136.2241106 | Q48: =K48*'Daily efficiency'!BI49 -> 0 | R48: 48.90838847 | S48: 34.86023434 | T48: 0.07892067776 | U48: 0.0787856167 | V48: =IFERROR(VLOOKUP($A48,Assumptions!$B$11:$H$35,2,FALSE),0) -> 31.33290435 | W48: =IFERROR(VLOOKUP($A48,Assumptions!$B$11:$H$35,3,FALSE),0) -> 125.3316174 | X48: =IFERROR(VLOOKUP($A48,Assumptions!$B$11:$H$35,4,FALSE),0) -> 79.39016753 | Y48: =IFERROR(VLOOKUP($A48,Assumptions!$B$11:$H$35,5,FALSE),0) -> 317.5606701 | Z48: =IFERROR(VLOOKUP($A48,Assumptions!$B$11:$H$35,6,FALSE),0) -> 8.032004727 | AA48: =IFERROR(VLOOKUP($A48,Assumptions!$B$11:$H$35,7,FALSE),0) -> 0 | AB48: 26.98462012 | AC48: 108.2839735 | AD48: 53.89706538 | AE48: 306.4118416 | AF48: 10.73250056 | AG48: 0 | AH48: =(V48+AB48)-(VLOOKUP($A48,Assumptions!$A$43:$M$98,11,FALSE)*F48) -> 48.07379912 | AI48: =(W48+AC48)-(VLOOKUP($A48,Assumptions!$A$43:$R$98,16,FALSE)*G48) -> 187.2136569 | AJ48: =(X48+AD48)-VLOOKUP($A48,Assumptions!$A$44:$M$98,13,FALSE)-(VLOOKUP($A48,Assumptions!$A$44:$M$98,11,FALSE)*$H48) -> 101.711897 | AK48: =(Y48+AE48)-VLOOKUP($A48,Assumptions!$A$44:$R$98,18,FALSE)-(VLOOKUP($A48,Assumptions!$A$43:$R$98,16,FALSE)*I48) -> 504.6134471 | AL48: =(Z48+AF48)-(VLOOKUP($A48,Assumptions!$A$43:$M$98,11,FALSE)*J48) -> 15.34993017 | AM48: 0 | AO48: 34.46678927 | AP48: 27.69923351 | AQ48: 36.46146743 | AR48: 31.99722088 | AS48: 26.08243074 | AT48: 0
A49: ='Gas Use Per Customer'!B48 -> 2025 | B49: ='Gas Use Per Customer'!C48 -> 11 | C49: ='Daily efficiency'!CQ50 -> 39 | D49: ='Gas Use Per Customer'!J48 -> 357.0216234 | E49: ='Gas Use Per Customer'!L48 -> 81.99600228 | F49: =E49*VLOOKUP($C49,'Existing Technology Conversion'!$A:$AR,21,FALSE) -> 24.59880069 | G49: =D49*VLOOKUP($C49,'Existing Technology Conversion'!$A:$AR,27,FALSE) -> 107.106487 | H49: =E49*VLOOKUP($C49,'Existing Technology Conversion'!$A:$AR,22,FALSE) -> 49.19760137 | I49: =D49*VLOOKUP($C49,'Existing Technology Conversion'!$A:$AR,28,FALSE) -> 249.9151364 | J49: =E49*VLOOKUP($C49,'Existing Technology Conversion'!$A:$AR,23,FALSE) -> 8.199600228 | K49: =D49*VLOOKUP($C49,'Existing Technology Conversion'!$A:$AR,29,FALSE) -> 0 | L49: =F49*'Daily efficiency'!BD50 -> 429.4516127 | M49: =G49*'Daily efficiency'!BE50 -> 2005.755797 | N49: =H49*'Daily efficiency'!BF50 -> 837.3157005 | O49: =I49*'Daily efficiency'!BG50 -> 5784.785661 | P49: =J49*'Daily efficiency'!BH50 -> 264.2731154 | Q49: =K49*'Daily efficiency'!BI50 -> 0 | R49: 48.90838847 | S49: 34.86023434 | T49: 0.07892067776 | U49: 0.0787856167 | V49: =IFERROR(VLOOKUP($A49,Assumptions!$B$11:$H$35,2,FALSE),0) -> 31.33290435 | W49: =IFERROR(VLOOKUP($A49,Assumptions!$B$11:$H$35,3,FALSE),0) -> 125.3316174 | X49: =IFERROR(VLOOKUP($A49,Assumptions!$B$11:$H$35,4,FALSE),0) -> 79.39016753 | Y49: =IFERROR(VLOOKUP($A49,Assumptions!$B$11:$H$35,5,FALSE),0) -> 317.5606701 | Z49: =IFERROR(VLOOKUP($A49,Assumptions!$B$11:$H$35,6,FALSE),0) -> 8.032004727 | AA49: =IFERROR(VLOOKUP($A49,Assumptions!$B$11:$H$35,7,FALSE),0) -> 0 | AB49: 44.29268045 | AC49: 172.9681235 | AD49: 86.88457444 | AE49: 471.2117216 | AF49: 20.82092037 | AG49: 0 | AH49: =(V49+AB49)-(VLOOKUP($A49,Assumptions!$A$43:$M$98,11,FALSE)*F49) -> 57.5594917 | AI49: =(W49+AC49)-(VLOOKUP($A49,Assumptions!$A$43:$R$98,16,FALSE)*G49) -> 224.7667751 | AJ49: =(X49+AD49)-VLOOKUP($A49,Assumptions!$A$44:$M$98,13,FALSE)-(VLOOKUP($A49,Assumptions!$A$44:$M$98,11,FALSE)*$H49) -> 119.0546706 | AK49: =(Y49+AE49)-VLOOKUP($A49,Assumptions!$A$44:$R$98,18,FALSE)-(VLOOKUP($A49,Assumptions!$A$43:$R$98,16,FALSE)*I49) -> 606.1075864 | AL49: =(Z49+AF49)-(VLOOKUP($A49,Assumptions!$A$43:$M$98,11,FALSE)*J49) -> 22.83089406 | AM49: 0 | AO49: 23.39930813 | AP49: 20.98535592 | AQ49: 24.19928356 | AR49: 24.25253609 | AS49: 43.65181444 | AT49: 0
A50: ='Gas Use Per Customer'!B49 -> 2025 | B50: ='Gas Use Per Customer'!C49 -> 12 | C50: ='Daily efficiency'!CQ51 -> 31 | D50: ='Gas Use Per Customer'!J49 -> 517.9130121 | E50: ='Gas Use Per Customer'!L49 -> 114.1051136 | F50: =E50*VLOOKUP($C50,'Existing Technology Conversion'!$A:$AR,21,FALSE) -> 22.82102273 | G50: =D50*VLOOKUP($C50,'Existing Technology Conversion'!$A:$AR,27,FALSE) -> 103.5826024 | H50: =E50*VLOOKUP($C50,'Existing Technology Conversion'!$A:$AR,22,FALSE) -> 85.57883523 | I50: =D50*VLOOKUP($C50,'Existing Technology Conversion'!$A:$AR,28,FALSE) -> 414.3304097 | J50: =E50*VLOOKUP($C50,'Existing Technology Conversion'!$A:$AR,23,FALSE) -> 5.705255682 | K50: =D50*VLOOKUP($C50,'Existing Technology Conversion'!$A:$AR,29,FALSE) -> 0 | L50: =F50*'Daily efficiency'!BD51 -> 406.9828087 | M50: =G50*'Daily efficiency'!BE51 -> 1922.560266 | N50: =H50*'Daily efficiency'!BF51 -> 2038.887589 | O50: =I50*'Daily efficiency'!BG51 -> 9633.582991 | P50: =J50*'Daily efficiency'!BH51 -> 177.9487651 | Q50: =K50*'Daily efficiency'!BI51 -> 0 | R50: 48.90838847 | S50: 34.86023434 | T50: 0.07892067776 | U50: 0.0787856167 | V50: =IFERROR(VLOOKUP($A50,Assumptions!$B$11:$H$35,2,FALSE),0) -> 31.33290435 | W50: =IFERROR(VLOOKUP($A50,Assumptions!$B$11:$H$35,3,FALSE),0) -> 125.3316174 | X50: =IFERROR(VLOOKUP($A50,Assumptions!$B$11:$H$35,4,FALSE),0) -> 79.39016753 | Y50: =IFERROR(VLOOKUP($A50,Assumptions!$B$11:$H$35,5,FALSE),0) -> 317.5606701 | Z50: =IFERROR(VLOOKUP($A50,Assumptions!$B$11:$H$35,6,FALSE),0) -> 8.032004727 | AA50: =IFERROR(VLOOKUP($A50,Assumptions!$B$11:$H$35,7,FALSE),0) -> 0 | AB50: 39.03643844 | AC50: 161.5114369 | AD50: 186.7801918 | AE50: 770.0705765 | AF50: 14.0198032 | AG50: 0 | AH50: =(V50+AB50)-(VLOOKUP($A50,Assumptions!$A$43:$M$98,11,FALSE)*F50) -> 53.60890285 | AI50: =(W50+AC50)-(VLOOKUP($A50,Assumptions!$A$43:$R$98,16,FALSE)*G50) -> 215.7293788 | AJ50: =(X50+AD50)-VLOOKUP($A50,Assumptions!$A$44:$M$98,13,FALSE)-(VLOOKUP($A50,Assumptions!$A$44:$M$98,11,FALSE)*$H50) -> 192.2308244 | AK50: =(Y50+AE50)-VLOOKUP($A50,Assumptions!$A$44:$R$98,18,FALSE)-(VLOOKUP($A50,Assumptions!$A$43:$R$98,16,FALSE)*I50) -> 792.0886596 | AL50: =(Z50+AF50)-(VLOOKUP($A50,Assumptions!$A$43:$M$98,11,FALSE)*J50) -> 17.86169795 | AM50: 0 | AO50: 23.49101681 | AP50: 20.82679656 | AQ50: 22.46242589 | AR50: 19.11731896 | AS50: 31.88150115 | AT50: 0
A51: ='Gas Use Per Customer'!B50 -> 2026 | B51: ='Gas Use Per Customer'!C50 -> 1 | C51: ='Daily efficiency'!CQ52 -> 32 | D51: ='Gas Use Per Customer'!J50 -> 542.3285451 | E51: ='Gas Use Per Customer'!L50 -> 113.733541 | F51: =E51*VLOOKUP($C51,'Existing Technology Conversion'!$A:$AR,21,FALSE) -> 22.7467082 | G51: =D51*VLOOKUP($C51,'Existing Technology Conversion'!$A:$AR,27,FALSE) -> 108.465709 | H51: =E51*VLOOKUP($C51,'Existing Technology Conversion'!$A:$AR,22,FALSE) -> 85.30015574 | I51: =D51*VLOOKUP($C51,'Existing Technology Conversion'!$A:$AR,28,FALSE) -> 433.8628361 | J51: =E51*VLOOKUP($C51,'Existing Technology Conversion'!$A:$AR,23,FALSE) -> 5.686677049 | K51: =D51*VLOOKUP($C51,'Existing Technology Conversion'!$A:$AR,29,FALSE) -> 0 | L51: =F51*'Daily efficiency'!BD52 -> 430.4701285 | M51: =G51*'Daily efficiency'!BE52 -> 2138.440093 | N51: =H51*'Daily efficiency'!BF52 -> 1957.536981 | O51: =I51*'Daily efficiency'!BG52 -> 9923.702663 | P51: =J51*'Daily efficiency'!BH52 -> 198.8685997 | Q51: =K51*'Daily efficiency'!BI52 -> 0 | R51: 48.90838847 | S51: 34.86023434 | T51: 0.07892067776 | U51: 0.0787856167 | V51: =IFERROR(VLOOKUP($A51,Assumptions!$B$11:$H$35,2,FALSE),0) -> 31.33290435 | W51: =IFERROR(VLOOKUP($A51,Assumptions!$B$11:$H$35,3,FALSE),0) -> 125.3316174 | X51: =IFERROR(VLOOKUP($A51,Assumptions!$B$11:$H$35,4,FALSE),0) -> 79.39016753 | Y51: =IFERROR(VLOOKUP($A51,Assumptions!$B$11:$H$35,5,FALSE),0) -> 317.5606701 | Z51: =IFERROR(VLOOKUP($A51,Assumptions!$B$11:$H$35,6,FALSE),0) -> 8.032004727 | AA51: =IFERROR(VLOOKUP($A51,Assumptions!$B$11:$H$35,7,FALSE),0) -> 0 | AB51: 40.88690141 | AC51: 178.5488192 | AD51: 180.370934 | AE51: 792.9670177 | AF51: 15.66798527 | AG51: 0 | AH51: =(V51+AB51)-(VLOOKUP($A51,Assumptions!$A$43:$M$98,11,FALSE)*F51) -> 55.14084707 | AI51: =(W51+AC51)-(VLOOKUP($A51,Assumptions!$A$43:$R$98,16,FALSE)*G51) -> 227.7512327 | AJ51: =(X51+AD51)-VLOOKUP($A51,Assumptions!$A$44:$M$98,13,FALSE)-(VLOOKUP($A51,Assumptions!$A$44:$M$98,11,FALSE)*$H51) -> 184.3794919 | AK51: =(Y51+AE51)-VLOOKUP($A51,Assumptions!$A$44:$R$98,18,FALSE)-(VLOOKUP($A51,Assumptions!$A$43:$R$98,16,FALSE)*I51) -> 794.6753577 | AL51: =(Z51+AF51)-(VLOOKUP($A51,Assumptions!$A$43:$M$98,11,FALSE)*J51) -> 19.43025032 | AM51: 0 | AO51: 24.24124255 | AP51: 20.99753321 | AQ51: 21.61537576 | AR51: 18.3162809 | AS51: 35.09823559 | AT51: 0
A52: ='Gas Use Per Customer'!B51 -> 2026 | B52: ='Gas Use Per Customer'!C51 -> 2 | C52: ='Daily efficiency'!CQ53 -> 33 | D52: ='Gas Use Per Customer'!J51 -> 476.2713545 | E52: ='Gas Use Per Customer'!L51 -> 99.71679411 | F52: =E52*VLOOKUP($C52,'Existing Technology Conversion'!$A:$AR,21,FALSE) -> 19.94335882 | G52: =D52*VLOOKUP($C52,'Existing Technology Conversion'!$A:$AR,27,FALSE) -> 95.2542709 | H52: =E52*VLOOKUP($C52,'Existing Technology Conversion'!$A:$AR,22,FALSE) -> 74.78759558 | I52: =D52*VLOOKUP($C52,'Existing Technology Conversion'!$A:$AR,28,FALSE) -> 381.0170836 | J52: =E52*VLOOKUP($C52,'Existing Technology Conversion'!$A:$AR,23,FALSE) -> 4.985839705 | K52: =D52*VLOOKUP($C52,'Existing Technology Conversion'!$A:$AR,29,FALSE) -> 0 | L52: =F52*'Daily efficiency'!BD53 -> 340.0539584 | M52: =G52*'Daily efficiency'!BE53 -> 1793.6644 | N52: =H52*'Daily efficiency'!BF53 -> 1374.858018 | O52: =I52*'Daily efficiency'!BG53 -> 8811.428291 | P52: =J52*'Daily efficiency'!BH53 -> 161.7370787 | Q52: =K52*'Daily efficiency'!BI53 -> 0 | R52: 48.90838847 | S52: 34.86023434 | T52: 0.07892067776 | U52: 0.0787856167 | V52: =IFERROR(VLOOKUP($A52,Assumptions!$B$11:$H$35,2,FALSE),0) -> 31.33290435 | W52: =IFERROR(VLOOKUP($A52,Assumptions!$B$11:$H$35,3,FALSE),0) -> 125.3316174 | X52: =IFERROR(VLOOKUP($A52,Assumptions!$B$11:$H$35,4,FALSE),0) -> 79.39016753 | Y52: =IFERROR(VLOOKUP($A52,Assumptions!$B$11:$H$35,5,FALSE),0) -> 317.5606701 | Z52: =IFERROR(VLOOKUP($A52,Assumptions!$B$11:$H$35,6,FALSE),0) -> 8.032004727 | AA52: =IFERROR(VLOOKUP($A52,Assumptions!$B$11:$H$35,7,FALSE),0) -> 0 | AB52: 33.76340769 | AC52: 151.3388878 | AD52: 134.4642125 | AE52: 705.1855704 | AF52: 12.74255549 | AG52: 0 | AH52: =(V52+AB52)-(VLOOKUP($A52,Assumptions!$A$43:$M$98,11,FALSE)*F52) -> 50.12219805 | AI52: =(W52+AC52)-(VLOOKUP($A52,Assumptions!$A$43:$R$98,16,FALSE)*G52) -> 209.8140592 | AJ52: =(X52+AD52)-VLOOKUP($A52,Assumptions!$A$44:$M$98,13,FALSE)-(VLOOKUP($A52,Assumptions!$A$44:$M$98,11,FALSE)*$H52) -> 146.365938 | AK52: =(Y52+AE52)-VLOOKUP($A52,Assumptions!$A$44:$R$98,18,FALSE)-(VLOOKUP($A52,Assumptions!$A$43:$R$98,16,FALSE)*I52) -> 743.9849423 | AL52: =(Z52+AF52)-(VLOOKUP($A52,Assumptions!$A$43:$M$98,11,FALSE)*J52) -> 17.03103172 | AM52: 0 | AO52: 25.13227511 | AP52: 22.0267351 | AQ52: 19.5708843 | AR52: 19.5262883 | AS52: 29.77358721 | AT52: 0
A53: ='Gas Use Per Customer'!B52 -> 2026 | B53: ='Gas Use Per Customer'!C52 -> 3 | C53: ='Daily efficiency'!CQ54 -> 40 | D53: ='Gas Use Per Customer'!J52 -> 389.9716179 | E53: ='Gas Use Per Customer'!L52 -> 81.38908575 | F53: =E53*VLOOKUP($C53,'Existing Technology Conversion'!$A:$AR,21,FALSE) -> 24.41672573 | G53: =D53*VLOOKUP($C53,'Existing Technology Conversion'!$A:$AR,27,FALSE) -> 116.9914854 | H53: =E53*VLOOKUP($C53,'Existing Technology Conversion'!$A:$AR,22,FALSE) -> 48.83345145 | I53: =D53*VLOOKUP($C53,'Existing Technology Conversion'!$A:$AR,28,FALSE) -> 272.9801325 | J53: =E53*VLOOKUP($C53,'Existing Technology Conversion'!$A:$AR,23,FALSE) -> 8.138908575 | K53: =D53*VLOOKUP($C53,'Existing Technology Conversion'!$A:$AR,29,FALSE) -> 0 | L53: =F53*'Daily efficiency'!BD54 -> 397.9971744 | M53: =G53*'Daily efficiency'!BE54 -> 2085.605143 | N53: =H53*'Daily efficiency'!BF54 -> 845.5476844 | O53: =I53*'Daily efficiency'!BG54 -> 6398.654307 | P53: =J53*'Daily efficiency'!BH54 -> 238.4700213 | Q53: =K53*'Daily efficiency'!BI54 -> 0 | R53: 48.90838847 | S53: 34.86023434 | T53: 0.07892067776 | U53: 0.0787856167 | V53: =IFERROR(VLOOKUP($A53,Assumptions!$B$11:$H$35,2,FALSE),0) -> 31.33290435 | W53: =IFERROR(VLOOKUP($A53,Assumptions!$B$11:$H$35,3,FALSE),0) -> 125.3316174 | X53: =IFERROR(VLOOKUP($A53,Assumptions!$B$11:$H$35,4,FALSE),0) -> 79.39016753 | Y53: =IFERROR(VLOOKUP($A53,Assumptions!$B$11:$H$35,5,FALSE),0) -> 317.5606701 | Z53: =IFERROR(VLOOKUP($A53,Assumptions!$B$11:$H$35,6,FALSE),0) -> 8.032004727 | AA53: =IFERROR(VLOOKUP($A53,Assumptions!$B$11:$H$35,7,FALSE),0) -> 0 | AB53: 41.81452313 | AC53: 179.269888 | AD53: 87.53313637 | AE53: 519.6586512 | AF53: 18.78800769 | AG53: 0 | AH53: =(V53+AB53)-(VLOOKUP($A53,Assumptions!$A$43:$M$98,11,FALSE)*F53) -> 54.81456602 | AI53: =(W53+AC53)-(VLOOKUP($A53,Assumptions!$A$43:$R$98,16,FALSE)*G53) -> 222.4882852 | AJ53: =(X53+AD53)-VLOOKUP($A53,Assumptions!$A$44:$M$98,13,FALSE)-(VLOOKUP($A53,Assumptions!$A$44:$M$98,11,FALSE)*$H53) -> 118.9220664 | AK53: =(Y53+AE53)-VLOOKUP($A53,Assumptions!$A$44:$R$98,18,FALSE)-(VLOOKUP($A53,Assumptions!$A$43:$R$98,16,FALSE)*I53) -> 634.2862931 | AL53: =(Z53+AF53)-(VLOOKUP($A53,Assumptions!$A$43:$M$98,11,FALSE)*J53) -> 20.7090586 | AM53: 0 | AO53: 22.44959731 | AP53: 19.01747674 | AQ53: 24.35258267 | AR53: 23.23562111 | AS53: 39.49706629 | AT53: 0
A54: ='Gas Use Per Customer'!B53 -> 2026 | B54: ='Gas Use Per Customer'!C53 -> 4 | C54: ='Daily efficiency'!CQ55 -> 47 | D54: ='Gas Use Per Customer'!J53 -> 259.7838478 | E54: ='Gas Use Per Customer'!L53 -> 55.87901164 | F54: =E54*VLOOKUP($C54,'Existing Technology Conversion'!$A:$AR,21,FALSE) -> 16.76370349 | G54: =D54*VLOOKUP($C54,'Existing Technology Conversion'!$A:$AR,27,FALSE) -> 77.93515433 | H54: =E54*VLOOKUP($C54,'Existing Technology Conversion'!$A:$AR,22,FALSE) -> 33.52740699 | I54: =D54*VLOOKUP($C54,'Existing Technology Conversion'!$A:$AR,28,FALSE) -> 181.8486934 | J54: =E54*VLOOKUP($C54,'Existing Technology Conversion'!$A:$AR,23,FALSE) -> 5.587901164 | K54: =D54*VLOOKUP($C54,'Existing Technology Conversion'!$A:$AR,29,FALSE) -> 0 | L54: =F54*'Daily efficiency'!BD55 -> 266.9069197 | M54: =G54*'Daily efficiency'!BE55 -> 1381.02612 | N54: =H54*'Daily efficiency'!BF55 -> 541.2453308 | O54: =I54*'Daily efficiency'!BG55 -> 4262.533374 | P54: =J54*'Daily efficiency'!BH55 -> 163.7255041 | Q54: =K54*'Daily efficiency'!BI55 -> 0 | R54: =R43*1.01 -> 48.90838847 | S54: 34.86023434 | T54: =T43*1.03 -> 0.07892067776 | U54: 0.0787856167 | V54: =IFERROR(VLOOKUP($A54,Assumptions!$B$11:$H$35,2,FALSE),0) -> 31.33290435 | W54: =IFERROR(VLOOKUP($A54,Assumptions!$B$11:$H$35,3,FALSE),0) -> 125.3316174 | X54: =IFERROR(VLOOKUP($A54,Assumptions!$B$11:$H$35,4,FALSE),0) -> 79.39016753 | Y54: =IFERROR(VLOOKUP($A54,Assumptions!$B$11:$H$35,5,FALSE),0) -> 317.5606701 | Z54: =IFERROR(VLOOKUP($A54,Assumptions!$B$11:$H$35,6,FALSE),0) -> 8.032004727 | AA54: =IFERROR(VLOOKUP($A54,Assumptions!$B$11:$H$35,7,FALSE),0) -> 0 | AB54: 31.48649657 | AC54: 123.6640339 | AD54: 63.55848777 | AE54: 351.0745394 | AF54: 12.89921481 | AG54: 0 | AH54: =(V54+AB54)-(VLOOKUP($A54,Assumptions!$A$43:$M$98,11,FALSE)*F54) -> 50.23267422 | AI54: =(W54+AC54)-(VLOOKUP($A54,Assumptions!$A$43:$R$98,16,FALSE)*G54) -> 194.2950339 | AJ54: =(X54+AD54)-VLOOKUP($A54,Assumptions!$A$44:$M$98,13,FALSE)-(VLOOKUP($A54,Assumptions!$A$44:$M$98,11,FALSE)*$H54) -> 106.4396873 | AK54: =(Y54+AE54)-VLOOKUP($A54,Assumptions!$A$44:$R$98,18,FALSE)-(VLOOKUP($A54,Assumptions!$A$43:$R$98,16,FALSE)*I54) -> 529.6649209 | AL54: =(Z54+AF54)-(VLOOKUP($A54,Assumptions!$A$43:$M$98,11,FALSE)*J54) -> 16.73564397 | AM54: 0 | AO54: 29.9651412 | AP54: 24.93034569 | AQ54: 31.7470681 | AR54: 29.12668279 | AS54: 29.63485878 | AT54: 0
A55: ='Gas Use Per Customer'!B54 -> 2026 | B55: ='Gas Use Per Customer'!C54 -> 5 | C55: ='Daily efficiency'!CQ56 -> 54 | D55: ='Gas Use Per Customer'!J54 -> 152.347862 | E55: ='Gas Use Per Customer'!L54 -> 38.19681456 | F55: =E55*VLOOKUP($C55,'Existing Technology Conversion'!$A:$AR,21,FALSE) -> 30.55745165 | G55: =D55*VLOOKUP($C55,'Existing Technology Conversion'!$A:$AR,27,FALSE) -> 137.1130758 | H55: =E55*VLOOKUP($C55,'Existing Technology Conversion'!$A:$AR,22,FALSE) -> 3.819681456 | I55: =D55*VLOOKUP($C55,'Existing Technology Conversion'!$A:$AR,28,FALSE) -> 15.2347862 | J55: =E55*VLOOKUP($C55,'Existing Technology Conversion'!$A:$AR,23,FALSE) -> 3.819681456 | K55: =D55*VLOOKUP($C55,'Existing Technology Conversion'!$A:$AR,29,FALSE) -> 0 | L55: =F55*'Daily efficiency'!BD56 -> 429.5095571 | M55: =G55*'Daily efficiency'!BE56 -> 2352.780233 | N55: =H55*'Daily efficiency'!BF56 -> 47.44854071 | O55: =I55*'Daily efficiency'!BG56 -> 357.1033885 | P55: =J55*'Daily efficiency'!BH56 -> 111.9166667 | Q55: =K55*'Daily efficiency'!BI56 -> 0 | R55: 48.90838847 | S55: 34.86023434 | T55: 0.07892067776 | U55: 0.0787856167 | V55: =IFERROR(VLOOKUP($A55,Assumptions!$B$11:$H$35,2,FALSE),0) -> 31.33290435 | W55: =IFERROR(VLOOKUP($A55,Assumptions!$B$11:$H$35,3,FALSE),0) -> 125.3316174 | X55: =IFERROR(VLOOKUP($A55,Assumptions!$B$11:$H$35,4,FALSE),0) -> 79.39016753 | Y55: =IFERROR(VLOOKUP($A55,Assumptions!$B$11:$H$35,5,FALSE),0) -> 317.5606701 | Z55: =IFERROR(VLOOKUP($A55,Assumptions!$B$11:$H$35,6,FALSE),0) -> 8.032004727 | AA55: =IFERROR(VLOOKUP($A55,Assumptions!$B$11:$H$35,7,FALSE),0) -> 0 | AB55: 61.7273628 | AC55: 229.7005602 | AD55: 7.224285975 | AE55: 72.20039107 | AF55: 8.817423602 | AG55: 0 | AH55: =(V55+AB55)-(VLOOKUP($A55,Assumptions!$A$43:$M$98,11,FALSE)*F55) -> 70.11675155 | AI55: =(W55+AC55)-(VLOOKUP($A55,Assumptions!$A$43:$R$98,16,FALSE)*G55) -> 258.7961469 | AJ55: =(X55+AD55)-VLOOKUP($A55,Assumptions!$A$44:$M$98,13,FALSE)-(VLOOKUP($A55,Assumptions!$A$44:$M$98,11,FALSE)*$H55) -> 72.41099945 | AK55: =(Y55+AE55)-VLOOKUP($A55,Assumptions!$A$44:$R$98,18,FALSE)-(VLOOKUP($A55,Assumptions!$A$43:$R$98,16,FALSE)*I55) -> 367.7326543 | AL55: =(Z55+AF55)-(VLOOKUP($A55,Assumptions!$A$43:$M$98,11,FALSE)*J55) -> 13.98148888 | AM55: 0 | AO55: 22.94587662 | AP55: 18.87465112 | AQ55: 79.63528542 | AR55: 241.3769707 | AS55: 22.79891248 | AT55: 0
A56: ='Gas Use Per Customer'!B55 -> 2026 | B56: ='Gas Use Per Customer'!C55 -> 6 | C56: ='Daily efficiency'!CQ57 -> 59 | D56: ='Gas Use Per Customer'!J55 -> 115.9774022 | E56: ='Gas Use Per Customer'!L55 -> 24.25452989 | F56: =E56*VLOOKUP($C56,'Existing Technology Conversion'!$A:$AR,21,FALSE) -> 19.40362391 | G56: =D56*VLOOKUP($C56,'Existing Technology Conversion'!$A:$AR,27,FALSE) -> 104.379662 | H56: =E56*VLOOKUP($C56,'Existing Technology Conversion'!$A:$AR,22,FALSE) -> 2.425452989 | I56: =D56*VLOOKUP($C56,'Existing Technology Conversion'!$A:$AR,28,FALSE) -> 11.59774022 | J56: =E56*VLOOKUP($C56,'Existing Technology Conversion'!$A:$AR,23,FALSE) -> 2.425452989 | K56: =D56*VLOOKUP($C56,'Existing Technology Conversion'!$A:$AR,29,FALSE) -> 0 | L56: =F56*'Daily efficiency'!BD57 -> 271.1432554 | M56: =G56*'Daily efficiency'!BE57 -> 1788.831075 | N56: =H56*'Daily efficiency'!BF57 -> 29.77994279 | O56: =I56*'Daily efficiency'!BG57 -> 271.8510307 | P56: =J56*'Daily efficiency'!BH57 -> 71.06577258 | Q56: =K56*'Daily efficiency'!BI57 -> 0 | R56: 48.90838847 | S56: 34.86023434 | T56: 0.07892067776 | U56: 0.0787856167 | V56: =IFERROR(VLOOKUP($A56,Assumptions!$B$11:$H$35,2,FALSE),0) -> 31.33290435 | W56: =IFERROR(VLOOKUP($A56,Assumptions!$B$11:$H$35,3,FALSE),0) -> 125.3316174 | X56: =IFERROR(VLOOKUP($A56,Assumptions!$B$11:$H$35,4,FALSE),0) -> 79.39016753 | Y56: =IFERROR(VLOOKUP($A56,Assumptions!$B$11:$H$35,5,FALSE),0) -> 317.5606701 | Z56: =IFERROR(VLOOKUP($A56,Assumptions!$B$11:$H$35,6,FALSE),0) -> 8.032004727 | AA56: =IFERROR(VLOOKUP($A56,Assumptions!$B$11:$H$35,7,FALSE),0) -> 0 | AB56: 49.25037606 | AC56: 185.1933104 | AD56: 5.832254592 | AE56: 65.47221721 | AF56: 5.598960719 | AG56: 0 | AH56: =(V56+AB56)-(VLOOKUP($A56,Assumptions!$A$43:$M$98,11,FALSE)*F56) -> 66.01441671 | AI56: =(W56+AC56)-(VLOOKUP($A56,Assumptions!$A$43:$R$98,16,FALSE)*G56) -> 237.263612 | AJ56: =(X56+AD56)-VLOOKUP($A56,Assumptions!$A$44:$M$98,13,FALSE)-(VLOOKUP($A56,Assumptions!$A$44:$M$98,11,FALSE)*$H56) -> 72.06579955 | AK56: =(Y56+AE56)-VLOOKUP($A56,Assumptions!$A$44:$R$98,18,FALSE)-(VLOOKUP($A56,Assumptions!$A$43:$R$98,16,FALSE)*I56) -> 363.5572265 | AL56: =(Z56+AF56)-(VLOOKUP($A56,Assumptions!$A$43:$M$98,11,FALSE)*J56) -> 11.80985748 | AM56: 0 | AO56: 34.02169461 | AP56: 22.73082778 | AQ56: 77.89805415 | AR56: 313.4724694 | AS56: 17.4088182 | AT56: 0
A57: ='Gas Use Per Customer'!B56 -> 2026 | B57: ='Gas Use Per Customer'!C56 -> 7 | C57: ='Daily efficiency'!CQ58 -> 63 | D57: ='Gas Use Per Customer'!J56 -> 107.9652687 | E57: ='Gas Use Per Customer'!L56 -> 20.58570198 | F57: =E57*VLOOKUP($C57,'Existing Technology Conversion'!$A:$AR,21,FALSE) -> 16.46856158 | G57: =D57*VLOOKUP($C57,'Existing Technology Conversion'!$A:$AR,27,FALSE) -> 97.16874185 | H57: =E57*VLOOKUP($C57,'Existing Technology Conversion'!$A:$AR,22,FALSE) -> 2.058570198 | I57: =D57*VLOOKUP($C57,'Existing Technology Conversion'!$A:$AR,28,FALSE) -> 10.79652687 | J57: =E57*VLOOKUP($C57,'Existing Technology Conversion'!$A:$AR,23,FALSE) -> 2.058570198 | K57: =D57*VLOOKUP($C57,'Existing Technology Conversion'!$A:$AR,29,FALSE) -> 0 | L57: =F57*'Daily efficiency'!BD58 -> 251.0077983 | M57: =G57*'Daily efficiency'!BE58 -> 1754.78192 | N57: =H57*'Daily efficiency'!BF58 -> 13.04532694 | O57: =I57*'Daily efficiency'!BG58 -> 130.6170787 | P57: =J57*'Daily efficiency'!BH58 -> 45.72350032 | Q57: =K57*'Daily efficiency'!BI58 -> 0 | R57: 48.90838847 | S57: 34.86023434 | T57: 0.07892067776 | U57: 0.0787856167 | V57: =IFERROR(VLOOKUP($A57,Assumptions!$B$11:$H$35,2,FALSE),0) -> 31.33290435 | W57: =IFERROR(VLOOKUP($A57,Assumptions!$B$11:$H$35,3,FALSE),0) -> 125.3316174 | X57: =IFERROR(VLOOKUP($A57,Assumptions!$B$11:$H$35,4,FALSE),0) -> 79.39016753 | Y57: =IFERROR(VLOOKUP($A57,Assumptions!$B$11:$H$35,5,FALSE),0) -> 317.5606701 | Z57: =IFERROR(VLOOKUP($A57,Assumptions!$B$11:$H$35,6,FALSE),0) -> 8.032004727 | AA57: =IFERROR(VLOOKUP($A57,Assumptions!$B$11:$H$35,7,FALSE),0) -> 0 | AB57: 47.66399165 | AC57: 182.5061281 | AD57: 4.513807562 | AE57: 54.325938 | AF57: 3.60235417 | AG57: 0 | AH57: =(V57+AB57)-(VLOOKUP($A57,Assumptions!$A$43:$M$98,11,FALSE)*F57) -> 66.63177132 | AI57: =(W57+AC57)-(VLOOKUP($A57,Assumptions!$A$43:$R$98,16,FALSE)*G57) -> 239.6375832 | AJ57: =(X57+AD57)-VLOOKUP($A57,Assumptions!$A$44:$M$98,13,FALSE)-(VLOOKUP($A57,Assumptions!$A$44:$M$98,11,FALSE)*$H57) -> 71.0228199 | AK57: =(Y57+AE57)-VLOOKUP($A57,Assumptions!$A$44:$R$98,18,FALSE)-(VLOOKUP($A57,Assumptions!$A$43:$R$98,16,FALSE)*I57) -> 352.9732977 | AL57: =(Z57+AF57)-(VLOOKUP($A57,Assumptions!$A$43:$M$98,11,FALSE)*J57) -> 10.08871831 | AM57: 0 | AO57: 40.45998248 | AP57: 24.6620033 | AQ57: 75.53662746 | AR57: 326.9322643 | AS57: 13.69107248 | AT57: 0
A58: ='Gas Use Per Customer'!B57 -> 2026 | B58: ='Gas Use Per Customer'!C57 -> 8 | C58: ='Daily efficiency'!CQ59 -> 63 | D58: ='Gas Use Per Customer'!J57 -> 143.4098158 | E58: ='Gas Use Per Customer'!L57 -> 26.04316547 | F58: =E58*VLOOKUP($C58,'Existing Technology Conversion'!$A:$AR,21,FALSE) -> 20.83453237 | G58: =D58*VLOOKUP($C58,'Existing Technology Conversion'!$A:$AR,27,FALSE) -> 129.0688342 | H58: =E58*VLOOKUP($C58,'Existing Technology Conversion'!$A:$AR,22,FALSE) -> 2.604316547 | I58: =D58*VLOOKUP($C58,'Existing Technology Conversion'!$A:$AR,28,FALSE) -> 14.34098158 | J58: =E58*VLOOKUP($C58,'Existing Technology Conversion'!$A:$AR,23,FALSE) -> 2.604316547 | K58: =D58*VLOOKUP($C58,'Existing Technology Conversion'!$A:$AR,29,FALSE) -> 0 | L58: =F58*'Daily efficiency'!BD59 -> 299.9431433 | M58: =G58*'Daily efficiency'!BE59 -> 2251.588225 | N58: =H58*'Daily efficiency'!BF59 -> 26.81861972 | O58: =I58*'Daily efficiency'!BG59 -> 281.9344456 | P58: =J58*'Daily efficiency'!BH59 -> 70.15272685 | Q58: =K58*'Daily efficiency'!BI59 -> 0 | R58: 49.39747235 | S58: 35.20883668 | T58: 0.08128829809 | U58: 0.0811491852 | V58: =IFERROR(VLOOKUP($A58,Assumptions!$B$11:$H$35,2,FALSE),0) -> 31.33290435 | W58: =IFERROR(VLOOKUP($A58,Assumptions!$B$11:$H$35,3,FALSE),0) -> 125.3316174 | X58: =IFERROR(VLOOKUP($A58,Assumptions!$B$11:$H$35,4,FALSE),0) -> 79.39016753 | Y58: =IFERROR(VLOOKUP($A58,Assumptions!$B$11:$H$35,5,FALSE),0) -> 317.5606701 | Z58: =IFERROR(VLOOKUP($A58,Assumptions!$B$11:$H$35,6,FALSE),0) -> 8.032004727 | AA58: =IFERROR(VLOOKUP($A58,Assumptions!$B$11:$H$35,7,FALSE),0) -> 0 | AB58: 52.50721103 | AC58: 227.4854999 | AD58: 5.697192806 | AE58: 67.37569637 | AF58: 5.692836624 | AG58: 0 | AH58: =(V58+AB58)-(VLOOKUP($A58,Assumptions!$A$43:$M$98,11,FALSE)*F58) -> 68.19687968 | AI58: =(W58+AC58)-(VLOOKUP($A58,Assumptions!$A$43:$R$98,16,FALSE)*G58) -> 262.2271264 | AJ58: =(X58+AD58)-VLOOKUP($A58,Assumptions!$A$44:$M$98,13,FALSE)-(VLOOKUP($A58,Assumptions!$A$44:$M$98,11,FALSE)*$H58) -> 71.79644127 | AK58: =(Y58+AE58)-VLOOKUP($A58,Assumptions!$A$44:$R$98,18,FALSE)-(VLOOKUP($A58,Assumptions!$A$43:$R$98,16,FALSE)*I58) -> 363.5352973 | AL58: =(Z58+AF58)-(VLOOKUP($A58,Assumptions!$A$43:$M$98,11,FALSE)*J58) -> 11.76943689 | AM58: 0 | AO58: 32.73261835 | AP58: 20.31684318 | AQ58: 77.49363407 | AR58: 253.4940132 | AS58: 17.46227351 | AT58: 0
A59: ='Gas Use Per Customer'!B58 -> 2026 | B59: ='Gas Use Per Customer'!C58 -> 9 | C59: ='Daily efficiency'!CQ60 -> 58 | D59: ='Gas Use Per Customer'!J58 -> 113.7628105 | E59: ='Gas Use Per Customer'!L58 -> 20.48435923 | F59: =E59*VLOOKUP($C59,'Existing Technology Conversion'!$A:$AR,21,FALSE) -> 16.38748739 | G59: =D59*VLOOKUP($C59,'Existing Technology Conversion'!$A:$AR,27,FALSE) -> 102.3865295 | H59: =E59*VLOOKUP($C59,'Existing Technology Conversion'!$A:$AR,22,FALSE) -> 2.048435923 | I59: =D59*VLOOKUP($C59,'Existing Technology Conversion'!$A:$AR,28,FALSE) -> 11.37628105 | J59: =E59*VLOOKUP($C59,'Existing Technology Conversion'!$A:$AR,23,FALSE) -> 2.048435923 | K59: =D59*VLOOKUP($C59,'Existing Technology Conversion'!$A:$AR,29,FALSE) -> 0 | L59: =F59*'Daily efficiency'!BD60 -> 228.9962276 | M59: =G59*'Daily efficiency'!BE60 -> 1754.673297 | N59: =H59*'Daily efficiency'!BF60 -> 25.15089136 | O59: =I59*'Daily efficiency'!BG60 -> 266.6600279 | P59: =J59*'Daily efficiency'!BH60 -> 60.01917255 | Q59: =K59*'Daily efficiency'!BI60 -> 0 | R59: 49.39747235 | S59: 35.20883668 | T59: 0.08128829809 | U59: 0.0811491852 | V59: =IFERROR(VLOOKUP($A59,Assumptions!$B$11:$H$35,2,FALSE),0) -> 31.33290435 | W59: =IFERROR(VLOOKUP($A59,Assumptions!$B$11:$H$35,3,FALSE),0) -> 125.3316174 | X59: =IFERROR(VLOOKUP($A59,Assumptions!$B$11:$H$35,4,FALSE),0) -> 79.39016753 | Y59: =IFERROR(VLOOKUP($A59,Assumptions!$B$11:$H$35,5,FALSE),0) -> 317.5606701 | Z59: =IFERROR(VLOOKUP($A59,Assumptions!$B$11:$H$35,6,FALSE),0) -> 8.032004727 | AA59: =IFERROR(VLOOKUP($A59,Assumptions!$B$11:$H$35,7,FALSE),0) -> 0 | AB59: 46.74992663 | AC59: 187.0921311 | AD59: 5.561858008 | AE59: 66.13406495 | AF59: 4.870506949 | AG59: 0 | AH59: =(V59+AB59)-(VLOOKUP($A59,Assumptions!$A$43:$M$98,11,FALSE)*F59) -> 65.7785794 | AI59: =(W59+AC59)-(VLOOKUP($A59,Assumptions!$A$43:$R$98,16,FALSE)*G59) -> 240.5613595 | AJ59: =(X59+AD59)-VLOOKUP($A59,Assumptions!$A$44:$M$98,13,FALSE)-(VLOOKUP($A59,Assumptions!$A$44:$M$98,11,FALSE)*$H59) -> 72.07847949 | AK59: =(Y59+AE59)-VLOOKUP($A59,Assumptions!$A$44:$R$98,18,FALSE)-(VLOOKUP($A59,Assumptions!$A$43:$R$98,16,FALSE)*I59) -> 364.3745106 | AL59: =(Z59+AF59)-(VLOOKUP($A59,Assumptions!$A$43:$M$98,11,FALSE)*J59) -> 11.36448023 | AM59: 0 | AO59: 40.13951489 | AP59: 23.49541104 | AQ59: 77.64033749 | AR59: 320.2931686 | AS59: 16.23498718 | AT59: 0
A60: ='Gas Use Per Customer'!B59 -> 2026 | B60: ='Gas Use Per Customer'!C59 -> 10 | C60: ='Daily efficiency'!CQ61 -> 48 | D60: ='Gas Use Per Customer'!J59 -> 225.7109397 | E60: ='Gas Use Per Customer'!L59 -> 46.59025788 | F60: =E60*VLOOKUP($C60,'Existing Technology Conversion'!$A:$AR,21,FALSE) -> 13.97707736 | G60: =D60*VLOOKUP($C60,'Existing Technology Conversion'!$A:$AR,27,FALSE) -> 67.7132819 | H60: =E60*VLOOKUP($C60,'Existing Technology Conversion'!$A:$AR,22,FALSE) -> 27.95415473 | I60: =D60*VLOOKUP($C60,'Existing Technology Conversion'!$A:$AR,28,FALSE) -> 157.9976578 | J60: =E60*VLOOKUP($C60,'Existing Technology Conversion'!$A:$AR,23,FALSE) -> 4.659025788 | K60: =D60*VLOOKUP($C60,'Existing Technology Conversion'!$A:$AR,29,FALSE) -> 0 | L60: =F60*'Daily efficiency'!BD61 -> 211.3510033 | M60: =G60*'Daily efficiency'!BE61 -> 1186.876301 | N60: =H60*'Daily efficiency'!BF61 -> 415.5423317 | O60: =I60*'Daily efficiency'!BG61 -> 3703.465098 | P60: =J60*'Daily efficiency'!BH61 -> 136.5094556 | Q60: =K60*'Daily efficiency'!BI61 -> 0 | R60: 49.39747235 | S60: 35.20883668 | T60: 0.08128829809 | U60: 0.0811491852 | V60: =IFERROR(VLOOKUP($A60,Assumptions!$B$11:$H$35,2,FALSE),0) -> 31.33290435 | W60: =IFERROR(VLOOKUP($A60,Assumptions!$B$11:$H$35,3,FALSE),0) -> 125.3316174 | X60: =IFERROR(VLOOKUP($A60,Assumptions!$B$11:$H$35,4,FALSE),0) -> 79.39016753 | Y60: =IFERROR(VLOOKUP($A60,Assumptions!$B$11:$H$35,5,FALSE),0) -> 317.5606701 | Z60: =IFERROR(VLOOKUP($A60,Assumptions!$B$11:$H$35,6,FALSE),0) -> 8.032004727 | AA60: =IFERROR(VLOOKUP($A60,Assumptions!$B$11:$H$35,7,FALSE),0) -> 0 | AB60: 27.71361271 | AC60: 111.2983962 | AD60: 54.84622364 | AE60: 315.8676166 | AF60: 11.07763109 | AG60: 0 | AH60: =(V60+AB60)-(VLOOKUP($A60,Assumptions!$A$43:$M$98,11,FALSE)*F60) -> 48.5520787 | AI60: =(W60+AC60)-(VLOOKUP($A60,Assumptions!$A$43:$R$98,16,FALSE)*G60) -> 189.1038573 | AJ60: =(X60+AD60)-VLOOKUP($A60,Assumptions!$A$44:$M$98,13,FALSE)-(VLOOKUP($A60,Assumptions!$A$44:$M$98,11,FALSE)*$H60) -> 101.9119999 | AK60: =(Y60+AE60)-VLOOKUP($A60,Assumptions!$A$44:$R$98,18,FALSE)-(VLOOKUP($A60,Assumptions!$A$43:$R$98,16,FALSE)*I60) -> 511.1984073 | AL60: =(Z60+AF60)-(VLOOKUP($A60,Assumptions!$A$43:$M$98,11,FALSE)*J60) -> 15.6114897 | AM60: 0 | AO60: 34.73693208 | AP60: 27.92714398 | AQ60: 36.45683472 | AR60: 32.35480921 | AS60: 26.6891208 | AT60: 0
A61: ='Gas Use Per Customer'!B60 -> 2026 | B61: ='Gas Use Per Customer'!C60 -> 11 | C61: ='Daily efficiency'!CQ62 -> 39 | D61: ='Gas Use Per Customer'!J60 -> 356.2795368 | E61: ='Gas Use Per Customer'!L60 -> 81.79752946 | F61: =E61*VLOOKUP($C61,'Existing Technology Conversion'!$A:$AR,21,FALSE) -> 24.53925884 | G61: =D61*VLOOKUP($C61,'Existing Technology Conversion'!$A:$AR,27,FALSE) -> 106.883861 | H61: =E61*VLOOKUP($C61,'Existing Technology Conversion'!$A:$AR,22,FALSE) -> 49.07851768 | I61: =D61*VLOOKUP($C61,'Existing Technology Conversion'!$A:$AR,28,FALSE) -> 249.3956758 | J61: =E61*VLOOKUP($C61,'Existing Technology Conversion'!$A:$AR,23,FALSE) -> 8.179752946 | K61: =D61*VLOOKUP($C61,'Existing Technology Conversion'!$A:$AR,29,FALSE) -> 0 | L61: =F61*'Daily efficiency'!BD62 -> 413.6171042 | M61: =G61*'Daily efficiency'!BE62 -> 1936.877562 | N61: =H61*'Daily efficiency'!BF62 -> 838.7429962 | O61: =I61*'Daily efficiency'!BG62 -> 5821.476995 | P61: =J61*'Daily efficiency'!BH62 -> 247.6556534 | Q61: =K61*'Daily efficiency'!BI62 -> 0 | R61: 49.39747235 | S61: 35.20883668 | T61: 0.08128829809 | U61: 0.0811491852 | V61: =IFERROR(VLOOKUP($A61,Assumptions!$B$11:$H$35,2,FALSE),0) -> 31.33290435 | W61: =IFERROR(VLOOKUP($A61,Assumptions!$B$11:$H$35,3,FALSE),0) -> 125.3316174 | X61: =IFERROR(VLOOKUP($A61,Assumptions!$B$11:$H$35,4,FALSE),0) -> 79.39016753 | Y61: =IFERROR(VLOOKUP($A61,Assumptions!$B$11:$H$35,5,FALSE),0) -> 317.5606701 | Z61: =IFERROR(VLOOKUP($A61,Assumptions!$B$11:$H$35,6,FALSE),0) -> 8.032004727 | AA61: =IFERROR(VLOOKUP($A61,Assumptions!$B$11:$H$35,7,FALSE),0) -> 0 | AB61: 44.12734199 | AC61: 172.2647223 | AD61: 89.18861275 | AE61: 488.037199 | AF61: 20.09705448 | AG61: 0 | AH61: =(V61+AB61)-(VLOOKUP($A61,Assumptions!$A$43:$M$98,11,FALSE)*F61) -> 57.03538309 | AI61: =(W61+AC61)-(VLOOKUP($A61,Assumptions!$A$43:$R$98,16,FALSE)*G61) -> 222.577393 | AJ61: =(X61+AD61)-VLOOKUP($A61,Assumptions!$A$44:$M$98,13,FALSE)-(VLOOKUP($A61,Assumptions!$A$44:$M$98,11,FALSE)*$H61) -> 120.3935392 | AK61: =(Y61+AE61)-VLOOKUP($A61,Assumptions!$A$44:$R$98,18,FALSE)-(VLOOKUP($A61,Assumptions!$A$43:$R$98,16,FALSE)*I61) -> 619.2181455 | AL61: =(Z61+AF61)-(VLOOKUP($A61,Assumptions!$A$43:$M$98,11,FALSE)*J61) -> 21.98743812 | AM61: 0 | AO61: 23.24250437 | AP61: 20.82422836 | AQ61: 24.53080184 | AR61: 24.82874427 | AS61: 42.08449261 | AT61: 0
A62: ='Gas Use Per Customer'!B61 -> 2026 | B62: ='Gas Use Per Customer'!C61 -> 12 | C62: ='Daily efficiency'!CQ63 -> 31 | D62: ='Gas Use Per Customer'!J61 -> 515.3916337 | E62: ='Gas Use Per Customer'!L61 -> 113.5291625 | F62: =E62*VLOOKUP($C62,'Existing Technology Conversion'!$A:$AR,21,FALSE) -> 22.70583251 | G62: =D62*VLOOKUP($C62,'Existing Technology Conversion'!$A:$AR,27,FALSE) -> 103.0783267 | H62: =E62*VLOOKUP($C62,'Existing Technology Conversion'!$A:$AR,22,FALSE) -> 85.14687191 | I62: =D62*VLOOKUP($C62,'Existing Technology Conversion'!$A:$AR,28,FALSE) -> 412.313307 | J62: =E62*VLOOKUP($C62,'Existing Technology Conversion'!$A:$AR,23,FALSE) -> 5.676458127 | K62: =D62*VLOOKUP($C62,'Existing Technology Conversion'!$A:$AR,29,FALSE) -> 0 | L62: =F62*'Daily efficiency'!BD63 -> 417.6005602 | M62: =G62*'Daily efficiency'!BE63 -> 1973.006423 | N62: =H62*'Daily efficiency'!BF63 -> 2001.804191 | O62: =I62*'Daily efficiency'!BG63 -> 9508.742884 | P62: =J62*'Daily efficiency'!BH63 -> 187.7808971 | Q62: =K62*'Daily efficiency'!BI63 -> 0 | R62: 49.39747235 | S62: 35.20883668 | T62: 0.08128829809 | U62: 0.0811491852 | V62: =IFERROR(VLOOKUP($A62,Assumptions!$B$11:$H$35,2,FALSE),0) -> 31.33290435 | W62: =IFERROR(VLOOKUP($A62,Assumptions!$B$11:$H$35,3,FALSE),0) -> 125.3316174 | X62: =IFERROR(VLOOKUP($A62,Assumptions!$B$11:$H$35,4,FALSE),0) -> 79.39016753 | Y62: =IFERROR(VLOOKUP($A62,Assumptions!$B$11:$H$35,5,FALSE),0) -> 317.5606701 | Z62: =IFERROR(VLOOKUP($A62,Assumptions!$B$11:$H$35,6,FALSE),0) -> 8.032004727 | AA62: =IFERROR(VLOOKUP($A62,Assumptions!$B$11:$H$35,7,FALSE),0) -> 0 | AB62: 40.92971254 | AC62: 170.2618287 | AD62: 188.8514065 | AE62: 782.8290205 | AF62: 15.23826679 | AG62: 0 | AH62: =(V62+AB62)-(VLOOKUP($A62,Assumptions!$A$43:$M$98,11,FALSE)*F62) -> 55.21434898 | AI62: =(W62+AC62)-(VLOOKUP($A62,Assumptions!$A$43:$R$98,16,FALSE)*G62) -> 223.245503 | AJ62: =(X62+AD62)-VLOOKUP($A62,Assumptions!$A$44:$M$98,13,FALSE)-(VLOOKUP($A62,Assumptions!$A$44:$M$98,11,FALSE)*$H62) -> 192.9750548 | AK62: =(Y62+AE62)-VLOOKUP($A62,Assumptions!$A$44:$R$98,18,FALSE)-(VLOOKUP($A62,Assumptions!$A$43:$R$98,16,FALSE)*I62) -> 799.6624034 | AL62: =(Z62+AF62)-(VLOOKUP($A62,Assumptions!$A$43:$M$98,11,FALSE)*J62) -> 19.00820454 | AM62: 0 | AO62: 24.31725371 | AP62: 21.65785088 | AQ62: 22.66378675 | AR62: 19.39453299 | AS62: 34.24647134 | AT62: 0
A63: ='Gas Use Per Customer'!B62 -> 2027 | B63: ='Gas Use Per Customer'!C62 -> 1 | C63: ='Daily efficiency'!CQ64 -> 32 | D63: ='Gas Use Per Customer'!J62 -> 544.6654154 | E63: ='Gas Use Per Customer'!L62 -> 114.2294159 | F63: =E63*VLOOKUP($C63,'Existing Technology Conversion'!$A:$AR,21,FALSE) -> 22.84588318 | G63: =D63*VLOOKUP($C63,'Existing Technology Conversion'!$A:$AR,27,FALSE) -> 108.9330831 | H63: =E63*VLOOKUP($C63,'Existing Technology Conversion'!$A:$AR,22,FALSE) -> 85.67206193 | I63: =D63*VLOOKUP($C63,'Existing Technology Conversion'!$A:$AR,28,FALSE) -> 435.7323324 | J63: =E63*VLOOKUP($C63,'Existing Technology Conversion'!$A:$AR,23,FALSE) -> 5.711470795 | K63: =D63*VLOOKUP($C63,'Existing Technology Conversion'!$A:$AR,29,FALSE) -> 0 | L63: =F63*'Daily efficiency'!BD64 -> 412.6421442 | M63: =G63*'Daily efficiency'!BE64 -> 2052.230766 | N63: =H63*'Daily efficiency'!BF64 -> 1985.385326 | O63: =I63*'Daily efficiency'!BG64 -> 10090.01467 | P63: =J63*'Daily efficiency'!BH64 -> 183.5408776 | Q63: =K63*'Daily efficiency'!BI64 -> 0 | R63: 49.39747235 | S63: 35.20883668 | T63: 0.08128829809 | U63: 0.0811491852 | V63: =IFERROR(VLOOKUP($A63,Assumptions!$B$11:$H$35,2,FALSE),0) -> 31.33290435 | W63: =IFERROR(VLOOKUP($A63,Assumptions!$B$11:$H$35,3,FALSE),0) -> 125.3316174 | X63: =IFERROR(VLOOKUP($A63,Assumptions!$B$11:$H$35,4,FALSE),0) -> 79.39016753 | Y63: =IFERROR(VLOOKUP($A63,Assumptions!$B$11:$H$35,5,FALSE),0) -> 317.5606701 | Z63: =IFERROR(VLOOKUP($A63,Assumptions!$B$11:$H$35,6,FALSE),0) -> 8.032004727 | AA63: =IFERROR(VLOOKUP($A63,Assumptions!$B$11:$H$35,7,FALSE),0) -> 0 | AB63: 40.52734112 | AC63: 176.7018407 | AD63: 187.519029 | AE63: 830.0796147 | AF63: 14.89419267 | AG63: 0 | AH63: =(V63+AB63)-(VLOOKUP($A63,Assumptions!$A$43:$M$98,11,FALSE)*F63) -> 54.32372991 | AI63: =(W63+AC63)-(VLOOKUP($A63,Assumptions!$A$43:$R$98,16,FALSE)*G63) -> 223.8686717 | AJ63: =(X63+AD63)-VLOOKUP($A63,Assumptions!$A$44:$M$98,13,FALSE)-(VLOOKUP($A63,Assumptions!$A$44:$M$98,11,FALSE)*$H63) -> 189.5585888 | AK63: =(Y63+AE63)-VLOOKUP($A63,Assumptions!$A$44:$R$98,18,FALSE)-(VLOOKUP($A63,Assumptions!$A$43:$R$98,16,FALSE)*I63) -> 823.3924649 | AL63: =(Z63+AF63)-(VLOOKUP($A63,Assumptions!$A$43:$M$98,11,FALSE)*J63) -> 18.54206851 | AM63: 0 | AO63: 23.77834531 | AP63: 20.55102687 | AQ63: 22.12606824 | AR63: 18.89674931 | AS63: 33.43626118 | AT63: 0
A64: ='Gas Use Per Customer'!B63 -> 2027 | B64: ='Gas Use Per Customer'!C63 -> 2 | C64: ='Daily efficiency'!CQ65 -> 33 | D64: ='Gas Use Per Customer'!J63 -> 472.6101811 | E64: ='Gas Use Per Customer'!L63 -> 98.93018018 | F64: =E64*VLOOKUP($C64,'Existing Technology Conversion'!$A:$AR,21,FALSE) -> 19.78603604 | G64: =D64*VLOOKUP($C64,'Existing Technology Conversion'!$A:$AR,27,FALSE) -> 94.52203623 | H64: =E64*VLOOKUP($C64,'Existing Technology Conversion'!$A:$AR,22,FALSE) -> 74.19763514 | I64: =D64*VLOOKUP($C64,'Existing Technology Conversion'!$A:$AR,28,FALSE) -> 378.0881449 | J64: =E64*VLOOKUP($C64,'Existing Technology Conversion'!$A:$AR,23,FALSE) -> 4.946509009 | K64: =D64*VLOOKUP($C64,'Existing Technology Conversion'!$A:$AR,29,FALSE) -> 0 | L64: =F64*'Daily efficiency'!BD65 -> 330.7029314 | M64: =G64*'Daily efficiency'!BE65 -> 1748.922262 | N64: =H64*'Daily efficiency'!BF65 -> 1356.683225 | O64: =I64*'Daily efficiency'!BG65 -> 8783.257669 | P64: =J64*'Daily efficiency'!BH65 -> 155.2850507 | Q64: =K64*'Daily efficiency'!BI65 -> 0 | R64: 49.39747235 | S64: 35.20883668 | T64: 0.08128829809 | U64: 0.0811491852 | V64: =IFERROR(VLOOKUP($A64,Assumptions!$B$11:$H$35,2,FALSE),0) -> 31.33290435 | W64: =IFERROR(VLOOKUP($A64,Assumptions!$B$11:$H$35,3,FALSE),0) -> 125.3316174 | X64: =IFERROR(VLOOKUP($A64,Assumptions!$B$11:$H$35,4,FALSE),0) -> 79.39016753 | Y64: =IFERROR(VLOOKUP($A64,Assumptions!$B$11:$H$35,5,FALSE),0) -> 317.5606701 | Z64: =IFERROR(VLOOKUP($A64,Assumptions!$B$11:$H$35,6,FALSE),0) -> 8.032004727 | AA64: =IFERROR(VLOOKUP($A64,Assumptions!$B$11:$H$35,7,FALSE),0) -> 0 | AB64: 33.87804076 | AC64: 152.0464087 | AD64: 136.5003658 | AE64: 723.8555621 | AF64: 12.60125534 | AG64: 0 | AH64: =(V64+AB64)-(VLOOKUP($A64,Assumptions!$A$43:$M$98,11,FALSE)*F64) -> 50.02317032 | AI64: =(W64+AC64)-(VLOOKUP($A64,Assumptions!$A$43:$R$98,16,FALSE)*G64) -> 209.5538668 | AJ64: =(X64+AD64)-VLOOKUP($A64,Assumptions!$A$44:$M$98,13,FALSE)-(VLOOKUP($A64,Assumptions!$A$44:$M$98,11,FALSE)*$H64) -> 147.3477034 | AK64: =(Y64+AE64)-VLOOKUP($A64,Assumptions!$A$44:$R$98,18,FALSE)-(VLOOKUP($A64,Assumptions!$A$43:$R$98,16,FALSE)*I64) -> 758.5309209 | AL64: =(Z64+AF64)-(VLOOKUP($A64,Assumptions!$A$43:$M$98,11,FALSE)*J64) -> 16.83631637 | AM64: 0 | AO64: 25.28205762 | AP64: 22.16984263 | AQ64: 19.85881398 | AR64: 20.06227731 | AS64: 29.4375717 | AT64: 0
A65: ='Gas Use Per Customer'!B64 -> 2027 | B65: ='Gas Use Per Customer'!C64 -> 3 | C65: ='Daily efficiency'!CQ66 -> 40 | D65: ='Gas Use Per Customer'!J64 -> 388.5549409 | E65: ='Gas Use Per Customer'!L64 -> 81.0765112 | F65: =E65*VLOOKUP($C65,'Existing Technology Conversion'!$A:$AR,21,FALSE) -> 24.32295336 | G65: =D65*VLOOKUP($C65,'Existing Technology Conversion'!$A:$AR,27,FALSE) -> 116.5664823 | H65: =E65*VLOOKUP($C65,'Existing Technology Conversion'!$A:$AR,22,FALSE) -> 48.64590672 | I65: =D65*VLOOKUP($C65,'Existing Technology Conversion'!$A:$AR,28,FALSE) -> 271.9884586 | J65: =E65*VLOOKUP($C65,'Existing Technology Conversion'!$A:$AR,23,FALSE) -> 8.10765112 | K65: =D65*VLOOKUP($C65,'Existing Technology Conversion'!$A:$AR,29,FALSE) -> 0 | L65: =F65*'Daily efficiency'!BD66 -> 396.4686674 | M65: =G65*'Daily efficiency'!BE66 -> 2078.02862 | N65: =H65*'Daily efficiency'!BF66 -> 842.3003609 | O65: =I65*'Daily efficiency'!BG66 -> 6375.40947 | P65: =J65*'Daily efficiency'!BH66 -> 237.5541778 | Q65: =K65*'Daily efficiency'!BI66 -> 0 | R65: 49.39747235 | S65: 35.20883668 | T65: 0.08128829809 | U65: 0.0811491852 | V65: =IFERROR(VLOOKUP($A65,Assumptions!$B$11:$H$35,2,FALSE),0) -> 31.33290435 | W65: =IFERROR(VLOOKUP($A65,Assumptions!$B$11:$H$35,3,FALSE),0) -> 125.3316174 | X65: =IFERROR(VLOOKUP($A65,Assumptions!$B$11:$H$35,4,FALSE),0) -> 79.39016753 | Y65: =IFERROR(VLOOKUP($A65,Assumptions!$B$11:$H$35,5,FALSE),0) -> 317.5606701 | Z65: =IFERROR(VLOOKUP($A65,Assumptions!$B$11:$H$35,6,FALSE),0) -> 8.032004727 | AA65: =IFERROR(VLOOKUP($A65,Assumptions!$B$11:$H$35,7,FALSE),0) -> 0 | AB65: 42.73576032 | AC65: 183.7386516 | AD65: 89.47728999 | AE65: 533.0654272 | AF65: 19.27732797 | AG65: 0 | AH65: =(V65+AB65)-(VLOOKUP($A65,Assumptions!$A$43:$M$98,11,FALSE)*F65) -> 55.39834904 | AI65: =(W65+AC65)-(VLOOKUP($A65,Assumptions!$A$43:$R$98,16,FALSE)*G65) -> 225.4281474 | AJ65: =(X65+AD65)-VLOOKUP($A65,Assumptions!$A$44:$M$98,13,FALSE)-(VLOOKUP($A65,Assumptions!$A$44:$M$98,11,FALSE)*$H65) -> 119.9381518 | AK65: =(Y65+AE65)-VLOOKUP($A65,Assumptions!$A$44:$R$98,18,FALSE)-(VLOOKUP($A65,Assumptions!$A$43:$R$98,16,FALSE)*I65) -> 643.8724724 | AL65: =(Z65+AF65)-(VLOOKUP($A65,Assumptions!$A$43:$M$98,11,FALSE)*J65) -> 21.08589416 | AM65: 0 | AO65: 22.77616053 | AP65: 19.3390195 | AQ65: 24.65534305 | AR65: 23.67278654 | AS65: 40.36322213 | AT65: 0
A66: ='Gas Use Per Customer'!B65 -> 2027 | B66: ='Gas Use Per Customer'!C65 -> 4 | C66: ='Daily efficiency'!CQ67 -> 47 | D66: ='Gas Use Per Customer'!J65 -> 259.3316948 | E66: ='Gas Use Per Customer'!L65 -> 55.78144854 | F66: =E66*VLOOKUP($C66,'Existing Technology Conversion'!$A:$AR,21,FALSE) -> 16.73443456 | G66: =D66*VLOOKUP($C66,'Existing Technology Conversion'!$A:$AR,27,FALSE) -> 77.79950843 | H66: =E66*VLOOKUP($C66,'Existing Technology Conversion'!$A:$AR,22,FALSE) -> 33.46886912 | I66: =D66*VLOOKUP($C66,'Existing Technology Conversion'!$A:$AR,28,FALSE) -> 181.5321863 | J66: =E66*VLOOKUP($C66,'Existing Technology Conversion'!$A:$AR,23,FALSE) -> 5.578144854 | K66: =D66*VLOOKUP($C66,'Existing Technology Conversion'!$A:$AR,29,FALSE) -> 0 | L66: =F66*'Daily efficiency'!BD67 -> 266.4409081 | M66: =G66*'Daily efficiency'!BE67 -> 1382.108219 | N66: =H66*'Daily efficiency'!BF67 -> 550.1689738 | O66: =I66*'Daily efficiency'!BG67 -> 4255.114448 | P66: =J66*'Daily efficiency'!BH67 -> 163.4396442 | Q66: =K66*'Daily efficiency'!BI67 -> 0 | R66: 49.39747235 | S66: 35.20883668 | T66: 0.08128829809 | U66: 0.0811491852 | V66: =IFERROR(VLOOKUP($A66,Assumptions!$B$11:$H$35,2,FALSE),0) -> 31.33290435 | W66: =IFERROR(VLOOKUP($A66,Assumptions!$B$11:$H$35,3,FALSE),0) -> 125.3316174 | X66: =IFERROR(VLOOKUP($A66,Assumptions!$B$11:$H$35,4,FALSE),0) -> 79.39016753 | Y66: =IFERROR(VLOOKUP($A66,Assumptions!$B$11:$H$35,5,FALSE),0) -> 317.5606701 | Z66: =IFERROR(VLOOKUP($A66,Assumptions!$B$11:$H$35,6,FALSE),0) -> 8.032004727 | AA66: =IFERROR(VLOOKUP($A66,Assumptions!$B$11:$H$35,7,FALSE),0) -> 0 | AB66: 32.1841136 | AC66: 127.1684666 | AD66: 65.77106595 | AE66: 360.7102533 | AF66: 13.26299396 | AG66: 0 | AH66: =(V66+AB66)-(VLOOKUP($A66,Assumptions!$A$43:$M$98,11,FALSE)*F66) -> 50.67165454 | AI66: =(W66+AC66)-(VLOOKUP($A66,Assumptions!$A$43:$R$98,16,FALSE)*G66) -> 196.675152 | AJ66: =(X66+AD66)-VLOOKUP($A66,Assumptions!$A$44:$M$98,13,FALSE)-(VLOOKUP($A66,Assumptions!$A$44:$M$98,11,FALSE)*$H66) -> 107.8818322 | AK66: =(Y66+AE66)-VLOOKUP($A66,Assumptions!$A$44:$R$98,18,FALSE)-(VLOOKUP($A66,Assumptions!$A$43:$R$98,16,FALSE)*I66) -> 536.4240743 | AL66: =(Z66+AF66)-(VLOOKUP($A66,Assumptions!$A$43:$M$98,11,FALSE)*J66) -> 17.01321088 | AM66: 0 | AO66: 30.27987253 | AP66: 25.27974225 | AQ66: 32.23348594 | AR66: 29.5498052 | AS66: 30.27620484 | AT66: 0
A67: ='Gas Use Per Customer'!B66 -> 2027 | B67: ='Gas Use Per Customer'!C66 -> 5 | C67: ='Daily efficiency'!CQ68 -> 54 | D67: ='Gas Use Per Customer'!J66 -> 152.9124687 | E67: ='Gas Use Per Customer'!L66 -> 38.43869325 | F67: =E67*VLOOKUP($C67,'Existing Technology Conversion'!$A:$AR,21,FALSE) -> 30.7509546 | G67: =D67*VLOOKUP($C67,'Existing Technology Conversion'!$A:$AR,27,FALSE) -> 137.6212218 | H67: =E67*VLOOKUP($C67,'Existing Technology Conversion'!$A:$AR,22,FALSE) -> 3.843869325 | I67: =D67*VLOOKUP($C67,'Existing Technology Conversion'!$A:$AR,28,FALSE) -> 15.29124687 | J67: =E67*VLOOKUP($C67,'Existing Technology Conversion'!$A:$AR,23,FALSE) -> 3.843869325 | K67: =D67*VLOOKUP($C67,'Existing Technology Conversion'!$A:$AR,29,FALSE) -> 0 | L67: =F67*'Daily efficiency'!BD68 -> 429.7091087 | M67: =G67*'Daily efficiency'!BE68 -> 2361.499722 | N67: =H67*'Daily efficiency'!BF68 -> 47.74381521 | O67: =I67*'Daily efficiency'!BG68 -> 358.4268266 | P67: =J67*'Daily efficiency'!BH68 -> 112.6253712 | Q67: =K67*'Daily efficiency'!BI68 -> 0 | R67: 49.39747235 | S67: 35.20883668 | T67: 0.08128829809 | U67: 0.0811491852 | V67: =IFERROR(VLOOKUP($A67,Assumptions!$B$11:$H$35,2,FALSE),0) -> 31.33290435 | W67: =IFERROR(VLOOKUP($A67,Assumptions!$B$11:$H$35,3,FALSE),0) -> 125.3316174 | X67: =IFERROR(VLOOKUP($A67,Assumptions!$B$11:$H$35,4,FALSE),0) -> 79.39016753 | Y67: =IFERROR(VLOOKUP($A67,Assumptions!$B$11:$H$35,5,FALSE),0) -> 317.5606701 | Z67: =IFERROR(VLOOKUP($A67,Assumptions!$B$11:$H$35,6,FALSE),0) -> 8.032004727 | AA67: =IFERROR(VLOOKUP($A67,Assumptions!$B$11:$H$35,7,FALSE),0) -> 0 | AB67: 63.03761339 | AC67: 236.4200184 | AD67: 7.39525537 | AE67: 73.59363184 | AF67: 9.139457109 | AG67: 0 | AH67: =(V67+AB67)-(VLOOKUP($A67,Assumptions!$A$43:$M$98,11,FALSE)*F67) -> 70.76606396 | AI67: =(W67+AC67)-(VLOOKUP($A67,Assumptions!$A$43:$R$98,16,FALSE)*G67) -> 263.0017143 | AJ67: =(X67+AD67)-VLOOKUP($A67,Assumptions!$A$44:$M$98,13,FALSE)-(VLOOKUP($A67,Assumptions!$A$44:$M$98,11,FALSE)*$H67) -> 72.24619175 | AK67: =(Y67+AE67)-VLOOKUP($A67,Assumptions!$A$44:$R$98,18,FALSE)-(VLOOKUP($A67,Assumptions!$A$43:$R$98,16,FALSE)*I67) -> 368.593414 | AL67: =(Z67+AF67)-(VLOOKUP($A67,Assumptions!$A$43:$M$98,11,FALSE)*J67) -> 14.22090511 | AM67: 0 | AO67: 23.01263973 | AP67: 19.11054929 | AQ67: 79.64144712 | AR67: 241.0486321 | AS67: 23.36036222 | AT67: 0
A68: ='Gas Use Per Customer'!B67 -> 2027 | B68: ='Gas Use Per Customer'!C67 -> 6 | C68: ='Daily efficiency'!CQ69 -> 59 | D68: ='Gas Use Per Customer'!J67 -> 116.5989349 | E68: ='Gas Use Per Customer'!L67 -> 24.48197559 | F68: =E68*VLOOKUP($C68,'Existing Technology Conversion'!$A:$AR,21,FALSE) -> 19.58558047 | G68: =D68*VLOOKUP($C68,'Existing Technology Conversion'!$A:$AR,27,FALSE) -> 104.9390414 | H68: =E68*VLOOKUP($C68,'Existing Technology Conversion'!$A:$AR,22,FALSE) -> 2.448197559 | I68: =D68*VLOOKUP($C68,'Existing Technology Conversion'!$A:$AR,28,FALSE) -> 11.65989349 | J68: =E68*VLOOKUP($C68,'Existing Technology Conversion'!$A:$AR,23,FALSE) -> 2.448197559 | K68: =D68*VLOOKUP($C68,'Existing Technology Conversion'!$A:$AR,29,FALSE) -> 0 | L68: =F68*'Daily efficiency'!BD69 -> 273.6858883 | M68: =G68*'Daily efficiency'!BE69 -> 1798.417572 | N68: =H68*'Daily efficiency'!BF69 -> 30.05920279 | O68: =I68*'Daily efficiency'!BG69 -> 273.3079035 | P68: =J68*'Daily efficiency'!BH69 -> 71.73218848 | Q68: =K68*'Daily efficiency'!BI69 -> 0 | R68: 49.39747235 | S68: 35.20883668 | T68: 0.08128829809 | U68: 0.0811491852 | V68: =IFERROR(VLOOKUP($A68,Assumptions!$B$11:$H$35,2,FALSE),0) -> 31.33290435 | W68: =IFERROR(VLOOKUP($A68,Assumptions!$B$11:$H$35,3,FALSE),0) -> 125.3316174 | X68: =IFERROR(VLOOKUP($A68,Assumptions!$B$11:$H$35,4,FALSE),0) -> 79.39016753 | Y68: =IFERROR(VLOOKUP($A68,Assumptions!$B$11:$H$35,5,FALSE),0) -> 317.5606701 | Z68: =IFERROR(VLOOKUP($A68,Assumptions!$B$11:$H$35,6,FALSE),0) -> 8.032004727 | AA68: =IFERROR(VLOOKUP($A68,Assumptions!$B$11:$H$35,7,FALSE),0) -> 0 | AB68: 50.37645618 | AC68: 190.6480288 | AD68: 5.960163482 | AE68: 66.67445945 | AF68: =IFERROR((U68*P68),0) -> 5.821008647 | AG68: =IFERROR((T68*Q68),0) -> 0 | AH68: =(V68+AB68)-(VLOOKUP($A68,Assumptions!$A$43:$M$98,11,FALSE)*F68) -> 66.67545557 | AI68: =(W68+AC68)-(VLOOKUP($A68,Assumptions!$A$43:$R$98,16,FALSE)*G68) -> 240.680779 | AJ68: =(X68+AD68)-VLOOKUP($A68,Assumptions!$A$44:$M$98,13,FALSE)-(VLOOKUP($A68,Assumptions!$A$44:$M$98,11,FALSE)*$H68) -> 71.88241846 | AK68: =(Y68+AE68)-VLOOKUP($A68,Assumptions!$A$44:$R$98,18,FALSE)-(VLOOKUP($A68,Assumptions!$A$43:$R$98,16,FALSE)*I68) -> 364.2799143 | AL68: =(Z68+AF68)-(VLOOKUP($A68,Assumptions!$A$43:$M$98,11,FALSE)*J68) -> 11.97377525 | AM68: =AA68+AG68 -> 0 | AO68: =IF(F68<10,AB68+AH68,IFERROR((AH68)/(F68/10),0)) -> 34.04313478 | AP68: =IF(G68<10,AC68+AI68,IFERROR((AI68)/(G68/10),0)) -> 22.93529422 | AQ68: =IF(H68<10,AD68+AJ68,IFERROR((AJ68)/(H68/10),0)) -> 77.84258194 | AR68: =IF(I68<10,AE68+AK68,IFERROR((AK68)/(I68/10),0)) -> 312.4213052 | AS68: =IF(J68<10,AF68+AL68,IFERROR((AL68)/(J68/10),0)) -> 17.7947839 | AT68: =IF(K68<10,AG68+AM68,IFERROR((AM68)/(K68/10),0)) -> 0
A69: ='Gas Use Per Customer'!B68 -> 2027 | B69: ='Gas Use Per Customer'!C68 -> 7 | C69: ='Daily efficiency'!CQ70 -> 63 | D69: ='Gas Use Per Customer'!J68 -> 107.994989 | E69: ='Gas Use Per Customer'!L68 -> 20.63401399 | F69: =E69*VLOOKUP($C69,'Existing Technology Conversion'!$A:$AR,21,FALSE) -> 16.5072112 | G69: =D69*VLOOKUP($C69,'Existing Technology Conversion'!$A:$AR,27,FALSE) -> 97.19549013 | H69: =E69*VLOOKUP($C69,'Existing Technology Conversion'!$A:$AR,22,FALSE) -> 2.063401399 | I69: =D69*VLOOKUP($C69,'Existing Technology Conversion'!$A:$AR,28,FALSE) -> 10.7994989 | J69: =E69*VLOOKUP($C69,'Existing Technology Conversion'!$A:$AR,23,FALSE) -> 2.063401399 | K69: =D69*VLOOKUP($C69,'Existing Technology Conversion'!$A:$AR,29,FALSE) -> 0 | L69: =F69*'Daily efficiency'!BD70 -> 239.0402904 | M69: =G69*'Daily efficiency'!BE70 -> 1701.53237 | N69: =H69*'Daily efficiency'!BF70 -> 20.4311604 | O69: =I69*'Daily efficiency'!BG70 -> 204.1453664 | P69: =J69*'Daily efficiency'!BH70 -> 54.60691962 | Q69: =K69*'Daily efficiency'!BI70 -> 0 | R69: 49.89144708 | S69: 35.56092505 | T69: 0.08372694703 | U69: 0.08358366076 | V69: =IFERROR(VLOOKUP($A69,Assumptions!$B$11:$H$35,2,FALSE),0) -> 31.33290435 | W69: =IFERROR(VLOOKUP($A69,Assumptions!$B$11:$H$35,3,FALSE),0) -> 125.3316174 | X69: =IFERROR(VLOOKUP($A69,Assumptions!$B$11:$H$35,4,FALSE),0) -> 79.39016753 | Y69: =IFERROR(VLOOKUP($A69,Assumptions!$B$11:$H$35,5,FALSE),0) -> 317.5606701 | Z69: =IFERROR(VLOOKUP($A69,Assumptions!$B$11:$H$35,6,FALSE),0) -> 8.032004727 | AA69: =IFERROR(VLOOKUP($A69,Assumptions!$B$11:$H$35,7,FALSE),0) -> 0 | AB69: 48.42860258 | AC69: 187.366413 | AD69: 5.263803684 | AE69: 61.99477065 | AF69: 4.564246244 | AG69: 0 | AH69: =(V69+AB69)-(VLOOKUP($A69,Assumptions!$A$43:$M$98,11,FALSE)*F69) -> 67.09056032 | AI69: =(W69+AC69)-(VLOOKUP($A69,Assumptions!$A$43:$R$98,16,FALSE)*G69) -> 242.9555379 | AJ69: =(X69+AD69)-VLOOKUP($A69,Assumptions!$A$44:$M$98,13,FALSE)-(VLOOKUP($A69,Assumptions!$A$44:$M$98,11,FALSE)*$H69) -> 71.48142846 | AK69: =(Y69+AE69)-VLOOKUP($A69,Assumptions!$A$44:$R$98,18,FALSE)-(VLOOKUP($A69,Assumptions!$A$43:$R$98,16,FALSE)*I69) -> 360.2176005 | AL69: =(Z69+AF69)-(VLOOKUP($A69,Assumptions!$A$43:$M$98,11,FALSE)*J69) -> 11.01238265 | AM69: 0 | AO69: 40.64318287 | AP69: 24.9965855 | AQ69: 76.74523214 | AR69: 333.5502913 | AS69: 15.57662889 | AT69: 0
A70: ='Gas Use Per Customer'!B69 -> 2027 | B70: ='Gas Use Per Customer'!C69 -> 8 | C70: ='Daily efficiency'!CQ71 -> 63 | D70: ='Gas Use Per Customer'!J69 -> 147.0380137 | E70: ='Gas Use Per Customer'!L69 -> 26.61036358 | F70: =E70*VLOOKUP($C70,'Existing Technology Conversion'!$A:$AR,21,FALSE) -> 21.28829087 | G70: =D70*VLOOKUP($C70,'Existing Technology Conversion'!$A:$AR,27,FALSE) -> 132.3342123 | H70: =E70*VLOOKUP($C70,'Existing Technology Conversion'!$A:$AR,22,FALSE) -> 2.661036358 | I70: =D70*VLOOKUP($C70,'Existing Technology Conversion'!$A:$AR,28,FALSE) -> 14.70380137 | J70: =E70*VLOOKUP($C70,'Existing Technology Conversion'!$A:$AR,23,FALSE) -> 2.661036358 | K70: =D70*VLOOKUP($C70,'Existing Technology Conversion'!$A:$AR,29,FALSE) -> 0 | L70: =F70*'Daily efficiency'!BD71 -> 304.6763813 | M70: =G70*'Daily efficiency'!BE71 -> 2300.423595 | N70: =H70*'Daily efficiency'!BF71 -> 28.45665683 | O70: =I70*'Daily efficiency'!BG71 -> 300.1852196 | P70: =J70*'Daily efficiency'!BH71 -> 72.93814819 | Q70: =K70*'Daily efficiency'!BI71 -> 0 | R70: 49.89144708 | S70: 35.56092505 | T70: 0.08372694703 | U70: 0.08358366076 | V70: =IFERROR(VLOOKUP($A70,Assumptions!$B$11:$H$35,2,FALSE),0) -> 31.33290435 | W70: =IFERROR(VLOOKUP($A70,Assumptions!$B$11:$H$35,3,FALSE),0) -> 125.3316174 | X70: =IFERROR(VLOOKUP($A70,Assumptions!$B$11:$H$35,4,FALSE),0) -> 79.39016753 | Y70: =IFERROR(VLOOKUP($A70,Assumptions!$B$11:$H$35,5,FALSE),0) -> 317.5606701 | Z70: =IFERROR(VLOOKUP($A70,Assumptions!$B$11:$H$35,6,FALSE),0) -> 8.032004727 | AA70: =IFERROR(VLOOKUP($A70,Assumptions!$B$11:$H$35,7,FALSE),0) -> 0 | AB70: 53.91470733 | AC70: 237.5097469 | AD70: 5.934604055 | AE70: 70.03589435 | AF70: 6.096437434 | AG70: 0 | AH70: =(V70+AB70)-(VLOOKUP($A70,Assumptions!$A$43:$M$98,11,FALSE)*F70) -> 68.90670506 | AI70: =(W70+AC70)-(VLOOKUP($A70,Assumptions!$A$43:$R$98,16,FALSE)*G70) -> 267.8851293 | AJ70: =(X70+AD70)-VLOOKUP($A70,Assumptions!$A$44:$M$98,13,FALSE)-(VLOOKUP($A70,Assumptions!$A$44:$M$98,11,FALSE)*$H70) -> 71.69348382 | AK70: =(Y70+AE70)-VLOOKUP($A70,Assumptions!$A$44:$R$98,18,FALSE)-(VLOOKUP($A70,Assumptions!$A$43:$R$98,16,FALSE)*I70) -> 365.4571973 | AL70: =(Z70+AF70)-(VLOOKUP($A70,Assumptions!$A$43:$M$98,11,FALSE)*J70) -> 12.08582883 | AM70: 0 | AO70: 32.36835943 | AP70: 20.24307431 | AQ70: 77.62808788 | AR70: 248.5460652 | AS70: 18.18226627 | AT70: 0
A71: ='Gas Use Per Customer'!B70 -> 2027 | B71: ='Gas Use Per Customer'!C70 -> 9 | C71: ='Daily efficiency'!CQ72 -> 58 | D71: ='Gas Use Per Customer'!J70 -> 113.9805273 | E71: ='Gas Use Per Customer'!L70 -> 20.50473186 | F71: =E71*VLOOKUP($C71,'Existing Technology Conversion'!$A:$AR,21,FALSE) -> 16.40378549 | G71: =D71*VLOOKUP($C71,'Existing Technology Conversion'!$A:$AR,27,FALSE) -> 102.5824746 | H71: =E71*VLOOKUP($C71,'Existing Technology Conversion'!$A:$AR,22,FALSE) -> 2.050473186 | I71: =D71*VLOOKUP($C71,'Existing Technology Conversion'!$A:$AR,28,FALSE) -> 11.39805273 | J71: =E71*VLOOKUP($C71,'Existing Technology Conversion'!$A:$AR,23,FALSE) -> 2.050473186 | K71: =D71*VLOOKUP($C71,'Existing Technology Conversion'!$A:$AR,29,FALSE) -> 0 | L71: =F71*'Daily efficiency'!BD72 -> 229.2239748 | M71: =G71*'Daily efficiency'!BE72 -> 1758.031352 | N71: =H71*'Daily efficiency'!BF72 -> 25.17590506 | O71: =I71*'Daily efficiency'!BG72 -> 267.170356 | P71: =J71*'Daily efficiency'!BH72 -> 60.07886435 | Q71: =K71*'Daily efficiency'!BI72 -> 0 | R71: 49.89144708 | S71: 35.56092505 | T71: 0.08372694703 | U71: 0.08358366076 | V71: =IFERROR(VLOOKUP($A71,Assumptions!$B$11:$H$35,2,FALSE),0) -> 31.33290435 | W71: =IFERROR(VLOOKUP($A71,Assumptions!$B$11:$H$35,3,FALSE),0) -> 125.3316174 | X71: =IFERROR(VLOOKUP($A71,Assumptions!$B$11:$H$35,4,FALSE),0) -> 79.39016753 | Y71: =IFERROR(VLOOKUP($A71,Assumptions!$B$11:$H$35,5,FALSE),0) -> 317.5606701 | Z71: =IFERROR(VLOOKUP($A71,Assumptions!$B$11:$H$35,6,FALSE),0) -> 8.032004727 | AA71: =IFERROR(VLOOKUP($A71,Assumptions!$B$11:$H$35,7,FALSE),0) -> 0 | AB71: 47.60811898 | AC71: 192.0969003 | AD71: 5.660386812 | AE71: 67.27166062 | AF71: 5.021611417 | AG71: 0 | AH71: =(V71+AB71)-(VLOOKUP($A71,Assumptions!$A$43:$M$98,11,FALSE)*F71) -> 66.34946637 | AI71: =(W71+AC71)-(VLOOKUP($A71,Assumptions!$A$43:$R$98,16,FALSE)*G71) -> 243.8206018 | AJ71: =(X71+AD71)-VLOOKUP($A71,Assumptions!$A$44:$M$98,13,FALSE)-(VLOOKUP($A71,Assumptions!$A$44:$M$98,11,FALSE)*$H71) -> 71.88793529 | AK71: =(Y71+AE71)-VLOOKUP($A71,Assumptions!$A$44:$R$98,18,FALSE)-(VLOOKUP($A71,Assumptions!$A$43:$R$98,16,FALSE)*I71) -> 365.064999 | AL71: =(Z71+AF71)-(VLOOKUP($A71,Assumptions!$A$43:$M$98,11,FALSE)*J71) -> 11.47967152 | AM71: 0 | AO71: 40.44765546 | AP71: 23.76825114 | AQ71: 77.5483221 | AR71: 320.2871645 | AS71: 16.50128294 | AT71: 0
A72: ='Gas Use Per Customer'!B71 -> 2027 | B72: ='Gas Use Per Customer'!C71 -> 10 | C72: ='Daily efficiency'!CQ73 -> 48 | D72: ='Gas Use Per Customer'!J71 -> 224.7981591 | E72: ='Gas Use Per Customer'!L71 -> 46.38837441 | F72: =E72*VLOOKUP($C72,'Existing Technology Conversion'!$A:$AR,21,FALSE) -> 13.91651232 | G72: =D72*VLOOKUP($C72,'Existing Technology Conversion'!$A:$AR,27,FALSE) -> 67.43944774 | H72: =E72*VLOOKUP($C72,'Existing Technology Conversion'!$A:$AR,22,FALSE) -> 27.83302465 | I72: =D72*VLOOKUP($C72,'Existing Technology Conversion'!$A:$AR,28,FALSE) -> 157.3587114 | J72: =E72*VLOOKUP($C72,'Existing Technology Conversion'!$A:$AR,23,FALSE) -> 4.638837441 | K72: =D72*VLOOKUP($C72,'Existing Technology Conversion'!$A:$AR,29,FALSE) -> 0 | L72: =F72*'Daily efficiency'!BD73 -> 210.4351836 | M72: =G72*'Daily efficiency'!BE73 -> 1183.538605 | N72: =H72*'Daily efficiency'!BF73 -> 417.7127751 | O72: =I72*'Daily efficiency'!BG73 -> 3688.488195 | P72: =J72*'Daily efficiency'!BH73 -> 135.917937 | Q72: =K72*'Daily efficiency'!BI73 -> 0 | R72: 49.89144708 | S72: 35.56092505 | T72: 0.08372694703 | U72: 0.08358366076 | V72: =IFERROR(VLOOKUP($A72,Assumptions!$B$11:$H$35,2,FALSE),0) -> 31.33290435 | W72: =IFERROR(VLOOKUP($A72,Assumptions!$B$11:$H$35,3,FALSE),0) -> 125.3316174 | X72: =IFERROR(VLOOKUP($A72,Assumptions!$B$11:$H$35,4,FALSE),0) -> 79.39016753 | Y72: =IFERROR(VLOOKUP($A72,Assumptions!$B$11:$H$35,5,FALSE),0) -> 317.5606701 | Z72: =IFERROR(VLOOKUP($A72,Assumptions!$B$11:$H$35,6,FALSE),0) -> 8.032004727 | AA72: =IFERROR(VLOOKUP($A72,Assumptions!$B$11:$H$35,7,FALSE),0) -> 0 | AB72: 28.25722051 | AC72: 114.0615082 | AD72: 56.25051792 | AE72: 323.7932898 | AF72: 11.36051874 | AG72: 0 | AH72: =(V72+AB72)-(VLOOKUP($A72,Assumptions!$A$43:$M$98,11,FALSE)*F72) -> 48.90780048 | AI72: =(W72+AC72)-(VLOOKUP($A72,Assumptions!$A$43:$R$98,16,FALSE)*G72) -> 191.0020412 | AJ72: =(X72+AD72)-VLOOKUP($A72,Assumptions!$A$44:$M$98,13,FALSE)-(VLOOKUP($A72,Assumptions!$A$44:$M$98,11,FALSE)*$H72) -> 102.6873623 | AK72: =(Y72+AE72)-VLOOKUP($A72,Assumptions!$A$44:$R$98,18,FALSE)-(VLOOKUP($A72,Assumptions!$A$43:$R$98,16,FALSE)*I72) -> 516.8527551 | AL72: =(Z72+AF72)-(VLOOKUP($A72,Assumptions!$A$43:$M$98,11,FALSE)*J72) -> 15.83174867 | AM72: 0 | AO72: 35.14371945 | AP72: 28.32200553 | AQ72: 36.89407226 | AR72: 32.84551268 | AS72: 27.19226741 | AT72: 0
A73: ='Gas Use Per Customer'!B72 -> 2027 | B73: ='Gas Use Per Customer'!C72 -> 11 | C73: ='Daily efficiency'!CQ74 -> 39 | D73: ='Gas Use Per Customer'!J72 -> 356.2140111 | E73: ='Gas Use Per Customer'!L72 -> 81.78737823 | F73: =E73*VLOOKUP($C73,'Existing Technology Conversion'!$A:$AR,21,FALSE) -> 24.53621347 | G73: =D73*VLOOKUP($C73,'Existing Technology Conversion'!$A:$AR,27,FALSE) -> 106.8642033 | H73: =E73*VLOOKUP($C73,'Existing Technology Conversion'!$A:$AR,22,FALSE) -> 49.07242694 | I73: =D73*VLOOKUP($C73,'Existing Technology Conversion'!$A:$AR,28,FALSE) -> 249.3498078 | J73: =E73*VLOOKUP($C73,'Existing Technology Conversion'!$A:$AR,23,FALSE) -> 8.178737823 | K73: =D73*VLOOKUP($C73,'Existing Technology Conversion'!$A:$AR,29,FALSE) -> 0 | L73: =F73*'Daily efficiency'!BD74 -> 412.9225919 | M73: =G73*'Daily efficiency'!BE74 -> 1935.893209 | N73: =H73*'Daily efficiency'!BF74 -> 826.1368564 | O73: =I73*'Daily efficiency'!BG74 -> 5820.40633 | P73: =J73*'Daily efficiency'!BH74 -> 247.6249188 | Q73: =K73*'Daily efficiency'!BI74 -> 0 | R73: 49.89144708 | S73: 35.56092505 | T73: 0.08372694703 | U73: 0.08358366076 | V73: =IFERROR(VLOOKUP($A73,Assumptions!$B$11:$H$35,2,FALSE),0) -> 31.33290435 | W73: =IFERROR(VLOOKUP($A73,Assumptions!$B$11:$H$35,3,FALSE),0) -> 125.3316174 | X73: =IFERROR(VLOOKUP($A73,Assumptions!$B$11:$H$35,4,FALSE),0) -> 79.39016753 | Y73: =IFERROR(VLOOKUP($A73,Assumptions!$B$11:$H$35,5,FALSE),0) -> 317.5606701 | Z73: =IFERROR(VLOOKUP($A73,Assumptions!$B$11:$H$35,6,FALSE),0) -> 8.032004727 | AA73: =IFERROR(VLOOKUP($A73,Assumptions!$B$11:$H$35,7,FALSE),0) -> 0 | AB73: 45.18185935 | AC73: 177.0538623 | AD73: 90.38809778 | AE73: 502.2922866 | AF73: 20.69739721 | AG73: 0 | AH73: =(V73+AB73)-(VLOOKUP($A73,Assumptions!$A$43:$M$98,11,FALSE)*F73) -> 57.68074947 | AI73: =(W73+AC73)-(VLOOKUP($A73,Assumptions!$A$43:$R$98,16,FALSE)*G73) -> 225.7052152 | AJ73: =(X73+AD73)-VLOOKUP($A73,Assumptions!$A$44:$M$98,13,FALSE)-(VLOOKUP($A73,Assumptions!$A$44:$M$98,11,FALSE)*$H73) -> 120.5215624 | AK73: =(Y73+AE73)-VLOOKUP($A73,Assumptions!$A$44:$R$98,18,FALSE)-(VLOOKUP($A73,Assumptions!$A$43:$R$98,16,FALSE)*I73) -> 629.3436651 | AL73: =(Z73+AF73)-(VLOOKUP($A73,Assumptions!$A$43:$M$98,11,FALSE)*J73) -> 22.45139719 | AM73: 0 | AO73: 23.50841524 | AP73: 21.12075027 | AQ73: 24.55993517 | AR73: 25.23938842 | AS73: 43.1487944 | AT73: 0
A74: ='Gas Use Per Customer'!B73 -> 2027 | B74: ='Gas Use Per Customer'!C73 -> 12 | C74: ='Daily efficiency'!CQ75 -> 32 | D74: ='Gas Use Per Customer'!J73 -> 513.1016331 | E74: ='Gas Use Per Customer'!L73 -> 113.0019657 | F74: =E74*VLOOKUP($C74,'Existing Technology Conversion'!$A:$AR,21,FALSE) -> 22.60039315 | G74: =D74*VLOOKUP($C74,'Existing Technology Conversion'!$A:$AR,27,FALSE) -> 102.6203266 | H74: =E74*VLOOKUP($C74,'Existing Technology Conversion'!$A:$AR,22,FALSE) -> 84.7514743 | I74: =D74*VLOOKUP($C74,'Existing Technology Conversion'!$A:$AR,28,FALSE) -> 410.4813065 | J74: =E74*VLOOKUP($C74,'Existing Technology Conversion'!$A:$AR,23,FALSE) -> 5.650098287 | K74: =D74*VLOOKUP($C74,'Existing Technology Conversion'!$A:$AR,29,FALSE) -> 0 | L74: =F74*'Daily efficiency'!BD75 -> 408.7814314 | M74: =G74*'Daily efficiency'!BE75 -> 1933.886132 | N74: =H74*'Daily efficiency'!BF75 -> 1984.946795 | O74: =I74*'Daily efficiency'!BG75 -> 9505.290512 | P74: =J74*'Daily efficiency'!BH75 -> 181.5686424 | Q74: =K74*'Daily efficiency'!BI75 -> 0 | R74: =R63*1.01 -> 49.89144708 | S74: 35.56092505 | T74: =T63*1.03 -> 0.08372694703 | U74: 0.08358366076 | V74: =IFERROR(VLOOKUP($A74,Assumptions!$B$11:$H$35,2,FALSE),0) -> 31.33290435 | W74: =IFERROR(VLOOKUP($A74,Assumptions!$B$11:$H$35,3,FALSE),0) -> 125.3316174 | X74: =IFERROR(VLOOKUP($A74,Assumptions!$B$11:$H$35,4,FALSE),0) -> 79.39016753 | Y74: =IFERROR(VLOOKUP($A74,Assumptions!$B$11:$H$35,5,FALSE),0) -> 317.5606701 | Z74: =IFERROR(VLOOKUP($A74,Assumptions!$B$11:$H$35,6,FALSE),0) -> 8.032004727 | AA74: =IFERROR(VLOOKUP($A74,Assumptions!$B$11:$H$35,7,FALSE),0) -> 0 | AB74: 41.27963349 | AC74: 171.8966711 | AD74: 192.5798133 | AE74: 805.8272447 | AF74: 15.17617181 | AG74: 0 | AH74: =(V74+AB74)-(VLOOKUP($A74,Assumptions!$A$43:$M$98,11,FALSE)*F74) -> 55.2644606 | AI74: =(W74+AC74)-(VLOOKUP($A74,Assumptions!$A$43:$R$98,16,FALSE)*G74) -> 223.593212 | AJ74: =(X74+AD74)-VLOOKUP($A74,Assumptions!$A$44:$M$98,13,FALSE)-(VLOOKUP($A74,Assumptions!$A$44:$M$98,11,FALSE)*$H74) -> 195.3260168 | AK74: =(Y74+AE74)-VLOOKUP($A74,Assumptions!$A$44:$R$98,18,FALSE)-(VLOOKUP($A74,Assumptions!$A$43:$R$98,16,FALSE)*I74) -> 817.2589342 | AL74: =(Z74+AF74)-(VLOOKUP($A74,Assumptions!$A$43:$M$98,11,FALSE)*J74) -> 18.87115723 | AM74: 0 | AO74: 24.45287577 | AP74: 21.78839411 | AQ74: 23.04691669 | AR74: 19.90977229 | AS74: 34.04732903 | AT74: 0
A75: ='Gas Use Per Customer'!B74 -> 2028 | B75: ='Gas Use Per Customer'!C74 -> 1 | C75: ='Daily efficiency'!CQ76 -> 33 | D75: ='Gas Use Per Customer'!J74 -> 541.1565392 | E75: ='Gas Use Per Customer'!L74 -> 113.474185 | F75: =E75*VLOOKUP($C75,'Existing Technology Conversion'!$A:$AR,21,FALSE) -> 22.69483699 | G75: =D75*VLOOKUP($C75,'Existing Technology Conversion'!$A:$AR,27,FALSE) -> 108.2313078 | H75: =E75*VLOOKUP($C75,'Existing Technology Conversion'!$A:$AR,22,FALSE) -> 85.10563873 | I75: =D75*VLOOKUP($C75,'Existing Technology Conversion'!$A:$AR,28,FALSE) -> 432.9252313 | J75: =E75*VLOOKUP($C75,'Existing Technology Conversion'!$A:$AR,23,FALSE) -> 5.673709249 | K75: =D75*VLOOKUP($C75,'Existing Technology Conversion'!$A:$AR,29,FALSE) -> 0 | L75: =F75*'Daily efficiency'!BD76 -> 442.7300941 | M75: =G75*'Daily efficiency'!BE76 -> 2197.230024 | N75: =H75*'Daily efficiency'!BF76 -> 1947.276718 | O75: =I75*'Daily efficiency'!BG76 -> 9820.420086 | P75: =J75*'Daily efficiency'!BH76 -> 209.1402438 | Q75: =K75*'Daily efficiency'!BI76 -> 0 | R75: 49.89144708 | S75: 35.56092505 | T75: 0.08372694703 | U75: 0.08358366076 | V75: =IFERROR(VLOOKUP($A75,Assumptions!$B$11:$H$35,2,FALSE),0) -> 0 | W75: =IFERROR(VLOOKUP($A75,Assumptions!$B$11:$H$35,3,FALSE),0) -> 0 | X75: =IFERROR(VLOOKUP($A75,Assumptions!$B$11:$H$35,4,FALSE),0) -> 0 | Y75: =IFERROR(VLOOKUP($A75,Assumptions!$B$11:$H$35,5,FALSE),0) -> 0 | Z75: =IFERROR(VLOOKUP($A75,Assumptions!$B$11:$H$35,6,FALSE),0) -> 0 | AA75: =IFERROR(VLOOKUP($A75,Assumptions!$B$11:$H$35,7,FALSE),0) -> 0 | AB75: 44.117187 | AC75: 193.9456512 | AD75: 189.4312104 | AE75: 832.2120818 | AF75: 17.48070719 | AG75: 0 | AH75: =(V75+AB75)-(VLOOKUP($A75,Assumptions!$A$43:$M$98,11,FALSE)*F75) -> 26.30755516 | AI75: =(W75+AC75)-(VLOOKUP($A75,Assumptions!$A$43:$R$98,16,FALSE)*G75) -> 114.5499886 | AJ75: =(X75+AD75)-VLOOKUP($A75,Assumptions!$A$44:$M$98,13,FALSE)-(VLOOKUP($A75,Assumptions!$A$44:$M$98,11,FALSE)*$H75) -> 110.7976028 | AK75: =(Y75+AE75)-VLOOKUP($A75,Assumptions!$A$44:$R$98,18,FALSE)-(VLOOKUP($A75,Assumptions!$A$43:$R$98,16,FALSE)*I75) -> 502.7819432 | AL75: =(Z75+AF75)-(VLOOKUP($A75,Assumptions!$A$43:$M$98,11,FALSE)*J75) -> 13.02829923 | AM75: 0 | AO75: 11.59186786 | AP75: 10.58381266 | AQ75: 13.01883218 | AR75: 11.61359761 | AS75: 30.50900642 | AT75: 0
A76: ='Gas Use Per Customer'!B75 -> 2028 | B76: ='Gas Use Per Customer'!C75 -> 2 | C76: ='Daily efficiency'!CQ77 -> 32 | D76: ='Gas Use Per Customer'!J75 -> 501.3380689 | E76: ='Gas Use Per Customer'!L75 -> 104.9958018 | F76: =E76*VLOOKUP($C76,'Existing Technology Conversion'!$A:$AR,21,FALSE) -> 20.99916037 | G76: =D76*VLOOKUP($C76,'Existing Technology Conversion'!$A:$AR,27,FALSE) -> 100.2676138 | H76: =E76*VLOOKUP($C76,'Existing Technology Conversion'!$A:$AR,22,FALSE) -> 78.74685139 | I76: =D76*VLOOKUP($C76,'Existing Technology Conversion'!$A:$AR,28,FALSE) -> 401.0704551 | J76: =E76*VLOOKUP($C76,'Existing Technology Conversion'!$A:$AR,23,FALSE) -> 5.249790092 | K76: =D76*VLOOKUP($C76,'Existing Technology Conversion'!$A:$AR,29,FALSE) -> 0 | L76: =F76*'Daily efficiency'!BD77 -> 344.88395 | M76: =G76*'Daily efficiency'!BE77 -> 1853.457368 | N76: =H76*'Daily efficiency'!BF77 -> 1442.325318 | O76: =I76*'Daily efficiency'!BG77 -> 9320.047577 | P76: =J76*'Daily efficiency'!BH77 -> 164.4270462 | Q76: =K76*'Daily efficiency'!BI77 -> 0 | R76: 49.89144708 | S76: 35.56092505 | T76: 0.08372694703 | U76: 0.08358366076 | V76: =IFERROR(VLOOKUP($A76,Assumptions!$B$11:$H$35,2,FALSE),0) -> 0 | W76: =IFERROR(VLOOKUP($A76,Assumptions!$B$11:$H$35,3,FALSE),0) -> 0 | X76: =IFERROR(VLOOKUP($A76,Assumptions!$B$11:$H$35,4,FALSE),0) -> 0 | Y76: =IFERROR(VLOOKUP($A76,Assumptions!$B$11:$H$35,5,FALSE),0) -> 0 | Z76: =IFERROR(VLOOKUP($A76,Assumptions!$B$11:$H$35,6,FALSE),0) -> 0 | AA76: =IFERROR(VLOOKUP($A76,Assumptions!$B$11:$H$35,7,FALSE),0) -> 0 | AB76: 35.93884808 | AC76: 165.1626163 | AD76: 147.2255239 | AE76: 790.3174192 | AF76: 13.74341445 | AG76: 0 | AH76: =(V76+AB76)-(VLOOKUP($A76,Assumptions!$A$43:$M$98,11,FALSE)*F76) -> 19.4598879 | AI76: =(W76+AC76)-(VLOOKUP($A76,Assumptions!$A$43:$R$98,16,FALSE)*G76) -> 91.60891177 | AJ76: =(X76+AD76)-VLOOKUP($A76,Assumptions!$A$44:$M$98,13,FALSE)-(VLOOKUP($A76,Assumptions!$A$44:$M$98,11,FALSE)*$H76) -> 73.58193502 | AK76: =(Y76+AE76)-VLOOKUP($A76,Assumptions!$A$44:$R$98,18,FALSE)-(VLOOKUP($A76,Assumptions!$A$43:$R$98,16,FALSE)*I76) -> 484.2551131 | AL76: =(Z76+AF76)-(VLOOKUP($A76,Assumptions!$A$43:$M$98,11,FALSE)*J76) -> 9.623674406 | AM76: 0 | AO76: 9.266983802 | AP76: 9.136440802 | AQ76: 9.344111381 | AR76: 12.07406596 | AS76: 23.36708886 | AT76: 0
A77: ='Gas Use Per Customer'!B76 -> 2028 | B77: ='Gas Use Per Customer'!C76 -> 3 | C77: ='Daily efficiency'!CQ78 -> 41 | D77: ='Gas Use Per Customer'!J76 -> 377.9344384 | E77: ='Gas Use Per Customer'!L76 -> 78.77556739 | F77: =E77*VLOOKUP($C77,'Existing Technology Conversion'!$A:$AR,21,FALSE) -> 23.63267022 | G77: =D77*VLOOKUP($C77,'Existing Technology Conversion'!$A:$AR,27,FALSE) -> 113.3803315 | H77: =E77*VLOOKUP($C77,'Existing Technology Conversion'!$A:$AR,22,FALSE) -> 47.26534043 | I77: =D77*VLOOKUP($C77,'Existing Technology Conversion'!$A:$AR,28,FALSE) -> 264.5541069 | J77: =E77*VLOOKUP($C77,'Existing Technology Conversion'!$A:$AR,23,FALSE) -> 7.877556739 | K77: =D77*VLOOKUP($C77,'Existing Technology Conversion'!$A:$AR,29,FALSE) -> 0 | L77: =F77*'Daily efficiency'!BD78 -> 390.8823192 | M77: =G77*'Daily efficiency'!BE78 -> 2019.926405 | N77: =H77*'Daily efficiency'!BF78 -> 803.0100655 | O77: =I77*'Daily efficiency'!BG78 -> 6201.148266 | P77: =J77*'Daily efficiency'!BH78 -> 230.8124124 | Q77: =K77*'Daily efficiency'!BI78 -> 0 | R77: 49.89144708 | S77: 35.56092505 | T77: 0.08372694703 | U77: 0.08358366076 | V77: =IFERROR(VLOOKUP($A77,Assumptions!$B$11:$H$35,2,FALSE),0) -> 0 | W77: =IFERROR(VLOOKUP($A77,Assumptions!$B$11:$H$35,3,FALSE),0) -> 0 | X77: =IFERROR(VLOOKUP($A77,Assumptions!$B$11:$H$35,4,FALSE),0) -> 0 | Y77: =IFERROR(VLOOKUP($A77,Assumptions!$B$11:$H$35,5,FALSE),0) -> 0 | Z77: =IFERROR(VLOOKUP($A77,Assumptions!$B$11:$H$35,6,FALSE),0) -> 0 | AA77: =IFERROR(VLOOKUP($A77,Assumptions!$B$11:$H$35,7,FALSE),0) -> 0 | AB77: 43.33965268 | AC77: 184.0897052 | AD77: 88.45507593 | AE77: 534.1706465 | AF77: 19.29214638 | AG77: 0 | AH77: =(V77+AB77)-(VLOOKUP($A77,Assumptions!$A$43:$M$98,11,FALSE)*F77) -> 24.79406206 | AI77: =(W77+AC77)-(VLOOKUP($A77,Assumptions!$A$43:$R$98,16,FALSE)*G77) -> 100.9168532 | AJ77: =(X77+AD77)-VLOOKUP($A77,Assumptions!$A$44:$M$98,13,FALSE)-(VLOOKUP($A77,Assumptions!$A$44:$M$98,11,FALSE)*$H77) -> 39.51640653 | AK77: =(Y77+AE77)-VLOOKUP($A77,Assumptions!$A$44:$R$98,18,FALSE)-(VLOOKUP($A77,Assumptions!$A$43:$R$98,16,FALSE)*I77) -> 328.2531704 | AL77: =(Z77+AF77)-(VLOOKUP($A77,Assumptions!$A$43:$M$98,11,FALSE)*J77) -> 13.11028284 | AM77: 0 | AO77: 10.49143488 | AP77: 8.900737181 | AQ77: 8.360546263 | AR77: 12.40778963 | AS77: 32.40242922 | AT77: 0
A78: ='Gas Use Per Customer'!B77 -> 2028 | B78: ='Gas Use Per Customer'!C77 -> 4 | C78: ='Daily efficiency'!CQ79 -> 47 | D78: ='Gas Use Per Customer'!J77 -> 259.4159162 | E78: ='Gas Use Per Customer'!L77 -> 55.79730488 | F78: =E78*VLOOKUP($C78,'Existing Technology Conversion'!$A:$AR,21,FALSE) -> 16.73919147 | G78: =D78*VLOOKUP($C78,'Existing Technology Conversion'!$A:$AR,27,FALSE) -> 77.82477486 | H78: =E78*VLOOKUP($C78,'Existing Technology Conversion'!$A:$AR,22,FALSE) -> 33.47838293 | I78: =D78*VLOOKUP($C78,'Existing Technology Conversion'!$A:$AR,28,FALSE) -> 181.5911413 | J78: =E78*VLOOKUP($C78,'Existing Technology Conversion'!$A:$AR,23,FALSE) -> 5.579730488 | K78: =D78*VLOOKUP($C78,'Existing Technology Conversion'!$A:$AR,29,FALSE) -> 0 | L78: =F78*'Daily efficiency'!BD79 -> 265.0990044 | M78: =G78*'Daily efficiency'!BE79 -> 1382.557077 | N78: =H78*'Daily efficiency'!BF79 -> 550.2786536 | O78: =I78*'Daily efficiency'!BG79 -> 4256.496353 | P78: =J78*'Daily efficiency'!BH79 -> 163.4861033 | Q78: =K78*'Daily efficiency'!BI79 -> 0 | R78: 49.89144708 | S78: 35.56092505 | T78: 0.08372694703 | U78: 0.08358366076 | V78: =IFERROR(VLOOKUP($A78,Assumptions!$B$11:$H$35,2,FALSE),0) -> 0 | W78: =IFERROR(VLOOKUP($A78,Assumptions!$B$11:$H$35,3,FALSE),0) -> 0 | X78: =IFERROR(VLOOKUP($A78,Assumptions!$B$11:$H$35,4,FALSE),0) -> 0 | Y78: =IFERROR(VLOOKUP($A78,Assumptions!$B$11:$H$35,5,FALSE),0) -> 0 | Z78: =IFERROR(VLOOKUP($A78,Assumptions!$B$11:$H$35,6,FALSE),0) -> 0 | AA78: =IFERROR(VLOOKUP($A78,Assumptions!$B$11:$H$35,7,FALSE),0) -> 0 | AB78: 32.82622277 | AC78: 130.7247173 | AD78: 67.33085934 | AE78: 371.3508788 | AF78: 13.664767 | AG78: 0 | AH78: =(V78+AB78)-(VLOOKUP($A78,Assumptions!$A$43:$M$98,11,FALSE)*F78) -> 19.69024662 | AI78: =(W78+AC78)-(VLOOKUP($A78,Assumptions!$A$43:$R$98,16,FALSE)*G78) -> 73.63449369 | AJ78: =(X78+AD78)-VLOOKUP($A78,Assumptions!$A$44:$M$98,13,FALSE)-(VLOOKUP($A78,Assumptions!$A$44:$M$98,11,FALSE)*$H78) -> 29.21141889 | AK78: =(Y78+AE78)-VLOOKUP($A78,Assumptions!$A$44:$R$98,18,FALSE)-(VLOOKUP($A78,Assumptions!$A$43:$R$98,16,FALSE)*I78) -> 226.2928689 | AL78: =(Z78+AF78)-(VLOOKUP($A78,Assumptions!$A$43:$M$98,11,FALSE)*J78) -> 9.286108283 | AM78: 0 | AO78: 11.76296159 | AP78: 9.461574907 | AQ78: 8.725456946 | AR78: 12.46166896 | AS78: 22.95087528 | AT78: 0
A79: ='Gas Use Per Customer'!B78 -> 2028 | B79: ='Gas Use Per Customer'!C78 -> 5 | C79: ='Daily efficiency'!CQ80 -> 54 | D79: ='Gas Use Per Customer'!J78 -> 153.6701697 | E79: ='Gas Use Per Customer'!L78 -> 38.72873014 | F79: =E79*VLOOKUP($C79,'Existing Technology Conversion'!$A:$AR,21,FALSE) -> 30.98298411 | G79: =D79*VLOOKUP($C79,'Existing Technology Conversion'!$A:$AR,27,FALSE) -> 138.3031527 | H79: =E79*VLOOKUP($C79,'Existing Technology Conversion'!$A:$AR,22,FALSE) -> 3.872873014 | I79: =D79*VLOOKUP($C79,'Existing Technology Conversion'!$A:$AR,28,FALSE) -> 15.36701697 | J79: =E79*VLOOKUP($C79,'Existing Technology Conversion'!$A:$AR,23,FALSE) -> 3.872873014 | K79: =D79*VLOOKUP($C79,'Existing Technology Conversion'!$A:$AR,29,FALSE) -> 0 | L79: =F79*'Daily efficiency'!BD80 -> 432.9514533 | M79: =G79*'Daily efficiency'!BE80 -> 2373.201257 | N79: =H79*'Daily efficiency'!BF80 -> 48.10406334 | O79: =I79*'Daily efficiency'!BG80 -> 360.2028777 | P79: =J79*'Daily efficiency'!BH80 -> 113.4751793 | Q79: =K79*'Daily efficiency'!BI80 -> 0 | R79: 49.89144708 | S79: 35.56092505 | T79: 0.08372694703 | U79: 0.08358366076 | V79: =IFERROR(VLOOKUP($A79,Assumptions!$B$11:$H$35,2,FALSE),0) -> 0 | W79: =IFERROR(VLOOKUP($A79,Assumptions!$B$11:$H$35,3,FALSE),0) -> 0 | X79: =IFERROR(VLOOKUP($A79,Assumptions!$B$11:$H$35,4,FALSE),0) -> 0 | Y79: =IFERROR(VLOOKUP($A79,Assumptions!$B$11:$H$35,5,FALSE),0) -> 0 | Z79: =IFERROR(VLOOKUP($A79,Assumptions!$B$11:$H$35,6,FALSE),0) -> 0 | AA79: =IFERROR(VLOOKUP($A79,Assumptions!$B$11:$H$35,7,FALSE),0) -> 0 | AB79: 64.63640744 | AC79: 243.6031983 | AD79: 7.576806215 | AE79: 75.06098963 | AF79: 9.484670891 | AG79: 0 | AH79: =(V79+AB79)-(VLOOKUP($A79,Assumptions!$A$43:$M$98,11,FALSE)*F79) -> 40.32270382 | AI79: =(W79+AC79)-(VLOOKUP($A79,Assumptions!$A$43:$R$98,16,FALSE)*G79) -> 142.1476152 | AJ79: =(X79+AD79)-VLOOKUP($A79,Assumptions!$A$44:$M$98,13,FALSE)-(VLOOKUP($A79,Assumptions!$A$44:$M$98,11,FALSE)*$H79) -> -7.309894895 | AK79: =(Y79+AE79)-VLOOKUP($A79,Assumptions!$A$44:$R$98,18,FALSE)-(VLOOKUP($A79,Assumptions!$A$43:$R$98,16,FALSE)*I79) -> 51.9406589 | AL79: =(Z79+AF79)-(VLOOKUP($A79,Assumptions!$A$43:$M$98,11,FALSE)*J79) -> 6.445457938 | AM79: 0 | AO79: 13.01446745 | AP79: 10.2779736 | AQ79: 0.2669113201 | AR79: 33.80009212 | AS79: 15.93012883 | AT79: 0
A80: ='Gas Use Per Customer'!B79 -> 2028 | B80: ='Gas Use Per Customer'!C79 -> 6 | C80: ='Daily efficiency'!CQ81 -> 59 | D80: ='Gas Use Per Customer'!J79 -> 117.0089368 | E80: ='Gas Use Per Customer'!L79 -> 24.62949894 | F80: =E80*VLOOKUP($C80,'Existing Technology Conversion'!$A:$AR,21,FALSE) -> 19.70359915 | G80: =D80*VLOOKUP($C80,'Existing Technology Conversion'!$A:$AR,27,FALSE) -> 105.3080431 | H80: =E80*VLOOKUP($C80,'Existing Technology Conversion'!$A:$AR,22,FALSE) -> 2.462949894 | I80: =D80*VLOOKUP($C80,'Existing Technology Conversion'!$A:$AR,28,FALSE) -> 11.70089368 | J80: =E80*VLOOKUP($C80,'Existing Technology Conversion'!$A:$AR,23,FALSE) -> 2.462949894 | K80: =D80*VLOOKUP($C80,'Existing Technology Conversion'!$A:$AR,29,FALSE) -> 0 | L80: =F80*'Daily efficiency'!BD81 -> 275.3350632 | M80: =G80*'Daily efficiency'!BE81 -> 1804.741426 | N80: =H80*'Daily efficiency'!BF81 -> 30.24033337 | O80: =I80*'Daily efficiency'!BG81 -> 274.2689478 | P80: =J80*'Daily efficiency'!BH81 -> 72.1644319 | Q80: =K80*'Daily efficiency'!BI81 -> 0 | R80: 50.39036155 | S80: 35.9165343 | T80: 0.08623875544 | U80: 0.08609117058 | V80: =IFERROR(VLOOKUP($A80,Assumptions!$B$11:$H$35,2,FALSE),0) -> 0 | W80: =IFERROR(VLOOKUP($A80,Assumptions!$B$11:$H$35,3,FALSE),0) -> 0 | X80: =IFERROR(VLOOKUP($A80,Assumptions!$B$11:$H$35,4,FALSE),0) -> 0 | Y80: =IFERROR(VLOOKUP($A80,Assumptions!$B$11:$H$35,5,FALSE),0) -> 0 | Z80: =IFERROR(VLOOKUP($A80,Assumptions!$B$11:$H$35,6,FALSE),0) -> 0 | AA80: =IFERROR(VLOOKUP($A80,Assumptions!$B$11:$H$35,7,FALSE),0) -> 0 | AB80: =IFERROR((U80*L80),0)+(S80*F80/(F80+H80+J80)) -> 52.43714533 | AC80: =IFERROR((T80*M80),0)+(R80*(G80/(G80+I80+K80))) -> 200.9899798 | AD80: =IFERROR((U80*N80),0)+(S80*H80/(F80+H80+J80)) -> 6.195079128 | AE80: =IFERROR((T80*O80),0)+(R80*(G80/(G80+I80+K80))) -> 69.00393811 | AF80: 6.212720416 | AG80: 0 | AH80: =(V80+AB80)-(VLOOKUP($A80,Assumptions!$A$43:$M$98,11,FALSE)*F80) -> 36.97486874 | AI80: =(W80+AC80)-(VLOOKUP($A80,Assumptions!$A$43:$R$98,16,FALSE)*G80) -> 123.7387479 | AJ80: =(X80+AD80)-VLOOKUP($A80,Assumptions!$A$44:$M$98,13,FALSE)-(VLOOKUP($A80,Assumptions!$A$44:$M$98,11,FALSE)*$H80) -> -7.585193605 | AK80: =(Y80+AE80)-VLOOKUP($A80,Assumptions!$A$44:$R$98,18,FALSE)-(VLOOKUP($A80,Assumptions!$A$43:$R$98,16,FALSE)*I80) -> 48.57297974 | AL80: =(Z80+AF80)-(VLOOKUP($A80,Assumptions!$A$43:$M$98,11,FALSE)*J80) -> 4.279935842 | AM80: 0 | AO80: 18.76554047 | AP80: 11.75017067 | AQ80: -1.390114477 | AR80: 41.51219648 | AS80: 10.49265626 | AT80: 0
A81: ='Gas Use Per Customer'!B80 -> 2028 | B81: ='Gas Use Per Customer'!C80 -> 7 | C81: ='Daily efficiency'!CQ82 -> 63 | D81: ='Gas Use Per Customer'!J80 -> 108.131735 | E81: ='Gas Use Per Customer'!L80 -> 20.67888084 | F81: =E81*VLOOKUP($C81,'Existing Technology Conversion'!$A:$AR,21,FALSE) -> 16.54310467 | G81: =D81*VLOOKUP($C81,'Existing Technology Conversion'!$A:$AR,27,FALSE) -> 97.31856149 | H81: =E81*VLOOKUP($C81,'Existing Technology Conversion'!$A:$AR,22,FALSE) -> 2.067888084 | I81: =D81*VLOOKUP($C81,'Existing Technology Conversion'!$A:$AR,28,FALSE) -> 10.8131735 | J81: =E81*VLOOKUP($C81,'Existing Technology Conversion'!$A:$AR,23,FALSE) -> 2.067888084 | K81: =D81*VLOOKUP($C81,'Existing Technology Conversion'!$A:$AR,29,FALSE) -> 0 | L81: =F81*'Daily efficiency'!BD82 -> 233.9672206 | M81: =G81*'Daily efficiency'!BE82 -> 1679.775498 | N81: =H81*'Daily efficiency'!BF82 -> 23.75167995 | O81: =I81*'Daily efficiency'!BG82 -> 237.108478 | P81: =J81*'Daily efficiency'!BH82 -> 58.63463309 | Q81: =K81*'Daily efficiency'!BI82 -> 0 | R81: 50.39036155 | S81: 35.9165343 | T81: 0.08623875544 | U81: 0.08609117058 | V81: =IFERROR(VLOOKUP($A81,Assumptions!$B$11:$H$35,2,FALSE),0) -> 0 | W81: =IFERROR(VLOOKUP($A81,Assumptions!$B$11:$H$35,3,FALSE),0) -> 0 | X81: =IFERROR(VLOOKUP($A81,Assumptions!$B$11:$H$35,4,FALSE),0) -> 0 | Y81: =IFERROR(VLOOKUP($A81,Assumptions!$B$11:$H$35,5,FALSE),0) -> 0 | Z81: =IFERROR(VLOOKUP($A81,Assumptions!$B$11:$H$35,6,FALSE),0) -> 0 | AA81: =IFERROR(VLOOKUP($A81,Assumptions!$B$11:$H$35,7,FALSE),0) -> 0 | AB81: 48.87573933 | AC81: 190.2130737 | AD81: 5.636463359 | AE81: 65.79926544 | AF81: 5.0479242 | AG81: 0 | AH81: =(V81+AB81)-(VLOOKUP($A81,Assumptions!$A$43:$M$98,11,FALSE)*F81) -> 35.89364108 | AI81: =(W81+AC81)-(VLOOKUP($A81,Assumptions!$A$43:$R$98,16,FALSE)*G81) -> 118.822717 | AJ81: =(X81+AD81)-VLOOKUP($A81,Assumptions!$A$44:$M$98,13,FALSE)-(VLOOKUP($A81,Assumptions!$A$44:$M$98,11,FALSE)*$H81) -> -7.833787081 | AK81: =(Y81+AE81)-VLOOKUP($A81,Assumptions!$A$44:$R$98,18,FALSE)-(VLOOKUP($A81,Assumptions!$A$43:$R$98,16,FALSE)*I81) -> 46.01951543 | AL81: =(Z81+AF81)-(VLOOKUP($A81,Assumptions!$A$43:$M$98,11,FALSE)*J81) -> 3.425161918 | AM81: 0 | AO81: 21.69704042 | AP81: 12.2096664 | AQ81: -2.197323722 | AR81: 42.55875061 | AS81: 8.473086117 | AT81: 0
A82: ='Gas Use Per Customer'!B81 -> 2028 | B82: ='Gas Use Per Customer'!C81 -> 8 | C82: ='Daily efficiency'!CQ83 -> 62 | D82: ='Gas Use Per Customer'!J81 -> 151.0485198 | E82: ='Gas Use Per Customer'!L81 -> 27.24943052 | F82: =E82*VLOOKUP($C82,'Existing Technology Conversion'!$A:$AR,21,FALSE) -> 21.79954442 | G82: =D82*VLOOKUP($C82,'Existing Technology Conversion'!$A:$AR,27,FALSE) -> 135.9436678 | H82: =E82*VLOOKUP($C82,'Existing Technology Conversion'!$A:$AR,22,FALSE) -> 2.724943052 | I82: =D82*VLOOKUP($C82,'Existing Technology Conversion'!$A:$AR,28,FALSE) -> 15.10485198 | J82: =E82*VLOOKUP($C82,'Existing Technology Conversion'!$A:$AR,23,FALSE) -> 2.724943052 | K82: =D82*VLOOKUP($C82,'Existing Technology Conversion'!$A:$AR,29,FALSE) -> 0 | L82: =F82*'Daily efficiency'!BD83 -> 308.3084414 | M82: =G82*'Daily efficiency'!BE83 -> 2346.467506 | N82: =H82*'Daily efficiency'!BF83 -> 31.29858707 | O82: =I82*'Daily efficiency'!BG83 -> 331.2152962 | P82: =J82*'Daily efficiency'!BH83 -> 77.26532074 | Q82: =K82*'Daily efficiency'!BI83 -> 0 | R82: 50.39036155 | S82: 35.9165343 | T82: 0.08623875544 | U82: 0.08609117058 | V82: =IFERROR(VLOOKUP($A82,Assumptions!$B$11:$H$35,2,FALSE),0) -> 0 | W82: =IFERROR(VLOOKUP($A82,Assumptions!$B$11:$H$35,3,FALSE),0) -> 0 | X82: =IFERROR(VLOOKUP($A82,Assumptions!$B$11:$H$35,4,FALSE),0) -> 0 | Y82: =IFERROR(VLOOKUP($A82,Assumptions!$B$11:$H$35,5,FALSE),0) -> 0 | Z82: =IFERROR(VLOOKUP($A82,Assumptions!$B$11:$H$35,6,FALSE),0) -> 0 | AA82: =IFERROR(VLOOKUP($A82,Assumptions!$B$11:$H$35,7,FALSE),0) -> 0 | AB82: 55.27586206 | AC82: 247.7077628 | AD82: 6.286185428 | AE82: 73.91492032 | AF82: 6.651861908 | AG82: 0 | AH82: =(V82+AB82)-(VLOOKUP($A82,Assumptions!$A$43:$M$98,11,FALSE)*F82) -> 38.16880548 | AI82: =(W82+AC82)-(VLOOKUP($A82,Assumptions!$A$43:$R$98,16,FALSE)*G82) -> 147.9830362 | AJ82: =(X82+AD82)-VLOOKUP($A82,Assumptions!$A$44:$M$98,13,FALSE)-(VLOOKUP($A82,Assumptions!$A$44:$M$98,11,FALSE)*$H82) -> -7.699684802 | AK82: =(Y82+AE82)-VLOOKUP($A82,Assumptions!$A$44:$R$98,18,FALSE)-(VLOOKUP($A82,Assumptions!$A$43:$R$98,16,FALSE)*I82) -> 50.98690699 | AL82: =(Z82+AF82)-(VLOOKUP($A82,Assumptions!$A$43:$M$98,11,FALSE)*J82) -> 4.513479836 | AM82: 0 | AO82: 17.50899227 | AP82: 10.8856145 | AQ82: -1.413499374 | AR82: 33.7553172 | AS82: 11.16534174 | AT82: 0
A83: ='Gas Use Per Customer'!B82 -> 2028 | B83: ='Gas Use Per Customer'!C82 -> 9 | C83: ='Daily efficiency'!CQ84 -> 58 | D83: ='Gas Use Per Customer'!J82 -> 114.0895493 | E83: ='Gas Use Per Customer'!L82 -> 20.51903608 | F83: =E83*VLOOKUP($C83,'Existing Technology Conversion'!$A:$AR,21,FALSE) -> 16.41522886 | G83: =D83*VLOOKUP($C83,'Existing Technology Conversion'!$A:$AR,27,FALSE) -> 102.6805943 | H83: =E83*VLOOKUP($C83,'Existing Technology Conversion'!$A:$AR,22,FALSE) -> 2.051903608 | I83: =D83*VLOOKUP($C83,'Existing Technology Conversion'!$A:$AR,28,FALSE) -> 11.40895493 | J83: =E83*VLOOKUP($C83,'Existing Technology Conversion'!$A:$AR,23,FALSE) -> 2.051903608 | K83: =D83*VLOOKUP($C83,'Existing Technology Conversion'!$A:$AR,29,FALSE) -> 0 | L83: =F83*'Daily efficiency'!BD84 -> 229.3838827 | M83: =G83*'Daily efficiency'!BE84 -> 1759.712903 | N83: =H83*'Daily efficiency'!BF84 -> 25.19346791 | O83: =I83*'Daily efficiency'!BG84 -> 267.4259035 | P83: =J83*'Daily efficiency'!BH84 -> 60.1207757 | Q83: =K83*'Daily efficiency'!BI84 -> 0 | R83: 50.39036155 | S83: 35.9165343 | T83: 0.08623875544 | U83: 0.08609117058 | V83: =IFERROR(VLOOKUP($A83,Assumptions!$B$11:$H$35,2,FALSE),0) -> 0 | W83: =IFERROR(VLOOKUP($A83,Assumptions!$B$11:$H$35,3,FALSE),0) -> 0 | X83: =IFERROR(VLOOKUP($A83,Assumptions!$B$11:$H$35,4,FALSE),0) -> 0 | Y83: =IFERROR(VLOOKUP($A83,Assumptions!$B$11:$H$35,5,FALSE),0) -> 0 | Z83: =IFERROR(VLOOKUP($A83,Assumptions!$B$11:$H$35,6,FALSE),0) -> 0 | AA83: =IFERROR(VLOOKUP($A83,Assumptions!$B$11:$H$35,7,FALSE),0) -> 0 | AB83: 48.48115441 | AC83: 197.106776 | AD83: 5.760588573 | AE83: 68.41380248 | AF83: 5.175867956 | AG83: 0 | AH83: =(V83+AB83)-(VLOOKUP($A83,Assumptions!$A$43:$M$98,11,FALSE)*F83) -> 35.5994059 | AI83: =(W83+AC83)-(VLOOKUP($A83,Assumptions!$A$43:$R$98,16,FALSE)*G83) -> 121.782972 | AJ83: =(X83+AD83)-VLOOKUP($A83,Assumptions!$A$44:$M$98,13,FALSE)-(VLOOKUP($A83,Assumptions!$A$44:$M$98,11,FALSE)*$H83) -> -7.697118149 | AK83: =(Y83+AE83)-VLOOKUP($A83,Assumptions!$A$44:$R$98,18,FALSE)-(VLOOKUP($A83,Assumptions!$A$43:$R$98,16,FALSE)*I83) -> 48.19700276 | AL83: =(Z83+AF83)-(VLOOKUP($A83,Assumptions!$A$43:$M$98,11,FALSE)*J83) -> 3.565649393 | AM83: 0 | AO83: 21.68681668 | AP83: 11.86036882 | AQ83: -1.936529575 | AR83: 42.2448884 | AS83: 8.741517349 | AT83: 0
A84: ='Gas Use Per Customer'!B83 -> 2028 | B84: ='Gas Use Per Customer'!C83 -> 10 | C84: ='Daily efficiency'!CQ85 -> 48 | D84: ='Gas Use Per Customer'!J83 -> 225.1364715 | E84: ='Gas Use Per Customer'!L83 -> 46.45792009 | F84: =E84*VLOOKUP($C84,'Existing Technology Conversion'!$A:$AR,21,FALSE) -> 13.93737603 | G84: =D84*VLOOKUP($C84,'Existing Technology Conversion'!$A:$AR,27,FALSE) -> 67.54094144 | H84: =E84*VLOOKUP($C84,'Existing Technology Conversion'!$A:$AR,22,FALSE) -> 27.87475205 | I84: =D84*VLOOKUP($C84,'Existing Technology Conversion'!$A:$AR,28,FALSE) -> 157.59553 | J84: =E84*VLOOKUP($C84,'Existing Technology Conversion'!$A:$AR,23,FALSE) -> 4.645792009 | K84: =D84*VLOOKUP($C84,'Existing Technology Conversion'!$A:$AR,29,FALSE) -> 0 | L84: =F84*'Daily efficiency'!BD85 -> 209.608389 | M84: =G84*'Daily efficiency'!BE85 -> 1185.319784 | N84: =H84*'Daily efficiency'!BF85 -> 418.3013748 | O84: =I84*'Daily efficiency'!BG85 -> 3694.039224 | P84: =J84*'Daily efficiency'!BH85 -> 136.1217059 | Q84: =K84*'Daily efficiency'!BI85 -> 0 | R84: 50.39036155 | S84: 35.9165343 | T84: 0.08623875544 | U84: 0.08609117058 | V84: =IFERROR(VLOOKUP($A84,Assumptions!$B$11:$H$35,2,FALSE),0) -> 0 | W84: =IFERROR(VLOOKUP($A84,Assumptions!$B$11:$H$35,3,FALSE),0) -> 0 | X84: =IFERROR(VLOOKUP($A84,Assumptions!$B$11:$H$35,4,FALSE),0) -> 0 | Y84: =IFERROR(VLOOKUP($A84,Assumptions!$B$11:$H$35,5,FALSE),0) -> 0 | Z84: =IFERROR(VLOOKUP($A84,Assumptions!$B$11:$H$35,6,FALSE),0) -> 0 | AA84: =IFERROR(VLOOKUP($A84,Assumptions!$B$11:$H$35,7,FALSE),0) -> 0 | AB84: 28.82039186 | AC84: 117.3376115 | AD84: 57.56197559 | AE84: 333.6864537 | AF84: 11.718877 | AG84: 0 | AH84: =(V84+AB84)-(VLOOKUP($A84,Assumptions!$A$43:$M$98,11,FALSE)*F84) -> 17.88312292 | AI84: =(W84+AC84)-(VLOOKUP($A84,Assumptions!$A$43:$R$98,16,FALSE)*G84) -> 67.79133963 | AJ84: =(X84+AD84)-VLOOKUP($A84,Assumptions!$A$44:$M$98,13,FALSE)-(VLOOKUP($A84,Assumptions!$A$44:$M$98,11,FALSE)*$H84) -> 23.83994954 | AK84: =(Y84+AE84)-VLOOKUP($A84,Assumptions!$A$44:$R$98,18,FALSE)-(VLOOKUP($A84,Assumptions!$A$43:$R$98,16,FALSE)*I84) -> 206.2309979 | AL84: =(Z84+AF84)-(VLOOKUP($A84,Assumptions!$A$43:$M$98,11,FALSE)*J84) -> 8.073120684 | AM84: 0 | AO84: 12.83105434 | AP84: 10.03707354 | AQ84: 8.55252434 | AR84: 13.08609438 | AS84: 19.79199768 | AT84: 0
A85: ='Gas Use Per Customer'!B84 -> 2028 | B85: ='Gas Use Per Customer'!C84 -> 11 | C85: ='Daily efficiency'!CQ86 -> 39 | D85: ='Gas Use Per Customer'!J84 -> 354.8216832 | E85: ='Gas Use Per Customer'!L84 -> 81.45444335 | F85: =E85*VLOOKUP($C85,'Existing Technology Conversion'!$A:$AR,21,FALSE) -> 24.43633301 | G85: =D85*VLOOKUP($C85,'Existing Technology Conversion'!$A:$AR,27,FALSE) -> 106.4465049 | H85: =E85*VLOOKUP($C85,'Existing Technology Conversion'!$A:$AR,22,FALSE) -> 48.87266601 | I85: =D85*VLOOKUP($C85,'Existing Technology Conversion'!$A:$AR,28,FALSE) -> 248.3751782 | J85: =E85*VLOOKUP($C85,'Existing Technology Conversion'!$A:$AR,23,FALSE) -> 8.145444335 | K85: =D85*VLOOKUP($C85,'Existing Technology Conversion'!$A:$AR,29,FALSE) -> 0 | L85: =F85*'Daily efficiency'!BD86 -> 403.5549322 | M85: =G85*'Daily efficiency'!BE86 -> 1895.791381 | N85: =H85*'Daily efficiency'!BF86 -> 818.2680652 | O85: =I85*'Daily efficiency'!BG86 -> 5821.914177 | P85: =J85*'Daily efficiency'!BH86 -> 238.661519 | Q85: =K85*'Daily efficiency'!BI86 -> 0 | R85: 50.39036155 | S85: 35.9165343 | T85: 0.08623875544 | U85: 0.08609117058 | V85: =IFERROR(VLOOKUP($A85,Assumptions!$B$11:$H$35,2,FALSE),0) -> 0 | W85: =IFERROR(VLOOKUP($A85,Assumptions!$B$11:$H$35,3,FALSE),0) -> 0 | X85: =IFERROR(VLOOKUP($A85,Assumptions!$B$11:$H$35,4,FALSE),0) -> 0 | Y85: =IFERROR(VLOOKUP($A85,Assumptions!$B$11:$H$35,5,FALSE),0) -> 0 | Z85: =IFERROR(VLOOKUP($A85,Assumptions!$B$11:$H$35,6,FALSE),0) -> 0 | AA85: =IFERROR(VLOOKUP($A85,Assumptions!$B$11:$H$35,7,FALSE),0) -> 0 | AB85: 45.51747679 | AC85: 178.6077978 | AD85: 91.99557616 | AE85: 517.1917414 | AF85: 20.54664955 | AG85: 0 | AH85: =(V85+AB85)-(VLOOKUP($A85,Assumptions!$A$43:$M$98,11,FALSE)*F85) -> 26.34121681 | AI85: =(W85+AC85)-(VLOOKUP($A85,Assumptions!$A$43:$R$98,16,FALSE)*G85) -> 100.52142 | AJ85: =(X85+AD85)-VLOOKUP($A85,Assumptions!$A$44:$M$98,13,FALSE)-(VLOOKUP($A85,Assumptions!$A$44:$M$98,11,FALSE)*$H85) -> 41.79556804 | AK85: =(Y85+AE85)-VLOOKUP($A85,Assumptions!$A$44:$R$98,18,FALSE)-(VLOOKUP($A85,Assumptions!$A$43:$R$98,16,FALSE)*I85) -> 323.1427051 | AL85: =(Z85+AF85)-(VLOOKUP($A85,Assumptions!$A$43:$M$98,11,FALSE)*J85) -> 14.15456288 | AM85: 0 | AO85: 10.77952932 | AP85: 9.4433744 | AQ85: 8.551931264 | AR85: 13.01026566 | AS85: 34.70121243 | AT85: 0
A86: ='Gas Use Per Customer'!B85 -> 2028 | B86: ='Gas Use Per Customer'!C85 -> 12 | C86: ='Daily efficiency'!CQ87 -> 32 | D86: ='Gas Use Per Customer'!J85 -> 511.7243286 | E86: ='Gas Use Per Customer'!L85 -> 112.676253 | F86: =E86*VLOOKUP($C86,'Existing Technology Conversion'!$A:$AR,21,FALSE) -> 22.53525059 | G86: =D86*VLOOKUP($C86,'Existing Technology Conversion'!$A:$AR,27,FALSE) -> 102.3448657 | H86: =E86*VLOOKUP($C86,'Existing Technology Conversion'!$A:$AR,22,FALSE) -> 84.50718972 | I86: =D86*VLOOKUP($C86,'Existing Technology Conversion'!$A:$AR,28,FALSE) -> 409.3794629 | J86: =E86*VLOOKUP($C86,'Existing Technology Conversion'!$A:$AR,23,FALSE) -> 5.633812648 | K86: =D86*VLOOKUP($C86,'Existing Technology Conversion'!$A:$AR,29,FALSE) -> 0 | L86: =F86*'Daily efficiency'!BD87 -> 420.1799906 | M86: =G86*'Daily efficiency'!BE87 -> 1988.075343 | N86: =H86*'Daily efficiency'!BF87 -> 1952.634722 | O86: =I86*'Daily efficiency'!BG87 -> 9402.3898 | P86: =J86*'Daily efficiency'!BH87 -> 191.6950188 | Q86: =K86*'Daily efficiency'!BI87 -> 0 | R86: 50.39036155 | S86: 35.9165343 | T86: 0.08623875544 | U86: 0.08609117058 | V86: =IFERROR(VLOOKUP($A86,Assumptions!$B$11:$H$35,2,FALSE),0) -> 0 | W86: =IFERROR(VLOOKUP($A86,Assumptions!$B$11:$H$35,3,FALSE),0) -> 0 | X86: =IFERROR(VLOOKUP($A86,Assumptions!$B$11:$H$35,4,FALSE),0) -> 0 | Y86: =IFERROR(VLOOKUP($A86,Assumptions!$B$11:$H$35,5,FALSE),0) -> 0 | Z86: =IFERROR(VLOOKUP($A86,Assumptions!$B$11:$H$35,6,FALSE),0) -> 0 | AA86: =IFERROR(VLOOKUP($A86,Assumptions!$B$11:$H$35,7,FALSE),0) -> 0 | AB86: 43.3570941 | AC86: 181.5272156 | AD86: 195.0420097 | AE86: 820.9284668 | AF86: 16.50324856 | AG86: 0 | AH86: =(V86+AB86)-(VLOOKUP($A86,Assumptions!$A$43:$M$98,11,FALSE)*F86) -> 25.67269669 | AI86: =(W86+AC86)-(VLOOKUP($A86,Assumptions!$A$43:$R$98,16,FALSE)*G86) -> 106.4496933 | AJ86: =(X86+AD86)-VLOOKUP($A86,Assumptions!$A$44:$M$98,13,FALSE)-(VLOOKUP($A86,Assumptions!$A$44:$M$98,11,FALSE)*$H86) -> 116.8780312 | AK86: =(Y86+AE86)-VLOOKUP($A86,Assumptions!$A$44:$R$98,18,FALSE)-(VLOOKUP($A86,Assumptions!$A$43:$R$98,16,FALSE)*I86) -> 508.7708895 | AL86: =(Z86+AF86)-(VLOOKUP($A86,Assumptions!$A$43:$M$98,11,FALSE)*J86) -> 12.08214921 | AM86: 0 | AO86: 11.39223928 | AP86: 10.40107802 | AQ86: 13.83054289 | AR86: 12.42785571 | AS86: 28.58539777 | AT86: 0
